Workbook

Sheet HTMA Innovation
M2: Example and Worksheet Checklist
G3: How To Measure Anything In Innovation
N8: Worksheet: Simple Monte Carlo Solar Example
F13: Hubbard Decision Research
F14: 2S410 Canterbury Ct
F15: Glen Ellyn, IL 60137
F16: www.hubbardresearch.com

Sheet Simple MC WS
A1: Worksheet: Simple Monte Carlo Solar Example | F1: More calculations to the right. Un-collapse columns. >>> | U1: Excel What-If Data Table to Compute Monte Carlo Simulation
A2: This worksheet provides an example of a simple Monte Carlo Model. In this example we model a project that would reduce potential labor costs for an upfront investment. Describe the Variables you want to use in your simulation here. Each distribution has a "Shape" (aka, probability distribution) described in the table below. Variables declared on this page can be used as random values on the Decision Model Summary table. Always recalculate by pressing the "Recalculate" button in cell I6. after making changes. Detailed calculations are grouped under hidden columns. Click on "+" signs in column headings to ungroup hidden columns. Below one will also find the model results as well as inputs for risk tolerance.
AMK5: Threshold Approximation for continuous variables
A6: Scenario # | B6: =ScenarioNum -> 10 | F6: Scenario NPV | H6: =IFERROR(C38,"") -> -2832.62725 | U6: Trial ID: | V6: 10 | X6: 1 | Y6: 2 | Z6: 3 | AA6: 4 | AB6: 5 | AC6: 6 | AD6: 7 | AE6: 8 | AF6: 9 | AG6: 10 | AH6: 11 | AI6: 12 | AJ6: 13 | AK6: 14 | AL6: 15 | AM6: 16 | AN6: 17 | AO6: 18 | AP6: 19 | AQ6: 20 | AR6: 21 | AS6: 22 | AT6: 23 | AU6: 24 | AV6: 25 | AW6: 26 | AX6: 27 | AY6: 28 | AZ6: 29 | BA6: 30 | BB6: 31 | BC6: 32 | BD6: 33 | BE6: 34 | BF6: 35 | BG6: 36 | BH6: 37 | BI6: 38 | BJ6: 39 | BK6: 40 | BL6: 41 | BM6: 42 | BN6: 43 | BO6: 44 | BP6: 45 | BQ6: 46 | BR6: 47 | BS6: 48 | BT6: 49 | BU6: 50 | BV6: 51 | BW6: 52 | BX6: 53 | BY6: 54 | BZ6: 55 | CA6: 56 | CB6: 57 | CC6: 58 | CD6: 59 | CE6: 60 | CF6: 61 | CG6: 62 | CH6: 63 | CI6: 64 | CJ6: 65 | CK6: 66 | CL6: 67 | CM6: 68 | CN6: 69 | CO6: 70 | CP6: 71 | CQ6: 72 | CR6: 73 | CS6: 74 | CT6: 75 | CU6: 76 | CV6: 77 | CW6: 78 | CX6: 79 | CY6: 80 | CZ6: 81 | DA6: 82 | DB6: 83 | DC6: 84 | DD6: 85 | DE6: 86 | DF6: 87 | DG6: 88 | DH6: 89 | DI6: 90 | DJ6: 91 | DK6: 92 | DL6: 93 | DM6: 94 | DN6: 95 | DO6: 96 | DP6: 97 | DQ6: 98 | DR6: 99 | DS6: 100 | DT6: 101 | DU6: 102 | DV6: 103 | DW6: 104 | DX6: 105 | DY6: 106 | DZ6: 107 | EA6: 108 | EB6: 109 | EC6: 110 | ED6: 111 | EE6: 112 | EF6: 113 | EG6: 114 | EH6: 115 | EI6: 116 | EJ6: 117 | EK6: 118 | EL6: 119 | EM6: 120 | EN6: 121 | EO6: 122 | EP6: 123 | EQ6: 124 | ER6: 125 | ES6: 126 | ET6: 127 | EU6: 128 | EV6: 129 | EW6: 130 | EX6: 131 | EY6: 132 | EZ6: 133 | FA6: 134 | FB6: 135 | FC6: 136 | FD6: 137 | FE6: 138 | FF6: 139 | FG6: 140 | FH6: 141 | FI6: 142 | FJ6: 143 | FK6: 144 | FL6: 145 | FM6: 146 | FN6: 147 | FO6: 148 | FP6: 149 | FQ6: 150 | FR6: 151 | FS6: 152 | FT6: 153 | FU6: 154 | FV6: 155 | FW6: 156 | FX6: 157 | FY6: 158 | FZ6: 159 | GA6: 160 | GB6: 161 | GC6: 162 | GD6: 163 | GE6: 164 | GF6: 165 | GG6: 166 | GH6: 167 | GI6: 168 | GJ6: 169 | GK6: 170 | GL6: 171 | GM6: 172 | GN6: 173 | GO6: 174 | GP6: 175 | GQ6: 176 | GR6: 177 | GS6: 178 | GT6: 179 | GU6: 180 | GV6: 181 | GW6: 182 | GX6: 183 | GY6: 184 | GZ6: 185 | HA6: 186 | HB6: 187 | HC6: 188 | HD6: 189 | HE6: 190 | HF6: 191 | HG6: 192 | HH6: 193 | HI6: 194 | HJ6: 195 | HK6: 196 | HL6: 197 | HM6: 198 | HN6: 199 | HO6: 200 | HP6: 201 | HQ6: 202 | HR6: 203 | HS6: 204 | HT6: 205 | HU6: 206 | HV6: 207 | HW6: 208 | HX6: 209 | HY6: 210 | HZ6: 211 | IA6: 212 | IB6: 213 | IC6: 214 | ID6: 215 | IE6: 216 | IF6: 217 | IG6: 218 | IH6: 219 | II6: 220 | IJ6: 221 | IK6: 222 | IL6: 223 | IM6: 224 | IN6: 225 | IO6: 226 | IP6: 227 | IQ6: 228 | IR6: 229 | IS6: 230 | IT6: 231 | IU6: 232 | IV6: 233 | IW6: 234 | IX6: 235 | IY6: 236 | IZ6: 237 | JA6: 238 | JB6: 239 | JC6: 240 | JD6: 241 | JE6: 242 | JF6: 243 | JG6: 244 | JH6: 245 | JI6: 246 | JJ6: 247 | JK6: 248 | JL6: 249 | JM6: 250 | JN6: 251 | JO6: 252 | JP6: 253 | JQ6: 254 | JR6: 255 | JS6: 256 | JT6: 257 | JU6: 258 | JV6: 259 | JW6: 260 | JX6: 261 | JY6: 262 | JZ6: 263 | KA6: 264 | KB6: 265 | KC6: 266 | KD6: 267 | KE6: 268 | KF6: 269 | KG6: 270 | KH6: 271 | KI6: 272 | KJ6: 273 | KK6: 274 | KL6: 275 | KM6: 276 | KN6: 277 | KO6: 278 | KP6: 279 | KQ6: 280 | KR6: 281 | KS6: 282 | KT6: 283 | KU6: 284 | KV6: 285 | KW6: 286 | KX6: 287 | KY6: 288 | KZ6: 289 | LA6: 290 | LB6: 291 | LC6: 292 | LD6: 293 | LE6: 294 | LF6: 295 | LG6: 296 | LH6: 297 | LI6: 298 | LJ6: 299 | LK6: 300 | LL6: 301 | LM6: 302 | LN6: 303 | LO6: 304 | LP6: 305 | LQ6: 306 | LR6: 307 | LS6: 308 | LT6: 309 | LU6: 310 | LV6: 311 | LW6: 312 | LX6: 313 | LY6: 314 | LZ6: 315 | MA6: 316 | MB6: 317 | MC6: 318 | MD6: 319 | ME6: 320 | MF6: 321 | MG6: 322 | MH6: 323 | MI6: 324 | MJ6: 325 | MK6: 326 | ML6: 327 | MM6: 328 | MN6: 329 | MO6: 330 | MP6: 331 | MQ6: 332 | MR6: 333 | MS6: 334 | MT6: 335 | MU6: 336 | MV6: 337 | MW6: 338 | MX6: 339 | MY6: 340 | MZ6: 341 | NA6: 342 | NB6: 343 | NC6: 344 | ND6: 345 | NE6: 346 | NF6: 347 | NG6: 348 | NH6: 349 | NI6: 350 | NJ6: 351 | NK6: 352 | NL6: 353 | NM6: 354 | NN6: 355 | NO6: 356 | NP6: 357 | NQ6: 358 | NR6: 359 | NS6: 360 | NT6: 361 | NU6: 362 | NV6: 363 | NW6: 364 | NX6: 365 | NY6: 366 | NZ6: 367 | OA6: 368 | OB6: 369 | OC6: 370 | OD6: 371 | OE6: 372 | OF6: 373 | OG6: 374 | OH6: 375 | OI6: 376 | OJ6: 377 | OK6: 378 | OL6: 379 | OM6: 380 | ON6: 381 | OO6: 382 | OP6: 383 | OQ6: 384 | OR6: 385 | OS6: 386 | OT6: 387 | OU6: 388 | OV6: 389 | OW6: 390 | OX6: 391 | OY6: 392 | OZ6: 393 | PA6: 394 | PB6: 395 | PC6: 396 | PD6: 397 | PE6: 398 | PF6: 399 | PG6: 400 | PH6: 401 | PI6: 402 | PJ6: 403 | PK6: 404 | PL6: 405 | PM6: 406 | PN6: 407 | PO6: 408 | PP6: 409 | PQ6: 410 | PR6: 411 | PS6: 412 | PT6: 413 | PU6: 414 | PV6: 415 | PW6: 416 | PX6: 417 | PY6: 418 | PZ6: 419 | QA6: 420 | QB6: 421 | QC6: 422 | QD6: 423 | QE6: 424 | QF6: 425 | QG6: 426 | QH6: 427 | QI6: 428 | QJ6: 429 | QK6: 430 | QL6: 431 | QM6: 432 | QN6: 433 | QO6: 434 | QP6: 435 | QQ6: 436 | QR6: 437 | QS6: 438 | QT6: 439 | QU6: 440 | QV6: 441 | QW6: 442 | QX6: 443 | QY6: 444 | QZ6: 445 | RA6: 446 | RB6: 447 | RC6: 448 | RD6: 449 | RE6: 450 | RF6: 451 | RG6: 452 | RH6: 453 | RI6: 454 | RJ6: 455 | RK6: 456 | RL6: 457 | RM6: 458 | RN6: 459 | RO6: 460 | RP6: 461 | RQ6: 462 | RR6: 463 | RS6: 464 | RT6: 465 | RU6: 466 | RV6: 467 | RW6: 468 | RX6: 469 | RY6: 470 | RZ6: 471 | SA6: 472 | SB6: 473 | SC6: 474 | SD6: 475 | SE6: 476 | SF6: 477 | SG6: 478 | SH6: 479 | SI6: 480 | SJ6: 481 | SK6: 482 | SL6: 483 | SM6: 484 | SN6: 485 | SO6: 486 | SP6: 487 | SQ6: 488 | SR6: 489 | SS6: 490 | ST6: 491 | SU6: 492 | SV6: 493 | SW6: 494 | SX6: 495 | SY6: 496 | SZ6: 497 | TA6: 498 | TB6: 499 | TC6: 500 | TD6: 501 | TE6: 502 | TF6: 503 | TG6: 504 | TH6: 505 | TI6: 506 | TJ6: 507 | TK6: 508 | TL6: 509 | TM6: 510 | TN6: 511 | TO6: 512 | TP6: 513 | TQ6: 514 | TR6: 515 | TS6: 516 | TT6: 517 | TU6: 518 | TV6: 519 | TW6: 520 | TX6: 521 | TY6: 522 | TZ6: 523 | UA6: 524 | UB6: 525 | UC6: 526 | UD6: 527 | UE6: 528 | UF6: 529 | UG6: 530 | UH6: 531 | UI6: 532 | UJ6: 533 | UK6: 534 | UL6: 535 | UM6: 536 | UN6: 537 | UO6: 538 | UP6: 539 | UQ6: 540 | UR6: 541 | US6: 542 | UT6: 543 | UU6: 544 | UV6: 545 | UW6: 546 | UX6: 547 | UY6: 548 | UZ6: 549 | VA6: 550 | VB6: 551 | VC6: 552 | VD6: 553 | VE6: 554 | VF6: 555 | VG6: 556 | VH6: 557 | VI6: 558 | VJ6: 559 | VK6: 560 | VL6: 561 | VM6: 562 | VN6: 563 | VO6: 564 | VP6: 565 | VQ6: 566 | VR6: 567 | VS6: 568 | VT6: 569 | VU6: 570 | VV6: 571 | VW6: 572 | VX6: 573 | VY6: 574 | VZ6: 575 | WA6: 576 | WB6: 577 | WC6: 578 | WD6: 579 | WE6: 580 | WF6: 581 | WG6: 582 | WH6: 583 | WI6: 584 | WJ6: 585 | WK6: 586 | WL6: 587 | WM6: 588 | WN6: 589 | WO6: 590 | WP6: 591 | WQ6: 592 | WR6: 593 | WS6: 594 | WT6: 595 | WU6: 596 | WV6: 597 | WW6: 598 | WX6: 599 | WY6: 600 | WZ6: 601 | XA6: 602 | XB6: 603 | XC6: 604 | XD6: 605 | XE6: 606 | XF6: 607 | XG6: 608 | XH6: 609 | XI6: 610 | XJ6: 611 | XK6: 612 | XL6: 613 | XM6: 614 | XN6: 615 | XO6: 616 | XP6: 617 | XQ6: 618 | XR6: 619 | XS6: 620 | XT6: 621 | XU6: 622 | XV6: 623 | XW6: 624 | XX6: 625 | XY6: 626 | XZ6: 627 | YA6: 628 | YB6: 629 | YC6: 630 | YD6: 631 | YE6: 632 | YF6: 633 | YG6: 634 | YH6: 635 | YI6: 636 | YJ6: 637 | YK6: 638 | YL6: 639 | YM6: 640 | YN6: 641 | YO6: 642 | YP6: 643 | YQ6: 644 | YR6: 645 | YS6: 646 | YT6: 647 | YU6: 648 | YV6: 649 | YW6: 650 | YX6: 651 | YY6: 652 | YZ6: 653 | ZA6: 654 | ZB6: 655 | ZC6: 656 | ZD6: 657 | ZE6: 658 | ZF6: 659 | ZG6: 660 | ZH6: 661 | ZI6: 662 | ZJ6: 663 | ZK6: 664 | ZL6: 665 | ZM6: 666 | ZN6: 667 | ZO6: 668 | ZP6: 669 | ZQ6: 670 | ZR6: 671 | ZS6: 672 | ZT6: 673 | ZU6: 674 | ZV6: 675 | ZW6: 676 | ZX6: 677 | ZY6: 678 | ZZ6: 679 | AAA6: 680 | AAB6: 681 | AAC6: 682 | AAD6: 683 | AAE6: 684 | AAF6: 685 | AAG6: 686 | AAH6: 687 | AAI6: 688 | AAJ6: 689 | AAK6: 690 | AAL6: 691 | AAM6: 692 | AAN6: 693 | AAO6: 694 | AAP6: 695 | AAQ6: 696 | AAR6: 697 | AAS6: 698 | AAT6: 699 | AAU6: 700 | AAV6: 701 | AAW6: 702 | AAX6: 703 | AAY6: 704 | AAZ6: 705 | ABA6: 706 | ABB6: 707 | ABC6: 708 | ABD6: 709 | ABE6: 710 | ABF6: 711 | ABG6: 712 | ABH6: 713 | ABI6: 714 | ABJ6: 715 | ABK6: 716 | ABL6: 717 | ABM6: 718 | ABN6: 719 | ABO6: 720 | ABP6: 721 | ABQ6: 722 | ABR6: 723 | ABS6: 724 | ABT6: 725 | ABU6: 726 | ABV6: 727 | ABW6: 728 | ABX6: 729 | ABY6: 730 | ABZ6: 731 | ACA6: 732 | ACB6: 733 | ACC6: 734 | ACD6: 735 | ACE6: 736 | ACF6: 737 | ACG6: 738 | ACH6: 739 | ACI6: 740 | ACJ6: 741 | ACK6: 742 | ACL6: 743 | ACM6: 744 | ACN6: 745 | ACO6: 746 | ACP6: 747 | ACQ6: 748 | ACR6: 749 | ACS6: 750 | ACT6: 751 | ACU6: 752 | ACV6: 753 | ACW6: 754 | ACX6: 755 | ACY6: 756 | ACZ6: 757 | ADA6: 758 | ADB6: 759 | ADC6: 760 | ADD6: 761 | ADE6: 762 | ADF6: 763 | ADG6: 764 | ADH6: 765 | ADI6: 766 | ADJ6: 767 | ADK6: 768 | ADL6: 769 | ADM6: 770 | ADN6: 771 | ADO6: 772 | ADP6: 773 | ADQ6: 774 | ADR6: 775 | ADS6: 776 | ADT6: 777 | ADU6: 778 | ADV6: 779 | ADW6: 780 | ADX6: 781 | ADY6: 782 | ADZ6: 783 | AEA6: 784 | AEB6: 785 | AEC6: 786 | AED6: 787 | AEE6: 788 | AEF6: 789 | AEG6: 790 | AEH6: 791 | AEI6: 792 | AEJ6: 793 | AEK6: 794 | AEL6: 795 | AEM6: 796 | AEN6: 797 | AEO6: 798 | AEP6: 799 | AEQ6: 800 | AER6: 801 | AES6: 802 | AET6: 803 | AEU6: 804 | AEV6: 805 | AEW6: 806 | AEX6: 807 | AEY6: 808 | AEZ6: 809 | AFA6: 810 | AFB6: 811 | AFC6: 812 | AFD6: 813 | AFE6: 814 | AFF6: 815 | AFG6: 816 | AFH6: 817 | AFI6: 818 | AFJ6: 819 | AFK6: 820 | AFL6: 821 | AFM6: 822 | AFN6: 823 | AFO6: 824 | AFP6: 825 | AFQ6: 826 | AFR6: 827 | AFS6: 828 | AFT6: 829 | AFU6: 830 | AFV6: 831 | AFW6: 832 | AFX6: 833 | AFY6: 834 | AFZ6: 835 | AGA6: 836 | AGB6: 837 | AGC6: 838 | AGD6: 839 | AGE6: 840 | AGF6: 841 | AGG6: 842 | AGH6: 843 | AGI6: 844 | AGJ6: 845 | AGK6: 846 | AGL6: 847 | AGM6: 848 | AGN6: 849 | AGO6: 850 | AGP6: 851 | AGQ6: 852 | AGR6: 853 | AGS6: 854 | AGT6: 855 | AGU6: 856 | AGV6: 857 | AGW6: 858 | AGX6: 859 | AGY6: 860 | AGZ6: 861 | AHA6: 862 | AHB6: 863 | AHC6: 864 | AHD6: 865 | AHE6: 866 | AHF6: 867 | AHG6: 868 | AHH6: 869 | AHI6: 870 | AHJ6: 871 | AHK6: 872 | AHL6: 873 | AHM6: 874 | AHN6: 875 | AHO6: 876 | AHP6: 877 | AHQ6: 878 | AHR6: 879 | AHS6: 880 | AHT6: 881 | AHU6: 882 | AHV6: 883 | AHW6: 884 | AHX6: 885 | AHY6: 886 | AHZ6: 887 | AIA6: 888 | AIB6: 889 | AIC6: 890 | AID6: 891 | AIE6: 892 | AIF6: 893 | AIG6: 894 | AIH6: 895 | AII6: 896 | AIJ6: 897 | AIK6: 898 | AIL6: 899 | AIM6: 900 | AIN6: 901 | AIO6: 902 | AIP6: 903 | AIQ6: 904 | AIR6: 905 | AIS6: 906 | AIT6: 907 | AIU6: 908 | AIV6: 909 | AIW6: 910 | AIX6: 911 | AIY6: 912 | AIZ6: 913 | AJA6: 914 | AJB6: 915 | AJC6: 916 | AJD6: 917 | AJE6: 918 | AJF6: 919 | AJG6: 920 | AJH6: 921 | AJI6: 922 | AJJ6: 923 | AJK6: 924 | AJL6: 925 | AJM6: 926 | AJN6: 927 | AJO6: 928 | AJP6: 929 | AJQ6: 930 | AJR6: 931 | AJS6: 932 | AJT6: 933 | AJU6: 934 | AJV6: 935 | AJW6: 936 | AJX6: 937 | AJY6: 938 | AJZ6: 939 | AKA6: 940 | AKB6: 941 | AKC6: 942 | AKD6: 943 | AKE6: 944 | AKF6: 945 | AKG6: 946 | AKH6: 947 | AKI6: 948 | AKJ6: 949 | AKK6: 950 | AKL6: 951 | AKM6: 952 | AKN6: 953 | AKO6: 954 | AKP6: 955 | AKQ6: 956 | AKR6: 957 | AKS6: 958 | AKT6: 959 | AKU6: 960 | AKV6: 961 | AKW6: 962 | AKX6: 963 | AKY6: 964 | AKZ6: 965 | ALA6: 966 | ALB6: 967 | ALC6: 968 | ALD6: 969 | ALE6: 970 | ALF6: 971 | ALG6: 972 | ALH6: 973 | ALI6: 974 | ALJ6: 975 | ALK6: 976 | ALL6: 977 | ALM6: 978 | ALN6: 979 | ALO6: 980 | ALP6: 981 | ALQ6: 982 | ALR6: 983 | ALS6: 984 | ALT6: 985 | ALU6: 986 | ALV6: 987 | ALW6: 988 | ALX6: 989 | ALY6: 990 | ALZ6: 991 | AMA6: 992 | AMB6: 993 | AMC6: 994 | AMD6: 995 | AME6: 996 | AMF6: 997 | AMG6: 998 | AMH6: 999 | AMI6: 1000 | AMK6: Clustering Variables by Nth size | ANF6: Average NPV by variable cluster | ANY6: Selection of nearest points and forecast
A7: Variable Summary | V7: NPV | W7: =H6 -> -2832.62725 | X7: -7857.711238 | Y7: -3520.445669 | Z7: -3912.559926 | AA7: -8194.359007 | AB7: -3621.415562 | AC7: -7279.882574 | AD7: -4775.355633 | AE7: -4033.792496 | AF7: -6251.352751 | AG7: -2832.62725 | AH7: -657.4766112 | AI7: -9861.305635 | AJ7: -1472.629731 | AK7: -3614.116998 | AL7: -6988.084982 | AM7: -2035.050696 | AN7: -1865.970332 | AO7: -3463.342346 | AP7: -4953.291551 | AQ7: -3414.884018 | AR7: -3140.96315 | AS7: -5252.121672 | AT7: -7925.601677 | AU7: -7089.829832 | AV7: -4481.356511 | AW7: -7592.057642 | AX7: -8789.91281 | AY7: -7325.758089 | AZ7: -4300.514024 | BA7: -8952.728659 | BB7: -5469.220167 | BC7: -6222.948292 | BD7: -5141.712369 | BE7: -5189.699258 | BF7: -9349.178829 | BG7: -10233.85493 | BH7: -7106.726928 | BI7: -1943.421016 | BJ7: -5675.091309 | BK7: -8276.560582 | BL7: -10174.3181 | BM7: -4739.701564 | BN7: -7215.08232 | BO7: -4304.242525 | BP7: -5899.352812 | BQ7: -5738.109781 | BR7: -5856.738168 | BS7: -5442.140666 | BT7: -4491.902154 | BU7: -8366.963702 | BV7: -7247.001819 | BW7: -6232.585544 | BX7: -5609.314591 | BY7: -5721.088513 | BZ7: -7976.460226 | CA7: -8014.801802 | CB7: -11822.73722 | CC7: -5038.622682 | CD7: -8249.277674 | CE7: -5744.120439 | CF7: -12530.28257 | CG7: -4519.458716 | CH7: -1477.037229 | CI7: -4832.304925 | CJ7: -5095.375854 | CK7: -4146.950842 | CL7: -4884.758405 | CM7: -6177.339205 | CN7: -7796.222326 | CO7: -5420.262986 | CP7: -9792.18397 | CQ7: -8074.936585 | CR7: -7822.692252 | CS7: -6644.463064 | CT7: -1369.76776 | CU7: -10639.75022 | CV7: -3055.004272 | CW7: -4127.983266 | CX7: -6010.937151 | CY7: -5269.476307 | CZ7: -5174.747302 | DA7: -7564.706424 | DB7: -6305.3554 | DC7: -11860.22041 | DD7: -8233.117954 | DE7: -9081.916482 | DF7: -11832.50474 | DG7: -7822.231844 | DH7: -4936.444155 | DI7: -6720.795045 | DJ7: -3216.117511 | DK7: -5161.300143 | DL7: -6745.634658 | DM7: -6926.228744 | DN7: -5286.022924 | DO7: -9335.262441 | DP7: -2729.513695 | DQ7: -4131.746454 | DR7: -3752.644442 | DS7: -3514.138481 | DT7: -5466.45803 | DU7: -7613.560963 | DV7: -6107.986013 | DW7: -5891.541865 | DX7: -5687.73935 | DY7: -4234.322489 | DZ7: -6156.136613 | EA7: -4927.627995 | EB7: -6726.72614 | EC7: -6076.751733 | ED7: -4154.271198 | EE7: -4409.508529 | EF7: -6718.608115 | EG7: -3131.199973 | EH7: -3468.861766 | EI7: -4965.197011 | EJ7: -4009.427219 | EK7: -4114.867781 | EL7: -4612.278938 | EM7: -9710.46104 | EN7: -4887.491868 | EO7: -4039.262406 | EP7: -5159.927893 | EQ7: -5758.063037 | ER7: -8423.561932 | ES7: -9604.434554 | ET7: -2974.82408 | EU7: -4373.678171 | EV7: -5319.931626 | EW7: 366.3294253 | EX7: -8147.687714 | EY7: -5143.476316 | EZ7: -8733.753801 | FA7: -6819.224533 | FB7: -5848.703163 | FC7: -6953.125777 | FD7: -10814.32736 | FE7: -8436.5509 | FF7: -7014.57107 | FG7: -6421.506804 | FH7: -4460.384897 | FI7: -2228.396629 | FJ7: -9719.476854 | FK7: -3967.088331 | FL7: -4579.468149 | FM7: -2938.532524 | FN7: -5728.56969 | FO7: -4138.582041 | FP7: -6246.381503 | FQ7: -1244.026285 | FR7: -5278.30537 | FS7: -7257.646093 | FT7: -2871.515019 | FU7: -2850.232995 | FV7: -7049.851476 | FW7: -6764.136611 | FX7: -3414.421146 | FY7: -2141.354303 | FZ7: -5115.526712 | GA7: -8562.29345 | GB7: -7926.157795 | GC7: -5113.337379 | GD7: -3943.403567 | GE7: -6802.574343 | GF7: -2776.886213 | GG7: -4303.106784 | GH7: -3465.467384 | GI7: -5914.506253 | GJ7: -4288.166189 | GK7: -5402.246075 | GL7: -10109.72513 | GM7: -6321.002275 | GN7: -4891.241701 | GO7: -12311.12808 | GP7: -6129.787709 | GQ7: -4689.860175 | GR7: -4991.238024 | GS7: -7527.690682 | GT7: -7173.195452 | GU7: -6801.089868 | GV7: -5814.94553 | GW7: -2496.352756 | GX7: -5450.472439 | GY7: -5837.224654 | GZ7: -6724.997136 | HA7: -5942.608185 | HB7: -11163.79959 | HC7: -7764.99677 | HD7: -6019.55482 | HE7: -4261.277432 | HF7: -4537.733974 | HG7: -4761.728035 | HH7: -1743.460793 | HI7: -3883.462934 | HJ7: -5841.747627 | HK7: -5551.089253 | HL7: -8316.436285 | HM7: -5743.954454 | HN7: -6235.383263 | HO7: -10629.34022 | HP7: -8893.856954 | HQ7: -493.7899683 | HR7: -3186.602109 | HS7: -6379.770936 | HT7: -4632.850468 | HU7: -6992.994536 | HV7: -5750.1477 | HW7: -3455.504966 | HX7: -2631.965379 | HY7: -7208.278951 | HZ7: -4784.096317 | IA7: -6364.813193 | IB7: -6467.583467 | IC7: -8496.524832 | ID7: -6864.695924 | IE7: -4681.206171 | IF7: -8703.26976 | IG7: -5040.296151 | IH7: -7236.815 | II7: -5876.946249 | IJ7: -10134.64026 | IK7: -3566.482264 | IL7: -6508.683535 | IM7: -9492.690251 | IN7: -7581.519556 | IO7: -6082.307235 | IP7: -9324.27439 | IQ7: -3726.143452 | IR7: -4122.741647 | IS7: -3110.701802 | IT7: -3588.280234 | IU7: -5363.956491 | IV7: -3127.394677 | IW7: -7618.364039 | IX7: -3347.849655 | IY7: -5877.429909 | IZ7: -6504.347183 | JA7: -6202.832768 | JB7: -3316.479736 | JC7: -9114.016022 | JD7: -3584.612945 | JE7: -9728.39286 | JF7: -4746.117359 | JG7: -2988.247279 | JH7: -5896.765222 | JI7: -6750.598678 | JJ7: -8236.750973 | JK7: -7496.762239 | JL7: -7949.01422 | JM7: -6083.623757 | JN7: -3902.544624 | JO7: -8101.035446 | JP7: -6467.78751 | JQ7: -8591.215906 | JR7: -4048.337344 | JS7: -7182.299907 | JT7: -4404.058096 | JU7: -10124.45344 | JV7: -3437.572311 | JW7: -7005.139312 | JX7: -8442.062474 | JY7: -5295.799153 | JZ7: -9752.541844 | KA7: -4368.612017 | KB7: -7203.339268 | KC7: -2423.226925 | KD7: -3836.673946 | KE7: -6680.217701 | KF7: -8575.908576 | KG7: -5155.958847 | KH7: -2871.285496 | KI7: -7305.244015 | KJ7: -10295.33221 | KK7: -3763.71753 | KL7: -3111.498261 | KM7: -4573.709291 | KN7: -3961.840747 | KO7: -4374.965934 | KP7: -348.7111557 | KQ7: -4964.308078 | KR7: -9089.426797 | KS7: -7308.921909 | KT7: -3126.719021 | KU7: -6173.094839 | KV7: -3617.304321 | KW7: -6264.583285 | KX7: -3380.486016 | KY7: -3768.108962 | KZ7: -3055.492965 | LA7: -7492.099123 | LB7: -7143.104136 | LC7: -4958.182153 | LD7: -4181.19218 | LE7: -8468.076068 | LF7: -6704.579286 | LG7: -3400.136763 | LH7: -5390.295814 | LI7: -5568.312812 | LJ7: -4838.588707 | LK7: -10363.30688 | LL7: -8230.979096 | LM7: -8186.064037 | LN7: -8198.832136 | LO7: -6932.012037 | LP7: -4503.833919 | LQ7: -7241.450849 | LR7: -7855.971308 | LS7: -7269.988645 | LT7: -2986.886522 | LU7: -1496.50946 | LV7: -6467.177298 | LW7: -6045.210001 | LX7: -4330.593497 | LY7: -5375.700774 | LZ7: -6908.032245 | MA7: -7300.840018 | MB7: -8015.216296 | MC7: -8025.692086 | MD7: -5658.433932 | ME7: -4291.230366 | MF7: -6002.579405 | MG7: -7942.91922 | MH7: -3977.425546 | MI7: -7389.062122 | MJ7: -7989.633391 | MK7: -5037.943132 | ML7: -7301.603762 | MM7: -7645.955137 | MN7: -6162.679917 | MO7: -3795.586709 | MP7: -6372.707718 | MQ7: -5197.536207 | MR7: 119.2497805 | MS7: -4516.240855 | MT7: -7220.971725 | MU7: -7330.27335 | MV7: -4733.851443 | MW7: -7124.771329 | MX7: -5118.362006 | MY7: -4746.574209 | MZ7: -2313.131395 | NA7: -1903.128011 | NB7: -9275.961836 | NC7: -6984.684296 | ND7: -9874.732649 | NE7: -4876.797466 | NF7: -7239.751104 | NG7: -12655.16093 | NH7: -8139.978034 | NI7: -6227.626487 | NJ7: -4366.482764 | NK7: -7625.734337 | NL7: -7469.263819 | NM7: -5474.359101 | NN7: -9641.514067 | NO7: -7456.278074 | NP7: -4109.1283 | NQ7: -5701.255822 | NR7: -3878.507169 | NS7: -11582.74855 | NT7: -4023.382959 | NU7: -5800.255098 | NV7: -4324.192565 | NW7: -4277.184402 | NX7: -3628.462739 | NY7: -6488.20326 | NZ7: -6754.455634 | OA7: -2890.616542 | OB7: -6238.870478 | OC7: -3510.991663 | OD7: -6343.935311 | OE7: -2303.278173 | OF7: -5822.581554 | OG7: -2467.330298 | OH7: -5618.155189 | OI7: -4506.326945 | OJ7: -2567.70924 | OK7: -2435.997876 | OL7: -6812.09284 | OM7: -5267.722095 | ON7: -6895.038658 | OO7: -7830.971725 | OP7: -3257.758712 | OQ7: -6713.312638 | OR7: -4163.785742 | OS7: -2046.567173 | OT7: -7803.9577 | OU7: -2415.75773 | OV7: -5519.781721 | OW7: -7311.981719 | OX7: -2954.572126 | OY7: -3109.756843 | OZ7: -4460.084239 | PA7: -3604.495757 | PB7: -6258.303234 | PC7: -6417.255082 | PD7: -3955.593347 | PE7: -3336.972388 | PF7: -2605.11413 | PG7: -8783.539688 | PH7: -4746.186945 | PI7: -6259.498369 | PJ7: -8401.950772 | PK7: -11359.30842 | PL7: -3681.720488 | PM7: -6556.827668 | PN7: -3885.571229 | PO7: -4700.473728 | PP7: -4968.857083 | PQ7: -8430.938215 | PR7: -8098.641753 | PS7: -4511.827188 | PT7: -8534.817186 | PU7: -7272.298926 | PV7: -10417.7357 | PW7: -5196.251058 | PX7: -4251.575558 | PY7: -9143.334485 | PZ7: -5912.30728 | QA7: -11408.78452 | QB7: -13485.39775 | QC7: -9729.404243 | QD7: -7615.830173 | QE7: -5480.428305 | QF7: -9163.382623 | QG7: -4607.740608 | QH7: -5360.586537 | QI7: -3166.13694 | QJ7: -1788.188393 | QK7: -7781.772963 | QL7: -7569.483055 | QM7: -5994.607077 | QN7: -2285.916756 | QO7: -3130.537987 | QP7: -11420.94204 | QQ7: -6742.458452 | QR7: -7490.40242 | QS7: -2370.900883 | QT7: -3863.972382 | QU7: -6885.284337 | QV7: -7318.526209 | QW7: -5685.617279 | QX7: -8073.978449 | QY7: -5770.004588 | QZ7: -3711.728819 | RA7: -6469.5847 | RB7: -5558.267025 | RC7: -6671.345856 | RD7: -4265.459369 | RE7: -5531.598274 | RF7: -3672.00475 | RG7: -7575.326245 | RH7: -6513.289416 | RI7: -4628.633361 | RJ7: -9578.127245 | RK7: -7811.078404 | RL7: -4053.74664 | RM7: -2975.965621 | RN7: -5515.687752 | RO7: -3325.847806 | RP7: -4518.942516 | RQ7: -8427.440714 | RR7: -4742.098383 | RS7: -5748.747956 | RT7: -4411.803091 | RU7: -4959.233222 | RV7: -3738.147315 | RW7: -6614.002918 | RX7: -10014.72704 | RY7: -10261.41086 | RZ7: -7759.545422 | SA7: -5673.876199 | SB7: -7897.753735 | SC7: -6742.335736 | SD7: -7058.338278 | SE7: -4042.78257 | SF7: -4823.87308 | SG7: -4993.959567 | SH7: -5919.496027 | SI7: -3300.146004 | SJ7: -3292.122558 | SK7: -8157.264628 | SL7: -4254.959281 | SM7: -766.9112595 | SN7: -7627.205844 | SO7: -4778.618271 | SP7: -8048.528668 | SQ7: -5742.134479 | SR7: -6114.542397 | SS7: -4200.335234 | ST7: -6814.688822 | SU7: -2795.78289 | SV7: -5716.195655 | SW7: -4513.905425 | SX7: -7919.082166 | SY7: -4709.895543 | SZ7: -4976.900247 | TA7: -4276.994315 | TB7: -10111.79435 | TC7: -5216.036791 | TD7: -5808.147783 | TE7: -5952.923279 | TF7: -4678.658555 | TG7: -5158.735153 | TH7: -5697.795313 | TI7: -1783.265012 | TJ7: -3359.620324 | TK7: -5415.436161 | TL7: -9214.181779 | TM7: -7880.586239 | TN7: -6027.631014 | TO7: -3337.497293 | TP7: -3729.196047 | TQ7: -5808.397675 | TR7: -6445.669583 | TS7: -7084.16506 | TT7: -7219.72466 | TU7: -6644.935632 | TV7: -4771.354204 | TW7: -6275.023497 | TX7: -2561.953363 | TY7: -7343.137305 | TZ7: -9854.80304 | UA7: -4764.204105 | UB7: -8843.766676 | UC7: -1770.483503 | UD7: -4985.453395 | UE7: -4427.88656 | UF7: -2050.457645 | UG7: -1956.821086 | UH7: -4502.558592 | UI7: -6107.711496 | UJ7: -3939.327664 | UK7: -5740.501524 | UL7: -2413.678573 | UM7: -8157.484423 | UN7: -5700.533202 | UO7: -8254.418703 | UP7: -4829.195298 | UQ7: -8145.835612 | UR7: -4606.356167 | US7: -8932.381842 | UT7: -3660.929933 | UU7: -8131.818864 | UV7: -10631.60913 | UW7: -4893.163171 | UX7: -5147.965895 | UY7: -4806.467435 | UZ7: -8315.541996 | VA7: -6297.041026 | VB7: -6549.676329 | VC7: -4859.152743 | VD7: -2418.025619 | VE7: -3812.333938 | VF7: -4518.755945 | VG7: -9153.940331 | VH7: -6015.659927 | VI7: -3947.232337 | VJ7: -3984.054271 | VK7: -5340.91038 | VL7: -1512.796545 | VM7: -8778.0803 | VN7: -9497.941483 | VO7: -5210.103319 | VP7: -8604.474663 | VQ7: -8665.514444 | VR7: -4727.184645 | VS7: -8217.741937 | VT7: -7446.768195 | VU7: -7403.191451 | VV7: -7507.600177 | VW7: -8934.944984 | VX7: -4033.654937 | VY7: -5438.330116 | VZ7: -10067.3063 | WA7: -8245.164298 | WB7: -6273.762981 | WC7: -10153.07899 | WD7: -3622.512829 | WE7: -7729.232369 | WF7: -6481.115024 | WG7: -6645.13584 | WH7: -4809.651941 | WI7: -7601.388375 | WJ7: -8698.232881 | WK7: -4090.872414 | WL7: -6120.848435 | WM7: -6155.883348 | WN7: -5756.893925 | WO7: -7223.525961 | WP7: -7600.130206 | WQ7: -3751.869506 | WR7: -5012.734586 | WS7: -10048.63783 | WT7: -4005.822554 | WU7: -8090.912815 | WV7: -6012.87543 | WW7: -4892.256118 | WX7: -5342.43938 | WY7: -5758.3499 | WZ7: -12921.66047 | XA7: -7761.898877 | XB7: -4522.624632 | XC7: -3693.951234 | XD7: -6368.795493 | XE7: -3914.180864 | XF7: -5101.138467 | XG7: -1454.239817 | XH7: -4370.541797 | XI7: -3119.941831 | XJ7: -3383.292422 | XK7: -9456.932585 | XL7: -10110.6001 | XM7: -8114.770681 | XN7: -6846.875687 | XO7: -8896.159861 | XP7: -9941.250483 | XQ7: -9407.963242 | XR7: -4287.449802 | XS7: -3734.150357 | XT7: -4467.615517 | XU7: -3736.629389 | XV7: -8178.383178 | XW7: -8672.65789 | XX7: -2148.235063 | XY7: -6763.503931 | XZ7: -6595.728413 | YA7: -8385.904408 | YB7: -4564.011975 | YC7: -7644.556254 | YD7: -11781.69132 | YE7: -4256.918422 | YF7: -6592.027702 | YG7: -6868.374455 | YH7: -6391.711446 | YI7: -3182.825867 | YJ7: -4659.823984 | YK7: -9445.248735 | YL7: -3017.889527 | YM7: -5113.144271 | YN7: -6613.839174 | YO7: -6251.062433 | YP7: -1904.895113 | YQ7: -5831.988467 | YR7: -3692.780045 | YS7: -7262.527111 | YT7: -6576.522176 | YU7: -7215.811389 | YV7: -2834.30384 | YW7: -6170.433736 | YX7: -6862.26317 | YY7: -3969.123443 | YZ7: -8118.120562 | ZA7: -8159.903322 | ZB7: -6264.818466 | ZC7: -2809.568623 | ZD7: -4966.127471 | ZE7: -3620.272975 | ZF7: -4829.247106 | ZG7: -3941.34737 | ZH7: -2744.428974 | ZI7: -6832.150521 | ZJ7: -3412.792984 | ZK7: -5361.615458 | ZL7: -9667.46529 | ZM7: -7742.626662 | ZN7: -6134.283992 | ZO7: -5531.78755 | ZP7: -2484.810041 | ZQ7: -3908.213642 | ZR7: -2992.607636 | ZS7: -3895.777425 | ZT7: -3361.22953 | ZU7: -7344.961901 | ZV7: -9070.515 | ZW7: -7099.268686 | ZX7: -6173.317846 | ZY7: -3928.653253 | ZZ7: -9546.62639 | AAA7: -2710.483952 | AAB7: -5669.295136 | AAC7: -11249.43908 | AAD7: -7318.526258 | AAE7: -5642.604992 | AAF7: -7287.340336 | AAG7: -8307.917467 | AAH7: -5157.184896 | AAI7: -6221.216033 | AAJ7: -5485.958911 | AAK7: -7205.376753 | AAL7: -4151.998094 | AAM7: -8003.920645 | AAN7: -10192.61805 | AAO7: -3180.928745 | AAP7: -7166.2654 | AAQ7: -5689.774019 | AAR7: -5482.594111 | AAS7: -6351.410293 | AAT7: -4209.029199 | AAU7: -3887.877499 | AAV7: -6923.517376 | AAW7: -6333.201846 | AAX7: -6594.933734 | AAY7: -6088.555746 | AAZ7: -6323.572996 | ABA7: -1358.216022 | ABB7: -6516.224742 | ABC7: -5744.016073 | ABD7: -1376.830668 | ABE7: -7617.880622 | ABF7: -6025.480248 | ABG7: -8886.105101 | ABH7: -3605.705975 | ABI7: -7232.14492 | ABJ7: -2759.016902 | ABK7: -3973.241498 | ABL7: -4435.840273 | ABM7: -7308.488499 | ABN7: -7140.297387 | ABO7: -11025.47518 | ABP7: -7369.789491 | ABQ7: -6138.157041 | ABR7: -1702.038901 | ABS7: -7119.666695 | ABT7: -6203.15587 | ABU7: -2897.337203 | ABV7: -4628.691337 | ABW7: -9015.632682 | ABX7: -4931.085075 | ABY7: -8089.706471 | ABZ7: -7227.794132 | ACA7: -6158.952546 | ACB7: -8016.740822 | ACC7: -5323.812701 | ACD7: -5380.886351 | ACE7: -4409.515631 | ACF7: -3766.071718 | ACG7: -8190.418963 | ACH7: -7024.760328 | ACI7: -5436.782718 | ACJ7: -6771.794691 | ACK7: -4765.343597 | ACL7: -4597.364717 | ACM7: -2720.642466 | ACN7: -8287.838464 | ACO7: -3032.531337 | ACP7: -2645.807826 | ACQ7: -8969.076486 | ACR7: -6083.330428 | ACS7: -2006.213073 | ACT7: -6406.021917 | ACU7: -6115.127342 | ACV7: -4372.87224 | ACW7: -3813.459647 | ACX7: -3989.930175 | ACY7: -3785.642979 | ACZ7: -4742.350672 | ADA7: -7047.12333 | ADB7: -11103.16301 | ADC7: -8030.148833 | ADD7: -4620.890676 | ADE7: -6522.379093 | ADF7: -10657.35176 | ADG7: -5622.578992 | ADH7: -6273.352541 | ADI7: -6408.739808 | ADJ7: -4080.456133 | ADK7: -12847.024 | ADL7: -6819.045178 | ADM7: -3474.926097 | ADN7: -6861.578803 | ADO7: -8177.80118 | ADP7: -4150.0382 | ADQ7: -10364.30686 | ADR7: -6418.295835 | ADS7: -5874.088073 | ADT7: -10974.14093 | ADU7: -3520.465992 | ADV7: -8414.379705 | ADW7: -8925.044037 | ADX7: -6607.672893 | ADY7: -7896.742289 | ADZ7: -5520.977202 | AEA7: -1404.942891 | AEB7: -2115.717188 | AEC7: -3851.412609 | AED7: -4588.077993 | AEE7: -9073.123228 | AEF7: -4796.224152 | AEG7: -6056.222426 | AEH7: -11869.96244 | AEI7: -8290.043506 | AEJ7: -4870.459772 | AEK7: -5404.603989 | AEL7: -2865.826576 | AEM7: -3685.669878 | AEN7: -7075.583452 | AEO7: -6103.767109 | AEP7: -4823.624617 | AEQ7: -7851.283552 | AER7: -3589.064546 | AES7: -7036.129224 | AET7: -10958.0859 | AEU7: -4917.196 | AEV7: -8619.816783 | AEW7: -4821.275023 | AEX7: -6223.080126 | AEY7: -3577.687278 | AEZ7: -8018.448603 | AFA7: -5572.655938 | AFB7: -4388.464776 | AFC7: -3984.163519 | AFD7: -8386.930189 | AFE7: -5469.627551 | AFF7: -8394.768574 | AFG7: -4003.153468 | AFH7: -10598.84925 | AFI7: -6971.131992 | AFJ7: -7745.61043 | AFK7: -5861.823167 | AFL7: -7039.788513 | AFM7: -6370.014941 | AFN7: -5657.142775 | AFO7: -5392.887416 | AFP7: -4850.128044 | AFQ7: -5178.05881 | AFR7: -3766.930064 | AFS7: -4262.873777 | AFT7: -3641.582385 | AFU7: -5656.912561 | AFV7: -5456.035434 | AFW7: -5849.681548 | AFX7: -4524.387433 | AFY7: -7468.442226 | AFZ7: -10678.96239 | AGA7: -4831.263633 | AGB7: -5567.063795 | AGC7: -9119.716887 | AGD7: -5808.7333 | AGE7: -2174.642115 | AGF7: -6632.361667 | AGG7: -3630.230688 | AGH7: -5712.504215 | AGI7: -6634.675297 | AGJ7: -3232.676937 | AGK7: -3987.589938 | AGL7: -2882.284071 | AGM7: -6437.187108 | AGN7: -5576.524212 | AGO7: -8463.415377 | AGP7: -9878.036843 | AGQ7: -3531.892559 | AGR7: -5807.508555 | AGS7: -6931.98422 | AGT7: -6409.172219 | AGU7: -10309.57647 | AGV7: -4630.600272 | AGW7: -9592.024507 | AGX7: -5830.81237 | AGY7: -3376.624472 | AGZ7: -3029.299438 | AHA7: -7573.374345 | AHB7: -6267.723895 | AHC7: -4589.315479 | AHD7: -7417.208484 | AHE7: -6545.209781 | AHF7: -7240.46646 | AHG7: -4886.520447 | AHH7: -6944.738851 | AHI7: -4343.168603 | AHJ7: -6943.800699 | AHK7: -10826.52633 | AHL7: -442.870113 | AHM7: -7673.93437 | AHN7: -5205.975357 | AHO7: -6676.641771 | AHP7: -7939.996279 | AHQ7: -9938.647406 | AHR7: -6909.765908 | AHS7: -2997.833841 | AHT7: -5519.948344 | AHU7: -5230.121948 | AHV7: -8574.759894 | AHW7: -4979.916363 | AHX7: -7116.750491 | AHY7: -4274.328553 | AHZ7: -3590.656922 | AIA7: -5576.812996 | AIB7: -4894.162044 | AIC7: -4756.4509 | AID7: -5576.145798 | AIE7: -4905.964803 | AIF7: -630.2995514 | AIG7: -5050.972713 | AIH7: -6112.316973 | AII7: -3516.775616 | AIJ7: -4625.841899 | AIK7: -6300.565051 | AIL7: -3511.239824 | AIM7: -4746.113586 | AIN7: -6630.878303 | AIO7: -5067.124172 | AIP7: -6457.961203 | AIQ7: -403.1151934 | AIR7: -5333.06384 | AIS7: -10326.2005 | AIT7: -7219.029447 | AIU7: -6611.319896 | AIV7: -2006.468914 | AIW7: -7010.24055 | AIX7: -11347.48665 | AIY7: -1933.971644 | AIZ7: -7052.935835 | AJA7: -1934.906872 | AJB7: -4502.745735 | AJC7: -9123.252351 | AJD7: -4169.751458 | AJE7: -7810.223433 | AJF7: -7116.056221 | AJG7: -8811.195894 | AJH7: -6884.347311 | AJI7: -4200.658407 | AJJ7: -5991.488817 | AJK7: -10352.69482 | AJL7: -5558.584175 | AJM7: -9813.180999 | AJN7: -7180.334494 | AJO7: -6024.071209 | AJP7: -2688.388744 | AJQ7: -5613.882607 | AJR7: -7619.594718 | AJS7: -4861.854495 | AJT7: -6729.794787 | AJU7: -2931.585245 | AJV7: -4217.828896 | AJW7: -10207.26352 | AJX7: -3796.944436 | AJY7: -8211.523464 | AJZ7: -5734.38102 | AKA7: -3071.456841 | AKB7: -7312.396431 | AKC7: -2982.653927 | AKD7: -8007.321896 | AKE7: -12816.80905 | AKF7: -3915.646739 | AKG7: -2174.938398 | AKH7: -10787.19139 | AKI7: -8040.334454 | AKJ7: -11330.22976 | AKK7: -2027.64106 | AKL7: -6583.666443 | AKM7: -4913.600976 | AKN7: -3767.68209 | AKO7: -7173.269628 | AKP7: -4303.245987 | AKQ7: -7082.492625 | AKR7: -7722.477974 | AKS7: -427.3885882 | AKT7: -7783.717469 | AKU7: -1194.646987 | AKV7: -7043.675031 | AKW7: -3703.239814 | AKX7: -4630.015732 | AKY7: -7662.893926 | AKZ7: -7076.101556 | ALA7: -4705.719504 | ALB7: -9341.429363 | ALC7: -3511.678548 | ALD7: -5669.151953 | ALE7: -8318.279925 | ALF7: -12063.61712 | ALG7: -7740.171779 | ALH7: -3181.870464 | ALI7: -13169.87235 | ALJ7: -5476.886986 | ALK7: -4871.837618 | ALL7: -5460.319243 | ALM7: -4589.93069 | ALN7: -6932.238427 | ALO7: -4401.315154 | ALP7: -3679.044815 | ALQ7: -9375.870794 | ALR7: -5196.845949 | ALS7: -6865.384862 | ALT7: -5749.259907 | ALU7: -8572.319585 | ALV7: -7916.428369 | ALW7: -5829.497377 | ALX7: -6733.80086 | ALY7: -3369.570885 | ALZ7: -7644.076938 | AMA7: -4809.633795 | AMB7: -6984.721582 | AMC7: -9252.235142 | AMD7: -5573.585289 | AME7: -5601.141852 | AMF7: -5184.870093 | AMG7: -8114.947842 | AMH7: -4301.609706 | AMI7: -7936.055354 | AMK7: 1 | AML7: 50 | AMM7: 100 | AMN7: 150 | AMO7: 200 | AMP7: 250 | AMQ7: 300 | AMR7: 350 | AMS7: 400 | AMT7: 450 | AMU7: 500 | AMV7: 550 | AMW7: 600 | AMX7: 650 | AMY7: 700 | AMZ7: 750 | ANA7: 800 | ANB7: 850 | ANC7: 900 | AND7: 950 | ANE7: 1000
A8: VarID | B8: Variable Name | C8: Short Name | D8: Simulated Value | E8: Shape | F8: Lower Bound | G8: Mode or P | H8: Upper Bound | I8: Notes | J8: EVPI Estimate | K8: Mean | L8: Uniform PRNG | M8: P(X<T) | N8: P(X>T) | O8: EOL(X<T) | P8: EOL(X>T) | Q8: Threshold Estimate | R8: Column1 | S8: Column2 | V8: Exponential Utility | W8: =1-EXP(-W7/$B$63) -> -0.7621337807 | X8: -3.814066955 | Y8: -1.022004071 | Z8: -1.18695898 | AA8: -4.149356737 | AB8: -1.06325145 | AC8: -3.28866937 | AD8: -1.598855424 | AE8: -1.240633188 | AF8: -2.491287398 | AG8: -0.7621337807 | AH8: -0.1405325726 | AI8: -6.186908643 | AJ8: -0.3424897953 | AK8: -1.060241893 | AL8: -3.045547916 | AM8: -0.5023193379 | AN8: -0.4523661679 | AO8: -0.9990428064 | AP8: -1.693006723 | AQ8: -0.9797623327 | AR8: -0.8742201071 | AS8: -1.858863975 | AT8: -3.879878565 | AU8: -3.128713951 | AV8: -1.450449071 | AW8: -3.56496811 | AX8: -4.800722983 | AY8: -3.328199422 | AZ8: -1.36340365 | BA8: -4.992721994 | BB8: -1.985729285 | BC8: -2.471510002 | BD8: -1.79642684 | BE8: -1.823394407 | BF8: -5.487230887 | BG8: -6.742858904 | BH8: -3.142690208 | BI8: -0.4750386653 | BJ8: -2.111230359 | BK8: -4.234713507 | BL8: -6.65120858 | BM8: -1.580389387 | BN8: -3.233446616 | BO8: -1.365166698 | BP8: -2.253952992 | BQ8: -2.150691511 | BR8: -2.226337631 | BS8: -1.969602582 | BT8: -1.455622838 | BU8: -4.330221211 | BV8: -3.260558964 | BW8: -2.478207618 | BX8: -2.070569098 | BY8: -2.139983994 | BZ8: -3.929768577 | CA8: -3.96771691 | CB8: -9.639222877 | CC8: -1.739360602 | CD8: -4.206227654 | CE8: -2.154481335 | CF8: -11.2565013 | CG8: -1.469193905 | CH8: -0.3436737213 | CI8: -1.628625234 | CJ8: -1.770631218 | CK8: -1.291920628 | CL8: -1.656346496 | CM8: -2.439987511 | CN8: -3.755227148 | CO8: -1.956637365 | CP8: -6.088238025 | CQ8: -4.027824155 | CR8: -3.780468003 | CS8: -2.776858626 | CT8: -0.3151537146 | CU8: -7.397634378 | CV8: -0.8422743246 | CW8: -1.283242663 | CX8: -2.327387396 | CY8: -1.868804124 | CZ8: -1.814963965 | DA8: -3.540064799 | DB8: -2.529199518 | DC8: -9.719280989 | DD8: -4.189428579 | DE8: -5.149576984 | DF8: -9.660026953 | DG8: -3.780027831 | DH8: -1.683947963 | DI8: -2.834960017 | DJ8: -0.9026040534 | DK8: -1.807403483 | DL8: -2.854059204 | DM8: -2.995807749 | DN8: -1.878313651 | DO8: -5.469200226 | DP8: -0.7261659566 | DQ8: -1.284961764 | DR8: -1.118119969 | DS8: -1.019455047 | DT8: -1.984080341 | DU8: -3.584642782 | DV8: -2.392602082 | DW8: -2.248873669 | DX8: -2.119110516 | DY8: -1.332322373 | DZ8: -2.425431066 | EA8: -1.67921971 | EB8: -2.839511819 | EC8: -2.371475042 | ED8: -1.295278621 | EE8: -1.415488891 | EF8: -2.833283026 | EG8: -0.8705640094 | EH8: -1.001250736 | EI8: -1.69942666 | EJ8: -1.229741019 | EK8: -1.277261344 | EL8: -1.515460247 | EM8: -5.973325366 | EN8: -1.657799098 | EO8: -1.243085742 | EP8: -1.806633097 | EQ8: -2.163289944 | ER8: -4.390900213 | ES8: -5.827010735 | ET8: -0.8129671563 | EU8: -1.398241197 | EV8: -1.897899966 | EW8: 0.07064630408 | EX8: -4.10151494 | EY8: -1.797413564 | EZ8: -4.735934937 | FA8: -2.911202637 | FB8: -2.221157067 | FC8: -3.017360743 | FD8: -7.696020195 | FE8: -4.404922865 | FF8: -3.067034924 | FG8: -2.61214349 | FH8: -1.440192621 | FI8: -0.5615506372 | FJ8: -5.98591075 | FK8: -1.210939783 | FL8: -1.499007442 | FM8: -0.7998557178 | FN8: -2.144685666 | FO8: -1.288087711 | FP8: -2.487817912 | FQ8: -0.2824922523 | FR8: -1.87387437 | FS8: -3.269638737 | FT8: -0.7758923054 | FU8: -0.768349453 | FV8: -3.095833736 | FW8: -2.868347148 | FX8: -0.9795790659 | FY8: -0.5346016879 | FZ8: -1.781819868 | GA8: -4.542572205 | GB8: -3.880421353 | GC8: -1.780602069 | GD8: -1.200491431 | GE8: -2.898199846 | GF8: -0.742598243 | GG8: -1.364629516 | GH8: -0.9998925953 | GI8: -2.263829668 | GJ8: -1.357574268 | GK8: -1.946002642 | GL8: -6.553001433 | GM8: -2.540261007 | GN8: -1.659793106 | GO8: -10.73089096 | GP8: -2.407427275 | GQ8: -1.554795126 | GR8: -1.713522496 | GS8: -3.506578131 | GT8: -3.19812959 | GU8: -2.897042662 | GV8: -2.19948259 | GW8: -0.6475190514 | GX8: -1.974555119 | GY8: -2.213770732 | GZ8: -2.838184342 | HA8: -2.282225298 | HB8: -8.325568398 | HC8: -3.725622763 | HD8: -2.333127205 | HE8: -1.344929849 | HF8: -1.47823545 | HG8: -1.591781837 | HH8: -0.4172128465 | HI8: -1.174269154 | HJ8: -2.216679207 | HK8: -2.035019503 | HL8: -4.276627998 | HM8: -2.154376617 | HN8: -2.480154372 | HO8: -7.380168691 | HP8: -4.922575416 | HQ8: -0.1037991408 | HR8: -0.8914059127 | HS8: -2.582117791 | HT8: -1.525830939 | HU8: -3.049522234 | HV8: -2.158286204 | HW8: -0.9959118095 | HX8: -0.6928154267 | HY8: -3.227690193 | HZ8: -1.603402552 | IA8: -2.571417724 | IB8: -2.645584442 | IC8: -4.470144136 | ID8: -2.946934433 | IE8: -1.550377109 | IF8: -4.70107043 | IG8: -1.740277603 | IH8: -3.251887492 | II8: -2.239403636 | IJ8: -6.590732178 | IK8: -1.040707278 | IL8: -2.675674698 | IM8: -5.676127142 | IN8: -3.555357037 | IO8: -2.375223171 | IP8: -5.454999056 | IQ8: -1.106923213 | IR8: -1.28085034 | IS8: -0.8629110789 | IT8: -1.049623355 | IU8: -1.923528561 | IV8: -0.8691409408 | IW8: -3.589048976 | IX8: -0.9533970446 | IY8: -2.239717005 | IZ8: -2.672488276 | JA8: -2.45757181 | JB8: -0.9411798283 | JC8: -5.189183702 | JD8: -1.048120593 | JE8: -5.998379149 | JF8: -1.583702562 | JG8: -0.8178408592 | JH8: -2.252269448 | JI8: -2.857887429 | JJ8: -4.193200608 | JK8: -3.478787882 | JL8: -3.90278222 | JM8: -2.376111999 | JN8: -1.182582754 | JO8: -4.054136865 | JP8: -2.645733216 | JQ8: -4.574726073 | JR8: -1.247160612 | JS8: -3.20578089 | JT8: -1.412857233 | JU8: -6.575282824 | JV8: -0.9887662312 | JW8: -3.059370297 | JX8: -4.410884077 | JY8: -1.883946967 | JZ8: -6.032261655 | KA8: -1.395812456 | KB8: -3.223515565 | KC8: -0.6235991541 | KD8: -1.154017685 | KE8: -2.803963465 | KF8: -4.557685337 | KG8: -1.804406049 | KH8: -0.7758107855 | KI8: -3.310478001 | KJ8: -6.838648564 | KK8: -1.122815993 | KL8: -0.8632078489 | KM8: -1.496130813 | KN8: -1.208620582 | KO8: -1.39885895 | KP8: -0.07223175768 | KQ8: -1.698946781 | KR8: -5.158820977 | KS8: -3.313649863 | KT8: -0.8688883786 | KU8: -2.437068637 | KV8: -1.061555643 | KW8: -2.500537951 | KX8: -0.9661891021 | KY8: -1.124681253 | KZ8: -0.842454395 | LA8: -3.474612807 | LB8: -3.172940016 | LC8: -1.695642096 | LD8: -1.307670181 | LE8: -4.439108744 | LF8: -2.822542806 | LG8: -0.9739317238 | LH8: -1.93896995 | LI8: -2.045492298 | LJ8: -1.631930853 | LK8: -6.945942142 | LL8: -4.187209164 | LM8: -4.140821067 | LN8: -4.153965545 | LO8: -3.000432208 | LP8: -1.461489818 | LQ8: -3.255831541 | LR8: -3.812392018 | LS8: -3.280191403 | LT8: -0.8173461986 | LU8: -0.3489167892 | LV8: -2.645288309 | LW8: -2.350273553 | LX8: -1.37766449 | LY8: -1.930403582 | LZ8: -2.981292236 | MA8: -3.306683006 | MB8: -3.968128745 | MC8: -3.978548672 | MD8: -2.100882618 | ME8: -1.359019516 | MF8: -2.32183015 | MG8: -3.89680937 | MH8: -1.215515503 | MI8: -3.383346284 | MJ8: -3.942773832 | MK8: -1.738988321 | ML8: -3.307340897 | MM8: -3.614442354 | MN8: -2.429916728 | MO8: -1.136389686 | MP8: -2.577061107 | MQ8: -1.827823237 | MR8: 0.02356779354 | MS8: -1.467605312 | MT8: -3.23843605 | MU8: -3.332109778 | MV8: -1.577372035 | MW8: -3.15766769 | MX8: -1.783397771 | MY8: -1.583938646 | MZ8: -0.5882396731 | NA8: -0.4631996842 | NB8: -5.392927922 | NC8: -3.042797323 | ND8: -6.206234324 | NE8: -1.652120459 | NF8: -3.254385022 | NG8: -11.56647038 | NH8: -4.093654793 | NI8: -2.474759602 | NJ8: -1.394792415 | NK8: -3.595818496 | NL8: -3.454223574 | NM8: -1.988799555 | NN8: -5.877827374 | NO8: -3.442670301 | NP8: -1.274648784 | NQ8: -2.127553797 | NR8: -1.172115188 | NS8: -9.140625786 | NT8: -1.23597325 | NU8: -2.19009603 | NV8: -1.374622584 | NW8: -1.352401874 | NX8: -1.06616152 | NY8: -2.660649725 | NZ8: -2.860864518 | OA8: -0.7826897306 | OB8: -2.482582428 | OC8: -1.018184475 | OD8: -2.556536088 | OE8: -0.5851128993 | OF8: -2.204372588 | OG8: -0.6379837415 | OH8: -2.076003033 | OI8: -1.462717436 | OJ8: -0.6711998609 | OK8: -0.6277514356 | OL8: -2.905627915 | OM8: -1.867797802 | ON8: -2.970959415 | OO8: -3.788390512 | OP8: -0.9185155625 | OQ8: -2.829225363 | OR8: -1.299650485 | OS8: -0.5057836112 | OT8: -3.762589533 | OU8: -0.6211755692 | OV8: -2.016075081 | OW8: -3.316290461 | OX8: -0.8056387824 | OY8: -0.8625590371 | OZ8: -1.440045893 | PA8: -1.056281288 | PB8: -2.496144 | PC8: -2.60907323 | PD8: -1.205862678 | PE8: -0.9491521393 | PF8: -0.6837489516 | PG8: -4.79333395 | PH8: -1.583738521 | PI8: -2.496979772 | PJ8: -4.367649775 | PK8: -8.697437575 | PL8: -1.088286969 | PM8: -2.711238074 | PN8: -1.175186147 | PO8: -1.560223977 | PP8: -1.701403402 | PQ8: -4.398859043 | PR8: -4.051717834 | PS8: -1.465428035 | PT8: -4.512197903 | PU8: -3.282169549 | PV8: -7.032912308 | PW8: -1.827096495 | PX8: -1.340384218 | PY8: -5.225581782 | PZ8: -2.262394569 | QA8: -8.793872191 | QB8: -13.83633962 | QC8: -5.999794899 | QD8: -3.586723958 | QE8: -1.992429685 | QF8: -5.250594159 | QG8: -1.513178085 | QH8: -1.921558794 | QI8: -0.8836801462 | QJ8: -0.4299474259 | QK8: -3.741504985 | QL8: -3.544404114 | QM8: -2.316537826 | QN8: -0.5796184827 | QO8: -0.8703163683 | QP8: -8.817715006 | QQ8: -2.851611724 | QR8: -3.473094648 | QS8: -0.6066964502 | QT8: -1.165810111 | QU8: -2.963220163 | QV8: -3.321943744 | QW8: -2.117787001 | QX8: -4.02686078 | QY8: -2.17085389 | QZ8: -1.100857855 | RA8: -2.647043867 | RB8: -2.039379568 | RC8: -2.797219815 | RD8: -1.34689194 | RE8: -2.023211433 | RF8: -1.084233058 | RG8: -3.549717982 | RH8: -2.679062202 | RI8: -1.523701498 | RJ8: -5.791185009 | RK8: -3.769376964 | RL8: -1.249593038 | RM8: -0.813381119 | RN8: -2.013606548 | RO8: -0.9448202593 | RP8: -1.468938999 | RQ8: -4.395083861 | RR8: -1.581626629 | RS8: -2.157402169 | RT8: -1.416597643 | RU8: -1.696208817 | RV8: -1.111987533 | RW8: -2.753919836 | RX8: -6.410851966 | RY8: -6.785649044 | RZ8: -3.720473368 | SA8: -2.110474354 | SB8: -3.852775197 | SC8: -2.851517194 | SD8: -3.102791746 | SE8: -1.244665504 | SF8: -1.624196138 | SG8: -1.714999891 | SH8: -2.267088448 | SI8: -0.9348488327 | SJ8: -0.9317464914 | SK8: -4.111295659 | SL8: -1.341968596 | SM8: -0.1657705118 | SN8: -3.597171251 | SO8: -1.600551802 | SP8: -4.001339285 | SQ8: -2.153228649 | SR8: -2.39705364 | SS8: -1.316522287 | ST8: -2.90765623 | SU8: -0.7491965672 | SV8: -2.136912798 | SW8: -1.466452997 | SX8: -3.873519828 | SY8: -1.565052916 | SZ8: -1.705752465 | TA8: -1.352312444 | TB8: -6.556127847 | TC8: -1.838305894 | TD8: -2.195135691 | TE8: -2.28900358 | TF8: -1.549077964 | TG8: -1.805963659 | TH8: -2.12538996 | TI8: -0.4285400838 | TJ8: -0.9580010194 | TK8: -1.953784508 | TL8: -5.314422835 | TM8: -3.83614177 | TN8: -2.338515352 | TO8: -0.9493567741 | TP8: -1.108209922 | TQ8: -2.195295383 | TR8: -2.629641622 | TS8: -3.124038955 | TT8: -3.23737906 | TU8: -2.777215607 | TV8: -1.596776429 | TW8: -2.507854859 | TX8: -0.6692771236 | TY8: -3.343269741 | TZ8: -6.177568007 | UA8: -1.593065641 | UB8: -4.863538936 | UC8: -0.4248929677 | UD8: -1.710384967 | UE8: -1.424383613 | UF8: -0.5069557089 | UG8: -0.4789970916 | UH8: -1.460862057 | UI8: -2.392415821 | UJ8: -1.198698364 | UK8: -2.152199001 | UL8: -0.6205015735 | UM8: -4.111520351 | UN8: -2.127101823 | UO8: -4.211583481 | UP8: -1.626990934 | UQ8: -4.099625585 | UR8: -1.512482312 | US8: -4.968384981 | UT8: -1.079621668 | UU8: -4.085349572 | UV8: -7.383972328 | UW8: -1.660815445 | UX8: -1.799926534 | UY8: -1.615076855 | UZ8: -4.275684316 | VA8: -2.523335779 | VB8: -2.705933804 | VC8: -1.642777767 | VD8: -0.6219110651 | VE8: -1.143557405 | VF8: -1.468846874 | VG8: -5.23880131 | VH8: -2.330531782 | VI8: -1.202177112 | VJ8: -1.21845466 | VK8: -1.910084376 | VL8: -0.353317938 | VM8: -4.78701179 | VN8: -5.683142404 | VO8: -1.834939691 | VP8: -4.589528478 | VQ8: -4.658183412 | VR8: -1.573937761 | VS8: -4.173494544 | VT8: -3.43422848 | VU8: -3.39575055 | VV8: -3.488506576 | VW8: -4.971445329 | VX8: -1.240571545 | VY8: -1.967340281 | VZ8: -6.489194587 | WA8: -4.201946381 | WB8: -2.506970629 | WC8: -6.618776549 | WD8: -1.063704288 | WE8: -3.691941552 | WF8: -2.655463892 | WG8: -2.777366856 | WH8: -1.616742931 | WI8: -3.573494964 | WJ8: -4.695330202 | WK8: -1.266358782 | WL8: -2.401340733 | WM8: -2.425257562 | WN8: -2.162550382 | WO8: -3.240601796 | WP8: -3.572344263 | WQ8: -1.117791714 | WR8: -1.725213891 | WS8: -6.46128436 | WT8: -1.228134104 | WU8: -4.043914983 | WV8: -2.328677527 | WW8: -1.660332789 | WX8: -1.910974416 | WY8: -2.163471435 | WZ8: -12.25443341 | XA8: -3.722695775 | XB8: -1.470757852 | XC8: -1.093401483 | XD8: -2.574263349 | XE8: -1.18766808 | XF8: -1.773826274 | XG8: -0.3375612101 | XH8: -1.396737313 | XI8: -0.8663569322 | XJ8: -0.9672929964 | XK8: -5.628552914 | XL8: -6.55432329 | XM8: -4.068039904 | XN8: -2.93289241 | XO8: -4.925303872 | XP8: -6.302743479 | XQ8: -5.563950607 | XR8: -1.357236505 | XS8: -1.110299903 | XT8: -1.443723995 | XU8: -1.111346462 | XV8: -4.132929946 | XW8: -4.666272976 | XX8: -0.5367149869 | XY8: -2.867857694 | XZ8: -2.740224673 | YA8: -4.350451135 | YB8: -1.491294351 | YC8: -3.613151523 | YD8: -9.552241101 | YE8: -1.342886425 | YF8: -2.737457399 | YG8: -2.949839286 | YH8: -2.590682476 | YI8: -0.8899779707 | YJ8: -1.539493868 | YK8: -5.613081594 | YL8: -0.828649846 | YM8: -1.780494679 | YN8: -2.753796901 | YO8: -2.491084687 | YP8: -0.4637169002 | YQ8: -2.210406913 | YR8: -1.092911187 | YS8: -3.273808808 | YT8: -2.725885103 | YU8: -3.234063956 | YV8: -0.7627247549 | YW8: -2.435239845 | YX8: -2.945014516 | YY8: -1.211839868 | YZ8: -4.071436508 | ZA8: -4.1139938 | ZB8: -2.500702607 | ZC8: -0.7540260132 | ZD8: -1.699929048 | ZE8: -1.062780015 | ZF8: -1.627018154 | ZG8: -1.199586689 | ZH8: -0.7313228938 | ZI8: -2.92132695 | ZJ8: -0.9789345558 | ZK8: -1.922160067 | ZL8: -5.91361778 | ZM8: -3.704527451 | ZN8: -2.410492805 | ZO8: -2.023325879 | ZP8: -0.6437200697 | ZQ8: -1.185058777 | ZR8: -0.8194268378 | ZS8: -1.179630757 | ZT8: -0.9586312863 | ZU8: -3.344854972 | ZV8: -5.135570102 | ZW8: -3.136515378 | ZX8: -2.437221939 | ZY8: -1.194009409 | ZZ8: -5.748533878 | AAA8: -0.7196087437 | AAB8: -2.107625803 | AAC8: -8.486671523 | AAD8: -3.321943786 | AAE8: -2.091081404 | AAF8: -3.295070919 | AAG8: -4.267645526 | AAH8: -1.805093802 | AAI8: -2.4703075 | AAJ8: -1.995741506 | AAK8: -3.225236986 | AAL8: -1.294235377 | AAM8: -3.956917764 | AAN8: -6.679263232 | AAO8: -0.8892610033 | AAP8: -3.19231497 | AAQ8: -2.120380045 | AAR8: -1.99372617 | AAS8: -2.561857073 | AAT8: -1.320553743 | AAU8: -1.176189692 | AAV8: -2.993641515 | AAW8: -2.548909486 | AAX8: -2.739630265 | AAY8: -2.379443832 | AAZ8: -2.542081679 | ABA8: -0.3121187595 | ABB8: -2.681222685 | ABC8: -2.154415491 | ABD8: -0.3170127893 | ABE8: -3.588605313 | ABF8: -2.337079588 | ABG8: -4.913400343 | ABH8: -1.056779058 | ABI8: -3.247918015 | ABJ8: -0.7363815525 | ABK8: -1.213662314 | ABL8: -1.428243253 | ABM8: -3.313275964 | ABN8: -3.170598194 | ABO8: -8.071113605 | ABP8: -3.366483081 | ABQ8: -2.41313563 | ABR8: -0.4055206172 | ABS8: -3.153425182 | ABT8: -2.457795246 | ABU8: -0.7850875125 | ABV8: -1.523730761 | ABW8: -5.068591506 | ABX8: -1.681072806 | ABY8: -4.042698191 | ABZ8: -3.244223265 | ACA8: -2.427360766 | ACB8: -3.969643785 | ACC8: -1.900150233 | ACD8: -1.933444325 | ACE8: -1.415492322 | ACF8: -1.12381573 | ACG8: -4.145300597 | ACH8: -3.075331388 | ACI8: -1.966422092 | ACJ8: -2.874276509 | ACK8: -1.593656664 | ACL8: -1.5079682 | ACM8: -0.7231060293 | ACN8: -4.24653413 | ACO8: -0.8340126429 | ACP8: -0.6975084616 | ACQ8: -5.012347656 | ACR8: -2.375913943 | ACS8: -0.4936796129 | ACT8: -2.600974068 | ACU8: -2.397451081 | ACV8: -1.397854665 | ACW8: -1.144040064 | ACX8: -1.221063277 | ACY8: -1.132145172 | ACZ8: -1.581756896 | ADA8: -3.093599539 | ADB8: -8.213157289 | ADC8: -3.982988276 | ADD8: -1.519796477 | ADE8: -2.685756582 | ADF8: -7.427248728 | ADG8: -2.078725764 | ADH8: -2.506682761 | ADI8: -2.602932011 | ADJ8: -1.26164229 | ADK8: -12.05804998 | ADL8: -2.911062341 | ADM8: -1.003679458 | ADN8: -2.944474586 | ADO8: -4.132332509 | ADP8: -1.293336261 | ADQ8: -6.947531456 | ADR8: -2.609824539 | ADS8: -2.237552408 | ADT8: -7.978458301 | ADU8: -1.022012289 | ADV8: -4.381009204 | ADW8: -4.959632436 | ADX8: -2.749170361 | ADY8: -3.851793633 | ADZ8: -2.0167963 | AEA8: -0.3244384764 | AEB8: -0.526753274 | AEC8: -1.160376521 | AED8: -1.503314362 | AEE8: -5.13877153 | AEF8: -1.609724944 | AEG8: -2.357660612 | AEH8: -9.740186867 | AEI8: -4.248848405 | AEJ8: -1.648760923 | AEK8: -1.947392254 | AEL8: -0.7738730417 | AEM8: -1.089937112 | AEN8: -3.116966848 | AEO8: -2.389740676 | AEP8: -1.624065738 | AEQ8: -3.807882269 | AER8: -1.049944889 | AES8: -3.084608335 | AET8: -7.949674656 | AEU8: -1.673635616 | AEV8: -4.606705861 | AEW8: -1.62283293 | AEX8: -2.471601536 | AEY8: -1.045285637 | AEZ8: -3.971341487 | AFA8: -2.048138839 | AFB8: -1.405344064 | AFC8: -1.218503133 | AFD8: -4.351548926 | AFE8: -1.985972562 | AFF8: -4.359945005 | AFG8: -1.226945006 | AFH8: -7.329220304 | AFI8: -3.031854317 | AFJ8: -3.707335732 | AFK8: -2.229620485 | AFL8: -3.087598781 | AFM8: -2.57513518 | AFN8: -2.100081976 | AFO8: -1.940493673 | AFP8: -1.638012015 | AFQ8: -1.816828938 | AFR8: -1.124180355 | AFS8: -1.345678632 | AFT8: -1.071590101 | AFU8: -2.099939243 | AFV8: -1.977866447 | AFW8: -2.221787435 | AFX8: -1.471629097 | AFY8: -3.453491722 | AFZ8: -7.463751194 | AGA8: -1.628077858 | AGB8: -2.044731619 | AGC8: -5.196244467 | AGD8: -2.195509874 | AGE8: -0.5448524792 | AGF8: -2.767728626 | AGG8: -1.066892223 | AGH8: -2.134597708 | AGI8: -2.769472456 | AGJ8: -0.9089157055 | AGK8: -1.220023958 | AGL8: -0.7797213625 | AGM8: -2.623489173 | AGN8: -2.050497959 | AGO8: -4.434041105 | AGP8: -6.210998058 | AGQ8: -1.026638505 | AGR8: -2.194727233 | AGS8: -3.000409952 | AGT8: -2.603243614 | AGU8: -6.861011545 | AGV8: -1.524694473 | AGW8: -5.810087041 | AGX8: -2.209651852 | AGY8: -0.9646711831 | AGZ8: -0.8328275573 | AHA8: -3.547942209 | AHB8: -2.502737407 | AHC8: -1.503934002 | AHD8: -3.408090916 | AHE8: -2.702624736 | AHF8: -3.254993745 | AHG8: -1.65728278 | AHH8: -3.01062773 | AHI8: -1.383651893 | AHJ8: -3.009875285 | AHK8: -7.717262596 | AHL8: -0.09261512784 | AHM8: -3.640336448 | AHN8: -1.832600152 | AHO8: -2.801243896 | AHP8: -3.893947589 | AHQ8: -6.298942548 | AHR8: -2.982672919 | AHS8: -0.8213295714 | AHT8: -2.016175593 | AHU8: -1.846312764 | AHV8: -4.556408681 | AHW8: -1.707385131 | AHX8: -3.151003442 | AHY8: -1.351058637 | AHZ8: -1.050597849 | AIA8: -2.050674151 | AIB8: -1.661347062 | AIC8: -1.589047843 | AID8: -2.050267097 | AIE8: -1.66763673 | AIF8: -0.1343501255 | AIG8: -1.746135203 | AIH8: -2.395541999 | AII8: -1.020520443 | AIJ8: -1.522292928 | AIK8: -2.525819919 | AIL8: -1.018284644 | AIM8: -1.583700613 | AIN8: -2.766611009 | AIO8: -1.755020365 | AIP8: -2.638575434 | AIQ8: -0.08396220771 | AIR8: -1.905521139 | AIS8: -6.887191379 | AIT8: -3.236789925 | AIU8: -2.751906007 | AIV8: -0.493756044 | AIW8: -3.063513973 | AIX8: -8.674536483 | AIY8: -0.47225366 | AIZ8: -3.09836112 | AJA8: -0.4725290644 | AJB8: -1.460954166 | AJC8: -5.200627337 | AJD8: -1.302395935 | AJE8: -3.768561497 | AJF8: -3.150427098 | AJG8: -4.825467063 | AJH8: -2.962477505 | AJI8: -1.316672019 | AJJ8: -2.314470105 | AJK8: -6.929095465 | AJL8: -2.039572362 | AJM8: -6.118067 | AJN8: -3.204127996 | AJO8: -2.336139305 | AJP8: -0.7120264865 | AJQ8: -2.073375661 | AJR8: -3.590178644 | AJS8: -1.644206179 | AJT8: -2.841868963 | AJU8: -0.7973566343 | AJV8: -1.324641373 | AJW8: -6.701789495 | AJX8: -1.136969892 | AJY8: -4.167064296 | AJZ8: -2.148342752 | AKA8: -0.8483463385 | AKB8: -3.316648479 | AKC8: -0.8158084315 | AKD8: -3.960290855 | AKE8: -11.97937826 | AKF8: -1.188309544 | AKG8: -0.5449440246 | AKH8: -7.648953036 | AKI8: -3.993149589 | AKJ8: -8.641203556 | AKK8: -0.500094659 | AKL8: -2.731212652 | AKM8: -1.67171395 | AKN8: -1.124499867 | AKO8: -3.198191871 | AKP8: -1.364695349 | AKQ8: -3.122659748 | AKR8: -3.685607586 | AKS8: -0.0892372903 | AKT8: -3.74334932 | AKU8: -0.2698888759 | AKV8: -3.090777321 | AKW8: -1.097294043 | AKX8: -1.524399333 | AKY8: -3.630101477 | AKZ8: -3.117393474 | ALA8: -1.562911459 | ALB8: -5.47718416 | ALC8: -1.018461746 | ALD8: -2.107536812 | ALE8: -4.278573997 | ALF8: -10.16432497 | ALG8: -3.702218204 | ALH8: -0.8896168671 | ALI8: -12.92902051 | ALJ8: -1.990311006 | ALK8: -1.64949094 | ALL8: -1.980418863 | ALM8: -1.50424211 | ALN8: -3.000613344 | ALO8: -1.411533931 | ALP8: -1.087169753 | ALQ8: -5.521954877 | ALR8: -1.827432878 | ALS8: -2.947478309 | ALT8: -2.157725473 | ALU8: -4.553697471 | ALV8: -3.870933847 | ALW8: -2.208807829 | ALX8: -2.844948358 | ALY8: -0.9619015413 | ALZ8: -3.612709312 | AMA8: -1.616733434 | AMB8: -3.042827471 | AMC8: -5.362663179 | AMD8: -2.048705449 | AME8: -2.065554205 | AMF8: -1.820668796 | AMG8: -4.068219479 | AMH8: -1.363921615 | AMI8: -3.890091773
A9: =ROW(Variables[[#This Row],[Variable Name]])-ROW(Variables[[#Headers],[Variable Name]]) -> 1 | B9: Grid cost in Indiana in 2018 $/Kwh | C9: GridCost | D9: =IF(COUNTA(Variables[[#This Row],[Lower Bound]], Variables[[#This Row],[Mode or P]], Variables[[#This Row],[Upper Bound]])=0, "", IF(Variables[[#This Row],[Shape]]="Constant",Variables[[#This Row],[Mode or P]],IF(Variables[[#This Row],[Shape]]="Lognorm",LOGINV(Variables[[#This Row],[Uniform PRNG]],((LN(Variables[[#This Row],[Lower Bound]]) + LN(Variables[[#This Row],[Upper Bound]]))/2),((LN(Variables[[#This Row],[Upper Bound]]) - LN(Variables[[#This Row],[Lower Bound]]))/3.28971)),IF(Variables[[#This Row],[Shape]]="Normal",NORMINV(Variables[[#This Row],[Uniform PRNG]],(Variables[[#This Row],[Upper Bound]]+Variables[[#This Row],[Lower Bound]])/2,(Variables[[#This Row],[Upper Bound]]-Variables[[#This Row],[Lower Bound]])/3.29),IF(Variables[[#This Row],[Shape]]="Uniform",(Variables[[#This Row],[Upper Bound]]-Variables[[#This Row],[Lower Bound]])*Variables[[#This Row],[Uniform PRNG]]+Variables[[#This Row],[Lower Bound]],IF(Variables[[#This Row],[Shape]]="Binary",IF(Variables[[#This Row],[Uniform PRNG]]<Variables[[#This Row],[Mode or P]],1,0),IF(Variables[[#This Row],[Shape]]="Triangular",IF(Variables[[#This Row],[Uniform PRNG]]<(Variables[[#This Row],[Mode or P]]-Variables[[#This Row],[Lower Bound]])/(Variables[[#This Row],[Upper Bound]]-Variables[[#This Row],[Lower Bound]]), 1, 0) * (Variables[[#This Row],[Lower Bound]] + SQRT(Variables[[#This Row],[Uniform PRNG]]*(Variables[[#This Row],[Upper Bound]]-Variables[[#This Row],[Lower Bound]])*(Variables[[#This Row],[Mode or P]]-Variables[[#This Row],[Lower Bound]]))) + IF(Variables[[#This Row],[Uniform PRNG]]>= (Variables[[#This Row],[Mode or P]]-Variables[[#This Row],[Lower Bound]])/(Variables[[#This Row],[Upper Bound]]-Variables[[#This Row],[Lower Bound]]), 1, 0) * (Variables[[#This Row],[Upper Bound]] - SQRT((1-Variables[[#This Row],[Uniform PRNG]]) * (Variables[[#This Row],[Upper Bound]] - Variables[[#This Row],[Lower Bound]]) * (Variables[[#This Row],[Upper Bound]] - Variables[[#This Row],[Mode or P]]))),""))))))) -> 0.1242643563 | E9: Triangular | F9: 0.1095 | G9: 0.1205 | H9: 0.1321 | I9: US Energy Information Administration | J9: =IFERROR(IF(OR(MIN(Variables[[#This Row],[P(X<T)]], Variables[[#This Row],[P(X>T)]])<0.002,SIGN(Variables[[#This Row],[EOL(X<T)]])=SIGN(Variables[[#This Row],[EOL(X>T)]])),0,IFERROR(IF(B$50=1,IF(Variables[[#This Row],[EOL(X<T)]]<Variables[[#This Row],[EOL(X>T)]],-Variables[[#This Row],[EOL(X<T)]]*Variables[[#This Row],[P(X<T)]],-Variables[[#This Row],[EOL(X>T)]]*Variables[[#This Row],[P(X>T)]]),IF(Variables[[#This Row],[EOL(X<T)]]>Variables[[#This Row],[EOL(X>T)]],Variables[[#This Row],[EOL(X<T)]]*Variables[[#This Row],[P(X<T)]],Variables[[#This Row],[EOL(X>T)]]*Variables[[#This Row],[P(X>T)]])),"")),0) -> 0 | K9: =IF(Variables[[#This Row],[Shape]]="Constant",Variables[[#This Row],[Mode or P]],IF(Variables[[#This Row],[Shape]]="Lognorm",EXP((LN(Variables[[#This Row],[Upper Bound]])+LN(Variables[[#This Row],[Lower Bound]]))/2+((LN(Variables[[#This Row],[Upper Bound]])-LN(Variables[[#This Row],[Lower Bound]]))/3.29)^2/2),IF(Variables[[#This Row],[Shape]]="Normal",(Variables[[#This Row],[Lower Bound]]+Variables[[#This Row],[Upper Bound]])/2,IF(Variables[[#This Row],[Shape]]="Uniform",(Variables[[#This Row],[Lower Bound]]+Variables[[#This Row],[Upper Bound]])/2,IF(Variables[[#This Row],[Shape]]="Binary",Variables[[#This Row],[Mode or P]],IF(Variables[[#This Row],[Shape]]="Triangular",(Variables[[#This Row],[Lower Bound]]+Variables[[#This Row],[Mode or P]]+Variables[[#This Row],[Upper Bound]])/3,"")))))) -> 0.1207 | L9: =IF(Variables[[#This Row],[Shape]]="","",(MOD((MOD(MOD(999999999999989,MOD(ScenarioNum*2499997+Variables[[#This Row],[VarID]]*1800451,7450589)*4658+7450581)*383,99991)*231109+MOD(MOD(999999999999989,MOD(ScenarioNum*2246527+Variables[[#This Row],[VarID]]*2399993,7450987)*7580+7560584)*547,231109))*43271,4294967296)+0.5)/4294967296) -> 0.7658021349 | M9: =IF(Variables[[#This Row],[Shape]]="Binary", 1-Variables[[#This Row],[Mode or P]], IF(Variables[[#This Row],[Shape]]<>"",COUNTIF(INDEX($X$9:$AMI$164, ROW(Variables[[#This Row],[Variable Name]])-ROW(Variables[[#Headers],[Variable Name]]), ),"<"&Variables[[#This Row],[Threshold Estimate]])/1000,"")) -> 1 | N9: =IF(Variables[[#This Row],[Shape]]<>"",1-Variables[[#This Row],[P(X<T)]],"") -> 0 | O9: =IFERROR(AVERAGEIFS(X$7:AMI$7,INDEX(X$9:$AMI$164, ROW(Variables[[#This Row],[Variable Name]])-ROW(Variables[[#Headers],[Variable Name]]), ),IF(Variables[[#This Row],[Shape]]="Binary","=0","<"&Variables[[#This Row],[Threshold Estimate]])),"") -> -5936.888905 | P9: =IFERROR(AVERAGEIFS(X$7:AMI$7,INDEX($X$9:$AMI$164, ROW(Variables[[#This Row],[Variable Name]])-ROW(Variables[[#Headers],[Variable Name]]), ),IF(Variables[[#This Row],[Shape]]="Binary","=1",">"&Variables[[#This Row],[Threshold Estimate]])),"") ->  | Q9: =IFERROR(IF(Variables[[#This Row],[Shape]]="Binary",IF(B$50=1,IF(Variables[[#This Row],[EOL(X<T)]]<Variables[[#This Row],[EOL(X>T)]],0,1),IF(Variables[[#This Row],[EOL(X<T)]]<Variables[[#This Row],[EOL(X>T)]],1,0)), INDEX($AOF$9:$AOF$164, ROW(Variables[[#This Row],[Variable Name]])-ROW(Variables[[#Headers],[Variable Name]]))),"") -> 0.1424644488 | U9: Sampled Variable Values | V9: =IFERROR(IF(ISBLANK(Variables[[#This Row],[Variable Name]]), "", Variables[[#This Row],[Variable Name]]), "") -> Grid cost in Indiana in 2018 $/Kwh | W9: =IFERROR(IF(ISBLANK(D9), "", D9), "") -> 0.1242643563 | X9: 0.121784977 | Y9: 0.1197424648 | Z9: 0.1144952508 | AA9: 0.1208556528 | AB9: 0.1195753516 | AC9: 0.1294579336 | AD9: 0.1128727703 | AE9: 0.1245770284 | AF9: 0.1181950611 | AG9: 0.1242643563 | AH9: 0.1257832284 | AI9: 0.1151422754 | AJ9: 0.1182304467 | AK9: 0.115070908 | AL9: 0.1132181017 | AM9: 0.1301513874 | AN9: 0.1242850863 | AO9: 0.1202230289 | AP9: 0.1235613058 | AQ9: 0.1213287012 | AR9: 0.1255167193 | AS9: 0.1205379433 | AT9: 0.1185106603 | AU9: 0.1219246971 | AV9: 0.1251965192 | AW9: 0.1243145646 | AX9: 0.1185310694 | AY9: 0.1227373022 | AZ9: 0.1183258162 | BA9: 0.1223869861 | BB9: 0.114836626 | BC9: 0.1156334146 | BD9: 0.1112433225 | BE9: 0.1184746786 | BF9: 0.1211514153 | BG9: 0.1133203434 | BH9: 0.1205525289 | BI9: 0.1167517059 | BJ9: 0.1192500491 | BK9: 0.1162208585 | BL9: 0.1243090754 | BM9: 0.1146483841 | BN9: 0.1246320749 | BO9: 0.1203159402 | BP9: 0.1193122023 | BQ9: 0.1157339424 | BR9: 0.1215879299 | BS9: 0.1223821193 | BT9: 0.1249610006 | BU9: 0.1164090552 | BV9: 0.1303277458 | BW9: 0.1178978036 | BX9: 0.1155844094 | BY9: 0.1201589797 | BZ9: 0.1225271207 | CA9: 0.1172832238 | CB9: 0.118989763 | CC9: 0.1158502236 | CD9: 0.1310683085 | CE9: 0.1160704923 | CF9: 0.1226513558 | CG9: 0.1199767159 | CH9: 0.125142686 | CI9: 0.1293617411 | CJ9: 0.1111837227 | CK9: 0.1229922303 | CL9: 0.1165033636 | CM9: 0.1125797642 | CN9: 0.1255807753 | CO9: 0.1221558534 | CP9: 0.1195130898 | CQ9: 0.1212472738 | CR9: 0.1265633289 | CS9: 0.1189976898 | CT9: 0.1264487226 | CU9: 0.1154989059 | CV9: 0.1217055245 | CW9: 0.1168683242 | CX9: 0.1203124162 | CY9: 0.1229738594 | CZ9: 0.1243559416 | DA9: 0.1177261687 | DB9: 0.1144083118 | DC9: 0.1279666168 | DD9: 0.122095602 | DE9: 0.1225718366 | DF9: 0.1116137932 | DG9: 0.1242262117 | DH9: 0.126692879 | DI9: 0.1140485352 | DJ9: 0.1121151784 | DK9: 0.1265628628 | DL9: 0.1295971877 | DM9: 0.113036257 | DN9: 0.1233918569 | DO9: 0.1245410327 | DP9: 0.1260739283 | DQ9: 0.1151441866 | DR9: 0.1105887102 | DS9: 0.1200278794 | DT9: 0.1189396464 | DU9: 0.1139531539 | DV9: 0.1214665965 | DW9: 0.1212937545 | DX9: 0.1248761421 | DY9: 0.1181215894 | DZ9: 0.1228715539 | EA9: 0.1174641234 | EB9: 0.1297378882 | EC9: 0.1134140579 | ED9: 0.1237024102 | EE9: 0.1197088322 | EF9: 0.1119800769 | EG9: 0.1183211661 | EH9: 0.1286979018 | EI9: 0.1213626082 | EJ9: 0.1192699852 | EK9: 0.1237709282 | EL9: 0.1189784282 | EM9: 0.1286539081 | EN9: 0.118644491 | EO9: 0.1249028588 | EP9: 0.1243328082 | EQ9: 0.1205612984 | ER9: 0.1171517726 | ES9: 0.1202255967 | ET9: 0.1220941826 | EU9: 0.1258643283 | EV9: 0.1242576801 | EW9: 0.1280348664 | EX9: 0.1186011399 | EY9: 0.126009762 | EZ9: 0.1243935934 | FA9: 0.1205973584 | FB9: 0.1159151057 | FC9: 0.1146693391 | FD9: 0.1169188387 | FE9: 0.1246452353 | FF9: 0.1274120883 | FG9: 0.1259622097 | FH9: 0.1160526102 | FI9: 0.124329571 | FJ9: 0.1201793698 | FK9: 0.1173095796 | FL9: 0.1194851337 | FM9: 0.1193134061 | FN9: 0.1190435518 | FO9: 0.1174373197 | FP9: 0.1143095569 | FQ9: 0.1229544978 | FR9: 0.1181414302 | FS9: 0.1230192349 | FT9: 0.1241443798 | FU9: 0.1210146018 | FV9: 0.126949553 | FW9: 0.1198593575 | FX9: 0.1251609948 | FY9: 0.1211847325 | FZ9: 0.1288265157 | GA9: 0.116814421 | GB9: 0.1158881072 | GC9: 0.1259885444 | GD9: 0.1157997351 | GE9: 0.1229311928 | GF9: 0.1207623804 | GG9: 0.1209243853 | GH9: 0.1117248207 | GI9: 0.1264776082 | GJ9: 0.1213472727 | GK9: 0.1221512175 | GL9: 0.1139601741 | GM9: 0.1235616488 | GN9: 0.1149788835 | GO9: 0.1130997964 | GP9: 0.1295666522 | GQ9: 0.1217740998 | GR9: 0.1173113554 | GS9: 0.1188869033 | GT9: 0.1194269992 | GU9: 0.1121597372 | GV9: 0.1205271736 | GW9: 0.1169575286 | GX9: 0.1236931176 | GY9: 0.1187203107 | GZ9: 0.1211294275 | HA9: 0.1279921945 | HB9: 0.1189246348 | HC9: 0.1223794481 | HD9: 0.1211945616 | HE9: 0.1169203573 | HF9: 0.125802328 | HG9: 0.1298670201 | HH9: 0.1216232703 | HI9: 0.1178770909 | HJ9: 0.114818975 | HK9: 0.1117364183 | HL9: 0.1141900985 | HM9: 0.1178996282 | HN9: 0.1220213644 | HO9: 0.1163138732 | HP9: 0.1184810047 | HQ9: 0.1240673874 | HR9: 0.1212649697 | HS9: 0.1269355398 | HT9: 0.1189285847 | HU9: 0.1137580342 | HV9: 0.1221763437 | HW9: 0.1165441241 | HX9: 0.1267708921 | HY9: 0.1273291756 | HZ9: 0.1225496904 | IA9: 0.1207598412 | IB9: 0.1210845342 | IC9: 0.1212088192 | ID9: 0.123865105 | IE9: 0.1243903995 | IF9: 0.1215760119 | IG9: 0.1207076775 | IH9: 0.1232142181 | II9: 0.1282012671 | IJ9: 0.1197612736 | IK9: 0.1193195758 | IL9: 0.1190868456 | IM9: 0.1258653419 | IN9: 0.1140152848 | IO9: 0.1181414517 | IP9: 0.1194434479 | IQ9: 0.1247932405 | IR9: 0.1165813951 | IS9: 0.1135094232 | IT9: 0.1267270066 | IU9: 0.1156544003 | IV9: 0.128261466 | IW9: 0.1113652272 | IX9: 0.1169034187 | IY9: 0.126817437 | IZ9: 0.1232173309 | JA9: 0.1241105132 | JB9: 0.1178851524 | JC9: 0.1147064667 | JD9: 0.118167198 | JE9: 0.1260680193 | JF9: 0.1248121756 | JG9: 0.1275034099 | JH9: 0.1156858534 | JI9: 0.1302505953 | JJ9: 0.1200411822 | JK9: 0.1245836149 | JL9: 0.1231479476 | JM9: 0.1183018505 | JN9: 0.1278208769 | JO9: 0.121969327 | JP9: 0.1234022894 | JQ9: 0.1224832335 | JR9: 0.1114267292 | JS9: 0.1277131152 | JT9: 0.1188668965 | JU9: 0.1237104156 | JV9: 0.1269167802 | JW9: 0.1131169557 | JX9: 0.1188660756 | JY9: 0.1251692718 | JZ9: 0.12086112 | KA9: 0.1282338544 | KB9: 0.1212926037 | KC9: 0.1296809046 | KD9: 0.1165697009 | KE9: 0.1111464859 | KF9: 0.1241640656 | KG9: 0.1300286788 | KH9: 0.1249689073 | KI9: 0.1192283428 | KJ9: 0.1185356083 | KK9: 0.1230202434 | KL9: 0.124904584 | KM9: 0.1149179729 | KN9: 0.1210012789 | KO9: 0.1209274017 | KP9: 0.119987735 | KQ9: 0.1248307404 | KR9: 0.1180692418 | KS9: 0.1206625707 | KT9: 0.117524623 | KU9: 0.1186698274 | KV9: 0.1244505392 | KW9: 0.1158199076 | KX9: 0.1227957537 | KY9: 0.1192194083 | KZ9: 0.123212664 | LA9: 0.123873778 | LB9: 0.1141714868 | LC9: 0.1200491788 | LD9: 0.1224800583 | LE9: 0.1187503952 | LF9: 0.1166989864 | LG9: 0.1207193449 | LH9: 0.1267390269 | LI9: 0.1128993866 | LJ9: 0.1141933033 | LK9: 0.1165936574 | LL9: 0.1130528391 | LM9: 0.1153529226 | LN9: 0.1187504472 | LO9: 0.1136555967 | LP9: 0.1168563283 | LQ9: 0.1256137347 | LR9: 0.1233609108 | LS9: 0.1313958145 | LT9: 0.1191297179 | LU9: 0.1228151 | LV9: 0.1277830208 | LW9: 0.1231826246 | LX9: 0.1200384506 | LY9: 0.1217207804 | LZ9: 0.1189270732 | MA9: 0.1144872184 | MB9: 0.1232809914 | MC9: 0.1207411781 | MD9: 0.1179199866 | ME9: 0.1215517593 | MF9: 0.1211651489 | MG9: 0.1265352841 | MH9: 0.1235773214 | MI9: 0.1168746634 | MJ9: 0.1271345259 | MK9: 0.124789033 | ML9: 0.1139681606 | MM9: 0.1186652331 | MN9: 0.1173813462 | MO9: 0.120922853 | MP9: 0.1186129627 | MQ9: 0.1151602601 | MR9: 0.1276298939 | MS9: 0.1222342834 | MT9: 0.1216717991 | MU9: 0.1286485465 | MV9: 0.1290129172 | MW9: 0.1176978967 | MX9: 0.1184200784 | MY9: 0.1240010097 | MZ9: 0.1213117832 | NA9: 0.1285098141 | NB9: 0.1141459165 | NC9: 0.1219093841 | ND9: 0.1209747935 | NE9: 0.1292493075 | NF9: 0.1245023001 | NG9: 0.1165423676 | NH9: 0.1235031264 | NI9: 0.1201400516 | NJ9: 0.1182439058 | NK9: 0.1280316313 | NL9: 0.1252223943 | NM9: 0.1178437635 | NN9: 0.1222870554 | NO9: 0.1201165186 | NP9: 0.1260084233 | NQ9: 0.1259941089 | NR9: 0.1203729594 | NS9: 0.1202774912 | NT9: 0.1181200979 | NU9: 0.1207248871 | NV9: 0.1121084564 | NW9: 0.1210832146 | NX9: 0.11306869 | NY9: 0.1219486991 | NZ9: 0.1168373904 | OA9: 0.1241137761 | OB9: 0.1182559442 | OC9: 0.1243845507 | OD9: 0.1144632112 | OE9: 0.1306425163 | OF9: 0.1210242637 | OG9: 0.1231895054 | OH9: 0.1246493612 | OI9: 0.1198976289 | OJ9: 0.1234027776 | OK9: 0.1227710591 | OL9: 0.1204395286 | OM9: 0.1199857279 | ON9: 0.1191352864 | OO9: 0.1174238172 | OP9: 0.1202934038 | OQ9: 0.1239376194 | OR9: 0.120162237 | OS9: 0.1244547042 | OT9: 0.1163419924 | OU9: 0.1260016687 | OV9: 0.1203025195 | OW9: 0.1123067453 | OX9: 0.1219166308 | OY9: 0.1295073255 | OZ9: 0.1147563059 | PA9: 0.1234544058 | PB9: 0.1229037891 | PC9: 0.1158762047 | PD9: 0.1239588724 | PE9: 0.1257742595 | PF9: 0.1126697959 | PG9: 0.1207426808 | PH9: 0.1207377638 | PI9: 0.1150520484 | PJ9: 0.1225636809 | PK9: 0.120366999 | PL9: 0.1243982384 | PM9: 0.1263100871 | PN9: 0.1116932753 | PO9: 0.1196419964 | PP9: 0.1207945613 | PQ9: 0.1146733734 | PR9: 0.1239717166 | PS9: 0.1160864224 | PT9: 0.116372994 | PU9: 0.1281977666 | PV9: 0.1211808427 | PW9: 0.1219739114 | PX9: 0.1254436788 | PY9: 0.1200079403 | PZ9: 0.1182859163 | QA9: 0.1271130506 | QB9: 0.1136903595 | QC9: 0.1190914994 | QD9: 0.1167438917 | QE9: 0.1254925316 | QF9: 0.1162629036 | QG9: 0.122918482 | QH9: 0.1194768004 | QI9: 0.1255971886 | QJ9: 0.1212144631 | QK9: 0.1256142122 | QL9: 0.1243000157 | QM9: 0.1218808536 | QN9: 0.122239744 | QO9: 0.1201966857 | QP9: 0.1240620388 | QQ9: 0.1296191419 | QR9: 0.1223501158 | QS9: 0.1227829165 | QT9: 0.126210256 | QU9: 0.1205176935 | QV9: 0.1175571846 | QW9: 0.1181798407 | QX9: 0.1201781401 | QY9: 0.1276042112 | QZ9: 0.117973992 | RA9: 0.1236296375 | RB9: 0.1136587311 | RC9: 0.1142397738 | RD9: 0.1169607385 | RE9: 0.126856041 | RF9: 0.1293269881 | RG9: 0.1217013623 | RH9: 0.1192745703 | RI9: 0.1173281549 | RJ9: 0.1213601345 | RK9: 0.1201492046 | RL9: 0.1132026005 | RM9: 0.1223987633 | RN9: 0.1240588999 | RO9: 0.1255164285 | RP9: 0.1268571716 | RQ9: 0.1208146874 | RR9: 0.1298462135 | RS9: 0.1203084879 | RT9: 0.1254247173 | RU9: 0.109981641 | RV9: 0.1233780994 | RW9: 0.129110028 | RX9: 0.1177639188 | RY9: 0.1203198963 | RZ9: 0.1263892743 | SA9: 0.1262010089 | SB9: 0.12256974 | SC9: 0.1164703058 | SD9: 0.1209234899 | SE9: 0.1261855015 | SF9: 0.1317964181 | SG9: 0.1228271421 | SH9: 0.125834497 | SI9: 0.1138922089 | SJ9: 0.1223830379 | SK9: 0.1219393348 | SL9: 0.128982725 | SM9: 0.1199938439 | SN9: 0.1157447574 | SO9: 0.1283520459 | SP9: 0.1197066324 | SQ9: 0.1256557805 | SR9: 0.1152543727 | SS9: 0.1243729643 | ST9: 0.128850075 | SU9: 0.1209669424 | SV9: 0.1126733556 | SW9: 0.1265844349 | SX9: 0.122185841 | SY9: 0.1170451406 | SZ9: 0.1160045284 | TA9: 0.1211919098 | TB9: 0.114347599 | TC9: 0.1166356496 | TD9: 0.1251644908 | TE9: 0.1154659138 | TF9: 0.1184706705 | TG9: 0.120692311 | TH9: 0.1226552951 | TI9: 0.122290622 | TJ9: 0.1212213818 | TK9: 0.1200330429 | TL9: 0.1310084862 | TM9: 0.1119293511 | TN9: 0.120120872 | TO9: 0.121426138 | TP9: 0.1207559509 | TQ9: 0.125861659 | TR9: 0.1272550096 | TS9: 0.117664209 | TT9: 0.1186583192 | TU9: 0.1171191716 | TV9: 0.1188274268 | TW9: 0.127652042 | TX9: 0.1183237229 | TY9: 0.120398601 | TZ9: 0.1214789263 | UA9: 0.1227106101 | UB9: 0.1236029082 | UC9: 0.1199088652 | UD9: 0.1173242873 | UE9: 0.12702047 | UF9: 0.1194668367 | UG9: 0.1223860359 | UH9: 0.127233424 | UI9: 0.1199281937 | UJ9: 0.1268496347 | UK9: 0.1171336593 | UL9: 0.1270557087 | UM9: 0.1151621467 | UN9: 0.1245354782 | UO9: 0.1207921319 | UP9: 0.1281179172 | UQ9: 0.1170673796 | UR9: 0.1199609972 | US9: 0.1229441448 | UT9: 0.1286932645 | UU9: 0.1178752717 | UV9: 0.1196787069 | UW9: 0.1267605453 | UX9: 0.1225922492 | UY9: 0.1142673853 | UZ9: 0.1210623679 | VA9: 0.1250684486 | VB9: 0.1238908234 | VC9: 0.1285482373 | VD9: 0.1197073473 | VE9: 0.1216016647 | VF9: 0.1202236884 | VG9: 0.1270084939 | VH9: 0.1241552239 | VI9: 0.1273552683 | VJ9: 0.1228676202 | VK9: 0.1234443361 | VL9: 0.1229149124 | VM9: 0.1234237116 | VN9: 0.1213249903 | VO9: 0.1265902416 | VP9: 0.123645608 | VQ9: 0.1227023208 | VR9: 0.1203447984 | VS9: 0.1131662557 | VT9: 0.1165948272 | VU9: 0.1177632619 | VV9: 0.1153946406 | VW9: 0.1178164145 | VX9: 0.112297104 | VY9: 0.1212090834 | VZ9: 0.1224347722 | WA9: 0.1176384626 | WB9: 0.1201828073 | WC9: 0.118287829 | WD9: 0.1223640915 | WE9: 0.1194763101 | WF9: 0.1294773852 | WG9: 0.1182194425 | WH9: 0.1174760082 | WI9: 0.1202672733 | WJ9: 0.1195960841 | WK9: 0.1261756601 | WL9: 0.1167758449 | WM9: 0.1147328817 | WN9: 0.1224962304 | WO9: 0.117752567 | WP9: 0.1175387752 | WQ9: 0.1189771762 | WR9: 0.1141738398 | WS9: 0.1245375311 | WT9: 0.1315651358 | WU9: 0.1159444127 | WV9: 0.112616271 | WW9: 0.1218616738 | WX9: 0.1201183983 | WY9: 0.1152045586 | WZ9: 0.1147505552 | XA9: 0.1191944965 | XB9: 0.12085075 | XC9: 0.1235572228 | XD9: 0.1206541309 | XE9: 0.1183484931 | XF9: 0.1236009433 | XG9: 0.1243891884 | XH9: 0.1244511411 | XI9: 0.1200249552 | XJ9: 0.1182541067 | XK9: 0.1197589326 | XL9: 0.1160040185 | XM9: 0.124560515 | XN9: 0.1189225817 | XO9: 0.1173163499 | XP9: 0.1178577672 | XQ9: 0.1269810605 | XR9: 0.1223743556 | XS9: 0.1282737351 | XT9: 0.1185186202 | XU9: 0.1242900591 | XV9: 0.116002964 | XW9: 0.1197626816 | XX9: 0.1263623699 | XY9: 0.1158275591 | XZ9: 0.1195036089 | YA9: 0.1184217111 | YB9: 0.1240094185 | YC9: 0.1143205646 | YD9: 0.1263962947 | YE9: 0.1176789526 | YF9: 0.1222989565 | YG9: 0.1233673587 | YH9: 0.1122004972 | YI9: 0.1282479123 | YJ9: 0.1282850649 | YK9: 0.1143110374 | YL9: 0.1252036516 | YM9: 0.117377563 | YN9: 0.1247592785 | YO9: 0.1273926203 | YP9: 0.117831958 | YQ9: 0.1177616805 | YR9: 0.1171392907 | YS9: 0.1179279422 | YT9: 0.1199508348 | YU9: 0.1255543592 | YV9: 0.1178958748 | YW9: 0.1164812555 | YX9: 0.1234655311 | YY9: 0.1157666456 | YZ9: 0.1164262101 | ZA9: 0.1196534778 | ZB9: 0.125231306 | ZC9: 0.1295998167 | ZD9: 0.1244973406 | ZE9: 0.1213278277 | ZF9: 0.1291000527 | ZG9: 0.1189380236 | ZH9: 0.1264142186 | ZI9: 0.1282469473 | ZJ9: 0.1158067424 | ZK9: 0.1144774303 | ZL9: 0.1230485339 | ZM9: 0.1126419213 | ZN9: 0.1253884042 | ZO9: 0.1147153379 | ZP9: 0.1159697907 | ZQ9: 0.1132736195 | ZR9: 0.1264108318 | ZS9: 0.127397523 | ZT9: 0.1211254449 | ZU9: 0.1191857664 | ZV9: 0.1173338267 | ZW9: 0.118102128 | ZX9: 0.1182608195 | ZY9: 0.1212865238 | ZZ9: 0.1200387206 | AAA9: 0.126983103 | AAB9: 0.1161799206 | AAC9: 0.1192791843 | AAD9: 0.1196039425 | AAE9: 0.114094096 | AAF9: 0.1225306395 | AAG9: 0.123096405 | AAH9: 0.1268937176 | AAI9: 0.1165638763 | AAJ9: 0.1164408488 | AAK9: 0.1185869166 | AAL9: 0.1294788246 | AAM9: 0.1188635464 | AAN9: 0.1194323101 | AAO9: 0.1205070963 | AAP9: 0.126886566 | AAQ9: 0.1201646164 | AAR9: 0.1202929743 | AAS9: 0.1216050818 | AAT9: 0.1166462845 | AAU9: 0.1186654078 | AAV9: 0.1230138547 | AAW9: 0.1229506185 | AAX9: 0.118678557 | AAY9: 0.1217397632 | AAZ9: 0.1191378755 | ABA9: 0.1218732992 | ABB9: 0.1244020826 | ABC9: 0.1136662417 | ABD9: 0.1211637358 | ABE9: 0.1174353627 | ABF9: 0.1131018481 | ABG9: 0.1242877136 | ABH9: 0.1204196183 | ABI9: 0.1285971338 | ABJ9: 0.1190983427 | ABK9: 0.1274771073 | ABL9: 0.116447775 | ABM9: 0.1205092592 | ABN9: 0.1276787633 | ABO9: 0.1219320172 | ABP9: 0.1265694531 | ABQ9: 0.1173370132 | ABR9: 0.1178402152 | ABS9: 0.1228332464 | ABT9: 0.1104886695 | ABU9: 0.1186263162 | ABV9: 0.1219439933 | ABW9: 0.1177188921 | ABX9: 0.1209979927 | ABY9: 0.1181039744 | ABZ9: 0.1230889516 | ACA9: 0.1245406459 | ACB9: 0.1224112514 | ACC9: 0.1200252312 | ACD9: 0.1210372559 | ACE9: 0.1146052382 | ACF9: 0.1246263171 | ACG9: 0.1210089428 | ACH9: 0.122358019 | ACI9: 0.1225561887 | ACJ9: 0.1227208675 | ACK9: 0.1195062011 | ACL9: 0.1232503849 | ACM9: 0.1278653287 | ACN9: 0.1122020095 | ACO9: 0.1293180813 | ACP9: 0.1233392555 | ACQ9: 0.121106133 | ACR9: 0.1251116033 | ACS9: 0.1253206694 | ACT9: 0.1178348349 | ACU9: 0.1162326309 | ACV9: 0.1271724417 | ACW9: 0.1281931137 | ACX9: 0.1228045507 | ACY9: 0.1253012282 | ACZ9: 0.12404915 | ADA9: 0.1187873339 | ADB9: 0.1191908882 | ADC9: 0.1172493797 | ADD9: 0.1238394702 | ADE9: 0.121725555 | ADF9: 0.113462279 | ADG9: 0.1189649056 | ADH9: 0.1191900526 | ADI9: 0.1189567726 | ADJ9: 0.1235127465 | ADK9: 0.1139956538 | ADL9: 0.1142612008 | ADM9: 0.1240664373 | ADN9: 0.1201422434 | ADO9: 0.1149540447 | ADP9: 0.1276266092 | ADQ9: 0.1177937144 | ADR9: 0.1236350941 | ADS9: 0.1147020482 | ADT9: 0.1191734966 | ADU9: 0.1291808936 | ADV9: 0.1272482802 | ADW9: 0.1179502282 | ADX9: 0.1237022998 | ADY9: 0.1259922918 | ADZ9: 0.1310079605 | AEA9: 0.1163192345 | AEB9: 0.1258384546 | AEC9: 0.1228870488 | AED9: 0.1193546539 | AEE9: 0.1154531864 | AEF9: 0.1142335057 | AEG9: 0.1233205724 | AEH9: 0.1143310466 | AEI9: 0.1252713493 | AEJ9: 0.1126230863 | AEK9: 0.1263783417 | AEL9: 0.1181124557 | AEM9: 0.1213041351 | AEN9: 0.1220059268 | AEO9: 0.1234938464 | AEP9: 0.1167411597 | AEQ9: 0.1136476402 | AER9: 0.1227694179 | AES9: 0.1219186287 | AET9: 0.1205707484 | AEU9: 0.1295723595 | AEV9: 0.1200399257 | AEW9: 0.1236966688 | AEX9: 0.1191404525 | AEY9: 0.1177600697 | AEZ9: 0.1184962724 | AFA9: 0.1181710238 | AFB9: 0.1250914473 | AFC9: 0.1187317674 | AFD9: 0.111873145 | AFE9: 0.130979691 | AFF9: 0.1236953423 | AFG9: 0.1136185178 | AFH9: 0.1220038323 | AFI9: 0.1256897539 | AFJ9: 0.1162444145 | AFK9: 0.1173912015 | AFL9: 0.1256649401 | AFM9: 0.1172355173 | AFN9: 0.121107875 | AFO9: 0.1220217293 | AFP9: 0.1240260593 | AFQ9: 0.1163066557 | AFR9: 0.1162826168 | AFS9: 0.1243581725 | AFT9: 0.1240605636 | AFU9: 0.1186430772 | AFV9: 0.115748304 | AFW9: 0.1188364262 | AFX9: 0.1278021658 | AFY9: 0.1136692926 | AFZ9: 0.1180841963 | AGA9: 0.116496453 | AGB9: 0.1122333331 | AGC9: 0.113257503 | AGD9: 0.1231725541 | AGE9: 0.1264564762 | AGF9: 0.1137438416 | AGG9: 0.1301776312 | AGH9: 0.121716257 | AGI9: 0.1229681455 | AGJ9: 0.1204468403 | AGK9: 0.1187967372 | AGL9: 0.1283342864 | AGM9: 0.1108762369 | AGN9: 0.1198404753 | AGO9: 0.1206964187 | AGP9: 0.1214356041 | AGQ9: 0.1225331762 | AGR9: 0.1165023113 | AGS9: 0.1149791281 | AGT9: 0.1178183176 | AGU9: 0.1169163198 | AGV9: 0.1150442065 | AGW9: 0.1229976104 | AGX9: 0.1218660253 | AGY9: 0.1192512469 | AGZ9: 0.126573271 | AHA9: 0.1149882513 | AHB9: 0.1260513306 | AHC9: 0.1208860801 | AHD9: 0.1133270045 | AHE9: 0.1194468339 | AHF9: 0.1179127005 | AHG9: 0.1157652331 | AHH9: 0.1203850793 | AHI9: 0.1215898067 | AHJ9: 0.122555985 | AHK9: 0.1289554901 | AHL9: 0.1222582334 | AHM9: 0.1243230001 | AHN9: 0.1196260181 | AHO9: 0.1194323343 | AHP9: 0.1157165202 | AHQ9: 0.1215883176 | AHR9: 0.1298337677 | AHS9: 0.1174398246 | AHT9: 0.1275791086 | AHU9: 0.1128828678 | AHV9: 0.1243926874 | AHW9: 0.1214282438 | AHX9: 0.1174633994 | AHY9: 0.11782209 | AHZ9: 0.1116967351 | AIA9: 0.1241039846 | AIB9: 0.1244664212 | AIC9: 0.1161617732 | AID9: 0.1245704366 | AIE9: 0.1219033746 | AIF9: 0.1287644808 | AIG9: 0.1145258175 | AIH9: 0.1287760587 | AII9: 0.1218933483 | AIJ9: 0.1264727628 | AIK9: 0.1247847304 | AIL9: 0.1181899733 | AIM9: 0.1170598483 | AIN9: 0.1199092802 | AIO9: 0.1209261334 | AIP9: 0.1258170658 | AIQ9: 0.1200256077 | AIR9: 0.117600221 | AIS9: 0.1186498117 | AIT9: 0.1219348432 | AIU9: 0.1135616354 | AIV9: 0.1219124508 | AIW9: 0.1254584898 | AIX9: 0.1208747876 | AIY9: 0.1259641091 | AIZ9: 0.1230273977 | AJA9: 0.1207675355 | AJB9: 0.1170506168 | AJC9: 0.117876103 | AJD9: 0.1160937599 | AJE9: 0.1194341567 | AJF9: 0.1182735586 | AJG9: 0.1198606118 | AJH9: 0.1133723149 | AJI9: 0.1263690185 | AJJ9: 0.1153218116 | AJK9: 0.1164226027 | AJL9: 0.1298143011 | AJM9: 0.1220153182 | AJN9: 0.117379747 | AJO9: 0.1239342228 | AJP9: 0.1197933167 | AJQ9: 0.1185856655 | AJR9: 0.119857336 | AJS9: 0.1104711452 | AJT9: 0.123688132 | AJU9: 0.127465899 | AJV9: 0.1136704547 | AJW9: 0.1192331234 | AJX9: 0.1193193297 | AJY9: 0.1150156079 | AJZ9: 0.1150443769 | AKA9: 0.1229089842 | AKB9: 0.1253357101 | AKC9: 0.1314167205 | AKD9: 0.1173522983 | AKE9: 0.1139502819 | AKF9: 0.1215902065 | AKG9: 0.1177622101 | AKH9: 0.1153717304 | AKI9: 0.1196803776 | AKJ9: 0.1188490646 | AKK9: 0.1146565577 | AKL9: 0.1152282365 | AKM9: 0.1240118486 | AKN9: 0.1149732633 | AKO9: 0.1173205345 | AKP9: 0.1266840721 | AKQ9: 0.1256689916 | AKR9: 0.1244937182 | AKS9: 0.1235473924 | AKT9: 0.1172085768 | AKU9: 0.125876813 | AKV9: 0.1165588235 | AKW9: 0.1202949719 | AKX9: 0.1225092574 | AKY9: 0.1186899779 | AKZ9: 0.1252944357 | ALA9: 0.1289805512 | ALB9: 0.1226932436 | ALC9: 0.1190936196 | ALD9: 0.1225762201 | ALE9: 0.1229859068 | ALF9: 0.1166725537 | ALG9: 0.1202011308 | ALH9: 0.1213751337 | ALI9: 0.1206924502 | ALJ9: 0.1243543703 | ALK9: 0.1202875134 | ALL9: 0.1127017781 | ALM9: 0.1188959257 | ALN9: 0.1259529977 | ALO9: 0.1239511691 | ALP9: 0.1251822426 | ALQ9: 0.1225740701 | ALR9: 0.122009515 | ALS9: 0.1143069991 | ALT9: 0.1099724166 | ALU9: 0.1193870837 | ALV9: 0.1253531331 | ALW9: 0.1268845183 | ALX9: 0.1212860749 | ALY9: 0.1196905657 | ALZ9: 0.1103690195 | AMA9: 0.1198726261 | AMB9: 0.1275108128 | AMC9: 0.1200449215 | AMD9: 0.1225035769 | AME9: 0.1182583084 | AMF9: 0.1221053792 | AMG9: 0.1154309338 | AMH9: 0.1216328654 | AMI9: 0.119430159 | AML9: =IFERROR(AVERAGEIFS($X9:$AMI9,$X9:$AMI9,"<"&SMALL($X9:$AMI9,AMM$7),$X9:$AMI9,">"&SMALL($X9:$AMI9,AMK$7)),"") -> 0.1131016439 | AMM9: =IFERROR(AVERAGEIFS($X9:$AMI9,$X9:$AMI9,"<"&SMALL($X9:$AMI9,AMN$7),$X9:$AMI9,">"&SMALL($X9:$AMI9,AML$7)),"") -> 0.1146477557 | AMN9: =IFERROR(AVERAGEIFS($X9:$AMI9,$X9:$AMI9,"<"&SMALL($X9:$AMI9,AMO$7),$X9:$AMI9,">"&SMALL($X9:$AMI9,AMM$7)),"") -> 0.1158042673 | AMO9: 0.1167945637 | AMP9: 0.1176013987 | AMQ9: 0.1182854854 | AMR9: 0.1189171795 | AMS9: 0.1195497007 | AMT9: 0.1201402818 | AMU9: 0.1207165016 | AMV9: 0.1213429209 | AMW9: 0.1219969754 | AMX9: 0.1226550628 | AMY9: 0.1233570814 | AMZ9: 0.1240832269 | ANA9: 0.1249016769 | ANB9: 0.1258929382 | ANC9: =IFERROR(AVERAGEIFS($X9:$AMI9,$X9:$AMI9,"<"&SMALL($X9:$AMI9,AND$7),$X9:$AMI9,">"&SMALL($X9:$AMI9,ANB$7)),"") -> 0.1270260423 | AND9: =IFERROR(AVERAGEIFS($X9:$AMI9,$X9:$AMI9,"<"&SMALL($X9:$AMI9,ANE$7),$X9:$AMI9,">"&SMALL($X9:$AMI9,ANC$7)),"") -> 0.1286412373 | ANF9: =IFERROR(AVERAGEIFS($X$7:$AMI$7,$X9:$AMI9,"<"&SMALL($X9:$AMI9,AMM$7),$X9:$AMI9,">"&SMALL($X9:$AMI9,AMK$7)),"") -> -6524.360424 | ANG9: =IFERROR(AVERAGEIFS($X$7:$AMI$7,$X9:$AMI9,"<"&SMALL($X9:$AMI9,AMN$7),$X9:$AMI9,">"&SMALL($X9:$AMI9,AML$7)),"") -> -6718.818632 | ANH9: -6456.942281 | ANI9: -6312.753562 | ANJ9: -6058.356287 | ANK9: -6252.680809 | ANL9: -6456.858658 | ANM9: -6118.378624 | ANN9: -6141.896663 | ANO9: -6084.287398 | ANP9: -5713.733337 | ANQ9: -5869.356015 | ANR9: -5923.681872 | ANS9: -5644.480946 | ANT9: -5685.192923 | ANU9: -5419.133987 | ANV9: -5113.272364 | ANW9: -5181.909827 | ANX9: -5311.976454 | ANY9: =IFERROR(MATCH(MIN(ABS(ANF9:ANX9)),ABS(ANF9:ANX9),0),"") -> 17 | ANZ9: =IFERROR(INDEX(ANF9:ANX9,MIN(MAX(ANY9-1,1),17)),"") -> -5419.133987 | AOA9: =IFERROR(INDEX(ANF9:ANX9,MIN(MAX(ANY9,2),18)),"") -> -5113.272364 | AOB9: =IFERROR(INDEX(ANF9:ANX9,MIN(MAX(ANY9,3),19)),"") -> -5113.272364 | AOC9: =IFERROR(INDEX(AML9:AND9,MIN(MAX(ANY9-1,1),17)),"") -> 0.1249016769 | AOD9: =IFERROR(INDEX(AML9:AND9,MIN(MAX(ANY9,2),18)),"") -> 0.1258929382 | AOE9: =IFERROR(INDEX(AML9:AND9,MIN(MAX(ANY9,3),19)),"") -> 0.1258929382 | AOF9: =IFERROR(FORECAST(0,AOC9:AOE9,ANZ9:AOB9),"") -> 0.1424644488
A10: =ROW(Variables[[#This Row],[Variable Name]])-ROW(Variables[[#Headers],[Variable Name]]) -> 2 | B10: Trend in grid cost $/yr | C10: GridCostTrend | D10: =IF(COUNTA(Variables[[#This Row],[Lower Bound]], Variables[[#This Row],[Mode or P]], Variables[[#This Row],[Upper Bound]])=0, "", IF(Variables[[#This Row],[Shape]]="Constant",Variables[[#This Row],[Mode or P]],IF(Variables[[#This Row],[Shape]]="Lognorm",LOGINV(Variables[[#This Row],[Uniform PRNG]],((LN(Variables[[#This Row],[Lower Bound]]) + LN(Variables[[#This Row],[Upper Bound]]))/2),((LN(Variables[[#This Row],[Upper Bound]]) - LN(Variables[[#This Row],[Lower Bound]]))/3.28971)),IF(Variables[[#This Row],[Shape]]="Normal",NORMINV(Variables[[#This Row],[Uniform PRNG]],(Variables[[#This Row],[Upper Bound]]+Variables[[#This Row],[Lower Bound]])/2,(Variables[[#This Row],[Upper Bound]]-Variables[[#This Row],[Lower Bound]])/3.29),IF(Variables[[#This Row],[Shape]]="Uniform",(Variables[[#This Row],[Upper Bound]]-Variables[[#This Row],[Lower Bound]])*Variables[[#This Row],[Uniform PRNG]]+Variables[[#This Row],[Lower Bound]],IF(Variables[[#This Row],[Shape]]="Binary",IF(Variables[[#This Row],[Uniform PRNG]]<Variables[[#This Row],[Mode or P]],1,0),IF(Variables[[#This Row],[Shape]]="Triangular",IF(Variables[[#This Row],[Uniform PRNG]]<(Variables[[#This Row],[Mode or P]]-Variables[[#This Row],[Lower Bound]])/(Variables[[#This Row],[Upper Bound]]-Variables[[#This Row],[Lower Bound]]), 1, 0) * (Variables[[#This Row],[Lower Bound]] + SQRT(Variables[[#This Row],[Uniform PRNG]]*(Variables[[#This Row],[Upper Bound]]-Variables[[#This Row],[Lower Bound]])*(Variables[[#This Row],[Mode or P]]-Variables[[#This Row],[Lower Bound]]))) + IF(Variables[[#This Row],[Uniform PRNG]]>= (Variables[[#This Row],[Mode or P]]-Variables[[#This Row],[Lower Bound]])/(Variables[[#This Row],[Upper Bound]]-Variables[[#This Row],[Lower Bound]]), 1, 0) * (Variables[[#This Row],[Upper Bound]] - SQRT((1-Variables[[#This Row],[Uniform PRNG]]) * (Variables[[#This Row],[Upper Bound]] - Variables[[#This Row],[Lower Bound]]) * (Variables[[#This Row],[Upper Bound]] - Variables[[#This Row],[Mode or P]]))),""))))))) -> 0.002867738553 | E10: Uniform | F10: 0.0027 | G10: 0.0029 | H10: 0.0031 | I10: US Energy Information Administration | J10: =IFERROR(IF(OR(MIN(Variables[[#This Row],[P(X<T)]], Variables[[#This Row],[P(X>T)]])<0.002,SIGN(Variables[[#This Row],[EOL(X<T)]])=SIGN(Variables[[#This Row],[EOL(X>T)]])),0,IFERROR(IF(B$50=1,IF(Variables[[#This Row],[EOL(X<T)]]<Variables[[#This Row],[EOL(X>T)]],-Variables[[#This Row],[EOL(X<T)]]*Variables[[#This Row],[P(X<T)]],-Variables[[#This Row],[EOL(X>T)]]*Variables[[#This Row],[P(X>T)]]),IF(Variables[[#This Row],[EOL(X<T)]]>Variables[[#This Row],[EOL(X>T)]],Variables[[#This Row],[EOL(X<T)]]*Variables[[#This Row],[P(X<T)]],Variables[[#This Row],[EOL(X>T)]]*Variables[[#This Row],[P(X>T)]])),"")),0) -> 0 | K10: =IF(Variables[[#This Row],[Shape]]="Constant",Variables[[#This Row],[Mode or P]],IF(Variables[[#This Row],[Shape]]="Lognorm",EXP((LN(Variables[[#This Row],[Upper Bound]])+LN(Variables[[#This Row],[Lower Bound]]))/2+((LN(Variables[[#This Row],[Upper Bound]])-LN(Variables[[#This Row],[Lower Bound]]))/3.29)^2/2),IF(Variables[[#This Row],[Shape]]="Normal",(Variables[[#This Row],[Lower Bound]]+Variables[[#This Row],[Upper Bound]])/2,IF(Variables[[#This Row],[Shape]]="Uniform",(Variables[[#This Row],[Lower Bound]]+Variables[[#This Row],[Upper Bound]])/2,IF(Variables[[#This Row],[Shape]]="Binary",Variables[[#This Row],[Mode or P]],IF(Variables[[#This Row],[Shape]]="Triangular",(Variables[[#This Row],[Lower Bound]]+Variables[[#This Row],[Mode or P]]+Variables[[#This Row],[Upper Bound]])/3,"")))))) -> 0.0029 | L10: =IF(Variables[[#This Row],[Shape]]="","",(MOD((MOD(MOD(999999999999989,MOD(ScenarioNum*2499997+Variables[[#This Row],[VarID]]*1800451,7450589)*4658+7450581)*383,99991)*231109+MOD(MOD(999999999999989,MOD(ScenarioNum*2246527+Variables[[#This Row],[VarID]]*2399993,7450987)*7580+7560584)*547,231109))*43271,4294967296)+0.5)/4294967296) -> 0.419346382 | M10: =IF(Variables[[#This Row],[Shape]]="Binary", 1-Variables[[#This Row],[Mode or P]], IF(Variables[[#This Row],[Shape]]<>"",COUNTIF(INDEX($X$9:$AMI$164, ROW(Variables[[#This Row],[Variable Name]])-ROW(Variables[[#Headers],[Variable Name]]), ),"<"&Variables[[#This Row],[Threshold Estimate]])/1000,"")) -> 1 | N10: =IF(Variables[[#This Row],[Shape]]<>"",1-Variables[[#This Row],[P(X<T)]],"") -> 0 | O10: =IFERROR(AVERAGEIFS(X$7:AMI$7,INDEX(X$9:$AMI$164, ROW(Variables[[#This Row],[Variable Name]])-ROW(Variables[[#Headers],[Variable Name]]), ),IF(Variables[[#This Row],[Shape]]="Binary","=0","<"&Variables[[#This Row],[Threshold Estimate]])),"") -> -5936.888905 | P10: =IFERROR(AVERAGEIFS(X$7:AMI$7,INDEX($X$9:$AMI$164, ROW(Variables[[#This Row],[Variable Name]])-ROW(Variables[[#Headers],[Variable Name]]), ),IF(Variables[[#This Row],[Shape]]="Binary","=1",">"&Variables[[#This Row],[Threshold Estimate]])),"") ->  | Q10: =IFERROR(IF(Variables[[#This Row],[Shape]]="Binary",IF(B$50=1,IF(Variables[[#This Row],[EOL(X<T)]]<Variables[[#This Row],[EOL(X>T)]],0,1),IF(Variables[[#This Row],[EOL(X<T)]]<Variables[[#This Row],[EOL(X>T)]],1,0)), INDEX($AOF$9:$AOF$164, ROW(Variables[[#This Row],[Variable Name]])-ROW(Variables[[#Headers],[Variable Name]]))),"") -> 0.003524318161 | V10: =IFERROR(IF(ISBLANK(Variables[[#This Row],[Variable Name]]), "", Variables[[#This Row],[Variable Name]]), "") -> Trend in grid cost $/yr | W10: =IFERROR(IF(ISBLANK(D10), "", D10), "") -> 0.002867738553 | X10: 0.002767115659 | Y10: 0.002870702968 | Z10: 0.002763341954 | AA10: 0.00307457549 | AB10: 0.003069200144 | AC10: 0.002828436853 | AD10: 0.002703692001 | AE10: 0.003085637272 | AF10: 0.002800264912 | AG10: 0.002867738553 | AH10: 0.002916223105 | AI10: 0.002994361963 | AJ10: 0.002946312959 | AK10: 0.003003722515 | AL10: 0.002736842566 | AM10: 0.002866991333 | AN10: 0.003042259391 | AO10: 0.002965943471 | AP10: 0.002706776286 | AQ10: 0.002866356497 | AR10: 0.003018072908 | AS10: 0.002753260036 | AT10: 0.002801004542 | AU10: 0.002761959185 | AV10: 0.002997927126 | AW10: 0.002791514102 | AX10: 0.002710350186 | AY10: 0.002763394226 | AZ10: 0.002702704923 | BA10: 0.003015693501 | BB10: 0.002883588806 | BC10: 0.002730333594 | BD10: 0.002876669944 | BE10: 0.003071493613 | BF10: 0.002754949954 | BG10: 0.002700293382 | BH10: 0.003001967582 | BI10: 0.002812422062 | BJ10: 0.00296399197 | BK10: 0.003016678198 | BL10: 0.002731567329 | BM10: 0.003096449268 | BN10: 0.002906696023 | BO10: 0.002901384262 | BP10: 0.003020890823 | BQ10: 0.002872896126 | BR10: 0.00303778098 | BS10: 0.002890632342 | BT10: 0.002791391738 | BU10: 0.003057480839 | BV10: 0.003027193166 | BW10: 0.002913825928 | BX10: 0.003015124562 | BY10: 0.002996539547 | BZ10: 0.002841172163 | CA10: 0.002804502794 | CB10: 0.002807635393 | CC10: 0.002941212591 | CD10: 0.002714405119 | CE10: 0.002921770132 | CF10: 0.002841732041 | CG10: 0.002763893654 | CH10: 0.002736271521 | CI10: 0.002928910496 | CJ10: 0.002892722581 | CK10: 0.002875700654 | CL10: 0.002701502372 | CM10: 0.002906460995 | CN10: 0.002772005445 | CO10: 0.002994690097 | CP10: 0.002885690578 | CQ10: 0.002785019976 | CR10: 0.002940805075 | CS10: 0.002931262962 | CT10: 0.002980932633 | CU10: 0.002767297865 | CV10: 0.002974367397 | CW10: 0.002796077194 | CX10: 0.00299860409 | CY10: 0.003029463255 | CZ10: 0.00271539119 | DA10: 0.003007009113 | DB10: 0.002845287429 | DC10: 0.002871664349 | DD10: 0.002898545042 | DE10: 0.003098960807 | DF10: 0.002827871461 | DG10: 0.003023411662 | DH10: 0.002960062607 | DI10: 0.002795289603 | DJ10: 0.002991840251 | DK10: 0.002968496708 | DL10: 0.002846850264 | DM10: 0.002975930475 | DN10: 0.002723602327 | DO10: 0.002945196684 | DP10: 0.003086651569 | DQ10: 0.002943151695 | DR10: 0.002825989422 | DS10: 0.002987845367 | DT10: 0.00296008023 | DU10: 0.002908422547 | DV10: 0.002770385375 | DW10: 0.002847957925 | DX10: 0.002718732887 | DY10: 0.002819634572 | DZ10: 0.002899388872 | EA10: 0.002797782397 | EB10: 0.002775657596 | EC10: 0.002749683411 | ED10: 0.002866602084 | EE10: 0.003073084335 | EF10: 0.002988526584 | EG10: 0.002917224001 | EH10: 0.003042995942 | EI10: 0.003004784528 | EJ10: 0.002780435832 | EK10: 0.002997657539 | EL10: 0.002724731118 | EM10: 0.002842498246 | EN10: 0.003050583806 | EO10: 0.00308053346 | EP10: 0.002756137641 | EQ10: 0.002861256341 | ER10: 0.003088987631 | ES10: 0.003075901022 | ET10: 0.002959816216 | EU10: 0.002905121614 | EV10: 0.002866803066 | EW10: 0.002982938234 | EX10: 0.003002739427 | EY10: 0.002935661374 | EZ10: 0.002937374552 | FA10: 0.002760077909 | FB10: 0.002767304853 | FC10: 0.002837637769 | FD10: 0.002774165085 | FE10: 0.002920157586 | FF10: 0.002965335419 | FG10: 0.002785399555 | FH10: 0.002763933906 | FI10: 0.002923892853 | FJ10: 0.002766265506 | FK10: 0.002801462594 | FL10: 0.00305096258 | FM10: 0.003034184118 | FN10: 0.002969197727 | FO10: 0.002820174916 | FP10: 0.002813045378 | FQ10: 0.003038454425 | FR10: 0.002870827955 | FS10: 0.003067724342 | FT10: 0.002893897167 | FU10: 0.002801740736 | FV10: 0.002921745834 | FW10: 0.002702053379 | FX10: 0.002703145484 | FY10: 0.002905816175 | FZ10: 0.002982399332 | GA10: 0.002893267588 | GB10: 0.00284951311 | GC10: 0.002953334023 | GD10: 0.00294247021 | GE10: 0.002753601865 | GF10: 0.00275068921 | GG10: 0.002735073502 | GH10: 0.00290565429 | GI10: 0.003095096156 | GJ10: 0.003026658792 | GK10: 0.002861075773 | GL10: 0.00279784395 | GM10: 0.002899746169 | GN10: 0.002791880539 | GO10: 0.002896257606 | GP10: 0.002776200669 | GQ10: 0.003041157785 | GR10: 0.002835434356 | GS10: 0.002980991775 | GT10: 0.002812431593 | GU10: 0.003040715421 | GV10: 0.003094948955 | GW10: 0.002936172812 | GX10: 0.003026366608 | GY10: 0.002932774489 | GZ10: 0.003035204123 | HA10: 0.002786580452 | HB10: 0.002812098415 | HC10: 0.002770057081 | HD10: 0.002897358708 | HE10: 0.002713394213 | HF10: 0.002764933251 | HG10: 0.002727058911 | HH10: 0.003061064407 | HI10: 0.002839563287 | HJ10: 0.003037559842 | HK10: 0.002803612435 | HL10: 0.002817291536 | HM10: 0.003004247927 | HN10: 0.002769274156 | HO10: 0.002861660413 | HP10: 0.002898805329 | HQ10: 0.002850138079 | HR10: 0.003068486881 | HS10: 0.002968757461 | HT10: 0.00305246016 | HU10: 0.002763738041 | HV10: 0.002825331281 | HW10: 0.002951569323 | HX10: 0.002923359759 | HY10: 0.002820367614 | HZ10: 0.00298986229 | IA10: 0.002956907032 | IB10: 0.002749569596 | IC10: 0.002790698526 | ID10: 0.002805830976 | IE10: 0.002971004899 | IF10: 0.003031747853 | IG10: 0.002982234508 | IH10: 0.002776779055 | II10: 0.002983040348 | IJ10: 0.002866406009 | IK10: 0.002731688684 | IL10: 0.002801494059 | IM10: 0.002935917296 | IN10: 0.002955937492 | IO10: 0.002745471388 | IP10: 0.002797080358 | IQ10: 0.002926996008 | IR10: 0.003029678742 | IS10: 0.002714371243 | IT10: 0.003070097026 | IU10: 0.002947234027 | IV10: 0.00308899833 | IW10: 0.002947659025 | IX10: 0.002917828313 | IY10: 0.002936803709 | IZ10: 0.00274356837 | JA10: 0.002871806207 | JB10: 0.002859032766 | JC10: 0.003064253224 | JD10: 0.002857428433 | JE10: 0.003006806939 | JF10: 0.003006848432 | JG10: 0.002849920749 | JH10: 0.003019140175 | JI10: 0.002708175888 | JJ10: 0.003021548989 | JK10: 0.002970849092 | JL10: 0.002977406663 | JM10: 0.002790826043 | JN10: 0.002725237503 | JO10: 0.002978041913 | JP10: 0.003021445202 | JQ10: 0.00274579485 | JR10: 0.002819872743 | JS10: 0.002969326552 | JT10: 0.002949112353 | JU10: 0.002969568913 | JV10: 0.002737998625 | JW10: 0.00302167407 | JX10: 0.002997286603 | JY10: 0.002807492038 | JZ10: 0.002725421951 | KA10: 0.002922883699 | KB10: 0.002925983179 | KC10: 0.002733962995 | KD10: 0.003033870385 | KE10: 0.003098786197 | KF10: 0.003062867645 | KG10: 0.002748740422 | KH10: 0.002819234263 | KI10: 0.003028728847 | KJ10: 0.002861506494 | KK10: 0.003009458033 | KL10: 0.002896870439 | KM10: 0.003012520711 | KN10: 0.002821802071 | KO10: 0.002849864789 | KP10: 0.002788040975 | KQ10: 0.002922767477 | KR10: 0.002816951884 | KS10: 0.002896463122 | KT10: 0.002853843247 | KU10: 0.00273464073 | KV10: 0.003071871555 | KW10: 0.002794776999 | KX10: 0.002976660752 | KY10: 0.003048653251 | KZ10: 0.003025658132 | LA10: 0.002773822367 | LB10: 0.00279779852 | LC10: 0.002749861253 | LD10: 0.003041580594 | LE10: 0.002931793441 | LF10: 0.003046065149 | LG10: 0.00283858102 | LH10: 0.002955273255 | LI10: 0.003074530193 | LJ10: 0.002890338362 | LK10: 0.002911654722 | LL10: 0.002963389751 | LM10: 0.003098054394 | LN10: 0.002844681703 | LO10: 0.002916046303 | LP10: 0.002841688301 | LQ10: 0.002893724559 | LR10: 0.002777625702 | LS10: 0.002736726876 | LT10: 0.00287950856 | LU10: 0.002943412337 | LV10: 0.003081810871 | LW10: 0.003041863195 | LX10: 0.002903619774 | LY10: 0.003094637165 | LZ10: 0.00276865959 | MA10: 0.002911481439 | MB10: 0.003060304957 | MC10: 0.00304462917 | MD10: 0.002708815969 | ME10: 0.002734905797 | MF10: 0.002980368045 | MG10: 0.002838908293 | MH10: 0.002844009803 | MI10: 0.003073811212 | MJ10: 0.002814137712 | MK10: 0.002912571502 | ML10: 0.002877364392 | MM10: 0.00283826819 | MN10: 0.002905942763 | MO10: 0.002897702037 | MP10: 0.002996287147 | MQ10: 0.003003355128 | MR10: 0.002750630014 | MS10: 0.002883831303 | MT10: 0.00301828954 | MU10: 0.002950333754 | MV10: 0.002823711699 | MW10: 0.002852043713 | MX10: 0.002905772717 | MY10: 0.003069396728 | MZ10: 0.002826631691 | NA10: 0.003035899062 | NB10: 0.002928188574 | NC10: 0.002798518849 | ND10: 0.002962301499 | NE10: 0.002935502898 | NF10: 0.002992608319 | NG10: 0.002888460753 | NH10: 0.002968798624 | NI10: 0.003085531613 | NJ10: 0.002805689994 | NK10: 0.002806543443 | NL10: 0.003056519604 | NM10: 0.00304249173 | NN10: 0.002909541577 | NO10: 0.002771247617 | NP10: 0.002741376529 | NQ10: 0.003039475535 | NR10: 0.002771282976 | NS10: 0.002737688843 | NT10: 0.002842628056 | NU10: 0.002849523289 | NV10: 0.00298273167 | NW10: 0.002776263841 | NX10: 0.00291225465 | NY10: 0.003031819088 | NZ10: 0.002807261102 | OA10: 0.002996405304 | OB10: 0.002972906485 | OC10: 0.003093323773 | OD10: 0.002800343318 | OE10: 0.003097629055 | OF10: 0.00273167781 | OG10: 0.003092579514 | OH10: 0.002976972354 | OI10: 0.003076332069 | OJ10: 0.003093824053 | OK10: 0.002861947269 | OL10: 0.002960826951 | OM10: 0.002940405891 | ON10: 0.002768464806 | OO10: 0.003001852908 | OP10: 0.002787999894 | OQ10: 0.00302976539 | OR10: 0.002974486476 | OS10: 0.002830755414 | OT10: 0.003008915975 | OU10: 0.002806405112 | OV10: 0.002912153911 | OW10: 0.0030691378 | OX10: 0.003028463416 | OY10: 0.002704643378 | OZ10: 0.00296504344 | PA10: 0.003001228226 | PB10: 0.003052230274 | PC10: 0.002760127927 | PD10: 0.003044700856 | PE10: 0.002884771554 | PF10: 0.00288105279 | PG10: 0.002815147052 | PH10: 0.003072246882 | PI10: 0.003076198871 | PJ10: 0.002801187414 | PK10: 0.002988192319 | PL10: 0.00306606418 | PM10: 0.002752186998 | PN10: 0.00289534968 | PO10: 0.002922586474 | PP10: 0.003044279801 | PQ10: 0.003059492278 | PR10: 0.003003397436 | PS10: 0.002920473538 | PT10: 0.002798784867 | PU10: 0.003012154216 | PV10: 0.002890966198 | PW10: 0.002832070775 | PX10: 0.00299527441 | PY10: 0.0029248688 | PZ10: 0.002957185199 | QA10: 0.002758548626 | QB10: 0.002779890384 | QC10: 0.00309422093 | QD10: 0.002772302336 | QE10: 0.002793953676 | QF10: 0.002951894392 | QG10: 0.002933197587 | QH10: 0.003081325206 | QI10: 0.002961361187 | QJ10: 0.00293798002 | QK10: 0.00280849022 | QL10: 0.002859664575 | QM10: 0.003082764229 | QN10: 0.003065792185 | QO10: 0.002937790607 | QP10: 0.00305094194 | QQ10: 0.002959169586 | QR10: 0.002921808191 | QS10: 0.002744433701 | QT10: 0.002733077733 | QU10: 0.002736825536 | QV10: 0.002790563794 | QW10: 0.003070962541 | QX10: 0.003045409732 | QY10: 0.002883934206 | QZ10: 0.002795010983 | RA10: 0.002970720844 | RB10: 0.002800998709 | RC10: 0.00309112376 | RD10: 0.003036887255 | RE10: 0.00274989126 | RF10: 0.002993709531 | RG10: 0.002736425702 | RH10: 0.002819356029 | RI10: 0.002707094644 | RJ10: 0.003059335594 | RK10: 0.003031899167 | RL10: 0.002964605638 | RM10: 0.002967696579 | RN10: 0.002799189017 | RO10: 0.003002273051 | RP10: 0.002835840204 | RQ10: 0.002801754838 | RR10: 0.002928086713 | RS10: 0.002715754695 | RT10: 0.002748066458 | RU10: 0.00279891751 | RV10: 0.002737636557 | RW10: 0.002743055677 | RX10: 0.002876234118 | RY10: 0.002844989808 | RZ10: 0.002722416332 | SA10: 0.003089512724 | SB10: 0.002738787861 | SC10: 0.003007343078 | SD10: 0.002909753956 | SE10: 0.003086141835 | SF10: 0.003009698924 | SG10: 0.002952771372 | SH10: 0.003087186289 | SI10: 0.002992428614 | SJ10: 0.00282263437 | SK10: 0.003088163487 | SL10: 0.002731640045 | SM10: 0.002910420609 | SN10: 0.003038027434 | SO10: 0.003002310119 | SP10: 0.002738125097 | SQ10: 0.002794650383 | SR10: 0.002785083128 | SS10: 0.003035893537 | ST10: 0.00281235131 | SU10: 0.002950454433 | SV10: 0.002963637262 | SW10: 0.003059857647 | SX10: 0.002718146203 | SY10: 0.002770011558 | SZ10: 0.003078208832 | TA10: 0.002759944075 | TB10: 0.002779704703 | TC10: 0.002867716535 | TD10: 0.002831845788 | TE10: 0.002887312932 | TF10: 0.002796592962 | TG10: 0.002752177207 | TH10: 0.002883043137 | TI10: 0.002851940164 | TJ10: 0.00290033112 | TK10: 0.003088636477 | TL10: 0.002982104365 | TM10: 0.002864275685 | TN10: 0.002733490796 | TO10: 0.003006445108 | TP10: 0.00277985731 | TQ10: 0.002998985346 | TR10: 0.002746157181 | TS10: 0.003088721548 | TT10: 0.003009377362 | TU10: 0.003083562065 | TV10: 0.002933213131 | TW10: 0.002754008987 | TX10: 0.003066137264 | TY10: 0.003050734224 | TZ10: 0.002822091559 | UA10: 0.002898432833 | UB10: 0.002788013674 | UC10: 0.003093636251 | UD10: 0.002929620765 | UE10: 0.002811325744 | UF10: 0.002971235319 | UG10: 0.002858505781 | UH10: 0.002978459999 | UI10: 0.002700843335 | UJ10: 0.003023814077 | UK10: 0.002960544154 | UL10: 0.002901948185 | UM10: 0.003075226484 | UN10: 0.002728560138 | UO10: 0.002735873041 | UP10: 0.002740003526 | UQ10: 0.0030721734 | UR10: 0.002769512466 | US10: 0.003013388498 | UT10: 0.003035957657 | UU10: 0.002962306183 | UV10: 0.002982659775 | UW10: 0.00274516407 | UX10: 0.00282365732 | UY10: 0.002965059826 | UZ10: 0.002924447771 | VA10: 0.002942307948 | VB10: 0.002958476044 | VC10: 0.003091220903 | VD10: 0.00292488163 | VE10: 0.003073768473 | VF10: 0.002785532007 | VG10: 0.002959395499 | VH10: 0.003037557269 | VI10: 0.002762371064 | VJ10: 0.002757712427 | VK10: 0.00295994488 | VL10: 0.002805646673 | VM10: 0.002946823025 | VN10: 0.002874526005 | VO10: 0.002743287152 | VP10: 0.003071246109 | VQ10: 0.002978264634 | VR10: 0.002794243865 | VS10: 0.002776868022 | VT10: 0.002721821248 | VU10: 0.002939539417 | VV10: 0.002793800429 | VW10: 0.002837024447 | VX10: 0.002913111648 | VY10: 0.002990749494 | VZ10: 0.00280884342 | WA10: 0.003015216661 | WB10: 0.003074463848 | WC10: 0.002933731055 | WD10: 0.002889934162 | WE10: 0.003077044431 | WF10: 0.002848779236 | WG10: 0.002890349255 | WH10: 0.002966394087 | WI10: 0.002909105971 | WJ10: 0.002903067306 | WK10: 0.002886840236 | WL10: 0.002865097908 | WM10: 0.00278988305 | WN10: 0.002993507444 | WO10: 0.00290957246 | WP10: 0.002984588232 | WQ10: 0.00283106794 | WR10: 0.002885962468 | WS10: 0.00291603298 | WT10: 0.003047843601 | WU10: 0.002802784036 | WV10: 0.002875616886 | WW10: 0.002958386258 | WX10: 0.002895435213 | WY10: 0.002725165021 | WZ10: 0.003019892084 | XA10: 0.003003848603 | XB10: 0.003042315919 | XC10: 0.003025518252 | XD10: 0.003068866211 | XE10: 0.002741368478 | XF10: 0.002973045753 | XG10: 0.002862329936 | XH10: 0.002979607028 | XI10: 0.00299973448 | XJ10: 0.00301544416 | XK10: 0.002743677096 | XL10: 0.002827678807 | XM10: 0.002856930805 | XN10: 0.002956857465 | XO10: 0.00276117355 | XP10: 0.002874479821 | XQ10: 0.00283111983 | XR10: 0.003074977961 | XS10: 0.00294175752 | XT10: 0.003073806297 | XU10: 0.003078312451 | XV10: 0.002972413157 | XW10: 0.002838334396 | XX10: 0.002806918881 | XY10: 0.00307543355 | XZ10: 0.002744343057 | YA10: 0.002729133408 | YB10: 0.003024929642 | YC10: 0.003041499117 | YD10: 0.002969527041 | YE10: 0.003011942743 | YF10: 0.002854251068 | YG10: 0.002788265272 | YH10: 0.002791039952 | YI10: 0.002777472688 | YJ10: 0.002874587748 | YK10: 0.003005163937 | YL10: 0.002837308149 | YM10: 0.002926578638 | YN10: 0.002888927208 | YO10: 0.002845745894 | YP10: 0.002960324576 | YQ10: 0.003053884259 | YR10: 0.002748194827 | YS10: 0.003092666825 | YT10: 0.003019643903 | YU10: 0.002982061277 | YV10: 0.002934220552 | YW10: 0.002803849358 | YX10: 0.003066062981 | YY10: 0.002818115783 | YZ10: 0.002810931362 | ZA10: 0.002747289 | ZB10: 0.002963558919 | ZC10: 0.00270930014 | ZD10: 0.002796174211 | ZE10: 0.002768553058 | ZF10: 0.002810310569 | ZG10: 0.002822380388 | ZH10: 0.00291633797 | ZI10: 0.002782393134 | ZJ10: 0.002847969421 | ZK10: 0.002853574659 | ZL10: 0.002790935993 | ZM10: 0.002883388957 | ZN10: 0.003072578058 | ZO10: 0.002806182897 | ZP10: 0.003035235933 | ZQ10: 0.002859392085 | ZR10: 0.002989201614 | ZS10: 0.002941407363 | ZT10: 0.002854589952 | ZU10: 0.003068128065 | ZV10: 0.002799886871 | ZW10: 0.002862506486 | ZX10: 0.00292656283 | ZY10: 0.002851716779 | ZZ10: 0.002708906608 | AAA10: 0.002828008275 | AAB10: 0.002985878852 | AAC10: 0.003007422132 | AAD10: 0.003076444869 | AAE10: 0.002791867738 | AAF10: 0.002885305622 | AAG10: 0.002741013067 | AAH10: 0.002986369614 | AAI10: 0.00304825737 | AAJ10: 0.002975278737 | AAK10: 0.002817802691 | AAL10: 0.002911297612 | AAM10: 0.002909930928 | AAN10: 0.003015734144 | AAO10: 0.002886172391 | AAP10: 0.002829627576 | AAQ10: 0.003013566665 | AAR10: 0.002922412016 | AAS10: 0.003072211851 | AAT10: 0.002848546039 | AAU10: 0.002756701359 | AAV10: 0.003006651536 | AAW10: 0.002982526342 | AAX10: 0.003007422882 | AAY10: 0.002825839896 | AAZ10: 0.003071190698 | ABA10: 0.002861974755 | ABB10: 0.002914191633 | ABC10: 0.002919140188 | ABD10: 0.002777707789 | ABE10: 0.003025534208 | ABF10: 0.002730654824 | ABG10: 0.002769038635 | ABH10: 0.002873682791 | ABI10: 0.002992106689 | ABJ10: 0.002807512486 | ABK10: 0.002956063591 | ABL10: 0.002814150317 | ABM10: 0.002807426952 | ABN10: 0.002947147956 | ABO10: 0.002954069717 | ABP10: 0.002804743404 | ABQ10: 0.002870295702 | ABR10: 0.00286536686 | ABS10: 0.003092532854 | ABT10: 0.002988201099 | ABU10: 0.002705527443 | ABV10: 0.002780433373 | ABW10: 0.002732820225 | ABX10: 0.002972725356 | ABY10: 0.00276218996 | ABZ10: 0.003093379156 | ACA10: 0.00307600259 | ACB10: 0.00288902249 | ACC10: 0.002734239022 | ACD10: 0.002865871945 | ACE10: 0.002926673896 | ACF10: 0.002721967753 | ACG10: 0.002746380015 | ACH10: 0.002838645902 | ACI10: 0.002907241237 | ACJ10: 0.002940705594 | ACK10: 0.002999667028 | ACL10: 0.003013512581 | ACM10: 0.002955751502 | ACN10: 0.002708471802 | ACO10: 0.0027374543 | ACP10: 0.002896794825 | ACQ10: 0.003013531054 | ACR10: 0.002706913748 | ACS10: 0.003000302062 | ACT10: 0.002957339542 | ACU10: 0.002891325395 | ACV10: 0.002981077642 | ACW10: 0.002753107534 | ACX10: 0.003024933813 | ACY10: 0.003088527956 | ACZ10: 0.002821628322 | ADA10: 0.002960789284 | ADB10: 0.002804575446 | ADC10: 0.00292396968 | ADD10: 0.00308416314 | ADE10: 0.002777929544 | ADF10: 0.002788222191 | ADG10: 0.002962411804 | ADH10: 0.002812024668 | ADI10: 0.002702241141 | ADJ10: 0.002768961662 | ADK10: 0.002752056985 | ADL10: 0.00309800555 | ADM10: 0.002777390104 | ADN10: 0.003021664088 | ADO10: 0.00309218431 | ADP10: 0.002872090727 | ADQ10: 0.003031904934 | ADR10: 0.003045030367 | ADS10: 0.002911012897 | ADT10: 0.002741717246 | ADU10: 0.002758746955 | ADV10: 0.003041082468 | ADW10: 0.003083844715 | ADX10: 0.002905096886 | ADY10: 0.00274879149 | ADZ10: 0.002764415972 | AEA10: 0.002831839086 | AEB10: 0.002895706207 | AEC10: 0.003036913293 | AED10: 0.003005713007 | AEE10: 0.002801364418 | AEF10: 0.002945941533 | AEG10: 0.002796302163 | AEH10: 0.002974077578 | AEI10: 0.00284513547 | AEJ10: 0.002757265132 | AEK10: 0.002897603303 | AEL10: 0.00284524658 | AEM10: 0.002837395436 | AEN10: 0.00303491438 | AEO10: 0.003047348607 | AEP10: 0.002984414274 | AEQ10: 0.003059174371 | AER10: 0.002776317037 | AES10: 0.002861507428 | AET10: 0.002891869671 | AEU10: 0.002900244079 | AEV10: 0.002967766374 | AEW10: 0.002999267917 | AEX10: 0.002721504192 | AEY10: 0.002992134296 | AEZ10: 0.002881211077 | AFA10: 0.002964120283 | AFB10: 0.002836031696 | AFC10: 0.00309997606 | AFD10: 0.002831150409 | AFE10: 0.002969031174 | AFF10: 0.002806798934 | AFG10: 0.002782205148 | AFH10: 0.002958785517 | AFI10: 0.003068159804 | AFJ10: 0.002840819744 | AFK10: 0.003095028165 | AFL10: 0.002736805822 | AFM10: 0.002883791683 | AFN10: 0.00289969316 | AFO10: 0.002841783275 | AFP10: 0.002902590143 | AFQ10: 0.002844575655 | AFR10: 0.002757292965 | AFS10: 0.003056298816 | AFT10: 0.003029868862 | AFU10: 0.003016248538 | AFV10: 0.003051172686 | AFW10: 0.002740858969 | AFX10: 0.002922076962 | AFY10: 0.002721507368 | AFZ10: 0.002828702658 | AGA10: 0.002751807942 | AGB10: 0.002795362915 | AGC10: 0.002801961919 | AGD10: 0.002851458282 | AGE10: 0.00293027923 | AGF10: 0.002997413108 | AGG10: 0.002899105664 | AGH10: 0.002956473157 | AGI10: 0.003073400219 | AGJ10: 0.00300840545 | AGK10: 0.002865555566 | AGL10: 0.002987441507 | AGM10: 0.002867759348 | AGN10: 0.002777523814 | AGO10: 0.002766002076 | AGP10: 0.003030438321 | AGQ10: 0.003089375041 | AGR10: 0.002887532508 | AGS10: 0.003051232801 | AGT10: 0.003056016448 | AGU10: 0.003024466989 | AGV10: 0.002748430581 | AGW10: 0.002961601119 | AGX10: 0.003049314967 | AGY10: 0.003096226304 | AGZ10: 0.002953064353 | AHA10: 0.002735933698 | AHB10: 0.002989166784 | AHC10: 0.002916145683 | AHD10: 0.002722685443 | AHE10: 0.002943911259 | AHF10: 0.002832083116 | AHG10: 0.002829388882 | AHH10: 0.00282299819 | AHI10: 0.00294669864 | AHJ10: 0.002996726258 | AHK10: 0.002865016866 | AHL10: 0.003029011652 | AHM10: 0.002965726069 | AHN10: 0.002764891356 | AHO10: 0.003054752421 | AHP10: 0.002972736642 | AHQ10: 0.002771964477 | AHR10: 0.003029585142 | AHS10: 0.002894636014 | AHT10: 0.002893015333 | AHU10: 0.002742953521 | AHV10: 0.003081522601 | AHW10: 0.002745591864 | AHX10: 0.002802057847 | AHY10: 0.00299853919 | AHZ10: 0.002776217085 | AIA10: 0.002715135629 | AIB10: 0.003092908727 | AIC10: 0.002702718545 | AID10: 0.002904077995 | AIE10: 0.002840733348 | AIF10: 0.002874255301 | AIG10: 0.003022815865 | AIH10: 0.002833996879 | AII10: 0.002810656903 | AIJ10: 0.002876588803 | AIK10: 0.002995057501 | AIL10: 0.003094406166 | AIM10: 0.00299483833 | AIN10: 0.002817159611 | AIO10: 0.002849541802 | AIP10: 0.002887360343 | AIQ10: 0.00281988999 | AIR10: 0.002724827362 | AIS10: 0.002899395642 | AIT10: 0.002723601277 | AIU10: 0.002927479417 | AIV10: 0.003099664969 | AIW10: 0.00280167501 | AIX10: 0.003017331231 | AIY10: 0.002941691693 | AIZ10: 0.002729421888 | AJA10: 0.002794737237 | AJB10: 0.002977093746 | AJC10: 0.003031616117 | AJD10: 0.002866556822 | AJE10: 0.003097224201 | AJF10: 0.002704125145 | AJG10: 0.002928580509 | AJH10: 0.002948476886 | AJI10: 0.002829068881 | AJJ10: 0.002787703569 | AJK10: 0.002998478081 | AJL10: 0.002963739712 | AJM10: 0.002906534383 | AJN10: 0.002752257261 | AJO10: 0.002977279288 | AJP10: 0.002953278213 | AJQ10: 0.002990601873 | AJR10: 0.002701078869 | AJS10: 0.002867930358 | AJT10: 0.003038435825 | AJU10: 0.003046270787 | AJV10: 0.002789341588 | AJW10: 0.002880283501 | AJX10: 0.002750592493 | AJY10: 0.002973267613 | AJZ10: 0.002976451271 | AKA10: 0.002969564824 | AKB10: 0.002956284548 | AKC10: 0.002817750477 | AKD10: 0.003011106731 | AKE10: 0.00307854844 | AKF10: 0.002946263323 | AKG10: 0.002722011305 | AKH10: 0.002906165574 | AKI10: 0.002804176557 | AKJ10: 0.00304267053 | AKK10: 0.002755790455 | AKL10: 0.002747484864 | AKM10: 0.002883345683 | AKN10: 0.002846680199 | AKO10: 0.00298791377 | AKP10: 0.002932584361 | AKQ10: 0.003074116681 | AKR10: 0.00307963075 | AKS10: 0.003083274627 | AKT10: 0.002996543434 | AKU10: 0.002776649631 | AKV10: 0.002911201384 | AKW10: 0.003064341436 | AKX10: 0.002803840098 | AKY10: 0.003060810659 | AKZ10: 0.002969675267 | ALA10: 0.002893622278 | ALB10: 0.002820633351 | ALC10: 0.003052098526 | ALD10: 0.002849891063 | ALE10: 0.002790536393 | ALF10: 0.002752440599 | ALG10: 0.002784906382 | ALH10: 0.002980524905 | ALI10: 0.002981152979 | ALJ10: 0.002818882685 | ALK10: 0.002787311976 | ALL10: 0.002925925787 | ALM10: 0.002853937647 | ALN10: 0.002774509785 | ALO10: 0.003094452907 | ALP10: 0.002823249355 | ALQ10: 0.002956614986 | ALR10: 0.002801590328 | ALS10: 0.002846848835 | ALT10: 0.002955149579 | ALU10: 0.002940970648 | ALV10: 0.002837259097 | ALW10: 0.003083009682 | ALX10: 0.002985703168 | ALY10: 0.003081523181 | ALZ10: 0.002718134443 | AMA10: 0.003083524068 | AMB10: 0.002798285672 | AMC10: 0.002884042742 | AMD10: 0.002730992184 | AME10: 0.002969650444 | AMF10: 0.002851085823 | AMG10: 0.002856926173 | AMH10: 0.002710316985 | AMI10: 0.002918515003 | AML10: =IFERROR(AVERAGEIFS($X10:$AMI10,$X10:$AMI10,"<"&SMALL($X10:$AMI10,AMM$7),$X10:$AMI10,">"&SMALL($X10:$AMI10,AMK$7)),"") -> 0.002726400046 | AMM10: 0.002747516284 | AMN10: 0.002766654968 | AMO10: 0.002786220111 | AMP10: 0.002802977951 | AMQ10: 0.002820357345 | AMR10: 0.002840688354 | AMS10: 0.002861890629 | AMT10: 0.002883553015 | AMU10: 0.002903686754 | AMV10: 0.002923580553 | AMW10: 0.002944799026 | AMX10: 0.002963311169 | AMY10: 0.002979940382 | AMZ10: 0.002997659595 | ANA10: 0.003017062421 | ANB10: 0.003037965605 | ANC10: 0.00306034735 | AND10: 0.00308162233 | ANF10: =IFERROR(AVERAGEIFS($X$7:$AMI$7,$X10:$AMI10,"<"&SMALL($X10:$AMI10,AMM$7),$X10:$AMI10,">"&SMALL($X10:$AMI10,AMK$7)),"") -> -6005.405632 | ANG10: -6018.596172 | ANH10: -6010.084399 | ANI10: -6185.715744 | ANJ10: -6309.165661 | ANK10: -6040.951485 | ANL10: -5822.69486 | ANM10: -5642.108264 | ANN10: -5799.062414 | ANO10: -5935.240892 | ANP10: -5722.475511 | ANQ10: -5812.514744 | ANR10: -6057.274458 | ANS10: -5950.175796 | ANT10: -5976.536402 | ANU10: -6075.606714 | ANV10: -6041.458188 | ANW10: -6017.083576 | ANX10: -5729.377582 | ANY10: =IFERROR(MATCH(MIN(ABS(ANF10:ANX10)),ABS(ANF10:ANX10),0),"") -> 8 | ANZ10: =IFERROR(INDEX(ANF10:ANX10,MIN(MAX(ANY10-1,1),17)),"") -> -5822.69486 | AOA10: =IFERROR(INDEX(ANF10:ANX10,MIN(MAX(ANY10,2),18)),"") -> -5642.108264 | AOB10: =IFERROR(INDEX(ANF10:ANX10,MIN(MAX(ANY10,3),19)),"") -> -5642.108264 | AOC10: =IFERROR(INDEX(AML10:AND10,MIN(MAX(ANY10-1,1),17)),"") -> 0.002840688354 | AOD10: =IFERROR(INDEX(AML10:AND10,MIN(MAX(ANY10,2),18)),"") -> 0.002861890629 | AOE10: =IFERROR(INDEX(AML10:AND10,MIN(MAX(ANY10,3),19)),"") -> 0.002861890629 | AOF10: 0.003524318161
A11: =ROW(Variables[[#This Row],[Variable Name]])-ROW(Variables[[#Headers],[Variable Name]]) -> 3 | B11: Kwh per household per year | C11: Electricity | D11: =IF(COUNTA(Variables[[#This Row],[Lower Bound]], Variables[[#This Row],[Mode or P]], Variables[[#This Row],[Upper Bound]])=0, "", IF(Variables[[#This Row],[Shape]]="Constant",Variables[[#This Row],[Mode or P]],IF(Variables[[#This Row],[Shape]]="Lognorm",LOGINV(Variables[[#This Row],[Uniform PRNG]],((LN(Variables[[#This Row],[Lower Bound]]) + LN(Variables[[#This Row],[Upper Bound]]))/2),((LN(Variables[[#This Row],[Upper Bound]]) - LN(Variables[[#This Row],[Lower Bound]]))/3.28971)),IF(Variables[[#This Row],[Shape]]="Normal",NORMINV(Variables[[#This Row],[Uniform PRNG]],(Variables[[#This Row],[Upper Bound]]+Variables[[#This Row],[Lower Bound]])/2,(Variables[[#This Row],[Upper Bound]]-Variables[[#This Row],[Lower Bound]])/3.29),IF(Variables[[#This Row],[Shape]]="Uniform",(Variables[[#This Row],[Upper Bound]]-Variables[[#This Row],[Lower Bound]])*Variables[[#This Row],[Uniform PRNG]]+Variables[[#This Row],[Lower Bound]],IF(Variables[[#This Row],[Shape]]="Binary",IF(Variables[[#This Row],[Uniform PRNG]]<Variables[[#This Row],[Mode or P]],1,0),IF(Variables[[#This Row],[Shape]]="Triangular",IF(Variables[[#This Row],[Uniform PRNG]]<(Variables[[#This Row],[Mode or P]]-Variables[[#This Row],[Lower Bound]])/(Variables[[#This Row],[Upper Bound]]-Variables[[#This Row],[Lower Bound]]), 1, 0) * (Variables[[#This Row],[Lower Bound]] + SQRT(Variables[[#This Row],[Uniform PRNG]]*(Variables[[#This Row],[Upper Bound]]-Variables[[#This Row],[Lower Bound]])*(Variables[[#This Row],[Mode or P]]-Variables[[#This Row],[Lower Bound]]))) + IF(Variables[[#This Row],[Uniform PRNG]]>= (Variables[[#This Row],[Mode or P]]-Variables[[#This Row],[Lower Bound]])/(Variables[[#This Row],[Upper Bound]]-Variables[[#This Row],[Lower Bound]]), 1, 0) * (Variables[[#This Row],[Upper Bound]] - SQRT((1-Variables[[#This Row],[Uniform PRNG]]) * (Variables[[#This Row],[Upper Bound]] - Variables[[#This Row],[Lower Bound]]) * (Variables[[#This Row],[Upper Bound]] - Variables[[#This Row],[Mode or P]]))),""))))))) -> 10058.27501 | E11: Uniform | F11: 10000 | G11: 10972 | H11: 12000 | I11: US Energy Information Administration | J11: =IFERROR(IF(OR(MIN(Variables[[#This Row],[P(X<T)]], Variables[[#This Row],[P(X>T)]])<0.002,SIGN(Variables[[#This Row],[EOL(X<T)]])=SIGN(Variables[[#This Row],[EOL(X>T)]])),0,IFERROR(IF(B$50=1,IF(Variables[[#This Row],[EOL(X<T)]]<Variables[[#This Row],[EOL(X>T)]],-Variables[[#This Row],[EOL(X<T)]]*Variables[[#This Row],[P(X<T)]],-Variables[[#This Row],[EOL(X>T)]]*Variables[[#This Row],[P(X>T)]]),IF(Variables[[#This Row],[EOL(X<T)]]>Variables[[#This Row],[EOL(X>T)]],Variables[[#This Row],[EOL(X<T)]]*Variables[[#This Row],[P(X<T)]],Variables[[#This Row],[EOL(X>T)]]*Variables[[#This Row],[P(X>T)]])),"")),0) -> 0 | K11: =IF(Variables[[#This Row],[Shape]]="Constant",Variables[[#This Row],[Mode or P]],IF(Variables[[#This Row],[Shape]]="Lognorm",EXP((LN(Variables[[#This Row],[Upper Bound]])+LN(Variables[[#This Row],[Lower Bound]]))/2+((LN(Variables[[#This Row],[Upper Bound]])-LN(Variables[[#This Row],[Lower Bound]]))/3.29)^2/2),IF(Variables[[#This Row],[Shape]]="Normal",(Variables[[#This Row],[Lower Bound]]+Variables[[#This Row],[Upper Bound]])/2,IF(Variables[[#This Row],[Shape]]="Uniform",(Variables[[#This Row],[Lower Bound]]+Variables[[#This Row],[Upper Bound]])/2,IF(Variables[[#This Row],[Shape]]="Binary",Variables[[#This Row],[Mode or P]],IF(Variables[[#This Row],[Shape]]="Triangular",(Variables[[#This Row],[Lower Bound]]+Variables[[#This Row],[Mode or P]]+Variables[[#This Row],[Upper Bound]])/3,"")))))) -> 11000 | L11: =IF(Variables[[#This Row],[Shape]]="","",(MOD((MOD(MOD(999999999999989,MOD(ScenarioNum*2499997+Variables[[#This Row],[VarID]]*1800451,7450589)*4658+7450581)*383,99991)*231109+MOD(MOD(999999999999989,MOD(ScenarioNum*2246527+Variables[[#This Row],[VarID]]*2399993,7450987)*7580+7560584)*547,231109))*43271,4294967296)+0.5)/4294967296) -> 0.02913750673 | M11: =IF(Variables[[#This Row],[Shape]]="Binary", 1-Variables[[#This Row],[Mode or P]], IF(Variables[[#This Row],[Shape]]<>"",COUNTIF(INDEX($X$9:$AMI$164, ROW(Variables[[#This Row],[Variable Name]])-ROW(Variables[[#Headers],[Variable Name]]), ),"<"&Variables[[#This Row],[Threshold Estimate]])/1000,"")) -> 1 | N11: =IF(Variables[[#This Row],[Shape]]<>"",1-Variables[[#This Row],[P(X<T)]],"") -> 0 | O11: =IFERROR(AVERAGEIFS(X$7:AMI$7,INDEX(X$9:$AMI$164, ROW(Variables[[#This Row],[Variable Name]])-ROW(Variables[[#Headers],[Variable Name]]), ),IF(Variables[[#This Row],[Shape]]="Binary","=0","<"&Variables[[#This Row],[Threshold Estimate]])),"") -> -5936.888905 | P11: =IFERROR(AVERAGEIFS(X$7:AMI$7,INDEX($X$9:$AMI$164, ROW(Variables[[#This Row],[Variable Name]])-ROW(Variables[[#Headers],[Variable Name]]), ),IF(Variables[[#This Row],[Shape]]="Binary","=1",">"&Variables[[#This Row],[Threshold Estimate]])),"") ->  | Q11: =IFERROR(IF(Variables[[#This Row],[Shape]]="Binary",IF(B$50=1,IF(Variables[[#This Row],[EOL(X<T)]]<Variables[[#This Row],[EOL(X>T)]],0,1),IF(Variables[[#This Row],[EOL(X<T)]]<Variables[[#This Row],[EOL(X>T)]],1,0)), INDEX($AOF$9:$AOF$164, ROW(Variables[[#This Row],[Variable Name]])-ROW(Variables[[#Headers],[Variable Name]]))),"") -> 16568.69609 | V11: =IFERROR(IF(ISBLANK(Variables[[#This Row],[Variable Name]]), "", Variables[[#This Row],[Variable Name]]), "") -> Kwh per household per year | W11: =IFERROR(IF(ISBLANK(D11), "", D11), "") -> 10058.27501 | X11: 10319.3036 | Y11: 11088.76133 | Z11: 11773.3084 | AA11: 10748.18677 | AB11: 10491.11102 | AC11: 10757.50832 | AD11: 10111.55948 | AE11: 11791.22245 | AF11: 11919.02202 | AG11: 10058.27501 | AH11: 11450.71773 | AI11: 10143.9792 | AJ11: 11096.76473 | AK11: 11338.10279 | AL11: 11578.25816 | AM11: 10203.8258 | AN11: 10551.52038 | AO11: 10971.63958 | AP11: 11654.94359 | AQ11: 10974.33627 | AR11: 11287.9291 | AS11: 11438.9955 | AT11: 10615.12112 | AU11: 11223.13351 | AV11: 10834.87958 | AW11: 10384.51563 | AX11: 10364.26429 | AY11: 11505.27782 | AZ11: 11718.11542 | BA11: 11592.90523 | BB11: 10610.19235 | BC11: 11585.32054 | BD11: 10724.61077 | BE11: 10376.77282 | BF11: 11899.28197 | BG11: 11589.86846 | BH11: 10292.56308 | BI11: 11782.41618 | BJ11: 11383.81869 | BK11: 11972.97245 | BL11: 10033.66671 | BM11: 11009.34439 | BN11: 11962.45807 | BO11: 11880.62156 | BP11: 11616.07984 | BQ11: 10395.83613 | BR11: 10023.1011 | BS11: 11466.42986 | BT11: 11811.10324 | BU11: 10272.92506 | BV11: 10430.82659 | BW11: 10528.10495 | BX11: 11427.65959 | BY11: 10904.14573 | BZ11: 10022.2213 | CA11: 10592.61252 | CB11: 10353.92041 | CC11: 11408.46842 | CD11: 10564.72565 | CE11: 10208.86616 | CF11: 10735.82212 | CG11: 11633.54159 | CH11: 11982.6392 | CI11: 10951.40546 | CJ11: 11500.97128 | CK11: 11095.80672 | CL11: 11496.3054 | CM11: 10309.88971 | CN11: 10185.4003 | CO11: 10072.27051 | CP11: 11166.15491 | CQ11: 11396.4562 | CR11: 10521.43944 | CS11: 11258.6514 | CT11: 10024.6941 | CU11: 10271.89289 | CV11: 11759.48843 | CW11: 11665.30155 | CX11: 10376.89502 | CY11: 11628.67422 | CZ11: 10347.18366 | DA11: 11209.65586 | DB11: 10475.67089 | DC11: 10534.50119 | DD11: 11248.71849 | DE11: 10166.53252 | DF11: 10011.5763 | DG11: 11790.19739 | DH11: 10229.16621 | DI11: 11912.55443 | DJ11: 11629.7002 | DK11: 10939.19527 | DL11: 10578.76898 | DM11: 10062.15882 | DN11: 10997.56944 | DO11: 10045.65027 | DP11: 10277.53312 | DQ11: 11731.67388 | DR11: 11677.10174 | DS11: 11694.39431 | DT11: 11524.40397 | DU11: 11804.93756 | DV11: 11972.81853 | DW11: 10429.48112 | DX11: 11602.38539 | DY11: 10197.51052 | DZ11: 11741.84226 | EA11: 10286.24758 | EB11: 10721.34871 | EC11: 11024.77828 | ED11: 11837.45383 | EE11: 11837.02293 | EF11: 10557.26581 | EG11: 10586.27833 | EH11: 11029.69776 | EI11: 11004.38333 | EJ11: 10332.88761 | EK11: 10548.29276 | EL11: 11435.51162 | EM11: 11955.24862 | EN11: 10969.12606 | EO11: 11694.64432 | EP11: 11441.70122 | EQ11: 11604.94192 | ER11: 11214.98173 | ES11: 11682.66366 | ET11: 11984.58414 | EU11: 10909.65639 | EV11: 11258.14659 | EW11: 11934.59242 | EX11: 10074.2138 | EY11: 10894.75343 | EZ11: 11982.07842 | FA11: 10743.74448 | FB11: 11037.38895 | FC11: 10856.47079 | FD11: 10313.90624 | FE11: 10708.74042 | FF11: 11547.36937 | FG11: 10293.16387 | FH11: 10324.9518 | FI11: 11152.91376 | FJ11: 10464.23646 | FK11: 11647.39804 | FL11: 10957.57718 | FM11: 10383.80048 | FN11: 10570.29997 | FO11: 11172.36798 | FP11: 11027.49399 | FQ11: 10629.04105 | FR11: 11916.20306 | FS11: 10456.35265 | FT11: 11928.22383 | FU11: 11328.71157 | FV11: 11276.78757 | FW11: 10193.23137 | FX11: 11459.56701 | FY11: 11847.59973 | FZ11: 10846.31298 | GA11: 10757.14426 | GB11: 10108.29401 | GC11: 10355.91318 | GD11: 11985.4432 | GE11: 10035.3083 | GF11: 11865.03336 | GG11: 10523.14364 | GH11: 11487.2463 | GI11: 10596.06159 | GJ11: 11268.40143 | GK11: 11108.20899 | GL11: 10619.44337 | GM11: 11100.75079 | GN11: 10653.77032 | GO11: 10318.45923 | GP11: 11643.996 | GQ11: 10953.93968 | GR11: 11051.30928 | GS11: 10284.05077 | GT11: 10568.4753 | GU11: 11211.02003 | GV11: 10049.52998 | GW11: 11900.86757 | GX11: 11308.16922 | GY11: 11644.8109 | GZ11: 10133.30192 | HA11: 10136.6571 | HB11: 11377.12252 | HC11: 10815.28954 | HD11: 11421.92963 | HE11: 10954.26749 | HF11: 10993.08381 | HG11: 10282.15339 | HH11: 11404.31101 | HI11: 11100.42402 | HJ11: 10426.45494 | HK11: 11364.04893 | HL11: 10117.85513 | HM11: 11026.26172 | HN11: 10667.85084 | HO11: 10589.5519 | HP11: 11110.77729 | HQ11: 10480.59121 | HR11: 11875.49615 | HS11: 10215.51652 | HT11: 10496.69216 | HU11: 11778.87336 | HV11: 10840.41188 | HW11: 11301.49242 | HX11: 11839.77467 | HY11: 11775.44585 | HZ11: 10213.13305 | IA11: 10358.20819 | IB11: 10883.18194 | IC11: 10627.21581 | ID11: 11157.96262 | IE11: 11118.0637 | IF11: 11745.5375 | IG11: 11514.3636 | IH11: 11290.21908 | II11: 10334.7123 | IJ11: 10029.29265 | IK11: 10506.81829 | IL11: 10521.17579 | IM11: 11753.93182 | IN11: 11544.1832 | IO11: 11886.3883 | IP11: 10288.01377 | IQ11: 11893.87452 | IR11: 10773.35938 | IS11: 10310.97952 | IT11: 11011.93975 | IU11: 10575.85379 | IV11: 10170.62615 | IW11: 10701.30746 | IX11: 10902.71577 | IY11: 10859.98198 | IZ11: 10583.96836 | JA11: 10087.11468 | JB11: 11908.64998 | JC11: 10269.74096 | JD11: 11770.93402 | JE11: 11031.85423 | JF11: 10362.27746 | JG11: 10839.44553 | JH11: 11496.83176 | JI11: 10257.34232 | JJ11: 10766.10072 | JK11: 11760.0676 | JL11: 10186.23126 | JM11: 11447.08835 | JN11: 10538.42339 | JO11: 11022.33378 | JP11: 10020.72951 | JQ11: 11340.98702 | JR11: 10340.31694 | JS11: 11542.87818 | JT11: 11802.81283 | JU11: 11300.53923 | JV11: 11329.32524 | JW11: 10266.10927 | JX11: 10810.02635 | JY11: 11791.13516 | JZ11: 10431.76919 | KA11: 10773.07529 | KB11: 10452.59682 | KC11: 11604.05709 | KD11: 11169.09678 | KE11: 11956.00085 | KF11: 10454.27887 | KG11: 11790.23091 | KH11: 11940.02863 | KI11: 10674.32202 | KJ11: 10787.16619 | KK11: 10768.50218 | KL11: 10012.71047 | KM11: 10722.69426 | KN11: 10031.36114 | KO11: 11679.76207 | KP11: 11814.56185 | KQ11: 10716.09539 | KR11: 11371.78538 | KS11: 10883.31017 | KT11: 10822.63708 | KU11: 10728.51783 | KV11: 10343.65455 | KW11: 11431.9516 | KX11: 10131.64102 | KY11: 10372.52055 | KZ11: 11384.82898 | LA11: 11666.96677 | LB11: 10540.73492 | LC11: 10911.33212 | LD11: 10534.45455 | LE11: 10483.31153 | LF11: 11532.51372 | LG11: 10902.63277 | LH11: 10691.82599 | LI11: 10483.65194 | LJ11: 10350.63056 | LK11: 10364.72091 | LL11: 10045.91943 | LM11: 10478.57686 | LN11: 11320.36425 | LO11: 11707.73166 | LP11: 10456.92908 | LQ11: 11363.3051 | LR11: 10305.05977 | LS11: 10215.88531 | LT11: 11322.1841 | LU11: 10864.35093 | LV11: 10268.03543 | LW11: 11349.01469 | LX11: 11760.30711 | LY11: 11082.13271 | LZ11: 11556.14059 | MA11: 10258.28261 | MB11: 10963.48086 | MC11: 10455.89755 | MD11: 10648.99209 | ME11: 11431.98263 | MF11: 11543.05108 | MG11: 10132.51138 | MH11: 11023.25287 | MI11: 11013.43644 | MJ11: 11306.1615 | MK11: 10389.77314 | ML11: 11312.20786 | MM11: 10252.5858 | MN11: 11536.3689 | MO11: 10580.21091 | MP11: 10248.41858 | MQ11: 10072.636 | MR11: 11523.54393 | MS11: 11823.1757 | MT11: 11576.69704 | MU11: 11256.63524 | MV11: 11044.92817 | MW11: 11743.27361 | MX11: 11039.91081 | MY11: 10271.57874 | MZ11: 11424.53161 | NA11: 11235.47468 | NB11: 11170.78283 | NC11: 10823.25566 | ND11: 11333.68766 | NE11: 10870.02721 | NF11: 10073.4456 | NG11: 10992.87938 | NH11: 11442.97912 | NI11: 11854.46737 | NJ11: 11847.9288 | NK11: 11368.054 | NL11: 11597.64068 | NM11: 10194.8023 | NN11: 10233.47713 | NO11: 10926.09077 | NP11: 11132.48821 | NQ11: 11737.33353 | NR11: 11526.79266 | NS11: 10106.60032 | NT11: 10478.49534 | NU11: 10148.46204 | NV11: 11308.10475 | NW11: 10090.48326 | NX11: 11771.16689 | NY11: 11801.6343 | NZ11: 11451.7134 | OA11: 11576.52862 | OB11: 10121.82744 | OC11: 11851.72789 | OD11: 11593.32005 | OE11: 11674.04119 | OF11: 11460.91798 | OG11: 11999.98947 | OH11: 10330.76519 | OI11: 10439.35776 | OJ11: 10700.85008 | OK11: 10930.01908 | OL11: 11099.65716 | OM11: 10305.43626 | ON11: 10631.67909 | OO11: 10975.04101 | OP11: 10007.27103 | OQ11: 11127.40077 | OR11: 11964.7245 | OS11: 11922.9473 | OT11: 11877.16063 | OU11: 10568.04857 | OV11: 11060.9176 | OW11: 10301.27817 | OX11: 10941.11322 | OY11: 10907.03066 | OZ11: 11487.25403 | PA11: 10645.5101 | PB11: 10699.69929 | PC11: 10988.32918 | PD11: 10011.54506 | PE11: 10023.57905 | PF11: 11685.41638 | PG11: 10589.02026 | PH11: 11416.21621 | PI11: 11954.94473 | PJ11: 11308.77783 | PK11: 10052.52029 | PL11: 10809.97676 | PM11: 10566.67814 | PN11: 11848.4971 | PO11: 10336.01524 | PP11: 11385.8491 | PQ11: 11303.09505 | PR11: 10131.2024 | PS11: 11522.70834 | PT11: 10932.26605 | PU11: 11390.9114 | PV11: 10146.50837 | PW11: 10269.16253 | PX11: 11721.20454 | PY11: 10111.89459 | PZ11: 10414.28371 | QA11: 10923.15597 | QB11: 10353.82821 | QC11: 10651.71408 | QD11: 10378.13232 | QE11: 10031.88642 | QF11: 10039.15716 | QG11: 10153.63123 | QH11: 10563.48692 | QI11: 10454.49435 | QJ11: 11275.86124 | QK11: 11086.67579 | QL11: 11991.72034 | QM11: 10561.9828 | QN11: 10028.48527 | QO11: 11028.65193 | QP11: 11737.13711 | QQ11: 11013.59026 | QR11: 11343.79423 | QS11: 11389.8764 | QT11: 11815.61787 | QU11: 11507.42374 | QV11: 10740.83219 | QW11: 11476.19025 | QX11: 10549.53915 | QY11: 10850.93608 | QZ11: 11741.79098 | RA11: 10757.0582 | RB11: 10294.85272 | RC11: 10764.99456 | RD11: 10478.50163 | RE11: 11052.28874 | RF11: 11082.52872 | RG11: 11885.6886 | RH11: 10941.13238 | RI11: 10175.40891 | RJ11: 11150.12335 | RK11: 11606.13828 | RL11: 11475.50538 | RM11: 11358.3141 | RN11: 11292.64131 | RO11: 11809.24126 | RP11: 11994.91068 | RQ11: 10747.48111 | RR11: 10067.84544 | RS11: 10037.89873 | RT11: 10301.59253 | RU11: 10710.6068 | RV11: 10483.66006 | RW11: 11530.67436 | RX11: 10185.35255 | RY11: 11274.73163 | RZ11: 10984.69618 | SA11: 11172.78196 | SB11: 10700.28238 | SC11: 10578.17456 | SD11: 10282.50477 | SE11: 11551.43042 | SF11: 11131.39508 | SG11: 10633.8381 | SH11: 11866.39322 | SI11: 10762.79707 | SJ11: 11375.64179 | SK11: 10072.49523 | SL11: 11298.54295 | SM11: 11590.08718 | SN11: 11390.47989 | SO11: 10348.28377 | SP11: 10709.4822 | SQ11: 10900.60405 | SR11: 10909.20498 | SS11: 10977.25482 | ST11: 10875.36492 | SU11: 10707.74302 | SV11: 10324.6059 | SW11: 11701.25946 | SX11: 10828.05041 | SY11: 11530.96765 | SZ11: 10794.83961 | TA11: 11577.62081 | TB11: 11049.95388 | TC11: 11648.9516 | TD11: 10667.5303 | TE11: 11355.86015 | TF11: 11257.38452 | TG11: 10926.46916 | TH11: 11419.21326 | TI11: 10639.31028 | TJ11: 11062.61146 | TK11: 11026.84685 | TL11: 10305.18725 | TM11: 11049.89549 | TN11: 10609.09192 | TO11: 11042.45598 | TP11: 11133.75795 | TQ11: 11337.30964 | TR11: 10141.62338 | TS11: 11952.42547 | TT11: 11462.94068 | TU11: 10462.43066 | TV11: 11925.89536 | TW11: 11950.82481 | TX11: 11511.31927 | TY11: 10601.88684 | TZ11: 10707.67491 | UA11: 11258.42533 | UB11: 10146.3392 | UC11: 11634.77675 | UD11: 10671.13973 | UE11: 10324.84614 | UF11: 11963.68834 | UG11: 10739.79458 | UH11: 10809.4647 | UI11: 10872.95399 | UJ11: 11009.8114 | UK11: 10170.09786 | UL11: 10838.86888 | UM11: 11796.05585 | UN11: 10343.34495 | UO11: 10474.55661 | UP11: 11075.35739 | UQ11: 11296.97971 | UR11: 10143.23207 | US11: 11710.68175 | UT11: 11391.66563 | UU11: 11637.10912 | UV11: 10980.70785 | UW11: 10560.06452 | UX11: 11914.57274 | UY11: 10211.05941 | UZ11: 10040.06637 | VA11: 10168.95421 | VB11: 11108.07115 | VC11: 11707.05668 | VD11: 10999.36212 | VE11: 10404.92327 | VF11: 10717.61216 | VG11: 10708.78676 | VH11: 11504.39815 | VI11: 11566.32687 | VJ11: 11270.18938 | VK11: 10210.17101 | VL11: 10608.45445 | VM11: 10564.26851 | VN11: 11802.32567 | VO11: 10402.81732 | VP11: 10732.44607 | VQ11: 10843.80318 | VR11: 10959.17208 | VS11: 10910.54566 | VT11: 10369.60437 | VU11: 10059.0457 | VV11: 11413.74534 | VW11: 11290.21419 | VX11: 11112.97874 | VY11: 10736.60317 | VZ11: 10342.48008 | WA11: 11312.53098 | WB11: 10154.76705 | WC11: 11395.3547 | WD11: 11962.63121 | WE11: 10673.26899 | WF11: 10345.09482 | WG11: 10753.92852 | WH11: 11105.96205 | WI11: 11312.29974 | WJ11: 10597.31733 | WK11: 10356.18051 | WL11: 10223.06494 | WM11: 11232.41913 | WN11: 10333.51788 | WO11: 10408.41116 | WP11: 10842.60547 | WQ11: 11949.12287 | WR11: 10250.29068 | WS11: 11247.12956 | WT11: 11959.59122 | WU11: 11639.02527 | WV11: 10731.06254 | WW11: 11764.65786 | WX11: 10270.29937 | WY11: 10971.54892 | WZ11: 10398.37118 | XA11: 10832.5209 | XB11: 11816.79946 | XC11: 10982.23581 | XD11: 11541.93677 | XE11: 10375.15932 | XF11: 11630.98937 | XG11: 11733.43221 | XH11: 10728.23331 | XI11: 11129.92651 | XJ11: 10451.28559 | XK11: 10372.63516 | XL11: 10781.41196 | XM11: 10514.56556 | XN11: 11653.1152 | XO11: 11104.82344 | XP11: 10545.69174 | XQ11: 10825.31935 | XR11: 11479.64774 | XS11: 11814.77731 | XT11: 10871.83239 | XU11: 11740.49642 | XV11: 10053.78948 | XW11: 10803.18864 | XX11: 11296.35674 | XY11: 10608.67328 | XZ11: 10853.59892 | YA11: 11622.0138 | YB11: 11018.22456 | YC11: 10776.8372 | YD11: 10011.08692 | YE11: 10588.1013 | YF11: 10932.84934 | YG11: 11930.96181 | YH11: 10347.37363 | YI11: 11914.57042 | YJ11: 11098.9796 | YK11: 10610.99728 | YL11: 10032.44024 | YM11: 10843.9221 | YN11: 11958.46511 | YO11: 10636.21902 | YP11: 11845.61163 | YQ11: 11139.64347 | YR11: 11491.07608 | YS11: 10004.92125 | YT11: 10458.30438 | YU11: 11285.18137 | YV11: 10203.19104 | YW11: 11443.57565 | YX11: 11853.58187 | YY11: 11722.03082 | YZ11: 10096.95704 | ZA11: 11088.25501 | ZB11: 11836.68553 | ZC11: 10488.28619 | ZD11: 10907.75134 | ZE11: 10434.76966 | ZF11: 11929.41389 | ZG11: 10457.0034 | ZH11: 11470.61427 | ZI11: 11095.17108 | ZJ11: 11632.26139 | ZK11: 11781.29278 | ZL11: 11607.80892 | ZM11: 10985.32907 | ZN11: 11263.72834 | ZO11: 10633.75878 | ZP11: 11186.92363 | ZQ11: 11167.1203 | ZR11: 10090.68253 | ZS11: 11866.83117 | ZT11: 11978.47362 | ZU11: 11436.07715 | ZV11: 11271.22471 | ZW11: 11461.06786 | ZX11: 10936.2312 | ZY11: 11719.79219 | ZZ11: 10357.68642 | AAA11: 11438.4883 | AAB11: 11190.93857 | AAC11: 11466.51085 | AAD11: 10374.29979 | AAE11: 10724.98795 | AAF11: 10741.33158 | AAG11: 10322.86466 | AAH11: 10020.39473 | AAI11: 11702.58836 | AAJ11: 10362.37069 | AAK11: 11134.06744 | AAL11: 11396.40405 | AAM11: 10051.29176 | AAN11: 10220.28716 | AAO11: 11696.98784 | AAP11: 11543.45674 | AAQ11: 10859.485 | AAR11: 10605.23212 | AAS11: 11818.49636 | AAT11: 10830.3216 | AAU11: 10213.30568 | AAV11: 10905.5737 | AAW11: 11680.17088 | AAX11: 10327.35176 | AAY11: 10207.46747 | AAZ11: 10742.88482 | ABA11: 10838.76016 | ABB11: 11635.91467 | ABC11: 10767.09629 | ABD11: 10927.93708 | ABE11: 10532.23038 | ABF11: 10935.07588 | ABG11: 11842.93229 | ABH11: 11324.73943 | ABI11: 11580.33698 | ABJ11: 10925.66329 | ABK11: 10475.29792 | ABL11: 10778.56887 | ABM11: 10106.34622 | ABN11: 10422.2429 | ABO11: 10793.94237 | ABP11: 10929.91418 | ABQ11: 11971.16723 | ABR11: 11782.94973 | ABS11: 10519.48415 | ABT11: 11177.60811 | ABU11: 11566.5419 | ABV11: 10751.62436 | ABW11: 11016.65138 | ABX11: 11680.57143 | ABY11: 10607.85937 | ABZ11: 10385.60937 | ACA11: 11495.35967 | ACB11: 11752.5625 | ACC11: 10761.03123 | ACD11: 10263.20085 | ACE11: 11809.97663 | ACF11: 11443.68289 | ACG11: 11236.07384 | ACH11: 11241.71839 | ACI11: 11135.38248 | ACJ11: 11518.89579 | ACK11: 11318.83832 | ACL11: 10394.72193 | ACM11: 10484.82817 | ACN11: 11370.02086 | ACO11: 11302.24398 | ACP11: 10297.31416 | ACQ11: 10719.02801 | ACR11: 11108.314 | ACS11: 10786.39858 | ACT11: 10893.0057 | ACU11: 11401.865 | ACV11: 11031.09972 | ACW11: 11834.01025 | ACX11: 11637.63237 | ACY11: 11556.38921 | ACZ11: 10438.54959 | ADA11: 11710.14382 | ADB11: 10620.07568 | ADC11: 10433.53561 | ADD11: 10219.14189 | ADE11: 11044.38616 | ADF11: 10842.45599 | ADG11: 10157.47896 | ADH11: 11086.59623 | ADI11: 10892.17349 | ADJ11: 11208.56375 | ADK11: 11080.94139 | ADL11: 10671.31413 | ADM11: 11709.48637 | ADN11: 10453.57372 | ADO11: 11816.11787 | ADP11: 10962.20839 | ADQ11: 10697.7094 | ADR11: 10817.21755 | ADS11: 10355.65137 | ADT11: 10640.48275 | ADU11: 10510.17845 | ADV11: 11438.06073 | ADW11: 10838.6876 | ADX11: 10546.44323 | ADY11: 10025.48706 | ADZ11: 11487.07862 | AEA11: 11173.95477 | AEB11: 11813.47565 | AEC11: 10496.34903 | AED11: 10589.50507 | AEE11: 10747.49916 | AEF11: 10375.24282 | AEG11: 11140.40474 | AEH11: 10519.49687 | AEI11: 10808.58099 | AEJ11: 11122.26039 | AEK11: 10927.34985 | AEL11: 10447.64913 | AEM11: 10808.71062 | AEN11: 10118.50976 | AEO11: 11378.56189 | AEP11: 11810.24522 | AEQ11: 11890.34013 | AER11: 11331.95051 | AES11: 11975.91174 | AET11: 10775.71954 | AEU11: 10289.03719 | AEV11: 10115.1064 | AEW11: 11391.36996 | AEX11: 11796.04641 | AEY11: 11548.44426 | AEZ11: 10777.80183 | AFA11: 11240.67167 | AFB11: 11533.01454 | AFC11: 11142.08894 | AFD11: 10450.5886 | AFE11: 11704.01526 | AFF11: 11058.75428 | AFG11: 10421.27893 | AFH11: 10242.8312 | AFI11: 10290.86672 | AFJ11: 11543.9578 | AFK11: 11581.94933 | AFL11: 10753.90579 | AFM11: 10763.90237 | AFN11: 11968.23624 | AFO11: 11921.70242 | AFP11: 11997.29168 | AFQ11: 10589.8737 | AFR11: 11611.37749 | AFS11: 10430.2624 | AFT11: 10228.11841 | AFU11: 10646.94711 | AFV11: 11376.21561 | AFW11: 10644.98773 | AFX11: 11722.95674 | AFY11: 11456.79754 | AFZ11: 10892.32779 | AGA11: 11057.40211 | AGB11: 11331.5261 | AGC11: 11161.28069 | AGD11: 10689.82794 | AGE11: 10830.12684 | AGF11: 10760.20869 | AGG11: 11375.43197 | AGH11: 11440.91993 | AGI11: 10935.45074 | AGJ11: 10898.19655 | AGK11: 11895.81854 | AGL11: 10451.43192 | AGM11: 10102.64912 | AGN11: 11407.50283 | AGO11: 10203.68466 | AGP11: 10075.46203 | AGQ11: 10630.11609 | AGR11: 10006.27861 | AGS11: 10801.38663 | AGT11: 10437.17163 | AGU11: 11193.86694 | AGV11: 11646.50965 | AGW11: 10800.85846 | AGX11: 10848.6701 | AGY11: 10468.25007 | AGZ11: 11352.96585 | AHA11: 10905.20829 | AHB11: 11241.82118 | AHC11: 10910.6848 | AHD11: 11514.6423 | AHE11: 10785.81677 | AHF11: 10392.52593 | AHG11: 11786.67966 | AHH11: 11561.13439 | AHI11: 10576.33671 | AHJ11: 11518.83768 | AHK11: 10610.60347 | AHL11: 11771.01379 | AHM11: 10134.97539 | AHN11: 11627.99314 | AHO11: 11485.33221 | AHP11: 10573.65488 | AHQ11: 11558.17036 | AHR11: 10843.72445 | AHS11: 11689.55908 | AHT11: 11647.5127 | AHU11: 10688.64295 | AHV11: 10627.15853 | AHW11: 11661.93871 | AHX11: 11939.7346 | AHY11: 11927.21951 | AHZ11: 10465.45349 | AIA11: 10842.2806 | AIB11: 11123.31977 | AIC11: 11988.85122 | AID11: 10147.5284 | AIE11: 10236.41527 | AIF11: 11131.87432 | AIG11: 11920.8579 | AIH11: 10216.78278 | AII11: 10526.015 | AIJ11: 11845.60042 | AIK11: 10278.21506 | AIL11: 11274.81857 | AIM11: 11750.28816 | AIN11: 10145.91471 | AIO11: 10518.9136 | AIP11: 11355.94307 | AIQ11: 11652.29444 | AIR11: 11053.41915 | AIS11: 10484.24526 | AIT11: 11136.40655 | AIU11: 10153.05789 | AIV11: 11950.52527 | AIW11: 11950.81478 | AIX11: 11150.79352 | AIY11: 10886.20301 | AIZ11: 11642.73223 | AJA11: 11666.53182 | AJB11: 10588.43608 | AJC11: 10211.13555 | AJD11: 10135.01163 | AJE11: 11930.5162 | AJF11: 11054.26092 | AJG11: 11340.46434 | AJH11: 10023.20919 | AJI11: 11885.38893 | AJJ11: 11011.85633 | AJK11: 11196.4342 | AJL11: 11301.23423 | AJM11: 11966.34162 | AJN11: 10471.20602 | AJO11: 10839.58676 | AJP11: 11896.86636 | AJQ11: 11651.58295 | AJR11: 10637.04789 | AJS11: 10499.6571 | AJT11: 10261.51312 | AJU11: 11230.36478 | AJV11: 10696.52477 | AJW11: 10097.40616 | AJX11: 11391.48237 | AJY11: 11160.10138 | AJZ11: 10890.88344 | AKA11: 11764.92346 | AKB11: 11088.79753 | AKC11: 10151.76988 | AKD11: 10863.30027 | AKE11: 10406.36025 | AKF11: 10530.90537 | AKG11: 11924.92017 | AKH11: 10802.34036 | AKI11: 11209.59652 | AKJ11: 10345.04071 | AKK11: 10512.99892 | AKL11: 11076.76095 | AKM11: 11509.34139 | AKN11: 11322.39406 | AKO11: 11761.30095 | AKP11: 10192.54357 | AKQ11: 11848.81436 | AKR11: 11408.39337 | AKS11: 11682.22405 | AKT11: 10016.95202 | AKU11: 11608.5632 | AKV11: 11150.44073 | AKW11: 10695.57197 | AKX11: 11501.65477 | AKY11: 10349.92697 | AKZ11: 11569.69081 | ALA11: 10541.10068 | ALB11: 11030.99849 | ALC11: 11754.24927 | ALD11: 10834.71477 | ALE11: 10597.1582 | ALF11: 10842.35819 | ALG11: 10382.13649 | ALH11: 10774.21892 | ALI11: 10713.48079 | ALJ11: 10058.24939 | ALK11: 10334.17114 | ALL11: 10302.22473 | ALM11: 11496.72453 | ALN11: 10320.04764 | ALO11: 10479.12181 | ALP11: 11137.60287 | ALQ11: 11394.88483 | ALR11: 10167.06338 | ALS11: 11246.00133 | ALT11: 11570.52177 | ALU11: 11287.59477 | ALV11: 11738.64555 | ALW11: 10097.45027 | ALX11: 10303.41269 | ALY11: 10107.6103 | ALZ11: 10531.42201 | AMA11: 10740.06841 | AMB11: 11659.278 | AMC11: 10422.44913 | AMD11: 11761.11895 | AME11: 11467.64147 | AMF11: 10455.63016 | AMG11: 10683.33535 | AMH11: 11139.10515 | AMI11: 11956.98719 | AML11: 10100.96019 | AMM11: 10208.30213 | AMN11: 10305.46233 | AMO11: 10393.29818 | AMP11: 10484.95673 | AMQ11: 10576.03035 | AMR11: 10674.54341 | AMS11: 10769.19575 | AMT11: 10854.74816 | AMU11: 10950.70938 | AMV11: 11052.47522 | AMW11: 11163.26285 | AMX11: 11278.69942 | AMY11: 11382.38303 | AMZ11: 11482.75138 | ANA11: 11583.9953 | ANB11: 11688.08877 | ANC11: 11791.08957 | AND11: 11896.1818 | ANF11: -6506.685777 | ANG11: -6417.2224 | ANH11: -6511.154295 | ANI11: -6398.802636 | ANJ11: -5949.764694 | ANK11: -6140.639762 | ANL11: -6556.034498 | ANM11: -6548.06874 | ANN11: -6080.566453 | ANO11: -5739.588131 | ANP11: -5736.508255 | ANQ11: -5989.043437 | ANR11: -6156.708849 | ANS11: -5822.084284 | ANT11: -5602.225623 | ANU11: -5422.131601 | ANV11: -5187.523977 | ANW11: -5078.045977 | ANX11: -5093.101276 | ANY11: =IFERROR(MATCH(MIN(ABS(ANF11:ANX11)),ABS(ANF11:ANX11),0),"") -> 18 | ANZ11: =IFERROR(INDEX(ANF11:ANX11,MIN(MAX(ANY11-1,1),17)),"") -> -5187.523977 | AOA11: =IFERROR(INDEX(ANF11:ANX11,MIN(MAX(ANY11,2),18)),"") -> -5078.045977 | AOB11: =IFERROR(INDEX(ANF11:ANX11,MIN(MAX(ANY11,3),19)),"") -> -5078.045977 | AOC11: =IFERROR(INDEX(AML11:AND11,MIN(MAX(ANY11-1,1),17)),"") -> 11688.08877 | AOD11: =IFERROR(INDEX(AML11:AND11,MIN(MAX(ANY11,2),18)),"") -> 11791.08957 | AOE11: =IFERROR(INDEX(AML11:AND11,MIN(MAX(ANY11,3),19)),"") -> 11791.08957 | AOF11: 16568.69609
A12: =ROW(Variables[[#This Row],[Variable Name]])-ROW(Variables[[#Headers],[Variable Name]]) -> 4 | B12: Cost of PV Units | C12: PVUnits | D12: =IF(COUNTA(Variables[[#This Row],[Lower Bound]], Variables[[#This Row],[Mode or P]], Variables[[#This Row],[Upper Bound]])=0, "", IF(Variables[[#This Row],[Shape]]="Constant",Variables[[#This Row],[Mode or P]],IF(Variables[[#This Row],[Shape]]="Lognorm",LOGINV(Variables[[#This Row],[Uniform PRNG]],((LN(Variables[[#This Row],[Lower Bound]]) + LN(Variables[[#This Row],[Upper Bound]]))/2),((LN(Variables[[#This Row],[Upper Bound]]) - LN(Variables[[#This Row],[Lower Bound]]))/3.28971)),IF(Variables[[#This Row],[Shape]]="Normal",NORMINV(Variables[[#This Row],[Uniform PRNG]],(Variables[[#This Row],[Upper Bound]]+Variables[[#This Row],[Lower Bound]])/2,(Variables[[#This Row],[Upper Bound]]-Variables[[#This Row],[Lower Bound]])/3.29),IF(Variables[[#This Row],[Shape]]="Uniform",(Variables[[#This Row],[Upper Bound]]-Variables[[#This Row],[Lower Bound]])*Variables[[#This Row],[Uniform PRNG]]+Variables[[#This Row],[Lower Bound]],IF(Variables[[#This Row],[Shape]]="Binary",IF(Variables[[#This Row],[Uniform PRNG]]<Variables[[#This Row],[Mode or P]],1,0),IF(Variables[[#This Row],[Shape]]="Triangular",IF(Variables[[#This Row],[Uniform PRNG]]<(Variables[[#This Row],[Mode or P]]-Variables[[#This Row],[Lower Bound]])/(Variables[[#This Row],[Upper Bound]]-Variables[[#This Row],[Lower Bound]]), 1, 0) * (Variables[[#This Row],[Lower Bound]] + SQRT(Variables[[#This Row],[Uniform PRNG]]*(Variables[[#This Row],[Upper Bound]]-Variables[[#This Row],[Lower Bound]])*(Variables[[#This Row],[Mode or P]]-Variables[[#This Row],[Lower Bound]]))) + IF(Variables[[#This Row],[Uniform PRNG]]>= (Variables[[#This Row],[Mode or P]]-Variables[[#This Row],[Lower Bound]])/(Variables[[#This Row],[Upper Bound]]-Variables[[#This Row],[Lower Bound]]), 1, 0) * (Variables[[#This Row],[Upper Bound]] - SQRT((1-Variables[[#This Row],[Uniform PRNG]]) * (Variables[[#This Row],[Upper Bound]] - Variables[[#This Row],[Lower Bound]]) * (Variables[[#This Row],[Upper Bound]] - Variables[[#This Row],[Mode or P]]))),""))))))) -> 4170.018355 | E12: Uniform | F12: 4000 | H12: 8000 | I12: 30 kwh peak generation per day | J12: =IFERROR(IF(OR(MIN(Variables[[#This Row],[P(X<T)]], Variables[[#This Row],[P(X>T)]])<0.002,SIGN(Variables[[#This Row],[EOL(X<T)]])=SIGN(Variables[[#This Row],[EOL(X>T)]])),0,IFERROR(IF(B$50=1,IF(Variables[[#This Row],[EOL(X<T)]]<Variables[[#This Row],[EOL(X>T)]],-Variables[[#This Row],[EOL(X<T)]]*Variables[[#This Row],[P(X<T)]],-Variables[[#This Row],[EOL(X>T)]]*Variables[[#This Row],[P(X>T)]]),IF(Variables[[#This Row],[EOL(X<T)]]>Variables[[#This Row],[EOL(X>T)]],Variables[[#This Row],[EOL(X<T)]]*Variables[[#This Row],[P(X<T)]],Variables[[#This Row],[EOL(X>T)]]*Variables[[#This Row],[P(X>T)]])),"")),0) -> 0 | K12: =IF(Variables[[#This Row],[Shape]]="Constant",Variables[[#This Row],[Mode or P]],IF(Variables[[#This Row],[Shape]]="Lognorm",EXP((LN(Variables[[#This Row],[Upper Bound]])+LN(Variables[[#This Row],[Lower Bound]]))/2+((LN(Variables[[#This Row],[Upper Bound]])-LN(Variables[[#This Row],[Lower Bound]]))/3.29)^2/2),IF(Variables[[#This Row],[Shape]]="Normal",(Variables[[#This Row],[Lower Bound]]+Variables[[#This Row],[Upper Bound]])/2,IF(Variables[[#This Row],[Shape]]="Uniform",(Variables[[#This Row],[Lower Bound]]+Variables[[#This Row],[Upper Bound]])/2,IF(Variables[[#This Row],[Shape]]="Binary",Variables[[#This Row],[Mode or P]],IF(Variables[[#This Row],[Shape]]="Triangular",(Variables[[#This Row],[Lower Bound]]+Variables[[#This Row],[Mode or P]]+Variables[[#This Row],[Upper Bound]])/3,"")))))) -> 6000 | L12: =IF(Variables[[#This Row],[Shape]]="","",(MOD((MOD(MOD(999999999999989,MOD(ScenarioNum*2499997+Variables[[#This Row],[VarID]]*1800451,7450589)*4658+7450581)*383,99991)*231109+MOD(MOD(999999999999989,MOD(ScenarioNum*2246527+Variables[[#This Row],[VarID]]*2399993,7450987)*7580+7560584)*547,231109))*43271,4294967296)+0.5)/4294967296) -> 0.04250458872 | M12: =IF(Variables[[#This Row],[Shape]]="Binary", 1-Variables[[#This Row],[Mode or P]], IF(Variables[[#This Row],[Shape]]<>"",COUNTIF(INDEX($X$9:$AMI$164, ROW(Variables[[#This Row],[Variable Name]])-ROW(Variables[[#Headers],[Variable Name]]), ),"<"&Variables[[#This Row],[Threshold Estimate]])/1000,"")) -> 0 | N12: =IF(Variables[[#This Row],[Shape]]<>"",1-Variables[[#This Row],[P(X<T)]],"") -> 1 | O12: =IFERROR(AVERAGEIFS(X$7:AMI$7,INDEX(X$9:$AMI$164, ROW(Variables[[#This Row],[Variable Name]])-ROW(Variables[[#Headers],[Variable Name]]), ),IF(Variables[[#This Row],[Shape]]="Binary","=0","<"&Variables[[#This Row],[Threshold Estimate]])),"") ->  | P12: =IFERROR(AVERAGEIFS(X$7:AMI$7,INDEX($X$9:$AMI$164, ROW(Variables[[#This Row],[Variable Name]])-ROW(Variables[[#Headers],[Variable Name]]), ),IF(Variables[[#This Row],[Shape]]="Binary","=1",">"&Variables[[#This Row],[Threshold Estimate]])),"") -> -5936.888905 | Q12: =IFERROR(IF(Variables[[#This Row],[Shape]]="Binary",IF(B$50=1,IF(Variables[[#This Row],[EOL(X<T)]]<Variables[[#This Row],[EOL(X>T)]],0,1),IF(Variables[[#This Row],[EOL(X<T)]]<Variables[[#This Row],[EOL(X>T)]],1,0)), INDEX($AOF$9:$AOF$164, ROW(Variables[[#This Row],[Variable Name]])-ROW(Variables[[#Headers],[Variable Name]]))),"") -> 1479.816523 | V12: =IFERROR(IF(ISBLANK(Variables[[#This Row],[Variable Name]]), "", Variables[[#This Row],[Variable Name]]), "") -> Cost of PV Units | W12: =IFERROR(IF(ISBLANK(D12), "", D12), "") -> 4170.018355 | X12: 7618.343305 | Y12: 4968.062423 | Z12: 4334.775349 | AA12: 7404.991513 | AB12: 4224.327801 | AC12: 6517.231364 | AD12: 5429.291239 | AE12: 5288.322907 | AF12: 7437.246701 | AG12: 4170.018355 | AH12: 4156.724558 | AI12: 6810.854336 | AJ12: 4754.418246 | AK12: 5791.876878 | AL12: 5714.945809 | AM12: 5056.924512 | AN12: 4253.463599 | AO12: 6537.826239 | AP12: 6305.689136 | AQ12: 4222.809939 | AR12: 5633.050944 | AS12: 6421.535111 | AT12: 7614.720638 | AU12: 4856.660575 | AV12: 7058.49945 | AW12: 4344.073714 | AX12: 4691.387209 | AY12: 5006.145807 | AZ12: 5883.524225 | BA12: 6726.751224 | BB12: 5358.094324 | BC12: 4673.734058 | BD12: 4321.400701 | BE12: 4593.61486 | BF12: 6898.496128 | BG12: 6741.033074 | BH12: 7786.736764 | BI12: 4180.118701 | BJ12: 6962.359979 | BK12: 7868.945854 | BL12: 6702.778237 | BM12: 5593.358883 | BN12: 4572.851754 | BO12: 6219.69971 | BP12: 5553.091626 | BQ12: 5768.196294 | BR12: 4080.935792 | BS12: 7423.498326 | BT12: 5905.218589 | BU12: 7255.535108 | BV12: 6453.94695 | BW12: 6113.081656 | BX12: 4287.290889 | BY12: 4942.387713 | BZ12: 6080.828751 | CA12: 7984.241672 | CB12: 7986.203254 | CC12: 6201.316271 | CD12: 7855.127111 | CE12: 6842.177308 | CF12: 6729.507275 | CG12: 6936.872658 | CH12: 5356.915007 | CI12: 4014.399332 | CJ12: 5910.824536 | CK12: 7802.136692 | CL12: 7156.249551 | CM12: 5900.708257 | CN12: 6247.728947 | CO12: 6873.926753 | CP12: 7403.550388 | CQ12: 7018.809359 | CR12: 4788.057497 | CS12: 4250.929611 | CT12: 4547.571516 | CU12: 7595.456889 | CV12: 6772.736595 | CW12: 7125.74087 | CX12: 5747.274177 | CY12: 5294.308722 | CZ12: 7183.691504 | DA12: 7757.891416 | DB12: 5224.525623 | DC12: 6574.6353 | DD12: 5086.779708 | DE12: 6212.402913 | DF12: 6903.204507 | DG12: 5140.302522 | DH12: 5964.626293 | DI12: 6617.98854 | DJ12: 4019.42346 | DK12: 5487.490014 | DL12: 6373.799904 | DM12: 4749.438678 | DN12: 5698.783007 | DO12: 6803.903573 | DP12: 4109.631497 | DQ12: 5095.13715 | DR12: 5665.70558 | DS12: 5017.3252 | DT12: 5585.624982 | DU12: 5866.210459 | DV12: 7430.23593 | DW12: 5157.94908 | DX12: 4348.436006 | DY12: 5325.541331 | DZ12: 5944.184578 | EA12: 4793.824932 | EB12: 7586.308003 | EC12: 6207.542713 | ED12: 5884.379116 | EE12: 5941.516695 | EF12: 5138.228405 | EG12: 6282.066933 | EH12: 4262.76018 | EI12: 6346.427113 | EJ12: 5448.007386 | EK12: 4837.338302 | EL12: 6490.05407 | EM12: 7792.889059 | EN12: 6130.390851 | EO12: 5113.22117 | EP12: 6990.510041 | EQ12: 5118.088042 | ER12: 7210.171782 | ES12: 6353.930201 | ET12: 5920.740931 | EU12: 6066.863246 | EV12: 7206.105006 | EW12: 4436.623881 | EX12: 4527.332937 | EY12: 4394.972416 | EZ12: 5571.260456 | FA12: 5122.485562 | FB12: 7541.440613 | FC12: 7236.905843 | FD12: 6111.119782 | FE12: 6511.55977 | FF12: 7809.364237 | FG12: 7702.479257 | FH12: 6264.021005 | FI12: 4805.453163 | FJ12: 7760.844636 | FK12: 6855.272842 | FL12: 6839.03383 | FM12: 4533.042021 | FN12: 6310.310971 | FO12: 7027.888886 | FP12: 6199.748084 | FQ12: 4278.661184 | FR12: 4521.372258 | FS12: 6460.755738 | FT12: 5287.523474 | FU12: 5996.19306 | FV12: 7865.228757 | FW12: 5538.773388 | FX12: 5466.804781 | FY12: 4168.75197 | FZ12: 5533.601174 | GA12: 7446.217596 | GB12: 7492.76867 | GC12: 6356.901832 | GD12: 6087.814068 | GE12: 5900.932425 | GF12: 4930.905325 | GG12: 6836.548962 | GH12: 6885.29042 | GI12: 6547.579782 | GJ12: 5742.378057 | GK12: 5613.912606 | GL12: 6071.200234 | GM12: 5718.950782 | GN12: 6093.806087 | GO12: 7998.475168 | GP12: 7384.918643 | GQ12: 4945.709873 | GR12: 4680.124132 | GS12: 4882.615254 | GT12: 6489.591049 | GU12: 7832.365434 | GV12: 7574.439179 | GW12: 5886.257916 | GX12: 5509.644346 | GY12: 5445.878231 | GZ12: 6983.014095 | HA12: 7489.49032 | HB12: 7899.011799 | HC12: 6744.013217 | HD12: 7744.985737 | HE12: 4632.003393 | HF12: 5332.334966 | HG12: 7225.048633 | HH12: 4136.957847 | HI12: 6763.332014 | HJ12: 6547.822833 | HK12: 7711.1918 | HL12: 7990.954069 | HM12: 6240.574873 | HN12: 5713.620931 | HO12: 7215.618888 | HP12: 7312.105908 | HQ12: 4580.291049 | HR12: 7436.417229 | HS12: 5488.476293 | HT12: 5055.491643 | HU12: 7417.058414 | HV12: 7479.161612 | HW12: 5899.2261 | HX12: 7444.63315 | HY12: 7871.062814 | HZ12: 5613.24361 | IA12: 6871.224984 | IB12: 7083.562301 | IC12: 6011.103393 | ID12: 7475.531098 | IE12: 6079.338246 | IF12: 5940.141377 | IG12: 5298.2642 | IH12: 7965.182593 | II12: 7719.85139 | IJ12: 5981.450831 | IK12: 4076.501173 | IL12: 6596.894785 | IM12: 6530.472018 | IN12: 5385.51348 | IO12: 7527.517565 | IP12: 7223.083951 | IQ12: 6960.985798 | IR12: 5429.837678 | IS12: 4543.18038 | IT12: 5924.142575 | IU12: 5689.491302 | IV12: 5175.398008 | IW12: 7134.949812 | IX12: 4686.606783 | IY12: 7845.408069 | IZ12: 7752.778923 | JA12: 4713.715628 | JB12: 4999.138796 | JC12: 6298.396047 | JD12: 6896.409678 | JE12: 7825.090966 | JF12: 4513.537687 | JG12: 4896.472912 | JH12: 6554.30414 | JI12: 6498.667409 | JJ12: 7357.001527 | JK12: 7196.889692 | JL12: 5340.145247 | JM12: 6134.026618 | JN12: 4577.179432 | JO12: 7535.558506 | JP12: 5910.56112 | JQ12: 5503.747257 | JR12: 4698.035057 | JS12: 4012.015932 | JT12: 5268.019908 | JU12: 7650.469076 | JV12: 5568.8196 | JW12: 7486.200541 | JX12: 6999.629109 | JY12: 5124.963933 | JZ12: 7143.639183 | KA12: 6776.253283 | KB12: 5973.741544 | KC12: 5928.407642 | KD12: 5711.049702 | KE12: 4771.027891 | KF12: 6306.469533 | KG12: 5989.76324 | KH12: 6062.453004 | KI12: 5075.078778 | KJ12: 6179.250915 | KK12: 5065.770139 | KL12: 5054.889222 | KM12: 4395.323383 | KN12: 5300.924064 | KO12: 5283.402245 | KP12: 4950.258755 | KQ12: 5088.766099 | KR12: 6440.761541 | KS12: 5186.149359 | KT12: 4346.615979 | KU12: 4931.089599 | KV12: 4823.764561 | KW12: 7118.506196 | KX12: 4132.415713 | KY12: 5304.479576 | KZ12: 5557.231154 | LA12: 7446.370296 | LB12: 7624.151086 | LC12: 6083.604577 | LD12: 6658.125883 | LE12: 4647.811237 | LF12: 4970.291987 | LG12: 5627.910488 | LH12: 7937.472946 | LI12: 5359.606762 | LJ12: 4801.879994 | LK12: 7762.391915 | LL12: 7117.82637 | LM12: 5994.51796 | LN12: 7738.787031 | LO12: 7588.826221 | LP12: 4416.976603 | LQ12: 7030.948993 | LR12: 4471.316435 | LS12: 7691.398054 | LT12: 4540.261507 | LU12: 4215.112184 | LV12: 7023.03955 | LW12: 5841.607064 | LX12: 6914.503225 | LY12: 5866.034593 | LZ12: 7000.486675 | MA12: 7865.053725 | MB12: 7984.179518 | MC12: 7351.728702 | MD12: 4525.08968 | ME12: 7863.122444 | MF12: 6952.911325 | MG12: 7147.966475 | MH12: 5058.712516 | MI12: 5386.593997 | MJ12: 4701.763017 | MK12: 4162.263261 | ML12: 7347.9907 | MM12: 7668.333243 | MN12: 4421.517078 | MO12: 5159.393399 | MP12: 4081.931573 | MQ12: 4717.855216 | MR12: 4026.814086 | MS12: 4918.788039 | MT12: 6743.870447 | MU12: 5197.137705 | MV12: 6057.167249 | MW12: 7830.884005 | MX12: 6683.961632 | MY12: 6002.141884 | MZ12: 4588.052932 | NA12: 5338.035468 | NB12: 7024.245354 | NC12: 7102.297732 | ND12: 5544.574946 | NE12: 5690.540871 | NF12: 4264.937418 | NG12: 7586.621637 | NH12: 7827.54813 | NI12: 6755.813651 | NJ12: 7356.96761 | NK12: 7835.010006 | NL12: 5422.122864 | NM12: 6930.317617 | NN12: 5070.266447 | NO12: 4810.357236 | NP12: 4878.616236 | NQ12: 5724.04441 | NR12: 6301.623135 | NS12: 5857.100068 | NT12: 4344.759278 | NU12: 4083.571926 | NV12: 6346.105268 | NW12: 4931.835682 | NX12: 6237.596073 | NY12: 7112.040253 | NZ12: 4103.341539 | OA12: 7005.68158 | OB12: 6678.228694 | OC12: 6684.178294 | OD12: 4839.164655 | OE12: 5080.819611 | OF12: 6932.537708 | OG12: 6665.127962 | OH12: 7214.86646 | OI12: 5082.169117 | OJ12: 5710.126272 | OK12: 4704.333328 | OL12: 7508.399433 | OM12: 7892.105809 | ON12: 7570.992124 | OO12: 6585.118232 | OP12: 4580.120988 | OQ12: 4729.234002 | OR12: 4481.39788 | OS12: 5048.718367 | OT12: 6093.907132 | OU12: 5103.684457 | OV12: 5754.166361 | OW12: 4669.088586 | OX12: 5079.773455 | OY12: 5364.05518 | OZ12: 4311.540599 | PA12: 4746.214963 | PB12: 6973.110446 | PC12: 5892.167319 | PD12: 6326.052402 | PE12: 4381.126281 | PF12: 5504.511585 | PG12: 7297.71674 | PH12: 5028.840436 | PI12: 5707.717202 | PJ12: 6786.19377 | PK12: 7009.607976 | PL12: 7486.524712 | PM12: 6609.201753 | PN12: 4126.94041 | PO12: 4746.23073 | PP12: 5244.799263 | PQ12: 5494.642323 | PR12: 5211.740025 | PS12: 4717.894976 | PT12: 6965.828757 | PU12: 6944.399894 | PV12: 7759.25159 | PW12: 6718.868395 | PX12: 6728.896503 | PY12: 5945.648348 | PZ12: 6516.617362 | QA12: 7742.848058 | QB12: 6351.33377 | QC12: 6639.69097 | QD12: 7033.129829 | QE12: 7557.373371 | QF12: 6966.098806 | QG12: 5425.894501 | QH12: 6265.756074 | QI12: 5119.420633 | QJ12: 6290.555408 | QK12: 7316.705571 | QL12: 7535.566122 | QM12: 7764.024308 | QN12: 4023.135394 | QO12: 5191.093594 | QP12: 6502.573283 | QQ12: 7835.360527 | QR12: 4938.301949 | QS12: 4703.292628 | QT12: 7792.865933 | QU12: 7709.118753 | QV12: 7783.071984 | QW12: 4732.170155 | QX12: 6130.318025 | QY12: 4982.567468 | QZ12: 4672.36275 | RA12: 7236.078823 | RB12: 4506.138941 | RC12: 7335.167082 | RD12: 4771.156844 | RE12: 4342.040522 | RF12: 4634.989386 | RG12: 4594.708367 | RH12: 7489.236815 | RI12: 5083.472986 | RJ12: 7216.164633 | RK12: 6997.939498 | RL12: 5737.52881 | RM12: 4426.103174 | RN12: 7015.223494 | RO12: 5806.459463 | RP12: 6507.397811 | RQ12: 6299.63988 | RR12: 6323.49759 | RS12: 6022.32799 | RT12: 5431.622536 | RU12: 4248.374531 | RV12: 6089.608639 | RW12: 4127.590959 | RX12: 7420.364935 | RY12: 6621.448234 | RZ12: 7643.41123 | SA12: 4857.743054 | SB12: 5259.552923 | SC12: 6091.621154 | SD12: 5094.224001 | SE12: 7286.280497 | SF12: 7210.169757 | SG12: 5186.902713 | SH12: 5785.505134 | SI12: 6296.871082 | SJ12: 5049.091997 | SK12: 6756.239107 | SL12: 6243.368674 | SM12: 5042.999414 | SN12: 7701.540616 | SO12: 6314.445799 | SP12: 4707.502584 | SQ12: 7070.858602 | SR12: 7555.654932 | SS12: 5624.614133 | ST12: 6341.987396 | SU12: 4505.094997 | SV12: 4681.106013 | SW12: 5366.703508 | SX12: 6801.886744 | SY12: 5975.157938 | SZ12: 5959.822677 | TA12: 4691.318126 | TB12: 7220.6807 | TC12: 4898.928946 | TD12: 6920.434851 | TE12: 6559.717292 | TF12: 6563.554285 | TG12: 6878.70057 | TH12: 5949.132147 | TI12: 4414.953516 | TJ12: 4962.229169 | TK12: 7337.317497 | TL12: 6846.894021 | TM12: 7108.821745 | TN12: 7314.75173 | TO12: 4645.491413 | TP12: 4755.089629 | TQ12: 6238.66388 | TR12: 5701.976618 | TS12: 7806.506031 | TT12: 7001.337605 | TU12: 5873.575747 | TV12: 5367.191387 | TW12: 7171.817826 | TX12: 4936.478937 | TY12: 6442.970447 | TZ12: 5280.742779 | UA12: 6036.518156 | UB12: 6083.936443 | UC12: 5065.43718 | UD12: 6756.17568 | UE12: 4309.482955 | UF12: 6373.509249 | UG12: 4833.999808 | UH12: 7216.420698 | UI12: 7042.763548 | UJ12: 5009.645875 | UK12: 6564.628597 | UL12: 4107.97993 | UM12: 7491.585192 | UN12: 6311.433022 | UO12: 7762.339594 | UP12: 4582.788585 | UQ12: 7601.233085 | UR12: 6423.333337 | US12: 5877.843141 | UT12: 4958.3001 | UU12: 7931.25745 | UV12: 5385.928996 | UW12: 5196.301345 | UX12: 5701.385052 | UY12: 5478.393621 | UZ12: 7318.832371 | VA12: 4915.297888 | VB12: 5454.887864 | VC12: 7658.197054 | VD12: 4851.962021 | VE12: 4590.983838 | VF12: 4296.334485 | VG12: 5990.26275 | VH12: 7948.341386 | VI12: 5522.482038 | VJ12: 5861.801275 | VK12: 6953.7669 | VL12: 4791.701705 | VM12: 6290.551664 | VN12: 6806.671149 | VO12: 6443.719136 | VP12: 5698.006873 | VQ12: 4703.878845 | VR12: 4885.94737 | VS12: 7098.591633 | VT12: 7693.273901 | VU12: 7909.955892 | VV12: 7634.8388 | VW12: 7849.436431 | VX12: 5260.554999 | VY12: 7174.039578 | VZ12: 7670.24032 | WA12: 5576.108141 | WB12: 5363.616559 | WC12: 6139.293657 | WD12: 4503.098676 | WE12: 7748.231401 | WF12: 6369.324882 | WG12: 6425.270575 | WH12: 7123.960698 | WI12: 6581.730754 | WJ12: 7054.967689 | WK12: 4099.658736 | WL12: 4491.491262 | WM12: 5672.249124 | WN12: 6956.555604 | WO12: 7860.853104 | WP12: 7016.810476 | WQ12: 5480.369499 | WR12: 6068.525897 | WS12: 7187.109908 | WT12: 6983.419146 | WU12: 6888.684826 | WV12: 4965.272503 | WW12: 7297.212718 | WX12: 7241.247854 | WY12: 7464.25619 | WZ12: 7278.780126 | XA12: 7867.211654 | XB12: 7378.455644 | XC12: 4281.273882 | XD12: 5896.104642 | XE12: 5626.916493 | XF12: 7113.186826 | XG12: 4208.037856 | XH12: 4569.519789 | XI12: 5903.712464 | XJ12: 4515.541552 | XK12: 6162.690416 | XL12: 7999.277692 | XM12: 7612.184992 | XN12: 6199.051673 | XO12: 6589.000882 | XP12: 7122.212412 | XQ12: 5456.17384 | XR12: 6069.081094 | XS12: 4959.817349 | XT12: 4910.356586 | XU12: 6304.984042 | XV12: 7650.877864 | XW12: 4514.878916 | XX12: 4189.369117 | XY12: 6460.537694 | XZ12: 6911.365281 | YA12: 6331.685072 | YB12: 4707.710324 | YC12: 6654.5832 | YD12: 6876.716945 | YE12: 4085.691389 | YF12: 6459.578929 | YG12: 5986.498603 | YH12: 5036.82015 | YI12: 4879.174173 | YJ12: 6141.693596 | YK12: 5529.750886 | YL12: 4640.005457 | YM12: 4393.938924 | YN12: 7871.65542 | YO12: 4888.463169 | YP12: 4840.241886 | YQ12: 6394.831543 | YR12: 4897.712503 | YS12: 4253.747029 | YT12: 7357.423665 | YU12: 7979.55309 | YV12: 4500.375409 | YW12: 6220.477674 | YX12: 4269.996429 | YY12: 4775.240175 | YZ12: 7570.986396 | ZA12: 5987.000489 | ZB12: 6790.640788 | ZC12: 6662.442178 | ZD12: 5960.607068 | ZE12: 4153.375893 | ZF12: 5143.286369 | ZG12: 4505.833514 | ZH12: 6693.336097 | ZI12: 7042.67226 | ZJ12: 4706.251347 | ZK12: 6019.080361 | ZL12: 7795.498102 | ZM12: 5867.379507 | ZN12: 7349.439604 | ZO12: 4020.075871 | ZP12: 4802.913865 | ZQ12: 5117.904132 | ZR12: 6466.059645 | ZS12: 5056.509192 | ZT12: 6176.317341 | ZU12: 6092.789501 | ZV12: 5634.62891 | ZW12: 7455.488721 | ZX12: 4674.860204 | ZY12: 4858.08935 | ZZ12: 5560.497533 | AAA12: 6395.78549 | AAB12: 5803.417088 | AAC12: 6908.290543 | AAD12: 7781.369422 | AAE12: 6056.784465 | AAF12: 5436.054393 | AAG12: 7863.629967 | AAH12: 4783.329386 | AAI12: 5046.044237 | AAJ12: 5637.551737 | AAK12: 7134.358709 | AAL12: 6664.205214 | AAM12: 5716.070106 | AAN12: 7953.355887 | AAO12: 7347.949028 | AAP12: 7025.679216 | AAQ12: 6557.931847 | AAR12: 6920.36185 | AAS12: 4899.877156 | AAT12: 5623.39234 | AAU12: 6156.272864 | AAV12: 4811.769352 | AAW12: 5838.278994 | AAX12: 5174.544804 | AAY12: 7925.091916 | AAZ12: 7632.154491 | ABA12: 4461.627728 | ABB12: 6220.360409 | ABC12: 5573.768939 | ABD12: 4776.981048 | ABE12: 5815.473873 | ABF12: 5863.010308 | ABG12: 7626.818934 | ABH12: 4049.58109 | ABI12: 4968.523654 | ABJ12: 4361.589135 | ABK12: 5691.956671 | ABL12: 6290.466992 | ABM12: 7790.237161 | ABN12: 6145.845178 | ABO12: 6652.610043 | ABP12: 7072.114645 | ABQ12: 4984.80832 | ABR12: 4462.386004 | ABS12: 7112.443954 | ABT12: 5022.101921 | ABU12: 5174.749141 | ABV12: 4852.744082 | ABW12: 6412.693523 | ABX12: 6939.880738 | ABY12: 7619.401971 | ABZ12: 7049.906032 | ACA12: 7609.486754 | ACB12: 6797.690438 | ACC12: 5127.691091 | ACD12: 4489.75611 | ACE12: 6020.90989 | ACF12: 7250.722174 | ACG12: 7178.40859 | ACH12: 6929.318001 | ACI12: 6694.623559 | ACJ12: 5339.708449 | ACK12: 6850.458696 | ACL12: 4506.364779 | ACM12: 4561.99644 | ACN12: 4333.76006 | ACO12: 6134.044542 | ACP12: 4455.430357 | ACQ12: 4336.170252 | ACR12: 6490.137043 | ACS12: 4618.516594 | ACT12: 7905.913786 | ACU12: 6111.289718 | ACV12: 4066.861187 | ACW12: 7634.823381 | ACX12: 6339.151355 | ACY12: 6266.183274 | ACZ12: 6518.704635 | ADA12: 6138.366136 | ADB12: 7442.69602 | ADC12: 7807.27771 | ADD12: 5257.939496 | ADE12: 7081.681082 | ADF12: 7052.568046 | ADG12: 4432.112535 | ADH12: 7447.056371 | ADI12: 4877.426448 | ADJ12: 5746.918651 | ADK12: 7793.834089 | ADL12: 7547.354868 | ADM12: 5994.017352 | ADN12: 7629.082737 | ADO12: 5903.224457 | ADP12: 4063.568021 | ADQ12: 5771.752434 | ADR12: 5323.614842 | ADS12: 5487.722702 | ADT12: 7791.184231 | ADU12: 4941.948428 | ADV12: 5593.138659 | ADW12: 7435.371901 | ADX12: 7511.353186 | ADY12: 7455.546415 | ADZ12: 7919.022836 | AEA12: 4707.489276 | AEB12: 4091.289393 | AEC12: 6378.53833 | AED12: 4507.671366 | AEE12: 7078.92147 | AEF12: 5964.761526 | AEG12: 6638.755588 | AEH12: 6773.589297 | AEI12: 6897.70292 | AEJ12: 4387.284545 | AEK12: 6484.488171 | AEL12: 4104.41499 | AEM12: 5428.572354 | AEN12: 5620.78038 | AEO12: 4597.876318 | AEP12: 4142.741365 | AEQ12: 7668.211389 | AER12: 4803.585776 | AES12: 7170.463825 | AET12: 7733.774294 | AEU12: 5945.486921 | AEV12: 7748.915787 | AEW12: 6524.537877 | AEX12: 6833.058683 | AEY12: 5266.231491 | AEZ12: 7260.070518 | AFA12: 6297.604873 | AFB12: 4315.014273 | AFC12: 4257.073247 | AFD12: 4130.508558 | AFE12: 6208.458444 | AFF12: 7432.251029 | AFG12: 5233.946081 | AFH12: 7777.512945 | AFI12: 5576.158716 | AFJ12: 7616.729003 | AFK12: 6232.98964 | AFL12: 5776.009292 | AFM12: 6959.683612 | AFN12: 6522.904011 | AFO12: 5484.815368 | AFP12: 6340.233334 | AFQ12: 5678.833614 | AFR12: 4646.782887 | AFS12: 4153.089539 | AFT12: 4278.207275 | AFU12: 4319.925521 | AFV12: 7432.128962 | AFW12: 7594.822513 | AFX12: 6070.879284 | AFY12: 7027.207954 | AFZ12: 7941.098275 | AGA12: 4094.205947 | AGB12: 5892.626247 | AGC12: 7769.40609 | AGD12: 7543.317729 | AGE12: 4094.936301 | AGF12: 7510.864756 | AGG12: 7165.868869 | AGH12: 6090.604621 | AGI12: 7371.542406 | AGJ12: 4311.486192 | AGK12: 6399.917951 | AGL12: 6103.684244 | AGM12: 6100.069592 | AGN12: 5223.813828 | AGO12: 7309.92365 | AGP12: 4708.475958 | AGQ12: 6522.892937 | AGR12: 5659.098477 | AGS12: 6491.988542 | AGT12: 7879.798382 | AGU12: 7981.426719 | AGV12: 4958.967568 | AGW12: 6645.671052 | AGX12: 6677.354257 | AGY12: 4949.20613 | AGZ12: 4221.605731 | AHA12: 7064.95516 | AHB12: 6754.465658 | AHC12: 5925.700028 | AHD12: 5955.17616 | AHE12: 7228.728014 | AHF12: 7385.646984 | AHG12: 5185.864833 | AHH12: 5040.81155 | AHI12: 6499.369092 | AHJ12: 7889.646783 | AHK12: 6885.860254 | AHL12: 4040.689213 | AHM12: 6383.051154 | AHN12: 5163.615884 | AHO12: 6406.976096 | AHP12: 4551.121574 | AHQ12: 7943.161526 | AHR12: 6893.070683 | AHS12: 4611.421053 | AHT12: 7898.290705 | AHU12: 4146.399942 | AHV12: 7816.727303 | AHW12: 4119.578368 | AHX12: 7904.110878 | AHY12: 5730.671995 | AHZ12: 4917.07869 | AIA12: 7106.687711 | AIB12: 6552.910473 | AIC12: 5083.651367 | AID12: 4451.351405 | AIE12: 5341.549363 | AIF12: 4637.812447 | AIG12: 7736.110961 | AIH12: 6587.175252 | AII12: 4294.750938 | AIJ12: 7609.725485 | AIK12: 6636.651177 | AIL12: 5707.492905 | AIM12: 4374.30634 | AIN12: 5692.959345 | AIO12: 6280.448529 | AIP12: 6346.901674 | AIQ12: 4228.003303 | AIR12: 6769.373483 | AIS12: 6906.530327 | AIT12: 7859.468225 | AIU12: 4943.534483 | AIV12: 4713.296429 | AIW12: 6685.249166 | AIX12: 7690.752378 | AIY12: 4441.097545 | AIZ12: 7263.107382 | AJA12: 4116.634715 | AJB12: 5166.546716 | AJC12: 7820.012493 | AJD12: 4142.605109 | AJE12: 5160.808422 | AJF12: 6419.552814 | AJG12: 7252.710794 | AJH12: 6927.024882 | AJI12: 6407.315845 | AJJ12: 6159.500487 | AJK12: 6163.999791 | AJL12: 7375.243892 | AJM12: 6824.955451 | AJN12: 5431.968333 | AJO12: 7674.669543 | AJP12: 5334.737458 | AJQ12: 4300.506356 | AJR12: 6966.405244 | AJS12: 4481.222766 | AJT12: 5089.140495 | AJU12: 6432.945499 | AJV12: 5438.568638 | AJW12: 4794.546087 | AJX12: 6775.743626 | AJY12: 4485.384109 | AJZ12: 7384.74271 | AKA12: 6027.025253 | AKB12: 6955.399655 | AKC12: 5131.913802 | AKD12: 6190.849252 | AKE12: 7430.22853 | AKF12: 5921.457823 | AKG12: 4366.7729 | AKH12: 7217.470874 | AKI12: 7157.99844 | AKJ12: 7168.962215 | AKK12: 4329.155061 | AKL12: 7136.66396 | AKM12: 4029.886201 | AKN12: 6761.995983 | AKO12: 5793.070097 | AKP12: 6253.307155 | AKQ12: 6567.538495 | AKR12: 4172.580929 | AKS12: 4872.366615 | AKT12: 7741.395726 | AKU12: 4330.872446 | AKV12: 7353.735787 | AKW12: 5888.877621 | AKX12: 4226.077176 | AKY12: 4641.244219 | AKZ12: 4512.106589 | ALA12: 6961.130584 | ALB12: 7800.539696 | ALC12: 5992.686655 | ALD12: 5627.021786 | ALE12: 5886.521213 | ALF12: 6423.208256 | ALG12: 6188.015518 | ALH12: 4818.092366 | ALI12: 7642.408683 | ALJ12: 7088.36726 | ALK12: 6165.55436 | ALL12: 4203.53791 | ALM12: 6230.42978 | ALN12: 7111.180129 | ALO12: 5817.299382 | ALP12: 4147.005763 | ALQ12: 6421.532052 | ALR12: 6526.142055 | ALS12: 4474.358669 | ALT12: 7948.05517 | ALU12: 7118.347741 | ALV12: 7469.261474 | ALW12: 7738.350923 | ALX12: 6248.959071 | ALY12: 4856.023686 | ALZ12: 6991.86375 | AMA12: 4465.83921 | AMB12: 7825.738627 | AMC12: 6765.085987 | AMD12: 5421.764715 | AME12: 4794.376833 | AMF12: 4477.518183 | AMG12: 4217.32386 | AMH12: 5127.283777 | AMI12: 4401.025147 | AML12: 4223.198701 | AMM12: 4428.581792 | AMN12: 4631.152204 | AMO12: 4817.069984 | AMP12: 5001.23457 | AMQ12: 5202.206318 | AMR12: 5431.917305 | AMS12: 5671.357231 | AMT12: 5884.542381 | AMU12: 6069.727162 | AMV12: 6251.510558 | AMW12: 6441.021983 | AMX12: 6651.811432 | AMY12: 6857.368393 | AMZ12: 7036.166392 | ANA12: 7216.324813 | ANB12: 7424.527212 | ANC12: 7627.264898 | AND12: 7810.83275 | ANF12: -4153.088586 | ANG12: -4424.603487 | ANH12: -4765.826194 | ANI12: -4790.157332 | ANJ12: -4661.423203 | ANK12: -4987.047064 | ANL12: -5515.316057 | ANM12: -5834.454506 | ANN12: -5668.409217 | ANO12: -5917.541546 | ANP12: -6031.109087 | ANQ12: -6237.945431 | ANR12: -6584.160996 | ANS12: -6678.695841 | ANT12: -6938.991024 | ANU12: -7105.099296 | ANV12: -7154.218966 | ANW12: -7518.856361 | ANX12: -7837.966627 | ANY12: =IFERROR(MATCH(MIN(ABS(ANF12:ANX12)),ABS(ANF12:ANX12),0),"") -> 1 | ANZ12: =IFERROR(INDEX(ANF12:ANX12,MIN(MAX(ANY12-1,1),17)),"") -> -4153.088586 | AOA12: =IFERROR(INDEX(ANF12:ANX12,MIN(MAX(ANY12,2),18)),"") -> -4424.603487 | AOB12: =IFERROR(INDEX(ANF12:ANX12,MIN(MAX(ANY12,3),19)),"") -> -4765.826194 | AOC12: =IFERROR(INDEX(AML12:AND12,MIN(MAX(ANY12-1,1),17)),"") -> 4223.198701 | AOD12: =IFERROR(INDEX(AML12:AND12,MIN(MAX(ANY12,2),18)),"") -> 4428.581792 | AOE12: =IFERROR(INDEX(AML12:AND12,MIN(MAX(ANY12,3),19)),"") -> 4631.152204 | AOF12: 1479.816523
A13: =ROW(Variables[[#This Row],[Variable Name]])-ROW(Variables[[#Headers],[Variable Name]]) -> 5 | B13: Percent Change in the cost of PV Units per year | C13: PVCostTrend | D13: =IF(COUNTA(Variables[[#This Row],[Lower Bound]], Variables[[#This Row],[Mode or P]], Variables[[#This Row],[Upper Bound]])=0, "", IF(Variables[[#This Row],[Shape]]="Constant",Variables[[#This Row],[Mode or P]],IF(Variables[[#This Row],[Shape]]="Lognorm",LOGINV(Variables[[#This Row],[Uniform PRNG]],((LN(Variables[[#This Row],[Lower Bound]]) + LN(Variables[[#This Row],[Upper Bound]]))/2),((LN(Variables[[#This Row],[Upper Bound]]) - LN(Variables[[#This Row],[Lower Bound]]))/3.28971)),IF(Variables[[#This Row],[Shape]]="Normal",NORMINV(Variables[[#This Row],[Uniform PRNG]],(Variables[[#This Row],[Upper Bound]]+Variables[[#This Row],[Lower Bound]])/2,(Variables[[#This Row],[Upper Bound]]-Variables[[#This Row],[Lower Bound]])/3.29),IF(Variables[[#This Row],[Shape]]="Uniform",(Variables[[#This Row],[Upper Bound]]-Variables[[#This Row],[Lower Bound]])*Variables[[#This Row],[Uniform PRNG]]+Variables[[#This Row],[Lower Bound]],IF(Variables[[#This Row],[Shape]]="Binary",IF(Variables[[#This Row],[Uniform PRNG]]<Variables[[#This Row],[Mode or P]],1,0),IF(Variables[[#This Row],[Shape]]="Triangular",IF(Variables[[#This Row],[Uniform PRNG]]<(Variables[[#This Row],[Mode or P]]-Variables[[#This Row],[Lower Bound]])/(Variables[[#This Row],[Upper Bound]]-Variables[[#This Row],[Lower Bound]]), 1, 0) * (Variables[[#This Row],[Lower Bound]] + SQRT(Variables[[#This Row],[Uniform PRNG]]*(Variables[[#This Row],[Upper Bound]]-Variables[[#This Row],[Lower Bound]])*(Variables[[#This Row],[Mode or P]]-Variables[[#This Row],[Lower Bound]]))) + IF(Variables[[#This Row],[Uniform PRNG]]>= (Variables[[#This Row],[Mode or P]]-Variables[[#This Row],[Lower Bound]])/(Variables[[#This Row],[Upper Bound]]-Variables[[#This Row],[Lower Bound]]), 1, 0) * (Variables[[#This Row],[Upper Bound]] - SQRT((1-Variables[[#This Row],[Uniform PRNG]]) * (Variables[[#This Row],[Upper Bound]] - Variables[[#This Row],[Lower Bound]]) * (Variables[[#This Row],[Upper Bound]] - Variables[[#This Row],[Mode or P]]))),""))))))) -> -0.1034787157 | E13: Triangular | F13: -0.2 | G13: -0.1 | H13: -0.05 | I13: Four Peaks Technologies http://solarcellcentral.com/cost_page.html | J13: =IFERROR(IF(OR(MIN(Variables[[#This Row],[P(X<T)]], Variables[[#This Row],[P(X>T)]])<0.002,SIGN(Variables[[#This Row],[EOL(X<T)]])=SIGN(Variables[[#This Row],[EOL(X>T)]])),0,IFERROR(IF(B$50=1,IF(Variables[[#This Row],[EOL(X<T)]]<Variables[[#This Row],[EOL(X>T)]],-Variables[[#This Row],[EOL(X<T)]]*Variables[[#This Row],[P(X<T)]],-Variables[[#This Row],[EOL(X>T)]]*Variables[[#This Row],[P(X>T)]]),IF(Variables[[#This Row],[EOL(X<T)]]>Variables[[#This Row],[EOL(X>T)]],Variables[[#This Row],[EOL(X<T)]]*Variables[[#This Row],[P(X<T)]],Variables[[#This Row],[EOL(X>T)]]*Variables[[#This Row],[P(X>T)]])),"")),0) -> 0 | K13: =IF(Variables[[#This Row],[Shape]]="Constant",Variables[[#This Row],[Mode or P]],IF(Variables[[#This Row],[Shape]]="Lognorm",EXP((LN(Variables[[#This Row],[Upper Bound]])+LN(Variables[[#This Row],[Lower Bound]]))/2+((LN(Variables[[#This Row],[Upper Bound]])-LN(Variables[[#This Row],[Lower Bound]]))/3.29)^2/2),IF(Variables[[#This Row],[Shape]]="Normal",(Variables[[#This Row],[Lower Bound]]+Variables[[#This Row],[Upper Bound]])/2,IF(Variables[[#This Row],[Shape]]="Uniform",(Variables[[#This Row],[Lower Bound]]+Variables[[#This Row],[Upper Bound]])/2,IF(Variables[[#This Row],[Shape]]="Binary",Variables[[#This Row],[Mode or P]],IF(Variables[[#This Row],[Shape]]="Triangular",(Variables[[#This Row],[Lower Bound]]+Variables[[#This Row],[Mode or P]]+Variables[[#This Row],[Upper Bound]])/3,"")))))) -> -0.1166666667 | L13: =IF(Variables[[#This Row],[Shape]]="","",(MOD((MOD(MOD(999999999999989,MOD(ScenarioNum*2499997+Variables[[#This Row],[VarID]]*1800451,7450589)*4658+7450581)*383,99991)*231109+MOD(MOD(999999999999989,MOD(ScenarioNum*2246527+Variables[[#This Row],[VarID]]*2399993,7450987)*7580+7560584)*547,231109))*43271,4294967296)+0.5)/4294967296) -> 0.6210905554 | M13: =IF(Variables[[#This Row],[Shape]]="Binary", 1-Variables[[#This Row],[Mode or P]], IF(Variables[[#This Row],[Shape]]<>"",COUNTIF(INDEX($X$9:$AMI$164, ROW(Variables[[#This Row],[Variable Name]])-ROW(Variables[[#Headers],[Variable Name]]), ),"<"&Variables[[#This Row],[Threshold Estimate]])/1000,"")) -> 1 | N13: =IF(Variables[[#This Row],[Shape]]<>"",1-Variables[[#This Row],[P(X<T)]],"") -> 0 | O13: =IFERROR(AVERAGEIFS(X$7:AMI$7,INDEX(X$9:$AMI$164, ROW(Variables[[#This Row],[Variable Name]])-ROW(Variables[[#Headers],[Variable Name]]), ),IF(Variables[[#This Row],[Shape]]="Binary","=0","<"&Variables[[#This Row],[Threshold Estimate]])),"") -> -5936.888905 | P13: =IFERROR(AVERAGEIFS(X$7:AMI$7,INDEX($X$9:$AMI$164, ROW(Variables[[#This Row],[Variable Name]])-ROW(Variables[[#Headers],[Variable Name]]), ),IF(Variables[[#This Row],[Shape]]="Binary","=1",">"&Variables[[#This Row],[Threshold Estimate]])),"") ->  | Q13: =IFERROR(IF(Variables[[#This Row],[Shape]]="Binary",IF(B$50=1,IF(Variables[[#This Row],[EOL(X<T)]]<Variables[[#This Row],[EOL(X>T)]],0,1),IF(Variables[[#This Row],[EOL(X<T)]]<Variables[[#This Row],[EOL(X>T)]],1,0)), INDEX($AOF$9:$AOF$164, ROW(Variables[[#This Row],[Variable Name]])-ROW(Variables[[#Headers],[Variable Name]]))),"") -> -0.01614586047 | V13: =IFERROR(IF(ISBLANK(Variables[[#This Row],[Variable Name]]), "", Variables[[#This Row],[Variable Name]]), "") -> Percent Change in the cost of PV Units per year | W13: =IFERROR(IF(ISBLANK(D13), "", D13), "") -> -0.1034787157 | X13: -0.1014922456 | Y13: -0.1873436873 | Z13: -0.1161427923 | AA13: -0.1054656472 | AB13: -0.09504773102 | AC13: -0.07549158462 | AD13: -0.08984500353 | AE13: -0.06718687486 | AF13: -0.07148384222 | AG13: -0.1034787157 | AH13: -0.1360454174 | AI13: -0.1695188319 | AJ13: -0.1011347834 | AK13: -0.09850167397 | AL13: -0.147575561 | AM13: -0.1548781961 | AN13: -0.1352641513 | AO13: -0.1207949446 | AP13: -0.0940993274 | AQ13: -0.05803407918 | AR13: -0.09414491987 | AS13: -0.1719130719 | AT13: -0.07973445306 | AU13: -0.1566902344 | AV13: -0.1545678928 | AW13: -0.09376056893 | AX13: -0.1566848443 | AY13: -0.1149877617 | AZ13: -0.154525829 | BA13: -0.1025127286 | BB13: -0.08952478523 | BC13: -0.1089007374 | BD13: -0.0830069262 | BE13: -0.103254198 | BF13: -0.1515547681 | BG13: -0.09739657768 | BH13: -0.1075453631 | BI13: -0.1291047195 | BJ13: -0.07966864285 | BK13: -0.07302785435 | BL13: -0.1145200394 | BM13: -0.06774927059 | BN13: -0.1266624666 | BO13: -0.1057925211 | BP13: -0.09325402758 | BQ13: -0.06401474859 | BR13: -0.1342866017 | BS13: -0.08980276108 | BT13: -0.1292057036 | BU13: -0.1076220464 | BV13: -0.1401964342 | BW13: -0.1332812722 | BX13: -0.1441158985 | BY13: -0.1172032108 | BZ13: -0.0681344321 | CA13: -0.1523367143 | CB13: -0.1069758464 | CC13: -0.129661924 | CD13: -0.1144352029 | CE13: -0.105111784 | CF13: -0.1208898885 | CG13: -0.1816550028 | CH13: -0.1746155098 | CI13: -0.0817193024 | CJ13: -0.1607768194 | CK13: -0.1601829137 | CL13: -0.1686266283 | CM13: -0.1588307419 | CN13: -0.1111774745 | CO13: -0.1160048975 | CP13: -0.1129103079 | CQ13: -0.05788173299 | CR13: -0.1087999709 | CS13: -0.1101610783 | CT13: -0.1270719345 | CU13: -0.1054891068 | CV13: -0.1910910756 | CW13: -0.1001842638 | CX13: -0.1195931258 | CY13: -0.06850266754 | CZ13: -0.07228977192 | DA13: -0.1058047711 | DB13: -0.1183616605 | DC13: -0.08822067447 | DD13: -0.09199845193 | DE13: -0.09388974407 | DF13: -0.128966622 | DG13: -0.1424728593 | DH13: -0.1097134892 | DI13: -0.1339962664 | DJ13: -0.1067206654 | DK13: -0.1755133924 | DL13: -0.06381253053 | DM13: -0.1680791616 | DN13: -0.1377550143 | DO13: -0.13045677 | DP13: -0.08461725032 | DQ13: -0.150692035 | DR13: -0.1122199785 | DS13: -0.08312419257 | DT13: -0.144572319 | DU13: -0.07655240194 | DV13: -0.1243397002 | DW13: -0.13972845 | DX13: -0.09244123008 | DY13: -0.09297078894 | DZ13: -0.1437881717 | EA13: -0.09882170645 | EB13: -0.06798210954 | EC13: -0.07384100668 | ED13: -0.06108908784 | EE13: -0.09471511923 | EF13: -0.09566149509 | EG13: -0.131708076 | EH13: -0.1522572439 | EI13: -0.06584962796 | EJ13: -0.1443278835 | EK13: -0.1483444884 | EL13: -0.1210794087 | EM13: -0.1266639988 | EN13: -0.122761762 | EO13: -0.1306431274 | EP13: -0.07948411653 | EQ13: -0.1206194102 | ER13: -0.09261148675 | ES13: -0.07949961185 | ET13: -0.1835176496 | EU13: -0.09490649871 | EV13: -0.08276519214 | EW13: -0.09353882959 | EX13: -0.1383165918 | EY13: -0.1070154797 | EZ13: -0.1401612327 | FA13: -0.07180304404 | FB13: -0.1201609852 | FC13: -0.1193366994 | FD13: -0.06605166377 | FE13: -0.1294251972 | FF13: -0.1487802112 | FG13: -0.1423886322 | FH13: -0.1305207278 | FI13: -0.09753764573 | FJ13: -0.07634185851 | FK13: -0.157005938 | FL13: -0.131829516 | FM13: -0.1393080401 | FN13: -0.1116524561 | FO13: -0.187075351 | FP13: -0.1342759403 | FQ13: -0.1310565531 | FR13: -0.1497630074 | FS13: -0.1072031755 | FT13: -0.1394176649 | FU13: -0.1056581762 | FV13: -0.08152945727 | FW13: -0.1634108226 | FX13: -0.1839456218 | FY13: -0.1729065707 | FZ13: -0.1290203751 | GA13: -0.1061159759 | GB13: -0.1693139702 | GC13: -0.1105067313 | GD13: -0.1002192268 | GE13: -0.09868701311 | GF13: -0.09825437351 | GG13: -0.1323887965 | GH13: -0.1048338063 | GI13: -0.1087854563 | GJ13: -0.1201943945 | GK13: -0.07945526563 | GL13: -0.1042863529 | GM13: -0.05415405956 | GN13: -0.1568340481 | GO13: -0.1261931216 | GP13: -0.1069257595 | GQ13: -0.07062652309 | GR13: -0.1179486895 | GS13: -0.112260432 | GT13: -0.1229145278 | GU13: -0.09973973292 | GV13: -0.1261334819 | GW13: -0.1057901892 | GX13: -0.1681896386 | GY13: -0.1149585885 | GZ13: -0.09329550287 | HA13: -0.1186017695 | HB13: -0.08018198353 | HC13: -0.1553195945 | HD13: -0.1812542478 | HE13: -0.1651091898 | HF13: -0.1009234549 | HG13: -0.12620322 | HH13: -0.1543859099 | HI13: -0.0761323378 | HJ13: -0.07887671851 | HK13: -0.06374275862 | HL13: -0.1394933186 | HM13: -0.1214173127 | HN13: -0.1344435658 | HO13: -0.1526770554 | HP13: -0.1681840825 | HQ13: -0.1248281965 | HR13: -0.08716022875 | HS13: -0.06663567587 | HT13: -0.1142086948 | HU13: -0.1687280077 | HV13: -0.1271751528 | HW13: -0.1637946598 | HX13: -0.1361619142 | HY13: -0.136922066 | HZ13: -0.08833367772 | IA13: -0.1175501522 | IB13: -0.1088024418 | IC13: -0.08963908769 | ID13: -0.1691260483 | IE13: -0.1493817936 | IF13: -0.1087884966 | IG13: -0.1028094396 | IH13: -0.06195975704 | II13: -0.1221225982 | IJ13: -0.1029710297 | IK13: -0.09354454428 | IL13: -0.1042910787 | IM13: -0.1452064301 | IN13: -0.1748400555 | IO13: -0.07916876423 | IP13: -0.1781894497 | IQ13: -0.1146485949 | IR13: -0.1684171587 | IS13: -0.1251582644 | IT13: -0.1517826086 | IU13: -0.1032939523 | IV13: -0.1425888796 | IW13: -0.08478422198 | IX13: -0.06912442308 | IY13: -0.1309426166 | IZ13: -0.1246513177 | JA13: -0.1128301015 | JB13: -0.06532666191 | JC13: -0.09881703857 | JD13: -0.1078467414 | JE13: -0.08539522095 | JF13: -0.1286947269 | JG13: -0.1078140032 | JH13: -0.08884385233 | JI13: -0.08035730738 | JJ13: -0.08753746526 | JK13: -0.1026500164 | JL13: -0.1246598964 | JM13: -0.1354473657 | JN13: -0.09239607941 | JO13: -0.125569095 | JP13: -0.1115772003 | JQ13: -0.08863809425 | JR13: -0.11730338 | JS13: -0.0711240856 | JT13: -0.1912283875 | JU13: -0.1526688991 | JV13: -0.1591755509 | JW13: -0.1565248021 | JX13: -0.1021222897 | JY13: -0.1495622664 | JZ13: -0.08128742997 | KA13: -0.1601134476 | KB13: -0.1574530767 | KC13: -0.0975025546 | KD13: -0.06071041414 | KE13: -0.09790340921 | KF13: -0.1494148754 | KG13: -0.1365513798 | KH13: -0.09034704091 | KI13: -0.1135092916 | KJ13: -0.1313554173 | KK13: -0.1622684385 | KL13: -0.07746809605 | KM13: -0.0620713213 | KN13: -0.1047457537 | KO13: -0.1154449813 | KP13: -0.1086304124 | KQ13: -0.1183154493 | KR13: -0.1347876438 | KS13: -0.1478404395 | KT13: -0.1237327429 | KU13: -0.1232406757 | KV13: -0.127651184 | KW13: -0.1136871941 | KX13: -0.1903056019 | KY13: -0.1484201401 | KZ13: -0.1237871699 | LA13: -0.1319348634 | LB13: -0.1087688292 | LC13: -0.06408840797 | LD13: -0.1541595057 | LE13: -0.1786447637 | LF13: -0.1213422412 | LG13: -0.1038513147 | LH13: -0.1571279561 | LI13: -0.0980655742 | LJ13: -0.1334533979 | LK13: -0.1314207976 | LL13: -0.08767100348 | LM13: -0.08273166763 | LN13: -0.06984844632 | LO13: -0.1538539274 | LP13: -0.1203603884 | LQ13: -0.166679785 | LR13: -0.07179783622 | LS13: -0.0762944721 | LT13: -0.1036356884 | LU13: -0.09833719634 | LV13: -0.08300819097 | LW13: -0.1554572488 | LX13: -0.1019107695 | LY13: -0.1615142883 | LZ13: -0.1548819606 | MA13: -0.07620914435 | MB13: -0.1222929606 | MC13: -0.1227927573 | MD13: -0.1128505185 | ME13: -0.1516045648 | MF13: -0.09806872023 | MG13: -0.08723529287 | MH13: -0.1561286622 | MI13: -0.1172374111 | MJ13: -0.1777817283 | MK13: -0.1046534505 | ML13: -0.1135129194 | MM13: -0.08815929971 | MN13: -0.1100161584 | MO13: -0.1024797039 | MP13: -0.1239748374 | MQ13: -0.1323880948 | MR13: -0.1709616084 | MS13: -0.09693342082 | MT13: -0.0726966069 | MU13: -0.1333247099 | MV13: -0.06573971968 | MW13: -0.1689772731 | MX13: -0.09139077796 | MY13: -0.1228732216 | MZ13: -0.1121988849 | NA13: -0.1257934341 | NB13: -0.08365318583 | NC13: -0.1589972034 | ND13: -0.1125815491 | NE13: -0.14727016 | NF13: -0.1132012069 | NG13: -0.1108728087 | NH13: -0.1066029845 | NI13: -0.1314717768 | NJ13: -0.1525109139 | NK13: -0.1511757695 | NL13: -0.1073770445 | NM13: -0.08048645424 | NN13: -0.0945741757 | NO13: -0.1135329781 | NP13: -0.1179767108 | NQ13: -0.1065380894 | NR13: -0.1232413181 | NS13: -0.1804948165 | NT13: -0.09242973958 | NU13: -0.1481842503 | NV13: -0.1736661482 | NW13: -0.1318994554 | NX13: -0.08027251325 | NY13: -0.05604532298 | NZ13: -0.1683604739 | OA13: -0.1379804696 | OB13: -0.1052577549 | OC13: -0.1778740759 | OD13: -0.1554327976 | OE13: -0.1728538761 | OF13: -0.1637381274 | OG13: -0.1073030905 | OH13: -0.1151182221 | OI13: -0.09057576502 | OJ13: -0.1120235554 | OK13: -0.1613739793 | OL13: -0.06915010012 | OM13: -0.1696277937 | ON13: -0.09213640227 | OO13: -0.07887884006 | OP13: -0.1768504751 | OQ13: -0.05123881646 | OR13: -0.1231733739 | OS13: -0.08734042339 | OT13: -0.1083774386 | OU13: -0.1465278486 | OV13: -0.09335152761 | OW13: -0.09784661753 | OX13: -0.1149467202 | OY13: -0.09022181347 | OZ13: -0.109462827 | PA13: -0.152047904 | PB13: -0.155962191 | PC13: -0.1350667139 | PD13: -0.1543580372 | PE13: -0.155239459 | PF13: -0.1031520818 | PG13: -0.0986016713 | PH13: -0.08802819312 | PI13: -0.0978376347 | PJ13: -0.1123511486 | PK13: -0.1804343923 | PL13: -0.1468799216 | PM13: -0.08717998812 | PN13: -0.170866055 | PO13: -0.1354216894 | PP13: -0.09114281181 | PQ13: -0.06575513159 | PR13: -0.1215034306 | PS13: -0.09293323062 | PT13: -0.09855247838 | PU13: -0.06642177863 | PV13: -0.1498638105 | PW13: -0.1240808623 | PX13: -0.1048413718 | PY13: -0.1236569044 | PZ13: -0.07425585619 | QA13: -0.1109156644 | QB13: -0.1024122209 | QC13: -0.08641829223 | QD13: -0.09005110939 | QE13: -0.07872515484 | QF13: -0.1133238553 | QG13: -0.126538166 | QH13: -0.1360209267 | QI13: -0.1122897951 | QJ13: -0.111590448 | QK13: -0.1061127333 | QL13: -0.07849044865 | QM13: -0.1650515375 | QN13: -0.09321455737 | QO13: -0.1292260008 | QP13: -0.1260453121 | QQ13: -0.1623197544 | QR13: -0.1596584804 | QS13: -0.1837860506 | QT13: -0.1546799432 | QU13: -0.1113164582 | QV13: -0.07127303795 | QW13: -0.188176153 | QX13: -0.1177590851 | QY13: -0.1512053582 | QZ13: -0.1445590025 | RA13: -0.1048893336 | RB13: -0.117946192 | RC13: -0.1201647572 | RD13: -0.09773243268 | RE13: -0.09873613167 | RF13: -0.1604934902 | RG13: -0.1500327555 | RH13: -0.1534212163 | RI13: -0.08944897106 | RJ13: -0.06559216505 | RK13: -0.1630344239 | RL13: -0.06847674279 | RM13: -0.1131994033 | RN13: -0.1202438405 | RO13: -0.07488817753 | RP13: -0.09365637009 | RQ13: -0.08106973317 | RR13: -0.1428847039 | RS13: -0.1117048536 | RT13: -0.09694581238 | RU13: -0.08138622518 | RV13: -0.1758564752 | RW13: -0.08727164336 | RX13: -0.103935707 | RY13: -0.08760728 | RZ13: -0.1166986123 | SA13: -0.08362817801 | SB13: -0.1281186935 | SC13: -0.07319785557 | SD13: -0.09953285136 | SE13: -0.1125885656 | SF13: -0.1188472413 | SG13: -0.1203508852 | SH13: -0.1226998377 | SI13: -0.1441240271 | SJ13: -0.1075654513 | SK13: -0.1551903751 | SL13: -0.1673169631 | SM13: -0.1207421701 | SN13: -0.08420880167 | SO13: -0.07753818184 | SP13: -0.1411195539 | SQ13: -0.1094891358 | SR13: -0.1173805712 | SS13: -0.07694682342 | ST13: -0.1172287738 | SU13: -0.1260141315 | SV13: -0.09693976461 | SW13: -0.1399921529 | SX13: -0.1005540104 | SY13: -0.1342835624 | SZ13: -0.09383490983 | TA13: -0.1043902804 | TB13: -0.09599415254 | TC13: -0.1013974514 | TD13: -0.0553478923 | TE13: -0.1132062053 | TF13: -0.1266207336 | TG13: -0.13099439 | TH13: -0.1199782323 | TI13: -0.122664947 | TJ13: -0.0992634946 | TK13: -0.1590824854 | TL13: -0.1771911946 | TM13: -0.1469128318 | TN13: -0.1548721807 | TO13: -0.1118803999 | TP13: -0.09092996123 | TQ13: -0.09638473071 | TR13: -0.07422200734 | TS13: -0.08106439419 | TT13: -0.1157611145 | TU13: -0.07187406944 | TV13: -0.135670981 | TW13: -0.1026210064 | TX13: -0.1224160426 | TY13: -0.1056253792 | TZ13: -0.06079943126 | UA13: -0.07536091454 | UB13: -0.1729234336 | UC13: -0.1343671487 | UD13: -0.06083762724 | UE13: -0.1028007439 | UF13: -0.1406736224 | UG13: -0.1535716566 | UH13: -0.1218650085 | UI13: -0.1278405066 | UJ13: -0.08095000028 | UK13: -0.1276498445 | UL13: -0.09124046487 | UM13: -0.08094427098 | UN13: -0.06722737782 | UO13: -0.1218242721 | UP13: -0.0995987602 | UQ13: -0.100506095 | UR13: -0.1017554231 | US13: -0.1604310959 | UT13: -0.09588408759 | UU13: -0.1325361402 | UV13: -0.07171697324 | UW13: -0.09427423115 | UX13: -0.1679662119 | UY13: -0.09204111329 | UZ13: -0.09588316711 | VA13: -0.0972076427 | VB13: -0.1175341479 | VC13: -0.1798805973 | VD13: -0.1542559772 | VE13: -0.1820400834 | VF13: -0.07238241151 | VG13: -0.1130364196 | VH13: -0.1292599162 | VI13: -0.1183453385 | VJ13: -0.1519545686 | VK13: -0.07163364022 | VL13: -0.1599802599 | VM13: -0.17205796 | VN13: -0.1721244395 | VO13: -0.1692199264 | VP13: -0.1369572613 | VQ13: -0.1732031259 | VR13: -0.1370269171 | VS13: -0.1840080411 | VT13: -0.1375783422 | VU13: -0.1352180324 | VV13: -0.1527562375 | VW13: -0.1602669608 | VX13: -0.157632276 | VY13: -0.145002645 | VZ13: -0.1459878524 | WA13: -0.1081526512 | WB13: -0.06415176716 | WC13: -0.08442023787 | WD13: -0.09902288759 | WE13: -0.1191526891 | WF13: -0.08079218121 | WG13: -0.1074626252 | WH13: -0.1060717255 | WI13: -0.1892531382 | WJ13: -0.1498482042 | WK13: -0.06156974773 | WL13: -0.1739166043 | WM13: -0.08183878535 | WN13: -0.13339715 | WO13: -0.08921347226 | WP13: -0.1278491366 | WQ13: -0.07208604332 | WR13: -0.1829464251 | WS13: -0.117413214 | WT13: -0.1478349925 | WU13: -0.1640667614 | WV13: -0.09821049733 | WW13: -0.143982249 | WX13: -0.1343831149 | WY13: -0.1658270296 | WZ13: -0.09559347717 | XA13: -0.11068553 | XB13: -0.09688758649 | XC13: -0.1286955277 | XD13: -0.1299435493 | XE13: -0.1204217797 | XF13: -0.07427727388 | XG13: -0.08151370961 | XH13: -0.1576526864 | XI13: -0.1745824565 | XJ13: -0.0715033124 | XK13: -0.1278291065 | XL13: -0.1008989065 | XM13: -0.132517479 | XN13: -0.1007882133 | XO13: -0.08906233487 | XP13: -0.148983572 | XQ13: -0.1062114072 | XR13: -0.09363889508 | XS13: -0.1157041393 | XT13: -0.111743715 | XU13: -0.1092913355 | XV13: -0.0789785775 | XW13: -0.07617270928 | XX13: -0.08781161238 | XY13: -0.1565248753 | XZ13: -0.1178962848 | YA13: -0.06960653475 | YB13: -0.1603472352 | YC13: -0.1056678874 | YD13: -0.1517740478 | YE13: -0.09465093822 | YF13: -0.07236822121 | YG13: -0.1635083862 | YH13: -0.1001199986 | YI13: -0.05780449892 | YJ13: -0.1208010747 | YK13: -0.08253739328 | YL13: -0.1781538909 | YM13: -0.09183156365 | YN13: -0.06321789448 | YO13: -0.1115536389 | YP13: -0.09631915532 | YQ13: -0.06786715665 | YR13: -0.09919916897 | YS13: -0.1051284677 | YT13: -0.1586625008 | YU13: -0.1051749126 | YV13: -0.1582124769 | YW13: -0.1131329392 | YX13: -0.07460546773 | YY13: -0.1175592649 | YZ13: -0.1156006163 | ZA13: -0.0781374568 | ZB13: -0.1158947875 | ZC13: -0.1051408821 | ZD13: -0.111230782 | ZE13: -0.1407622181 | ZF13: -0.08702504097 | ZG13: -0.08110818788 | ZH13: -0.1019118454 | ZI13: -0.0916478785 | ZJ13: -0.07464626939 | ZK13: -0.1301818086 | ZL13: -0.149769725 | ZM13: -0.08910665811 | ZN13: -0.1148339777 | ZO13: -0.1169715836 | ZP13: -0.08193442568 | ZQ13: -0.1119664926 | ZR13: -0.1343390433 | ZS13: -0.1845626003 | ZT13: -0.07543227059 | ZU13: -0.07141477248 | ZV13: -0.1306926831 | ZW13: -0.07830730629 | ZX13: -0.10854735 | ZY13: -0.1124802194 | ZZ13: -0.1437089484 | AAA13: -0.1148974889 | AAB13: -0.1096845701 | AAC13: -0.08542844176 | AAD13: -0.1197429762 | AAE13: -0.1215964143 | AAF13: -0.0973933605 | AAG13: -0.1241818955 | AAH13: -0.08616226264 | AAI13: -0.1059882775 | AAJ13: -0.1268451866 | AAK13: -0.1016317841 | AAL13: -0.1453086718 | AAM13: -0.07541854771 | AAN13: -0.1032506508 | AAO13: -0.09140945493 | AAP13: -0.1414900521 | AAQ13: -0.1158469125 | AAR13: -0.09208588251 | AAS13: -0.08051255227 | AAT13: -0.07416944772 | AAU13: -0.1236401542 | AAV13: -0.1429571699 | AAW13: -0.08988605686 | AAX13: -0.1957147768 | AAY13: -0.1059423326 | AAZ13: -0.1153939631 | ABA13: -0.109036501 | ABB13: -0.08942540134 | ABC13: -0.1122347819 | ABD13: -0.1399250331 | ABE13: -0.138424738 | ABF13: -0.07235634181 | ABG13: -0.1430730619 | ABH13: -0.1382180965 | ABI13: -0.1479807226 | ABJ13: -0.09177597919 | ABK13: -0.1516028837 | ABL13: -0.1056151602 | ABM13: -0.08926770408 | ABN13: -0.1392435159 | ABO13: -0.08136936573 | ABP13: -0.1443260205 | ABQ13: -0.08943727911 | ABR13: -0.1803529525 | ABS13: -0.137159544 | ABT13: -0.1467369528 | ABU13: -0.1303198066 | ABV13: -0.06041017541 | ABW13: -0.07062458548 | ABX13: -0.1082155106 | ABY13: -0.1361778811 | ABZ13: -0.06799694347 | ACA13: -0.07375115629 | ACB13: -0.1288888974 | ACC13: -0.08460289052 | ACD13: -0.08061227737 | ACE13: -0.1152151285 | ACF13: -0.1037059998 | ACG13: -0.08243703814 | ACH13: -0.1442171292 | ACI13: -0.1398301582 | ACJ13: -0.1012427749 | ACK13: -0.1229415875 | ACL13: -0.1398978881 | ACM13: -0.1078236647 | ACN13: -0.07074006798 | ACO13: -0.1465938209 | ACP13: -0.08249348437 | ACQ13: -0.09662111927 | ACR13: -0.08428617303 | ACS13: -0.1408661314 | ACT13: -0.1444823367 | ACU13: -0.07624573184 | ACV13: -0.09986545244 | ACW13: -0.1306859112 | ACX13: -0.1267792792 | ACY13: -0.1335130676 | ACZ13: -0.1053067073 | ADA13: -0.07175492298 | ADB13: -0.1566907707 | ADC13: -0.1149760304 | ADD13: -0.1095439625 | ADE13: -0.133984752 | ADF13: -0.1482891286 | ADG13: -0.08691486513 | ADH13: -0.07661568726 | ADI13: -0.1102115452 | ADJ13: -0.07939636957 | ADK13: -0.08429410775 | ADL13: -0.1403624201 | ADM13: -0.09014032984 | ADN13: -0.1359693445 | ADO13: -0.06290063432 | ADP13: -0.1741882723 | ADQ13: -0.1071809909 | ADR13: -0.0990609826 | ADS13: -0.1355677329 | ADT13: -0.09115194772 | ADU13: -0.1106016264 | ADV13: -0.1168742746 | ADW13: -0.1731229958 | ADX13: -0.1458172842 | ADY13: -0.1660109222 | ADZ13: -0.1177234681 | AEA13: -0.0853441385 | AEB13: -0.1048231566 | AEC13: -0.1212073904 | AED13: -0.1767428295 | AEE13: -0.1140137244 | AEF13: -0.1831703453 | AEG13: -0.1402089201 | AEH13: -0.1178385758 | AEI13: -0.06733450374 | AEJ13: -0.1740798483 | AEK13: -0.1838133643 | AEL13: -0.1521502673 | AEM13: -0.1406181814 | AEN13: -0.1110191915 | AEO13: -0.1056720712 | AEP13: -0.09329397971 | AEQ13: -0.1677827297 | AER13: -0.1145139173 | AES13: -0.1530401795 | AET13: -0.108639769 | AEU13: -0.1764980389 | AEV13: -0.1718690194 | AEW13: -0.1440964281 | AEX13: -0.1175504502 | AEY13: -0.08724817992 | AEZ13: -0.1347567659 | AFA13: -0.1653194303 | AFB13: -0.08605283965 | AFC13: -0.1414134407 | AFD13: -0.1655845588 | AFE13: -0.0934835878 | AFF13: -0.1001048516 | AFG13: -0.09311421567 | AFH13: -0.1264452308 | AFI13: -0.07809615638 | AFJ13: -0.1353919911 | AFK13: -0.1184666787 | AFL13: -0.1645441201 | AFM13: -0.09432952642 | AFN13: -0.1474816095 | AFO13: -0.1186094532 | AFP13: -0.06904363202 | AFQ13: -0.1079888096 | AFR13: -0.1477172351 | AFS13: -0.1196192338 | AFT13: -0.1322140171 | AFU13: -0.1068813923 | AFV13: -0.09752378426 | AFW13: -0.1389972664 | AFX13: -0.1043911265 | AFY13: -0.09842453327 | AFZ13: -0.1241867358 | AGA13: -0.08990550918 | AGB13: -0.1349623602 | AGC13: -0.1193327814 | AGD13: -0.0995086247 | AGE13: -0.1018789764 | AGF13: -0.09030065153 | AGG13: -0.1231907642 | AGH13: -0.1186010941 | AGI13: -0.1107031961 | AGJ13: -0.08127492237 | AGK13: -0.1620485861 | AGL13: -0.1477969403 | AGM13: -0.1939013186 | AGN13: -0.1044984889 | AGO13: -0.1188745596 | AGP13: -0.1609723888 | AGQ13: -0.1167406981 | AGR13: -0.1286550808 | AGS13: -0.1967477303 | AGT13: -0.1412875501 | AGU13: -0.06081984958 | AGV13: -0.1232304096 | AGW13: -0.1412737735 | AGX13: -0.125160088 | AGY13: -0.0645140819 | AGZ13: -0.09763761406 | AHA13: -0.08401827892 | AHB13: -0.1651015914 | AHC13: -0.11381886 | AHD13: -0.08670835473 | AHE13: -0.1833941755 | AHF13: -0.1664212457 | AHG13: -0.1087536676 | AHH13: -0.1562190398 | AHI13: -0.1315034237 | AHJ13: -0.1507027255 | AHK13: -0.1472034556 | AHL13: -0.08015245688 | AHM13: -0.1558805259 | AHN13: -0.1167955025 | AHO13: -0.1436865391 | AHP13: -0.07794277043 | AHQ13: -0.1295107708 | AHR13: -0.07679254333 | AHS13: -0.09718880805 | AHT13: -0.08491048444 | AHU13: -0.09361245993 | AHV13: -0.0846270864 | AHW13: -0.1067459869 | AHX13: -0.1063528152 | AHY13: -0.1472773706 | AHZ13: -0.116446639 | AIA13: -0.1064389194 | AIB13: -0.09594175798 | AIC13: -0.1008344607 | AID13: -0.09229940939 | AIE13: -0.09720403468 | AIF13: -0.0976997562 | AIG13: -0.09515175804 | AIH13: -0.09158207142 | AII13: -0.1433211251 | AIJ13: -0.1343423483 | AIK13: -0.07371127784 | AIL13: -0.1064191944 | AIM13: -0.1410809036 | AIN13: -0.1637974514 | AIO13: -0.07724163196 | AIP13: -0.09325345537 | AIQ13: -0.1163778644 | AIR13: -0.1224501921 | AIS13: -0.09381148508 | AIT13: -0.1194971976 | AIU13: -0.1053301783 | AIV13: -0.144475074 | AIW13: -0.1603134229 | AIX13: -0.09853397339 | AIY13: -0.1073693466 | AIZ13: -0.1339140059 | AJA13: -0.1850488201 | AJB13: -0.1669905365 | AJC13: -0.1478636727 | AJD13: -0.09764049774 | AJE13: -0.07395288442 | AJF13: -0.1150774309 | AJG13: -0.1032308233 | AJH13: -0.09101142797 | AJI13: -0.09815322617 | AJJ13: -0.1675085036 | AJK13: -0.10826777 | AJL13: -0.09428128132 | AJM13: -0.1408854393 | AJN13: -0.1155212977 | AJO13: -0.112349585 | AJP13: -0.1117964509 | AJQ13: -0.1146240785 | AJR13: -0.09220173281 | AJS13: -0.1358566608 | AJT13: -0.1031494616 | AJU13: -0.1037063663 | AJV13: -0.1728513969 | AJW13: -0.07643479536 | AJX13: -0.1397458628 | AJY13: -0.1067548824 | AJZ13: -0.1461106423 | AKA13: -0.1481340234 | AKB13: -0.09957608792 | AKC13: -0.07754867878 | AKD13: -0.1183960144 | AKE13: -0.1400963676 | AKF13: -0.1911993753 | AKG13: -0.08400877549 | AKH13: -0.1166712616 | AKI13: -0.1199114717 | AKJ13: -0.1080849164 | AKK13: -0.1122494517 | AKL13: -0.06842266942 | AKM13: -0.1512555073 | AKN13: -0.09469916925 | AKO13: -0.09189360354 | AKP13: -0.1414627774 | AKQ13: -0.1168104546 | AKR13: -0.1722025446 | AKS13: -0.0875524562 | AKT13: -0.1184606301 | AKU13: -0.08330155639 | AKV13: -0.1476431705 | AKW13: -0.06667876882 | AKX13: -0.1021900598 | AKY13: -0.1097746312 | AKZ13: -0.1369056739 | ALA13: -0.06303471824 | ALB13: -0.1617243625 | ALC13: -0.08835877711 | ALD13: -0.103667632 | ALE13: -0.158261046 | ALF13: -0.1444685964 | ALG13: -0.07238587774 | ALH13: -0.06810576089 | ALI13: -0.1488022846 | ALJ13: -0.09434475418 | ALK13: -0.1449529159 | ALL13: -0.0875321281 | ALM13: -0.1063771985 | ALN13: -0.06893591221 | ALO13: -0.1398874022 | ALP13: -0.1049974479 | ALQ13: -0.08228989202 | ALR13: -0.1527187228 | ALS13: -0.09770487223 | ALT13: -0.07168981464 | ALU13: -0.09752193994 | ALV13: -0.1600552556 | ALW13: -0.07927291724 | ALX13: -0.1012524197 | ALY13: -0.1794447158 | ALZ13: -0.09803030829 | AMA13: -0.1546653467 | AMB13: -0.08712432314 | AMC13: -0.1125476853 | AMD13: -0.09277820623 | AME13: -0.1081068422 | AMF13: -0.1637351262 | AMG13: -0.1787255199 | AMH13: -0.09790773453 | AMI13: -0.09735994047 | AML13: -0.1744700296 | AMM13: -0.1626968184 | AMN13: -0.1542548778 | AMO13: -0.1474489482 | AMP13: -0.1408414055 | AMQ13: -0.1345004657 | AMR13: -0.1282648478 | AMS13: -0.1223984996 | AMT13: -0.1177053401 | AMU13: -0.1136238349 | AMV13: -0.1095307007 | AMW13: -0.1058807627 | AMX13: -0.1020148239 | AMY13: -0.09780998841 | AMZ13: -0.09371444623 | ANA13: -0.08891048185 | ANB13: -0.08315814788 | ANC13: -0.07675979977 | AND13: -0.06885488973 | ANF13: -5745.185033 | ANG13: -6019.292187 | ANH13: -6049.202028 | ANI13: -6127.327341 | ANJ13: -5852.467467 | ANK13: -5752.734795 | ANL13: -5802.183339 | ANM13: -5948.147867 | ANN13: -6084.778433 | ANO13: -6013.895062 | ANP13: -6043.675529 | ANQ13: -6046.333729 | ANR13: -5819.796529 | ANS13: -5774.580961 | ANT13: -5484.979634 | ANU13: -5846.360454 | ANV13: -6221.18487 | ANW13: -6341.20835 | ANX13: -6243.686191 | ANY13: =IFERROR(MATCH(MIN(ABS(ANF13:ANX13)),ABS(ANF13:ANX13),0),"") -> 15 | ANZ13: =IFERROR(INDEX(ANF13:ANX13,MIN(MAX(ANY13-1,1),17)),"") -> -5774.580961 | AOA13: =IFERROR(INDEX(ANF13:ANX13,MIN(MAX(ANY13,2),18)),"") -> -5484.979634 | AOB13: =IFERROR(INDEX(ANF13:ANX13,MIN(MAX(ANY13,3),19)),"") -> -5484.979634 | AOC13: =IFERROR(INDEX(AML13:AND13,MIN(MAX(ANY13-1,1),17)),"") -> -0.09780998841 | AOD13: =IFERROR(INDEX(AML13:AND13,MIN(MAX(ANY13,2),18)),"") -> -0.09371444623 | AOE13: =IFERROR(INDEX(AML13:AND13,MIN(MAX(ANY13,3),19)),"") -> -0.09371444623 | AOF13: -0.01614586047
A14: =ROW(Variables[[#This Row],[Variable Name]])-ROW(Variables[[#Headers],[Variable Name]]) -> 6 | B14: Cost of Installation | C14: Install | D14: =IF(COUNTA(Variables[[#This Row],[Lower Bound]], Variables[[#This Row],[Mode or P]], Variables[[#This Row],[Upper Bound]])=0, "", IF(Variables[[#This Row],[Shape]]="Constant",Variables[[#This Row],[Mode or P]],IF(Variables[[#This Row],[Shape]]="Lognorm",LOGINV(Variables[[#This Row],[Uniform PRNG]],((LN(Variables[[#This Row],[Lower Bound]]) + LN(Variables[[#This Row],[Upper Bound]]))/2),((LN(Variables[[#This Row],[Upper Bound]]) - LN(Variables[[#This Row],[Lower Bound]]))/3.28971)),IF(Variables[[#This Row],[Shape]]="Normal",NORMINV(Variables[[#This Row],[Uniform PRNG]],(Variables[[#This Row],[Upper Bound]]+Variables[[#This Row],[Lower Bound]])/2,(Variables[[#This Row],[Upper Bound]]-Variables[[#This Row],[Lower Bound]])/3.29),IF(Variables[[#This Row],[Shape]]="Uniform",(Variables[[#This Row],[Upper Bound]]-Variables[[#This Row],[Lower Bound]])*Variables[[#This Row],[Uniform PRNG]]+Variables[[#This Row],[Lower Bound]],IF(Variables[[#This Row],[Shape]]="Binary",IF(Variables[[#This Row],[Uniform PRNG]]<Variables[[#This Row],[Mode or P]],1,0),IF(Variables[[#This Row],[Shape]]="Triangular",IF(Variables[[#This Row],[Uniform PRNG]]<(Variables[[#This Row],[Mode or P]]-Variables[[#This Row],[Lower Bound]])/(Variables[[#This Row],[Upper Bound]]-Variables[[#This Row],[Lower Bound]]), 1, 0) * (Variables[[#This Row],[Lower Bound]] + SQRT(Variables[[#This Row],[Uniform PRNG]]*(Variables[[#This Row],[Upper Bound]]-Variables[[#This Row],[Lower Bound]])*(Variables[[#This Row],[Mode or P]]-Variables[[#This Row],[Lower Bound]]))) + IF(Variables[[#This Row],[Uniform PRNG]]>= (Variables[[#This Row],[Mode or P]]-Variables[[#This Row],[Lower Bound]])/(Variables[[#This Row],[Upper Bound]]-Variables[[#This Row],[Lower Bound]]), 1, 0) * (Variables[[#This Row],[Upper Bound]] - SQRT((1-Variables[[#This Row],[Uniform PRNG]]) * (Variables[[#This Row],[Upper Bound]] - Variables[[#This Row],[Lower Bound]]) * (Variables[[#This Row],[Upper Bound]] - Variables[[#This Row],[Mode or P]]))),""))))))) -> 3077.183406 | E14: Uniform | F14: 2000 | H14: 4000 | I14: Four Peaks Technologies http://solarcellcentral.com/cost_page.html | J14: =IFERROR(IF(OR(MIN(Variables[[#This Row],[P(X<T)]], Variables[[#This Row],[P(X>T)]])<0.002,SIGN(Variables[[#This Row],[EOL(X<T)]])=SIGN(Variables[[#This Row],[EOL(X>T)]])),0,IFERROR(IF(B$50=1,IF(Variables[[#This Row],[EOL(X<T)]]<Variables[[#This Row],[EOL(X>T)]],-Variables[[#This Row],[EOL(X<T)]]*Variables[[#This Row],[P(X<T)]],-Variables[[#This Row],[EOL(X>T)]]*Variables[[#This Row],[P(X>T)]]),IF(Variables[[#This Row],[EOL(X<T)]]>Variables[[#This Row],[EOL(X>T)]],Variables[[#This Row],[EOL(X<T)]]*Variables[[#This Row],[P(X<T)]],Variables[[#This Row],[EOL(X>T)]]*Variables[[#This Row],[P(X>T)]])),"")),0) -> 0 | K14: =IF(Variables[[#This Row],[Shape]]="Constant",Variables[[#This Row],[Mode or P]],IF(Variables[[#This Row],[Shape]]="Lognorm",EXP((LN(Variables[[#This Row],[Upper Bound]])+LN(Variables[[#This Row],[Lower Bound]]))/2+((LN(Variables[[#This Row],[Upper Bound]])-LN(Variables[[#This Row],[Lower Bound]]))/3.29)^2/2),IF(Variables[[#This Row],[Shape]]="Normal",(Variables[[#This Row],[Lower Bound]]+Variables[[#This Row],[Upper Bound]])/2,IF(Variables[[#This Row],[Shape]]="Uniform",(Variables[[#This Row],[Lower Bound]]+Variables[[#This Row],[Upper Bound]])/2,IF(Variables[[#This Row],[Shape]]="Binary",Variables[[#This Row],[Mode or P]],IF(Variables[[#This Row],[Shape]]="Triangular",(Variables[[#This Row],[Lower Bound]]+Variables[[#This Row],[Mode or P]]+Variables[[#This Row],[Upper Bound]])/3,"")))))) -> 3000 | L14: =IF(Variables[[#This Row],[Shape]]="","",(MOD((MOD(MOD(999999999999989,MOD(ScenarioNum*2499997+Variables[[#This Row],[VarID]]*1800451,7450589)*4658+7450581)*383,99991)*231109+MOD(MOD(999999999999989,MOD(ScenarioNum*2246527+Variables[[#This Row],[VarID]]*2399993,7450987)*7580+7560584)*547,231109))*43271,4294967296)+0.5)/4294967296) -> 0.5385917031 | M14: =IF(Variables[[#This Row],[Shape]]="Binary", 1-Variables[[#This Row],[Mode or P]], IF(Variables[[#This Row],[Shape]]<>"",COUNTIF(INDEX($X$9:$AMI$164, ROW(Variables[[#This Row],[Variable Name]])-ROW(Variables[[#Headers],[Variable Name]]), ),"<"&Variables[[#This Row],[Threshold Estimate]])/1000,"")) -> 0 | N14: =IF(Variables[[#This Row],[Shape]]<>"",1-Variables[[#This Row],[P(X<T)]],"") -> 1 | O14: =IFERROR(AVERAGEIFS(X$7:AMI$7,INDEX(X$9:$AMI$164, ROW(Variables[[#This Row],[Variable Name]])-ROW(Variables[[#Headers],[Variable Name]]), ),IF(Variables[[#This Row],[Shape]]="Binary","=0","<"&Variables[[#This Row],[Threshold Estimate]])),"") ->  | P14: =IFERROR(AVERAGEIFS(X$7:AMI$7,INDEX($X$9:$AMI$164, ROW(Variables[[#This Row],[Variable Name]])-ROW(Variables[[#Headers],[Variable Name]]), ),IF(Variables[[#This Row],[Shape]]="Binary","=1",">"&Variables[[#This Row],[Threshold Estimate]])),"") -> -5936.888905 | Q14: =IFERROR(IF(Variables[[#This Row],[Shape]]="Binary",IF(B$50=1,IF(Variables[[#This Row],[EOL(X<T)]]<Variables[[#This Row],[EOL(X>T)]],0,1),IF(Variables[[#This Row],[EOL(X<T)]]<Variables[[#This Row],[EOL(X>T)]],1,0)), INDEX($AOF$9:$AOF$164, ROW(Variables[[#This Row],[Variable Name]])-ROW(Variables[[#Headers],[Variable Name]]))),"") -> 522.7867293 | V14: =IFERROR(IF(ISBLANK(Variables[[#This Row],[Variable Name]]), "", Variables[[#This Row],[Variable Name]]), "") -> Cost of Installation | W14: =IFERROR(IF(ISBLANK(D14), "", D14), "") -> 3077.183406 | X14: 3617.419083 | Y14: 2824.93558 | Z14: 2032.054286 | AA14: 3768.982114 | AB14: 2027.233967 | AC14: 3437.521301 | AD14: 2551.151222 | AE14: 3492.611016 | AF14: 2797.70599 | AG14: 3077.183406 | AH14: 2279.685781 | AI14: 2387.654825 | AJ14: 2081.750655 | AK14: 2635.734902 | AL14: 3370.427077 | AM14: 3297.527942 | AN14: 2261.513137 | AO14: 2699.473414 | AP14: 2902.770354 | AQ14: 2220.639199 | AR14: 3395.782683 | AS14: 3940.587554 | AT14: 2568.859907 | AU14: 2694.370828 | AV14: 2544.615851 | AW14: 2597.826025 | AX14: 2198.229873 | AY14: 2401.054057 | AZ14: 3845.045835 | BA14: 3226.20088 | BB14: 2388.370076 | BC14: 3630.449812 | BD14: 3233.273583 | BE14: 3978.138153 | BF14: 3256.103827 | BG14: 3964.316202 | BH14: 2151.216026 | BI14: 2026.242243 | BJ14: 2677.190703 | BK14: 3800.262796 | BL14: 3421.646974 | BM14: 3017.521352 | BN14: 3095.827584 | BO14: 2134.460814 | BP14: 2638.352151 | BQ14: 3480.669485 | BR14: 2853.083361 | BS14: 2364.337008 | BT14: 3138.826032 | BU14: 3416.643684 | BV14: 2143.046306 | BW14: 3425.599429 | BX14: 3569.309757 | BY14: 2951.035471 | BZ14: 2183.16651 | CA14: 2361.598879 | CB14: 2260.620219 | CC14: 3457.454163 | CD14: 3384.170659 | CE14: 2324.914003 | CF14: 3357.579712 | CG14: 2128.971964 | CH14: 2543.495305 | CI14: 2805.211766 | CJ14: 2424.276897 | CK14: 2339.340847 | CL14: 2199.678278 | CM14: 3728.243479 | CN14: 3827.475036 | CO14: 2615.403814 | CP14: 3047.503144 | CQ14: 3207.218095 | CR14: 3888.535447 | CS14: 2887.726742 | CT14: 2792.514601 | CU14: 3946.831045 | CV14: 3223.829652 | CW14: 2503.103346 | CX14: 2869.206828 | CY14: 3181.11316 | CZ14: 2470.658226 | DA14: 3624.989155 | DB14: 3371.215178 | DC14: 3482.153598 | DD14: 3751.173605 | DE14: 3878.657794 | DF14: 3982.093091 | DG14: 3364.595622 | DH14: 2692.882865 | DI14: 3204.913936 | DJ14: 2501.188488 | DK14: 2748.792891 | DL14: 3007.311972 | DM14: 3736.75995 | DN14: 2358.560331 | DO14: 2512.862557 | DP14: 2547.041353 | DQ14: 3163.449433 | DR14: 3744.561849 | DS14: 3177.220361 | DT14: 2118.232271 | DU14: 3516.124643 | DV14: 2516.245112 | DW14: 3247.624184 | DX14: 3972.023858 | DY14: 2294.340698 | DZ14: 3104.269415 | EA14: 2862.810977 | EB14: 2769.287557 | EC14: 3054.217907 | ED14: 2848.069628 | EE14: 3682.311597 | EF14: 2241.510676 | EG14: 2375.615281 | EH14: 2526.856908 | EI14: 2930.884798 | EJ14: 2401.590526 | EK14: 2905.635699 | EL14: 2797.861306 | EM14: 3555.344958 | EN14: 2993.539741 | EO14: 2988.112706 | EP14: 3486.572581 | EQ14: 3779.78231 | ER14: 3683.798703 | ES14: 3377.449923 | ET14: 3375.361076 | EU14: 3101.08033 | EV14: 3155.689208 | EW14: 2391.5339 | EX14: 2908.165216 | EY14: 2988.032872 | EZ14: 2496.275917 | FA14: 3423.444742 | FB14: 2312.98424 | FC14: 3709.046527 | FD14: 3737.618795 | FE14: 3642.215633 | FF14: 2220.453754 | FG14: 2261.628298 | FH14: 2727.486203 | FI14: 2374.25875 | FJ14: 3351.970754 | FK14: 2517.531779 | FL14: 2367.986073 | FM14: 2496.159473 | FN14: 2501.839256 | FO14: 2853.647651 | FP14: 3701.654674 | FQ14: 2063.793474 | FR14: 3617.214265 | FS14: 3967.647011 | FT14: 3036.267395 | FU14: 2065.37156 | FV14: 3994.747802 | FW14: 2981.124658 | FX14: 3712.523485 | FY14: 3402.297423 | FZ14: 2050.859348 | GA14: 3209.580448 | GB14: 3058.586992 | GC14: 3276.27329 | GD14: 3626.150926 | GE14: 3062.438619 | GF14: 2815.207831 | GG14: 2598.16087 | GH14: 2148.80019 | GI14: 3442.56329 | GJ14: 3191.223746 | GK14: 3918.065931 | GL14: 3970.753267 | GM14: 3810.125891 | GN14: 3156.38913 | GO14: 3818.604902 | GP14: 3954.437115 | GQ14: 2869.487335 | GR14: 3730.007653 | GS14: 3872.57317 | GT14: 3894.969344 | GU14: 2894.174651 | GV14: 2099.848191 | GW14: 2221.255752 | GX14: 2682.067147 | GY14: 3215.897314 | GZ14: 3173.940064 | HA14: 2432.689921 | HB14: 3798.273284 | HC14: 2994.683355 | HD14: 3605.539437 | HE14: 2288.783506 | HF14: 2832.834329 | HG14: 2840.630846 | HH14: 3247.746356 | HI14: 3277.382486 | HJ14: 3201.207299 | HK14: 3107.797112 | HL14: 3706.640328 | HM14: 2015.112623 | HN14: 3098.485575 | HO14: 3699.165635 | HP14: 2145.721093 | HQ14: 2041.258302 | HR14: 2312.535903 | HS14: 2689.293976 | HT14: 3078.524787 | HU14: 2723.472795 | HV14: 3866.984454 | HW14: 2395.834529 | HX14: 2434.554266 | HY14: 3843.21162 | HZ14: 2756.013523 | IA14: 2852.856893 | IB14: 2825.54567 | IC14: 3484.652634 | ID14: 3979.943918 | IE14: 2583.441033 | IF14: 2301.873237 | IG14: 3590.171588 | IH14: 2620.638367 | II14: 2282.068092 | IJ14: 3657.405417 | IK14: 3725.914508 | IL14: 3272.042752 | IM14: 3588.367408 | IN14: 2218.627867 | IO14: 3867.426355 | IP14: 3189.902664 | IQ14: 2811.044083 | IR14: 2843.431759 | IS14: 2440.518775 | IT14: 3198.283368 | IU14: 3763.970642 | IV14: 2986.273029 | IW14: 3343.516761 | IX14: 3285.266472 | IY14: 2673.83991 | IZ14: 3613.238261 | JA14: 3559.421829 | JB14: 3023.39142 | JC14: 3339.697447 | JD14: 3055.200202 | JE14: 2422.591936 | JF14: 2577.30588 | JG14: 3851.170078 | JH14: 2167.180448 | JI14: 3870.110761 | JJ14: 3716.871937 | JK14: 2555.626381 | JL14: 2868.331952 | JM14: 2931.088991 | JN14: 2075.013733 | JO14: 2528.3902 | JP14: 2662.994146 | JQ14: 3637.988011 | JR14: 2299.808109 | JS14: 3414.752099 | JT14: 2240.696183 | JU14: 2650.549782 | JV14: 2062.807198 | JW14: 2098.787134 | JX14: 3824.833253 | JY14: 2208.955312 | JZ14: 3146.509719 | KA14: 2352.638606 | KB14: 2635.482087 | KC14: 3267.234555 | KD14: 3761.748044 | KE14: 2323.250958 | KF14: 3120.728727 | KG14: 3242.419869 | KH14: 3507.648595 | KI14: 3225.250132 | KJ14: 3213.303646 | KK14: 3132.333671 | KL14: 3064.866691 | KM14: 2379.180313 | KN14: 2606.277998 | KO14: 3986.756277 | KP14: 2074.419989 | KQ14: 2677.071585 | KR14: 3206.208019 | KS14: 2052.495153 | KT14: 2946.468678 | KU14: 3438.74374 | KV14: 2649.602641 | KW14: 3909.047339 | KX14: 2767.248929 | KY14: 3023.623194 | KZ14: 2155.307532 | LA14: 3370.805417 | LB14: 3763.581828 | LC14: 2729.763746 | LD14: 3207.859085 | LE14: 2151.985266 | LF14: 2381.045647 | LG14: 2643.592273 | LH14: 2126.398678 | LI14: 3772.473783 | LJ14: 3536.767316 | LK14: 2959.968577 | LL14: 2613.481325 | LM14: 3263.767516 | LN14: 2583.007456 | LO14: 3935.27158 | LP14: 3448.224234 | LQ14: 2916.135128 | LR14: 2596.419979 | LS14: 2550.24876 | LT14: 2632.992832 | LU14: 2065.225436 | LV14: 2273.498468 | LW14: 2417.524516 | LX14: 3232.163185 | LY14: 3146.096654 | LZ14: 2421.891479 | MA14: 2309.310579 | MB14: 3357.408121 | MC14: 3260.203926 | MD14: 3250.317001 | ME14: 2839.114167 | MF14: 2694.563383 | MG14: 2875.006409 | MH14: 3794.164375 | MI14: 3620.402755 | MJ14: 3622.083481 | MK14: 2258.022363 | ML14: 3599.524117 | MM14: 2816.327566 | MN14: 3480.08056 | MO14: 2265.219213 | MP14: 2251.592485 | MQ14: 2846.294107 | MR14: 2110.202784 | MS14: 2319.517532 | MT14: 3476.880274 | MU14: 2046.465989 | MV14: 2056.937979 | MW14: 3230.609159 | MX14: 2431.324754 | MY14: 2568.779734 | MZ14: 2684.200293 | NA14: 2565.809299 | NB14: 3373.157058 | NC14: 2492.567004 | ND14: 3895.326117 | NE14: 2143.80664 | NF14: 3968.607845 | NG14: 3588.201901 | NH14: 3372.799704 | NI14: 2594.074315 | NJ14: 2346.902193 | NK14: 3933.961157 | NL14: 3755.892963 | NM14: 3158.893882 | NN14: 3176.736248 | NO14: 3008.16771 | NP14: 2382.304996 | NQ14: 3723.942513 | NR14: 2820.211975 | NS14: 2919.013174 | NT14: 2293.109568 | NU14: 3565.264146 | NV14: 2893.943882 | NW14: 2525.04379 | NX14: 3050.418954 | NY14: 2887.254318 | NZ14: 3281.442901 | OA14: 2833.459444 | OB14: 2160.877205 | OC14: 2172.01742 | OD14: 2905.048315 | OE14: 2451.154146 | OF14: 3070.911557 | OG14: 3093.948866 | OH14: 3848.335261 | OI14: 3122.306019 | OJ14: 2008.98385 | OK14: 3551.234622 | OL14: 2940.550728 | OM14: 2861.246241 | ON14: 2692.200961 | OO14: 2411.035299 | OP14: 2728.832816 | OQ14: 3439.190474 | OR14: 3408.965131 | OS14: 2243.497513 | OT14: 2962.211346 | OU14: 2863.572374 | OV14: 2419.235811 | OW14: 3120.246074 | OX14: 2293.961128 | OY14: 2081.198153 | OZ14: 3086.169458 | PA14: 3161.725211 | PB14: 3496.591978 | PC14: 3953.60198 | PD14: 2520.637341 | PE14: 3516.078887 | PF14: 2487.916665 | PG14: 2355.07796 | PH14: 3336.731133 | PI14: 2482.123756 | PJ14: 3827.967041 | PK14: 3579.131695 | PL14: 2026.937685 | PM14: 2567.214768 | PN14: 3979.355403 | PO14: 2535.570561 | PP14: 2782.367504 | PQ14: 2722.581404 | PR14: 3462.93906 | PS14: 2340.782999 | PT14: 3452.873626 | PU14: 3217.797951 | PV14: 3759.211712 | PW14: 2224.718645 | PX14: 2894.301394 | PY14: 3276.579516 | PZ14: 2609.899677 | QA14: 2273.849752 | QB14: 3724.4056 | QC14: 2019.786291 | QD14: 2298.600163 | QE14: 2092.205601 | QF14: 3098.300353 | QG14: 3140.776624 | QH14: 3501.145996 | QI14: 2920.312968 | QJ14: 2054.458752 | QK14: 3809.698445 | QL14: 2017.493358 | QM14: 3231.969772 | QN14: 2216.903653 | QO14: 2118.530332 | QP14: 3741.107058 | QQ14: 3705.366547 | QR14: 2147.840273 | QS14: 3247.027554 | QT14: 2590.291468 | QU14: 3876.1275 | QV14: 2543.325014 | QW14: 3815.732984 | QX14: 3729.117899 | QY14: 2207.332772 | QZ14: 3540.466766 | RA14: 2306.770571 | RB14: 3424.576897 | RC14: 3278.102314 | RD14: 2196.720108 | RE14: 2896.622992 | RF14: 3149.127433 | RG14: 2414.923993 | RH14: 2856.468847 | RI14: 3533.557963 | RJ14: 3661.655441 | RK14: 3133.504395 | RL14: 3636.442147 | RM14: 3028.48314 | RN14: 3316.812484 | RO14: 3123.273746 | RP14: 3184.96149 | RQ14: 3974.715854 | RR14: 3862.057748 | RS14: 3263.106082 | RT14: 2531.368932 | RU14: 3036.60036 | RV14: 2623.032564 | RW14: 2336.264769 | RX14: 3563.36698 | RY14: 3195.738664 | RZ14: 2908.662054 | SA14: 3564.999056 | SB14: 3309.523682 | SC14: 2470.484004 | SD14: 3922.64453 | SE14: 2919.629124 | SF14: 3956.757649 | SG14: 3470.644682 | SH14: 2452.214561 | SI14: 2244.77523 | SJ14: 2920.074046 | SK14: 3612.451909 | SL14: 3140.070389 | SM14: 2472.679223 | SN14: 3924.380542 | SO14: 2384.821482 | SP14: 3708.446793 | SQ14: 3904.464409 | SR14: 2219.7439 | SS14: 3977.055165 | ST14: 2025.838949 | SU14: 2755.447798 | SV14: 3863.239251 | SW14: 3852.154695 | SX14: 2599.050743 | SY14: 3067.894965 | SZ14: 3132.324856 | TA14: 2073.12526 | TB14: 3614.593121 | TC14: 3686.087426 | TD14: 3155.454988 | TE14: 3894.765245 | TF14: 3022.145806 | TG14: 3041.975442 | TH14: 3709.877967 | TI14: 2343.610474 | TJ14: 2896.480122 | TK14: 3183.979875 | TL14: 3976.234442 | TM14: 2996.275851 | TN14: 2464.088993 | TO14: 2843.669601 | TP14: 3887.461548 | TQ14: 3005.439002 | TR14: 3420.103818 | TS14: 2086.676397 | TT14: 3355.354304 | TU14: 3576.188967 | TV14: 3013.166318 | TW14: 3819.982794 | TX14: 3687.418687 | TY14: 2290.932991 | TZ14: 3505.050529 | UA14: 2605.362539 | UB14: 3299.547401 | UC14: 2159.966953 | UD14: 3835.503974 | UE14: 3748.493858 | UF14: 2590.958719 | UG14: 2705.674255 | UH14: 2548.816724 | UI14: 2811.407166 | UJ14: 3185.251147 | UK14: 2028.905705 | UL14: 2995.996718 | UM14: 2900.72113 | UN14: 3877.290162 | UO14: 3175.140878 | UP14: 2217.56485 | UQ14: 3121.652661 | UR14: 2034.493449 | US14: 2731.022099 | UT14: 2223.928993 | UU14: 2226.957197 | UV14: 3427.787236 | UW14: 3088.095935 | UX14: 2590.268739 | UY14: 3504.857545 | UZ14: 2993.439081 | VA14: 2693.80714 | VB14: 3315.50245 | VC14: 2041.423958 | VD14: 3008.802119 | VE14: 2439.243327 | VF14: 3819.728331 | VG14: 3927.843533 | VH14: 3223.465497 | VI14: 2772.016265 | VJ14: 3968.145286 | VK14: 3104.816466 | VL14: 2233.958738 | VM14: 3476.059746 | VN14: 3709.412804 | VO14: 3557.148741 | VP14: 3892.756047 | VQ14: 3037.684484 | VR14: 3278.160921 | VS14: 3241.824707 | VT14: 3906.390925 | VU14: 2045.202642 | VV14: 3204.600795 | VW14: 3755.835143 | VX14: 3492.264378 | VY14: 2283.510698 | VZ14: 3903.91467 | WA14: 2201.118618 | WB14: 2932.24746 | WC14: 3609.710741 | WD14: 2840.425306 | WE14: 3654.646058 | WF14: 2660.587462 | WG14: 3629.385673 | WH14: 3805.183575 | WI14: 2211.608576 | WJ14: 3716.079733 | WK14: 2719.396581 | WL14: 3362.920219 | WM14: 3549.532922 | WN14: 3466.984517 | WO14: 2587.550062 | WP14: 3862.648162 | WQ14: 3932.471869 | WR14: 3669.407086 | WS14: 3840.370882 | WT14: 3470.810299 | WU14: 3247.490616 | WV14: 3670.844382 | WW14: 2268.564446 | WX14: 3147.661797 | WY14: 2168.157296 | WZ14: 3840.089311 | XA14: 2450.099979 | XB14: 3076.714448 | XC14: 3124.234979 | XD14: 2416.601885 | XE14: 2087.095352 | XF14: 2935.54364 | XG14: 3601.958623 | XH14: 2392.643544 | XI14: 2029.526359 | XJ14: 2155.442407 | XK14: 3650.661349 | XL14: 2925.910563 | XM14: 3472.913412 | XN14: 2691.47499 | XO14: 3582.595566 | XP14: 2200.727272 | XQ14: 3972.395939 | XR14: 2947.554354 | XS14: 2982.070065 | XT14: 3655.673941 | XU14: 2872.735737 | XV14: 3295.87157 | XW14: 2227.614045 | XX14: 2820.482862 | XY14: 2989.824103 | XZ14: 2984.693253 | YA14: 2958.650741 | YB14: 2919.0878 | YC14: 3550.543528 | YD14: 3208.079571 | YE14: 3606.404212 | YF14: 2689.979641 | YG14: 2657.943306 | YH14: 3259.759041 | YI14: 3826.791286 | YJ14: 3543.365689 | YK14: 3811.925562 | YL14: 2381.228646 | YM14: 2679.834962 | YN14: 3025.453604 | YO14: 2958.79601 | YP14: 2572.556394 | YQ14: 2855.712424 | YR14: 3460.914232 | YS14: 2062.788693 | YT14: 2553.542821 | YU14: 2096.04594 | YV14: 3167.679742 | YW14: 2557.869636 | YX14: 2104.746099 | YY14: 3787.188589 | YZ14: 3644.023089 | ZA14: 2250.734934 | ZB14: 3177.268473 | ZC14: 2420.642964 | ZD14: 3692.652222 | ZE14: 2389.793035 | ZF14: 3586.637084 | ZG14: 2076.492268 | ZH14: 2201.014371 | ZI14: 3017.830015 | ZJ14: 3172.246089 | ZK14: 2964.922002 | ZL14: 3657.519864 | ZM14: 3851.745622 | ZN14: 3308.945427 | ZO14: 2148.405902 | ZP14: 3212.356515 | ZQ14: 3473.18464 | ZR14: 2067.326707 | ZS14: 2004.007033 | ZT14: 2059.245971 | ZU14: 3521.969114 | ZV14: 2185.846064 | ZW14: 2860.856716 | ZX14: 3798.174525 | ZY14: 3439.32987 | ZZ14: 3607.05123 | AAA14: 2178.1116 | AAB14: 2705.947848 | AAC14: 3550.07348 | AAD14: 2852.645113 | AAE14: 3515.576548 | AAF14: 2806.066264 | AAG14: 3975.192308 | AAH14: 3779.293506 | AAI14: 3616.818913 | AAJ14: 3779.47193 | AAK14: 3979.056592 | AAL14: 2767.112497 | AAM14: 3373.690439 | AAN14: 3689.924578 | AAO14: 2600.199576 | AAP14: 2578.01394 | AAQ14: 2939.045551 | AAR14: 3812.870597 | AAS14: 3964.660142 | AAT14: 3922.272792 | AAU14: 2676.340543 | AAV14: 3615.838662 | AAW14: 2617.363078 | AAX14: 3374.486436 | AAY14: 2802.878408 | AAZ14: 2812.973892 | ABA14: 2620.631449 | ABB14: 2246.10959 | ABC14: 2985.473365 | ABD14: 2473.024212 | ABE14: 3511.021628 | ABF14: 2876.662171 | ABG14: 3435.05781 | ABH14: 3015.891479 | ABI14: 2209.410988 | ABJ14: 2645.54807 | ABK14: 3870.936383 | ABL14: 3708.717763 | ABM14: 2104.421701 | ABN14: 2063.550359 | ABO14: 3970.951175 | ABP14: 3849.324006 | ABQ14: 2751.954311 | ABR14: 2584.535828 | ABS14: 2124.570925 | ABT14: 3211.322464 | ABU14: 2217.479385 | ABV14: 3866.648697 | ABW14: 3751.336714 | ABX14: 2123.926194 | ABY14: 2780.838737 | ABZ14: 2563.982721 | ACA14: 3085.091845 | ACB14: 3931.248207 | ACC14: 2260.437738 | ACD14: 2042.779125 | ACE14: 2438.834829 | ACF14: 3362.749462 | ACG14: 2510.634735 | ACH14: 3180.226126 | ACI14: 3563.546679 | ACJ14: 2771.981477 | ACK14: 2770.430828 | ACL14: 2589.715464 | ACM14: 3467.299614 | ACN14: 3475.907588 | ACO14: 2782.391596 | ACP14: 2002.477928 | ACQ14: 2665.211081 | ACR14: 2409.968324 | ACS14: 2160.385748 | ACT14: 2130.045707 | ACU14: 3067.683209 | ACV14: 3445.682511 | ACW14: 2812.677899 | ACX14: 3709.500371 | ACY14: 2334.116267 | ACZ14: 2331.384992 | ADA14: 2966.123592 | ADB14: 3427.358524 | ADC14: 3393.766752 | ADD14: 2322.915528 | ADE14: 3111.480291 | ADF14: 3225.565326 | ADG14: 3140.288562 | ADH14: 3126.889596 | ADI14: 3145.154071 | ADJ14: 2498.792924 | ADK14: 3907.439122 | ADL14: 3478.244128 | ADM14: 2447.696148 | ADN14: 2336.158295 | ADO14: 2904.789654 | ADP14: 3188.134451 | ADQ14: 3970.834708 | ADR14: 3786.120516 | ADS14: 3631.524468 | ADT14: 2194.384302 | ADU14: 2284.440163 | ADV14: 3050.949357 | ADW14: 3630.251073 | ADX14: 2721.265179 | ADY14: 3442.526888 | ADZ14: 3715.185596 | AEA14: 2385.591265 | AEB14: 2664.701564 | AEC14: 2710.554925 | AED14: 2881.030106 | AEE14: 3777.50401 | AEF14: 2786.987528 | AEG14: 2359.563589 | AEH14: 2592.931874 | AEI14: 3524.360365 | AEJ14: 2692.117573 | AEK14: 3242.73449 | AEL14: 2237.84316 | AEM14: 3489.733306 | AEN14: 2369.380746 | AEO14: 2955.994718 | AEP14: 3284.557515 | AEQ14: 2833.778505 | AER14: 3567.387346 | AES14: 3465.426091 | AET14: 3006.549378 | AEU14: 2962.118187 | AEV14: 3243.401278 | AEW14: 3427.334694 | AEX14: 2753.299267 | AEY14: 2183.971426 | AEZ14: 2753.561442 | AFA14: 2577.734689 | AFB14: 2448.427169 | AFC14: 3138.953099 | AFD14: 3696.790219 | AFE14: 3584.618555 | AFF14: 2364.557696 | AFG14: 2193.570416 | AFH14: 3161.913806 | AFI14: 2251.20526 | AFJ14: 2726.314092 | AFK14: 3593.410879 | AFL14: 3547.296718 | AFM14: 2702.262438 | AFN14: 2314.739224 | AFO14: 3750.270215 | AFP14: 2045.129419 | AFQ14: 2009.83671 | AFR14: 3532.624177 | AFS14: 2659.796231 | AFT14: 3236.723428 | AFU14: 3271.271666 | AFV14: 3290.470462 | AFW14: 3146.126251 | AFX14: 3600.811529 | AFY14: 2411.961788 | AFZ14: 2967.201072 | AGA14: 3739.626681 | AGB14: 2762.20371 | AGC14: 3639.723598 | AGD14: 2230.072875 | AGE14: 2818.478932 | AGF14: 2118.229779 | AGG14: 2709.831832 | AGH14: 3978.051756 | AGI14: 3848.654026 | AGJ14: 3594.029353 | AGK14: 3539.694339 | AGL14: 2795.188918 | AGM14: 2582.070978 | AGN14: 3792.002152 | AGO14: 3698.586539 | AGP14: 3896.943317 | AGQ14: 2129.011965 | AGR14: 2069.592425 | AGS14: 2800.621254 | AGT14: 2871.116788 | AGU14: 3236.145018 | AGV14: 3068.908367 | AGW14: 3687.204435 | AGX14: 3154.480049 | AGY14: 2716.639417 | AGZ14: 3104.902581 | AHA14: 2888.11183 | AHB14: 2952.340107 | AHC14: 3554.774173 | AHD14: 2810.164747 | AHE14: 3765.985622 | AHF14: 2071.439655 | AHG14: 3373.168862 | AHH14: 3632.41497 | AHI14: 2352.626712 | AHJ14: 3245.220406 | AHK14: 3095.275113 | AHL14: 2056.173669 | AHM14: 2820.410201 | AHN14: 3068.698125 | AHO14: 3802.352184 | AHP14: 3922.289939 | AHQ14: 3361.658179 | AHR14: 2768.876049 | AHS14: 3972.283386 | AHT14: 2841.218193 | AHU14: 2757.806356 | AHV14: 2932.608203 | AHW14: 3763.169809 | AHX14: 3573.843783 | AHY14: 2323.386182 | AHZ14: 2199.583793 | AIA14: 3237.327127 | AIB14: 2938.381837 | AIC14: 3677.860048 | AID14: 3739.193333 | AIE14: 2264.168549 | AIF14: 2120.956705 | AIG14: 3185.61628 | AIH14: 3570.477491 | AII14: 3447.238656 | AIJ14: 2016.739217 | AIK14: 3697.399941 | AIL14: 2083.465283 | AIM14: 2852.573454 | AIN14: 2841.61302 | AIO14: 2131.425274 | AIP14: 2589.898041 | AIQ14: 2184.879125 | AIR14: 3777.205529 | AIS14: 3819.174349 | AIT14: 3333.655882 | AIU14: 2261.581006 | AIV14: 3392.780362 | AIW14: 3563.559403 | AIX14: 3773.510349 | AIY14: 2215.118068 | AIZ14: 2641.363126 | AJA14: 3999.86446 | AJB14: 3340.517882 | AJC14: 3758.001272 | AJD14: 3416.264783 | AJE14: 3872.580465 | AJF14: 3532.715446 | AJG14: 3010.286027 | AJH14: 3971.59915 | AJI14: 3337.780902 | AJJ14: 3679.465465 | AJK14: 3550.896566 | AJL14: 3381.668318 | AJM14: 3701.352602 | AJN14: 2864.409078 | AJO14: 2381.094548 | AJP14: 2197.53397 | AJQ14: 3676.26935 | AJR14: 3728.937876 | AJS14: 2091.177596 | AJT14: 2465.850668 | AJU14: 2650.589106 | AJV14: 2299.013809 | AJW14: 3731.203747 | AJX14: 2673.187514 | AJY14: 2419.009745 | AJZ14: 2392.159804 | AKA14: 2004.832254 | AKB14: 2925.087056 | AKC14: 2370.97306 | AKD14: 2877.487816 | AKE14: 3562.474078 | AKF14: 2715.978004 | AKG14: 2624.349061 | AKH14: 2426.597004 | AKI14: 2181.624776 | AKJ14: 3991.326553 | AKK14: 2327.684779 | AKL14: 2957.20399 | AKM14: 3875.350504 | AKN14: 2744.558903 | AKO14: 2840.083693 | AKP14: 3612.654717 | AKQ14: 2353.856747 | AKR14: 3904.715476 | AKS14: 2583.127301 | AKT14: 3080.288888 | AKU14: 2281.813006 | AKV14: 2811.287329 | AKW14: 2177.183593 | AKX14: 2750.846783 | AKY14: 2163.388664 | AKZ14: 2385.420365 | ALA14: 3506.252979 | ALB14: 3986.196019 | ALC14: 2862.80984 | ALD14: 3465.398684 | ALE14: 2630.15063 | ALF14: 3538.272851 | ALG14: 3769.55889 | ALH14: 2848.311097 | ALI14: 2874.771224 | ALJ14: 3051.517651 | ALK14: 2624.321119 | ALL14: 3140.845651 | ALM14: 3953.748614 | ALN14: 3756.791068 | ALO14: 3479.051957 | ALP14: 3094.914843 | ALQ14: 3201.79295 | ALR14: 3677.953779 | ALS14: 3988.593808 | ALT14: 3144.151493 | ALU14: 3259.779437 | ALV14: 3540.023247 | ALW14: 2723.640975 | ALX14: 3144.996508 | ALY14: 3445.061025 | ALZ14: 3558.730456 | AMA14: 2733.405943 | AMB14: 3437.026697 | AMC14: 2068.27814 | AMD14: 2911.344391 | AME14: 2860.406772 | AMF14: 2865.13772 | AMG14: 2433.526827 | AMH14: 3437.354228 | AMI14: 2170.750195 | AML14: =IFERROR(AVERAGEIFS($X14:$AMI14,$X14:$AMI14,"<"&SMALL($X14:$AMI14,AMM$7),$X14:$AMI14,">"&SMALL($X14:$AMI14,AMK$7)),"") -> 2100.726141 | AMM14: =IFERROR(AVERAGEIFS($X14:$AMI14,$X14:$AMI14,"<"&SMALL($X14:$AMI14,AMN$7),$X14:$AMI14,">"&SMALL($X14:$AMI14,AML$7)),"") -> 2196.677769 | AMN14: =IFERROR(AVERAGEIFS($X14:$AMI14,$X14:$AMI14,"<"&SMALL($X14:$AMI14,AMO$7),$X14:$AMI14,">"&SMALL($X14:$AMI14,AMM$7)),"") -> 2293.823515 | AMO14: =IFERROR(AVERAGEIFS($X14:$AMI14,$X14:$AMI14,"<"&SMALL($X14:$AMI14,AMP$7),$X14:$AMI14,">"&SMALL($X14:$AMI14,AMN$7)),"") -> 2395.226709 | AMP14: =IFERROR(AVERAGEIFS($X14:$AMI14,$X14:$AMI14,"<"&SMALL($X14:$AMI14,AMQ$7),$X14:$AMI14,">"&SMALL($X14:$AMI14,AMO$7)),"") -> 2509.403571 | AMQ14: =IFERROR(AVERAGEIFS($X14:$AMI14,$X14:$AMI14,"<"&SMALL($X14:$AMI14,AMR$7),$X14:$AMI14,">"&SMALL($X14:$AMI14,AMP$7)),"") -> 2622.449001 | AMR14: =IFERROR(AVERAGEIFS($X14:$AMI14,$X14:$AMI14,"<"&SMALL($X14:$AMI14,AMS$7),$X14:$AMI14,">"&SMALL($X14:$AMI14,AMQ$7)),"") -> 2726.092758 | AMS14: =IFERROR(AVERAGEIFS($X14:$AMI14,$X14:$AMI14,"<"&SMALL($X14:$AMI14,AMT$7),$X14:$AMI14,">"&SMALL($X14:$AMI14,AMR$7)),"") -> 2820.362818 | AMT14: =IFERROR(AVERAGEIFS($X14:$AMI14,$X14:$AMI14,"<"&SMALL($X14:$AMI14,AMU$7),$X14:$AMI14,">"&SMALL($X14:$AMI14,AMS$7)),"") -> 2908.019475 | AMU14: =IFERROR(AVERAGEIFS($X14:$AMI14,$X14:$AMI14,"<"&SMALL($X14:$AMI14,AMV$7),$X14:$AMI14,">"&SMALL($X14:$AMI14,AMT$7)),"") -> 3005.582397 | AMV14: =IFERROR(AVERAGEIFS($X14:$AMI14,$X14:$AMI14,"<"&SMALL($X14:$AMI14,AMW$7),$X14:$AMI14,">"&SMALL($X14:$AMI14,AMU$7)),"") -> 3107.262819 | AMW14: =IFERROR(AVERAGEIFS($X14:$AMI14,$X14:$AMI14,"<"&SMALL($X14:$AMI14,AMX$7),$X14:$AMI14,">"&SMALL($X14:$AMI14,AMV$7)),"") -> 3195.532915 | AMX14: =IFERROR(AVERAGEIFS($X14:$AMI14,$X14:$AMI14,"<"&SMALL($X14:$AMI14,AMY$7),$X14:$AMI14,">"&SMALL($X14:$AMI14,AMW$7)),"") -> 3298.194594 | AMY14: =IFERROR(AVERAGEIFS($X14:$AMI14,$X14:$AMI14,"<"&SMALL($X14:$AMI14,AMZ$7),$X14:$AMI14,">"&SMALL($X14:$AMI14,AMX$7)),"") -> 3412.526618 | AMZ14: =IFERROR(AVERAGEIFS($X14:$AMI14,$X14:$AMI14,"<"&SMALL($X14:$AMI14,ANA$7),$X14:$AMI14,">"&SMALL($X14:$AMI14,AMY$7)),"") -> 3515.936979 | ANA14: =IFERROR(AVERAGEIFS($X14:$AMI14,$X14:$AMI14,"<"&SMALL($X14:$AMI14,ANB$7),$X14:$AMI14,">"&SMALL($X14:$AMI14,AMZ$7)),"") -> 3609.335904 | ANB14: =IFERROR(AVERAGEIFS($X14:$AMI14,$X14:$AMI14,"<"&SMALL($X14:$AMI14,ANC$7),$X14:$AMI14,">"&SMALL($X14:$AMI14,ANA$7)),"") -> 3701.085609 | ANC14: =IFERROR(AVERAGEIFS($X14:$AMI14,$X14:$AMI14,"<"&SMALL($X14:$AMI14,AND$7),$X14:$AMI14,">"&SMALL($X14:$AMI14,ANB$7)),"") -> 3796.102318 | AND14: =IFERROR(AVERAGEIFS($X14:$AMI14,$X14:$AMI14,"<"&SMALL($X14:$AMI14,ANE$7),$X14:$AMI14,">"&SMALL($X14:$AMI14,ANC$7)),"") -> 3900.628401 | ANF14: =IFERROR(AVERAGEIFS($X$7:$AMI$7,$X14:$AMI14,"<"&SMALL($X14:$AMI14,AMM$7),$X14:$AMI14,">"&SMALL($X14:$AMI14,AMK$7)),"") -> -4906.408707 | ANG14: =IFERROR(AVERAGEIFS($X$7:$AMI$7,$X14:$AMI14,"<"&SMALL($X14:$AMI14,AMN$7),$X14:$AMI14,">"&SMALL($X14:$AMI14,AML$7)),"") -> -5341.180278 | ANH14: =IFERROR(AVERAGEIFS($X$7:$AMI$7,$X14:$AMI14,"<"&SMALL($X14:$AMI14,AMO$7),$X14:$AMI14,">"&SMALL($X14:$AMI14,AMM$7)),"") -> -5275.825935 | ANI14: =IFERROR(AVERAGEIFS($X$7:$AMI$7,$X14:$AMI14,"<"&SMALL($X14:$AMI14,AMP$7),$X14:$AMI14,">"&SMALL($X14:$AMI14,AMN$7)),"") -> -5304.212201 | ANJ14: =IFERROR(AVERAGEIFS($X$7:$AMI$7,$X14:$AMI14,"<"&SMALL($X14:$AMI14,AMQ$7),$X14:$AMI14,">"&SMALL($X14:$AMI14,AMO$7)),"") -> -5384.860122 | ANK14: =IFERROR(AVERAGEIFS($X$7:$AMI$7,$X14:$AMI14,"<"&SMALL($X14:$AMI14,AMR$7),$X14:$AMI14,">"&SMALL($X14:$AMI14,AMP$7)),"") -> -5245.930315 | ANL14: =IFERROR(AVERAGEIFS($X$7:$AMI$7,$X14:$AMI14,"<"&SMALL($X14:$AMI14,AMS$7),$X14:$AMI14,">"&SMALL($X14:$AMI14,AMQ$7)),"") -> -5220.146795 | ANM14: =IFERROR(AVERAGEIFS($X$7:$AMI$7,$X14:$AMI14,"<"&SMALL($X14:$AMI14,AMT$7),$X14:$AMI14,">"&SMALL($X14:$AMI14,AMR$7)),"") -> -5436.624364 | ANN14: =IFERROR(AVERAGEIFS($X$7:$AMI$7,$X14:$AMI14,"<"&SMALL($X14:$AMI14,AMU$7),$X14:$AMI14,">"&SMALL($X14:$AMI14,AMS$7)),"") -> -5934.867051 | ANO14: =IFERROR(AVERAGEIFS($X$7:$AMI$7,$X14:$AMI14,"<"&SMALL($X14:$AMI14,AMV$7),$X14:$AMI14,">"&SMALL($X14:$AMI14,AMT$7)),"") -> -5893.879211 | ANP14: =IFERROR(AVERAGEIFS($X$7:$AMI$7,$X14:$AMI14,"<"&SMALL($X14:$AMI14,AMW$7),$X14:$AMI14,">"&SMALL($X14:$AMI14,AMU$7)),"") -> -5623.940946 | ANQ14: =IFERROR(AVERAGEIFS($X$7:$AMI$7,$X14:$AMI14,"<"&SMALL($X14:$AMI14,AMX$7),$X14:$AMI14,">"&SMALL($X14:$AMI14,AMV$7)),"") -> -6164.559763 | ANR14: =IFERROR(AVERAGEIFS($X$7:$AMI$7,$X14:$AMI14,"<"&SMALL($X14:$AMI14,AMY$7),$X14:$AMI14,">"&SMALL($X14:$AMI14,AMW$7)),"") -> -6567.430841 | ANS14: =IFERROR(AVERAGEIFS($X$7:$AMI$7,$X14:$AMI14,"<"&SMALL($X14:$AMI14,AMZ$7),$X14:$AMI14,">"&SMALL($X14:$AMI14,AMX$7)),"") -> -6310.666838 | ANT14: =IFERROR(AVERAGEIFS($X$7:$AMI$7,$X14:$AMI14,"<"&SMALL($X14:$AMI14,ANA$7),$X14:$AMI14,">"&SMALL($X14:$AMI14,AMY$7)),"") -> -6394.334689 | ANU14: =IFERROR(AVERAGEIFS($X$7:$AMI$7,$X14:$AMI14,"<"&SMALL($X14:$AMI14,ANB$7),$X14:$AMI14,">"&SMALL($X14:$AMI14,AMZ$7)),"") -> -6924.829016 | ANV14: =IFERROR(AVERAGEIFS($X$7:$AMI$7,$X14:$AMI14,"<"&SMALL($X14:$AMI14,ANC$7),$X14:$AMI14,">"&SMALL($X14:$AMI14,ANA$7)),"") -> -7042.825568 | ANW14: =IFERROR(AVERAGEIFS($X$7:$AMI$7,$X14:$AMI14,"<"&SMALL($X14:$AMI14,AND$7),$X14:$AMI14,">"&SMALL($X14:$AMI14,ANB$7)),"") -> -6867.747542 | ANX14: =IFERROR(AVERAGEIFS($X$7:$AMI$7,$X14:$AMI14,"<"&SMALL($X14:$AMI14,ANE$7),$X14:$AMI14,">"&SMALL($X14:$AMI14,ANC$7)),"") -> -7117.237912 | ANY14: =IFERROR(MATCH(MIN(ABS(ANF14:ANX14)),ABS(ANF14:ANX14),0),"") -> 1 | ANZ14: =IFERROR(INDEX(ANF14:ANX14,MIN(MAX(ANY14-1,1),17)),"") -> -4906.408707 | AOA14: =IFERROR(INDEX(ANF14:ANX14,MIN(MAX(ANY14,2),18)),"") -> -5341.180278 | AOB14: =IFERROR(INDEX(ANF14:ANX14,MIN(MAX(ANY14,3),19)),"") -> -5275.825935 | AOC14: =IFERROR(INDEX(AML14:AND14,MIN(MAX(ANY14-1,1),17)),"") -> 2100.726141 | AOD14: =IFERROR(INDEX(AML14:AND14,MIN(MAX(ANY14,2),18)),"") -> 2196.677769 | AOE14: =IFERROR(INDEX(AML14:AND14,MIN(MAX(ANY14,3),19)),"") -> 2293.823515 | AOF14: =IFERROR(FORECAST(0,AOC14:AOE14,ANZ14:AOB14),"") -> 522.7867293
A15: =ROW(Variables[[#This Row],[Variable Name]])-ROW(Variables[[#Headers],[Variable Name]]) -> 7 | B15: Discount rate | C15: Discount | D15: =IF(COUNTA(Variables[[#This Row],[Lower Bound]], Variables[[#This Row],[Mode or P]], Variables[[#This Row],[Upper Bound]])=0, "", IF(Variables[[#This Row],[Shape]]="Constant",Variables[[#This Row],[Mode or P]],IF(Variables[[#This Row],[Shape]]="Lognorm",LOGINV(Variables[[#This Row],[Uniform PRNG]],((LN(Variables[[#This Row],[Lower Bound]]) + LN(Variables[[#This Row],[Upper Bound]]))/2),((LN(Variables[[#This Row],[Upper Bound]]) - LN(Variables[[#This Row],[Lower Bound]]))/3.28971)),IF(Variables[[#This Row],[Shape]]="Normal",NORMINV(Variables[[#This Row],[Uniform PRNG]],(Variables[[#This Row],[Upper Bound]]+Variables[[#This Row],[Lower Bound]])/2,(Variables[[#This Row],[Upper Bound]]-Variables[[#This Row],[Lower Bound]])/3.29),IF(Variables[[#This Row],[Shape]]="Uniform",(Variables[[#This Row],[Upper Bound]]-Variables[[#This Row],[Lower Bound]])*Variables[[#This Row],[Uniform PRNG]]+Variables[[#This Row],[Lower Bound]],IF(Variables[[#This Row],[Shape]]="Binary",IF(Variables[[#This Row],[Uniform PRNG]]<Variables[[#This Row],[Mode or P]],1,0),IF(Variables[[#This Row],[Shape]]="Triangular",IF(Variables[[#This Row],[Uniform PRNG]]<(Variables[[#This Row],[Mode or P]]-Variables[[#This Row],[Lower Bound]])/(Variables[[#This Row],[Upper Bound]]-Variables[[#This Row],[Lower Bound]]), 1, 0) * (Variables[[#This Row],[Lower Bound]] + SQRT(Variables[[#This Row],[Uniform PRNG]]*(Variables[[#This Row],[Upper Bound]]-Variables[[#This Row],[Lower Bound]])*(Variables[[#This Row],[Mode or P]]-Variables[[#This Row],[Lower Bound]]))) + IF(Variables[[#This Row],[Uniform PRNG]]>= (Variables[[#This Row],[Mode or P]]-Variables[[#This Row],[Lower Bound]])/(Variables[[#This Row],[Upper Bound]]-Variables[[#This Row],[Lower Bound]]), 1, 0) * (Variables[[#This Row],[Upper Bound]] - SQRT((1-Variables[[#This Row],[Uniform PRNG]]) * (Variables[[#This Row],[Upper Bound]] - Variables[[#This Row],[Lower Bound]]) * (Variables[[#This Row],[Upper Bound]] - Variables[[#This Row],[Mode or P]]))),""))))))) -> 0.07 | E15: Constant | G15: 0.07 | J15: =IFERROR(IF(OR(MIN(Variables[[#This Row],[P(X<T)]], Variables[[#This Row],[P(X>T)]])<0.002,SIGN(Variables[[#This Row],[EOL(X<T)]])=SIGN(Variables[[#This Row],[EOL(X>T)]])),0,IFERROR(IF(B$50=1,IF(Variables[[#This Row],[EOL(X<T)]]<Variables[[#This Row],[EOL(X>T)]],-Variables[[#This Row],[EOL(X<T)]]*Variables[[#This Row],[P(X<T)]],-Variables[[#This Row],[EOL(X>T)]]*Variables[[#This Row],[P(X>T)]]),IF(Variables[[#This Row],[EOL(X<T)]]>Variables[[#This Row],[EOL(X>T)]],Variables[[#This Row],[EOL(X<T)]]*Variables[[#This Row],[P(X<T)]],Variables[[#This Row],[EOL(X>T)]]*Variables[[#This Row],[P(X>T)]])),"")),0) -> 0 | K15: =IF(Variables[[#This Row],[Shape]]="Constant",Variables[[#This Row],[Mode or P]],IF(Variables[[#This Row],[Shape]]="Lognorm",EXP((LN(Variables[[#This Row],[Upper Bound]])+LN(Variables[[#This Row],[Lower Bound]]))/2+((LN(Variables[[#This Row],[Upper Bound]])-LN(Variables[[#This Row],[Lower Bound]]))/3.29)^2/2),IF(Variables[[#This Row],[Shape]]="Normal",(Variables[[#This Row],[Lower Bound]]+Variables[[#This Row],[Upper Bound]])/2,IF(Variables[[#This Row],[Shape]]="Uniform",(Variables[[#This Row],[Lower Bound]]+Variables[[#This Row],[Upper Bound]])/2,IF(Variables[[#This Row],[Shape]]="Binary",Variables[[#This Row],[Mode or P]],IF(Variables[[#This Row],[Shape]]="Triangular",(Variables[[#This Row],[Lower Bound]]+Variables[[#This Row],[Mode or P]]+Variables[[#This Row],[Upper Bound]])/3,"")))))) -> 0.07 | L15: =IF(Variables[[#This Row],[Shape]]="","",(MOD((MOD(MOD(999999999999989,MOD(ScenarioNum*2499997+Variables[[#This Row],[VarID]]*1800451,7450589)*4658+7450581)*383,99991)*231109+MOD(MOD(999999999999989,MOD(ScenarioNum*2246527+Variables[[#This Row],[VarID]]*2399993,7450987)*7580+7560584)*547,231109))*43271,4294967296)+0.5)/4294967296) -> 0.1113078179 | M15: =IF(Variables[[#This Row],[Shape]]="Binary", 1-Variables[[#This Row],[Mode or P]], IF(Variables[[#This Row],[Shape]]<>"",COUNTIF(INDEX($X$9:$AMI$164, ROW(Variables[[#This Row],[Variable Name]])-ROW(Variables[[#Headers],[Variable Name]]), ),"<"&Variables[[#This Row],[Threshold Estimate]])/1000,"")) -> 0 | N15: =IF(Variables[[#This Row],[Shape]]<>"",1-Variables[[#This Row],[P(X<T)]],"") -> 1 | O15: =IFERROR(AVERAGEIFS(X$7:AMI$7,INDEX(X$9:$AMI$164, ROW(Variables[[#This Row],[Variable Name]])-ROW(Variables[[#Headers],[Variable Name]]), ),IF(Variables[[#This Row],[Shape]]="Binary","=0","<"&Variables[[#This Row],[Threshold Estimate]])),"") ->  | P15: =IFERROR(AVERAGEIFS(X$7:AMI$7,INDEX($X$9:$AMI$164, ROW(Variables[[#This Row],[Variable Name]])-ROW(Variables[[#Headers],[Variable Name]]), ),IF(Variables[[#This Row],[Shape]]="Binary","=1",">"&Variables[[#This Row],[Threshold Estimate]])),"") ->  | Q15: =IFERROR(IF(Variables[[#This Row],[Shape]]="Binary",IF(B$50=1,IF(Variables[[#This Row],[EOL(X<T)]]<Variables[[#This Row],[EOL(X>T)]],0,1),IF(Variables[[#This Row],[EOL(X<T)]]<Variables[[#This Row],[EOL(X>T)]],1,0)), INDEX($AOF$9:$AOF$164, ROW(Variables[[#This Row],[Variable Name]])-ROW(Variables[[#Headers],[Variable Name]]))),"") ->  | V15: =IFERROR(IF(ISBLANK(Variables[[#This Row],[Variable Name]]), "", Variables[[#This Row],[Variable Name]]), "") -> Discount rate | W15: 0.07 | X15: 0.07 | Y15: 0.07 | Z15: 0.07 | AA15: 0.07 | AB15: 0.07 | AC15: 0.07 | AD15: 0.07 | AE15: 0.07 | AF15: 0.07 | AG15: 0.07 | AH15: 0.07 | AI15: 0.07 | AJ15: 0.07 | AK15: 0.07 | AL15: 0.07 | AM15: 0.07 | AN15: 0.07 | AO15: 0.07 | AP15: 0.07 | AQ15: 0.07 | AR15: 0.07 | AS15: 0.07 | AT15: 0.07 | AU15: 0.07 | AV15: 0.07 | AW15: 0.07 | AX15: 0.07 | AY15: 0.07 | AZ15: 0.07 | BA15: 0.07 | BB15: 0.07 | BC15: 0.07 | BD15: 0.07 | BE15: 0.07 | BF15: 0.07 | BG15: 0.07 | BH15: 0.07 | BI15: 0.07 | BJ15: 0.07 | BK15: 0.07 | BL15: 0.07 | BM15: 0.07 | BN15: 0.07 | BO15: 0.07 | BP15: 0.07 | BQ15: 0.07 | BR15: 0.07 | BS15: 0.07 | BT15: 0.07 | BU15: 0.07 | BV15: 0.07 | BW15: 0.07 | BX15: 0.07 | BY15: 0.07 | BZ15: 0.07 | CA15: 0.07 | CB15: 0.07 | CC15: 0.07 | CD15: 0.07 | CE15: 0.07 | CF15: 0.07 | CG15: 0.07 | CH15: 0.07 | CI15: 0.07 | CJ15: 0.07 | CK15: 0.07 | CL15: 0.07 | CM15: 0.07 | CN15: 0.07 | CO15: 0.07 | CP15: 0.07 | CQ15: 0.07 | CR15: 0.07 | CS15: 0.07 | CT15: 0.07 | CU15: 0.07 | CV15: 0.07 | CW15: 0.07 | CX15: 0.07 | CY15: 0.07 | CZ15: 0.07 | DA15: 0.07 | DB15: 0.07 | DC15: 0.07 | DD15: 0.07 | DE15: 0.07 | DF15: 0.07 | DG15: 0.07 | DH15: 0.07 | DI15: 0.07 | DJ15: 0.07 | DK15: 0.07 | DL15: 0.07 | DM15: 0.07 | DN15: 0.07 | DO15: 0.07 | DP15: 0.07 | DQ15: 0.07 | DR15: 0.07 | DS15: 0.07 | DT15: 0.07 | DU15: 0.07 | DV15: 0.07 | DW15: 0.07 | DX15: 0.07 | DY15: 0.07 | DZ15: 0.07 | EA15: 0.07 | EB15: 0.07 | EC15: 0.07 | ED15: 0.07 | EE15: 0.07 | EF15: 0.07 | EG15: 0.07 | EH15: 0.07 | EI15: 0.07 | EJ15: 0.07 | EK15: 0.07 | EL15: 0.07 | EM15: 0.07 | EN15: 0.07 | EO15: 0.07 | EP15: 0.07 | EQ15: 0.07 | ER15: 0.07 | ES15: 0.07 | ET15: 0.07 | EU15: 0.07 | EV15: 0.07 | EW15: 0.07 | EX15: 0.07 | EY15: 0.07 | EZ15: 0.07 | FA15: 0.07 | FB15: 0.07 | FC15: 0.07 | FD15: 0.07 | FE15: 0.07 | FF15: 0.07 | FG15: 0.07 | FH15: 0.07 | FI15: 0.07 | FJ15: 0.07 | FK15: 0.07 | FL15: 0.07 | FM15: 0.07 | FN15: 0.07 | FO15: 0.07 | FP15: 0.07 | FQ15: 0.07 | FR15: 0.07 | FS15: 0.07 | FT15: 0.07 | FU15: 0.07 | FV15: 0.07 | FW15: 0.07 | FX15: 0.07 | FY15: 0.07 | FZ15: 0.07 | GA15: 0.07 | GB15: 0.07 | GC15: 0.07 | GD15: 0.07 | GE15: 0.07 | GF15: 0.07 | GG15: 0.07 | GH15: 0.07 | GI15: 0.07 | GJ15: 0.07 | GK15: 0.07 | GL15: 0.07 | GM15: 0.07 | GN15: 0.07 | GO15: 0.07 | GP15: 0.07 | GQ15: 0.07 | GR15: 0.07 | GS15: 0.07 | GT15: 0.07 | GU15: 0.07 | GV15: 0.07 | GW15: 0.07 | GX15: 0.07 | GY15: 0.07 | GZ15: 0.07 | HA15: 0.07 | HB15: 0.07 | HC15: 0.07 | HD15: 0.07 | HE15: 0.07 | HF15: 0.07 | HG15: 0.07 | HH15: 0.07 | HI15: 0.07 | HJ15: 0.07 | HK15: 0.07 | HL15: 0.07 | HM15: 0.07 | HN15: 0.07 | HO15: 0.07 | HP15: 0.07 | HQ15: 0.07 | HR15: 0.07 | HS15: 0.07 | HT15: 0.07 | HU15: 0.07 | HV15: 0.07 | HW15: 0.07 | HX15: 0.07 | HY15: 0.07 | HZ15: 0.07 | IA15: 0.07 | IB15: 0.07 | IC15: 0.07 | ID15: 0.07 | IE15: 0.07 | IF15: 0.07 | IG15: 0.07 | IH15: 0.07 | II15: 0.07 | IJ15: 0.07 | IK15: 0.07 | IL15: 0.07 | IM15: 0.07 | IN15: 0.07 | IO15: 0.07 | IP15: 0.07 | IQ15: 0.07 | IR15: 0.07 | IS15: 0.07 | IT15: 0.07 | IU15: 0.07 | IV15: 0.07 | IW15: 0.07 | IX15: 0.07 | IY15: 0.07 | IZ15: 0.07 | JA15: 0.07 | JB15: 0.07 | JC15: 0.07 | JD15: 0.07 | JE15: 0.07 | JF15: 0.07 | JG15: 0.07 | JH15: 0.07 | JI15: 0.07 | JJ15: 0.07 | JK15: 0.07 | JL15: 0.07 | JM15: 0.07 | JN15: 0.07 | JO15: 0.07 | JP15: 0.07 | JQ15: 0.07 | JR15: 0.07 | JS15: 0.07 | JT15: 0.07 | JU15: 0.07 | JV15: 0.07 | JW15: 0.07 | JX15: 0.07 | JY15: 0.07 | JZ15: 0.07 | KA15: 0.07 | KB15: 0.07 | KC15: 0.07 | KD15: 0.07 | KE15: 0.07 | KF15: 0.07 | KG15: 0.07 | KH15: 0.07 | KI15: 0.07 | KJ15: 0.07 | KK15: 0.07 | KL15: 0.07 | KM15: 0.07 | KN15: 0.07 | KO15: 0.07 | KP15: 0.07 | KQ15: 0.07 | KR15: 0.07 | KS15: 0.07 | KT15: 0.07 | KU15: 0.07 | KV15: 0.07 | KW15: 0.07 | KX15: 0.07 | KY15: 0.07 | KZ15: 0.07 | LA15: 0.07 | LB15: 0.07 | LC15: 0.07 | LD15: 0.07 | LE15: 0.07 | LF15: 0.07 | LG15: 0.07 | LH15: 0.07 | LI15: 0.07 | LJ15: 0.07 | LK15: 0.07 | LL15: 0.07 | LM15: 0.07 | LN15: 0.07 | LO15: 0.07 | LP15: 0.07 | LQ15: 0.07 | LR15: 0.07 | LS15: 0.07 | LT15: 0.07 | LU15: 0.07 | LV15: 0.07 | LW15: 0.07 | LX15: 0.07 | LY15: 0.07 | LZ15: 0.07 | MA15: 0.07 | MB15: 0.07 | MC15: 0.07 | MD15: 0.07 | ME15: 0.07 | MF15: 0.07 | MG15: 0.07 | MH15: 0.07 | MI15: 0.07 | MJ15: 0.07 | MK15: 0.07 | ML15: 0.07 | MM15: 0.07 | MN15: 0.07 | MO15: 0.07 | MP15: 0.07 | MQ15: 0.07 | MR15: 0.07 | MS15: 0.07 | MT15: 0.07 | MU15: 0.07 | MV15: 0.07 | MW15: 0.07 | MX15: 0.07 | MY15: 0.07 | MZ15: 0.07 | NA15: 0.07 | NB15: 0.07 | NC15: 0.07 | ND15: 0.07 | NE15: 0.07 | NF15: 0.07 | NG15: 0.07 | NH15: 0.07 | NI15: 0.07 | NJ15: 0.07 | NK15: 0.07 | NL15: 0.07 | NM15: 0.07 | NN15: 0.07 | NO15: 0.07 | NP15: 0.07 | NQ15: 0.07 | NR15: 0.07 | NS15: 0.07 | NT15: 0.07 | NU15: 0.07 | NV15: 0.07 | NW15: 0.07 | NX15: 0.07 | NY15: 0.07 | NZ15: 0.07 | OA15: 0.07 | OB15: 0.07 | OC15: 0.07 | OD15: 0.07 | OE15: 0.07 | OF15: 0.07 | OG15: 0.07 | OH15: 0.07 | OI15: 0.07 | OJ15: 0.07 | OK15: 0.07 | OL15: 0.07 | OM15: 0.07 | ON15: 0.07 | OO15: 0.07 | OP15: 0.07 | OQ15: 0.07 | OR15: 0.07 | OS15: 0.07 | OT15: 0.07 | OU15: 0.07 | OV15: 0.07 | OW15: 0.07 | OX15: 0.07 | OY15: 0.07 | OZ15: 0.07 | PA15: 0.07 | PB15: 0.07 | PC15: 0.07 | PD15: 0.07 | PE15: 0.07 | PF15: 0.07 | PG15: 0.07 | PH15: 0.07 | PI15: 0.07 | PJ15: 0.07 | PK15: 0.07 | PL15: 0.07 | PM15: 0.07 | PN15: 0.07 | PO15: 0.07 | PP15: 0.07 | PQ15: 0.07 | PR15: 0.07 | PS15: 0.07 | PT15: 0.07 | PU15: 0.07 | PV15: 0.07 | PW15: 0.07 | PX15: 0.07 | PY15: 0.07 | PZ15: 0.07 | QA15: 0.07 | QB15: 0.07 | QC15: 0.07 | QD15: 0.07 | QE15: 0.07 | QF15: 0.07 | QG15: 0.07 | QH15: 0.07 | QI15: 0.07 | QJ15: 0.07 | QK15: 0.07 | QL15: 0.07 | QM15: 0.07 | QN15: 0.07 | QO15: 0.07 | QP15: 0.07 | QQ15: 0.07 | QR15: 0.07 | QS15: 0.07 | QT15: 0.07 | QU15: 0.07 | QV15: 0.07 | QW15: 0.07 | QX15: 0.07 | QY15: 0.07 | QZ15: 0.07 | RA15: 0.07 | RB15: 0.07 | RC15: 0.07 | RD15: 0.07 | RE15: 0.07 | RF15: 0.07 | RG15: 0.07 | RH15: 0.07 | RI15: 0.07 | RJ15: 0.07 | RK15: 0.07 | RL15: 0.07 | RM15: 0.07 | RN15: 0.07 | RO15: 0.07 | RP15: 0.07 | RQ15: 0.07 | RR15: 0.07 | RS15: 0.07 | RT15: 0.07 | RU15: 0.07 | RV15: 0.07 | RW15: 0.07 | RX15: 0.07 | RY15: 0.07 | RZ15: 0.07 | SA15: 0.07 | SB15: 0.07 | SC15: 0.07 | SD15: 0.07 | SE15: 0.07 | SF15: 0.07 | SG15: 0.07 | SH15: 0.07 | SI15: 0.07 | SJ15: 0.07 | SK15: 0.07 | SL15: 0.07 | SM15: 0.07 | SN15: 0.07 | SO15: 0.07 | SP15: 0.07 | SQ15: 0.07 | SR15: 0.07 | SS15: 0.07 | ST15: 0.07 | SU15: 0.07 | SV15: 0.07 | SW15: 0.07 | SX15: 0.07 | SY15: 0.07 | SZ15: 0.07 | TA15: 0.07 | TB15: 0.07 | TC15: 0.07 | TD15: 0.07 | TE15: 0.07 | TF15: 0.07 | TG15: 0.07 | TH15: 0.07 | TI15: 0.07 | TJ15: 0.07 | TK15: 0.07 | TL15: 0.07 | TM15: 0.07 | TN15: 0.07 | TO15: 0.07 | TP15: 0.07 | TQ15: 0.07 | TR15: 0.07 | TS15: 0.07 | TT15: 0.07 | TU15: 0.07 | TV15: 0.07 | TW15: 0.07 | TX15: 0.07 | TY15: 0.07 | TZ15: 0.07 | UA15: 0.07 | UB15: 0.07 | UC15: 0.07 | UD15: 0.07 | UE15: 0.07 | UF15: 0.07 | UG15: 0.07 | UH15: 0.07 | UI15: 0.07 | UJ15: 0.07 | UK15: 0.07 | UL15: 0.07 | UM15: 0.07 | UN15: 0.07 | UO15: 0.07 | UP15: 0.07 | UQ15: 0.07 | UR15: 0.07 | US15: 0.07 | UT15: 0.07 | UU15: 0.07 | UV15: 0.07 | UW15: 0.07 | UX15: 0.07 | UY15: 0.07 | UZ15: 0.07 | VA15: 0.07 | VB15: 0.07 | VC15: 0.07 | VD15: 0.07 | VE15: 0.07 | VF15: 0.07 | VG15: 0.07 | VH15: 0.07 | VI15: 0.07 | VJ15: 0.07 | VK15: 0.07 | VL15: 0.07 | VM15: 0.07 | VN15: 0.07 | VO15: 0.07 | VP15: 0.07 | VQ15: 0.07 | VR15: 0.07 | VS15: 0.07 | VT15: 0.07 | VU15: 0.07 | VV15: 0.07 | VW15: 0.07 | VX15: 0.07 | VY15: 0.07 | VZ15: 0.07 | WA15: 0.07 | WB15: 0.07 | WC15: 0.07 | WD15: 0.07 | WE15: 0.07 | WF15: 0.07 | WG15: 0.07 | WH15: 0.07 | WI15: 0.07 | WJ15: 0.07 | WK15: 0.07 | WL15: 0.07 | WM15: 0.07 | WN15: 0.07 | WO15: 0.07 | WP15: 0.07 | WQ15: 0.07 | WR15: 0.07 | WS15: 0.07 | WT15: 0.07 | WU15: 0.07 | WV15: 0.07 | WW15: 0.07 | WX15: 0.07 | WY15: 0.07 | WZ15: 0.07 | XA15: 0.07 | XB15: 0.07 | XC15: 0.07 | XD15: 0.07 | XE15: 0.07 | XF15: 0.07 | XG15: 0.07 | XH15: 0.07 | XI15: 0.07 | XJ15: 0.07 | XK15: 0.07 | XL15: 0.07 | XM15: 0.07 | XN15: 0.07 | XO15: 0.07 | XP15: 0.07 | XQ15: 0.07 | XR15: 0.07 | XS15: 0.07 | XT15: 0.07 | XU15: 0.07 | XV15: 0.07 | XW15: 0.07 | XX15: 0.07 | XY15: 0.07 | XZ15: 0.07 | YA15: 0.07 | YB15: 0.07 | YC15: 0.07 | YD15: 0.07 | YE15: 0.07 | YF15: 0.07 | YG15: 0.07 | YH15: 0.07 | YI15: 0.07 | YJ15: 0.07 | YK15: 0.07 | YL15: 0.07 | YM15: 0.07 | YN15: 0.07 | YO15: 0.07 | YP15: 0.07 | YQ15: 0.07 | YR15: 0.07 | YS15: 0.07 | YT15: 0.07 | YU15: 0.07 | YV15: 0.07 | YW15: 0.07 | YX15: 0.07 | YY15: 0.07 | YZ15: 0.07 | ZA15: 0.07 | ZB15: 0.07 | ZC15: 0.07 | ZD15: 0.07 | ZE15: 0.07 | ZF15: 0.07 | ZG15: 0.07 | ZH15: 0.07 | ZI15: 0.07 | ZJ15: 0.07 | ZK15: 0.07 | ZL15: 0.07 | ZM15: 0.07 | ZN15: 0.07 | ZO15: 0.07 | ZP15: 0.07 | ZQ15: 0.07 | ZR15: 0.07 | ZS15: 0.07 | ZT15: 0.07 | ZU15: 0.07 | ZV15: 0.07 | ZW15: 0.07 | ZX15: 0.07 | ZY15: 0.07 | ZZ15: 0.07 | AAA15: 0.07 | AAB15: 0.07 | AAC15: 0.07 | AAD15: 0.07 | AAE15: 0.07 | AAF15: 0.07 | AAG15: 0.07 | AAH15: 0.07 | AAI15: 0.07 | AAJ15: 0.07 | AAK15: 0.07 | AAL15: 0.07 | AAM15: 0.07 | AAN15: 0.07 | AAO15: 0.07 | AAP15: 0.07 | AAQ15: 0.07 | AAR15: 0.07 | AAS15: 0.07 | AAT15: 0.07 | AAU15: 0.07 | AAV15: 0.07 | AAW15: 0.07 | AAX15: 0.07 | AAY15: 0.07 | AAZ15: 0.07 | ABA15: 0.07 | ABB15: 0.07 | ABC15: 0.07 | ABD15: 0.07 | ABE15: 0.07 | ABF15: 0.07 | ABG15: 0.07 | ABH15: 0.07 | ABI15: 0.07 | ABJ15: 0.07 | ABK15: 0.07 | ABL15: 0.07 | ABM15: 0.07 | ABN15: 0.07 | ABO15: 0.07 | ABP15: 0.07 | ABQ15: 0.07 | ABR15: 0.07 | ABS15: 0.07 | ABT15: 0.07 | ABU15: 0.07 | ABV15: 0.07 | ABW15: 0.07 | ABX15: 0.07 | ABY15: 0.07 | ABZ15: 0.07 | ACA15: 0.07 | ACB15: 0.07 | ACC15: 0.07 | ACD15: 0.07 | ACE15: 0.07 | ACF15: 0.07 | ACG15: 0.07 | ACH15: 0.07 | ACI15: 0.07 | ACJ15: 0.07 | ACK15: 0.07 | ACL15: 0.07 | ACM15: 0.07 | ACN15: 0.07 | ACO15: 0.07 | ACP15: 0.07 | ACQ15: 0.07 | ACR15: 0.07 | ACS15: 0.07 | ACT15: 0.07 | ACU15: 0.07 | ACV15: 0.07 | ACW15: 0.07 | ACX15: 0.07 | ACY15: 0.07 | ACZ15: 0.07 | ADA15: 0.07 | ADB15: 0.07 | ADC15: 0.07 | ADD15: 0.07 | ADE15: 0.07 | ADF15: 0.07 | ADG15: 0.07 | ADH15: 0.07 | ADI15: 0.07 | ADJ15: 0.07 | ADK15: 0.07 | ADL15: 0.07 | ADM15: 0.07 | ADN15: 0.07 | ADO15: 0.07 | ADP15: 0.07 | ADQ15: 0.07 | ADR15: 0.07 | ADS15: 0.07 | ADT15: 0.07 | ADU15: 0.07 | ADV15: 0.07 | ADW15: 0.07 | ADX15: 0.07 | ADY15: 0.07 | ADZ15: 0.07 | AEA15: 0.07 | AEB15: 0.07 | AEC15: 0.07 | AED15: 0.07 | AEE15: 0.07 | AEF15: 0.07 | AEG15: 0.07 | AEH15: 0.07 | AEI15: 0.07 | AEJ15: 0.07 | AEK15: 0.07 | AEL15: 0.07 | AEM15: 0.07 | AEN15: 0.07 | AEO15: 0.07 | AEP15: 0.07 | AEQ15: 0.07 | AER15: 0.07 | AES15: 0.07 | AET15: 0.07 | AEU15: 0.07 | AEV15: 0.07 | AEW15: 0.07 | AEX15: 0.07 | AEY15: 0.07 | AEZ15: 0.07 | AFA15: 0.07 | AFB15: 0.07 | AFC15: 0.07 | AFD15: 0.07 | AFE15: 0.07 | AFF15: 0.07 | AFG15: 0.07 | AFH15: 0.07 | AFI15: 0.07 | AFJ15: 0.07 | AFK15: 0.07 | AFL15: 0.07 | AFM15: 0.07 | AFN15: 0.07 | AFO15: 0.07 | AFP15: 0.07 | AFQ15: 0.07 | AFR15: 0.07 | AFS15: 0.07 | AFT15: 0.07 | AFU15: 0.07 | AFV15: 0.07 | AFW15: 0.07 | AFX15: 0.07 | AFY15: 0.07 | AFZ15: 0.07 | AGA15: 0.07 | AGB15: 0.07 | AGC15: 0.07 | AGD15: 0.07 | AGE15: 0.07 | AGF15: 0.07 | AGG15: 0.07 | AGH15: 0.07 | AGI15: 0.07 | AGJ15: 0.07 | AGK15: 0.07 | AGL15: 0.07 | AGM15: 0.07 | AGN15: 0.07 | AGO15: 0.07 | AGP15: 0.07 | AGQ15: 0.07 | AGR15: 0.07 | AGS15: 0.07 | AGT15: 0.07 | AGU15: 0.07 | AGV15: 0.07 | AGW15: 0.07 | AGX15: 0.07 | AGY15: 0.07 | AGZ15: 0.07 | AHA15: 0.07 | AHB15: 0.07 | AHC15: 0.07 | AHD15: 0.07 | AHE15: 0.07 | AHF15: 0.07 | AHG15: 0.07 | AHH15: 0.07 | AHI15: 0.07 | AHJ15: 0.07 | AHK15: 0.07 | AHL15: 0.07 | AHM15: 0.07 | AHN15: 0.07 | AHO15: 0.07 | AHP15: 0.07 | AHQ15: 0.07 | AHR15: 0.07 | AHS15: 0.07 | AHT15: 0.07 | AHU15: 0.07 | AHV15: 0.07 | AHW15: 0.07 | AHX15: 0.07 | AHY15: 0.07 | AHZ15: 0.07 | AIA15: 0.07 | AIB15: 0.07 | AIC15: 0.07 | AID15: 0.07 | AIE15: 0.07 | AIF15: 0.07 | AIG15: 0.07 | AIH15: 0.07 | AII15: 0.07 | AIJ15: 0.07 | AIK15: 0.07 | AIL15: 0.07 | AIM15: 0.07 | AIN15: 0.07 | AIO15: 0.07 | AIP15: 0.07 | AIQ15: 0.07 | AIR15: 0.07 | AIS15: 0.07 | AIT15: 0.07 | AIU15: 0.07 | AIV15: 0.07 | AIW15: 0.07 | AIX15: 0.07 | AIY15: 0.07 | AIZ15: 0.07 | AJA15: 0.07 | AJB15: 0.07 | AJC15: 0.07 | AJD15: 0.07 | AJE15: 0.07 | AJF15: 0.07 | AJG15: 0.07 | AJH15: 0.07 | AJI15: 0.07 | AJJ15: 0.07 | AJK15: 0.07 | AJL15: 0.07 | AJM15: 0.07 | AJN15: 0.07 | AJO15: 0.07 | AJP15: 0.07 | AJQ15: 0.07 | AJR15: 0.07 | AJS15: 0.07 | AJT15: 0.07 | AJU15: 0.07 | AJV15: 0.07 | AJW15: 0.07 | AJX15: 0.07 | AJY15: 0.07 | AJZ15: 0.07 | AKA15: 0.07 | AKB15: 0.07 | AKC15: 0.07 | AKD15: 0.07 | AKE15: 0.07 | AKF15: 0.07 | AKG15: 0.07 | AKH15: 0.07 | AKI15: 0.07 | AKJ15: 0.07 | AKK15: 0.07 | AKL15: 0.07 | AKM15: 0.07 | AKN15: 0.07 | AKO15: 0.07 | AKP15: 0.07 | AKQ15: 0.07 | AKR15: 0.07 | AKS15: 0.07 | AKT15: 0.07 | AKU15: 0.07 | AKV15: 0.07 | AKW15: 0.07 | AKX15: 0.07 | AKY15: 0.07 | AKZ15: 0.07 | ALA15: 0.07 | ALB15: 0.07 | ALC15: 0.07 | ALD15: 0.07 | ALE15: 0.07 | ALF15: 0.07 | ALG15: 0.07 | ALH15: 0.07 | ALI15: 0.07 | ALJ15: 0.07 | ALK15: 0.07 | ALL15: 0.07 | ALM15: 0.07 | ALN15: 0.07 | ALO15: 0.07 | ALP15: 0.07 | ALQ15: 0.07 | ALR15: 0.07 | ALS15: 0.07 | ALT15: 0.07 | ALU15: 0.07 | ALV15: 0.07 | ALW15: 0.07 | ALX15: 0.07 | ALY15: 0.07 | ALZ15: 0.07 | AMA15: 0.07 | AMB15: 0.07 | AMC15: 0.07 | AMD15: 0.07 | AME15: 0.07 | AMF15: 0.07 | AMG15: 0.07 | AMH15: 0.07 | AMI15: 0.07 | ANY15: =IFERROR(MATCH(MIN(ABS(ANF15:ANX15)),ABS(ANF15:ANX15),0),"") ->  | ANZ15: =IFERROR(INDEX(ANF15:ANX15,MIN(MAX(ANY15-1,1),17)),"") ->  | AOA15: =IFERROR(INDEX(ANF15:ANX15,MIN(MAX(ANY15,2),18)),"") ->  | AOB15: =IFERROR(INDEX(ANF15:ANX15,MIN(MAX(ANY15,3),19)),"") ->  | AOC15: =IFERROR(INDEX(AML15:AND15,MIN(MAX(ANY15-1,1),17)),"") ->  | AOD15: =IFERROR(INDEX(AML15:AND15,MIN(MAX(ANY15,2),18)),"") ->  | AOE15: =IFERROR(INDEX(AML15:AND15,MIN(MAX(ANY15,3),19)),"") -> 
A16: =ROW(Variables[[#This Row],[Variable Name]])-ROW(Variables[[#Headers],[Variable Name]]) -> 8 | B16: Battery storage per Kwh stored (As of 2018) | C16: StorageCost | D16: =IF(COUNTA(Variables[[#This Row],[Lower Bound]], Variables[[#This Row],[Mode or P]], Variables[[#This Row],[Upper Bound]])=0, "", IF(Variables[[#This Row],[Shape]]="Constant",Variables[[#This Row],[Mode or P]],IF(Variables[[#This Row],[Shape]]="Lognorm",LOGINV(Variables[[#This Row],[Uniform PRNG]],((LN(Variables[[#This Row],[Lower Bound]]) + LN(Variables[[#This Row],[Upper Bound]]))/2),((LN(Variables[[#This Row],[Upper Bound]]) - LN(Variables[[#This Row],[Lower Bound]]))/3.28971)),IF(Variables[[#This Row],[Shape]]="Normal",NORMINV(Variables[[#This Row],[Uniform PRNG]],(Variables[[#This Row],[Upper Bound]]+Variables[[#This Row],[Lower Bound]])/2,(Variables[[#This Row],[Upper Bound]]-Variables[[#This Row],[Lower Bound]])/3.29),IF(Variables[[#This Row],[Shape]]="Uniform",(Variables[[#This Row],[Upper Bound]]-Variables[[#This Row],[Lower Bound]])*Variables[[#This Row],[Uniform PRNG]]+Variables[[#This Row],[Lower Bound]],IF(Variables[[#This Row],[Shape]]="Binary",IF(Variables[[#This Row],[Uniform PRNG]]<Variables[[#This Row],[Mode or P]],1,0),IF(Variables[[#This Row],[Shape]]="Triangular",IF(Variables[[#This Row],[Uniform PRNG]]<(Variables[[#This Row],[Mode or P]]-Variables[[#This Row],[Lower Bound]])/(Variables[[#This Row],[Upper Bound]]-Variables[[#This Row],[Lower Bound]]), 1, 0) * (Variables[[#This Row],[Lower Bound]] + SQRT(Variables[[#This Row],[Uniform PRNG]]*(Variables[[#This Row],[Upper Bound]]-Variables[[#This Row],[Lower Bound]])*(Variables[[#This Row],[Mode or P]]-Variables[[#This Row],[Lower Bound]]))) + IF(Variables[[#This Row],[Uniform PRNG]]>= (Variables[[#This Row],[Mode or P]]-Variables[[#This Row],[Lower Bound]])/(Variables[[#This Row],[Upper Bound]]-Variables[[#This Row],[Lower Bound]]), 1, 0) * (Variables[[#This Row],[Upper Bound]] - SQRT((1-Variables[[#This Row],[Uniform PRNG]]) * (Variables[[#This Row],[Upper Bound]] - Variables[[#This Row],[Lower Bound]]) * (Variables[[#This Row],[Upper Bound]] - Variables[[#This Row],[Mode or P]]))),""))))))) -> 183.011918 | E16: Uniform | F16: 164 | H16: 245 | I16: BloombergNEF https://about.bnef.com/blog/behind-scenes-take-lithium-ion-battery-prices/ | J16: =IFERROR(IF(OR(MIN(Variables[[#This Row],[P(X<T)]], Variables[[#This Row],[P(X>T)]])<0.002,SIGN(Variables[[#This Row],[EOL(X<T)]])=SIGN(Variables[[#This Row],[EOL(X>T)]])),0,IFERROR(IF(B$50=1,IF(Variables[[#This Row],[EOL(X<T)]]<Variables[[#This Row],[EOL(X>T)]],-Variables[[#This Row],[EOL(X<T)]]*Variables[[#This Row],[P(X<T)]],-Variables[[#This Row],[EOL(X>T)]]*Variables[[#This Row],[P(X>T)]]),IF(Variables[[#This Row],[EOL(X<T)]]>Variables[[#This Row],[EOL(X>T)]],Variables[[#This Row],[EOL(X<T)]]*Variables[[#This Row],[P(X<T)]],Variables[[#This Row],[EOL(X>T)]]*Variables[[#This Row],[P(X>T)]])),"")),0) -> 0 | K16: =IF(Variables[[#This Row],[Shape]]="Constant",Variables[[#This Row],[Mode or P]],IF(Variables[[#This Row],[Shape]]="Lognorm",EXP((LN(Variables[[#This Row],[Upper Bound]])+LN(Variables[[#This Row],[Lower Bound]]))/2+((LN(Variables[[#This Row],[Upper Bound]])-LN(Variables[[#This Row],[Lower Bound]]))/3.29)^2/2),IF(Variables[[#This Row],[Shape]]="Normal",(Variables[[#This Row],[Lower Bound]]+Variables[[#This Row],[Upper Bound]])/2,IF(Variables[[#This Row],[Shape]]="Uniform",(Variables[[#This Row],[Lower Bound]]+Variables[[#This Row],[Upper Bound]])/2,IF(Variables[[#This Row],[Shape]]="Binary",Variables[[#This Row],[Mode or P]],IF(Variables[[#This Row],[Shape]]="Triangular",(Variables[[#This Row],[Lower Bound]]+Variables[[#This Row],[Mode or P]]+Variables[[#This Row],[Upper Bound]])/3,"")))))) -> 204.5 | L16: =IF(Variables[[#This Row],[Shape]]="","",(MOD((MOD(MOD(999999999999989,MOD(ScenarioNum*2499997+Variables[[#This Row],[VarID]]*1800451,7450589)*4658+7450581)*383,99991)*231109+MOD(MOD(999999999999989,MOD(ScenarioNum*2246527+Variables[[#This Row],[VarID]]*2399993,7450987)*7580+7560584)*547,231109))*43271,4294967296)+0.5)/4294967296) -> 0.2347150372 | M16: =IF(Variables[[#This Row],[Shape]]="Binary", 1-Variables[[#This Row],[Mode or P]], IF(Variables[[#This Row],[Shape]]<>"",COUNTIF(INDEX($X$9:$AMI$164, ROW(Variables[[#This Row],[Variable Name]])-ROW(Variables[[#Headers],[Variable Name]]), ),"<"&Variables[[#This Row],[Threshold Estimate]])/1000,"")) -> 0 | N16: =IF(Variables[[#This Row],[Shape]]<>"",1-Variables[[#This Row],[P(X<T)]],"") -> 1 | O16: =IFERROR(AVERAGEIFS(X$7:AMI$7,INDEX(X$9:$AMI$164, ROW(Variables[[#This Row],[Variable Name]])-ROW(Variables[[#Headers],[Variable Name]]), ),IF(Variables[[#This Row],[Shape]]="Binary","=0","<"&Variables[[#This Row],[Threshold Estimate]])),"") ->  | P16: =IFERROR(AVERAGEIFS(X$7:AMI$7,INDEX($X$9:$AMI$164, ROW(Variables[[#This Row],[Variable Name]])-ROW(Variables[[#Headers],[Variable Name]]), ),IF(Variables[[#This Row],[Shape]]="Binary","=1",">"&Variables[[#This Row],[Threshold Estimate]])),"") -> -5936.888905 | Q16: =IFERROR(IF(Variables[[#This Row],[Shape]]="Binary",IF(B$50=1,IF(Variables[[#This Row],[EOL(X<T)]]<Variables[[#This Row],[EOL(X>T)]],0,1),IF(Variables[[#This Row],[EOL(X<T)]]<Variables[[#This Row],[EOL(X>T)]],1,0)), INDEX($AOF$9:$AOF$164, ROW(Variables[[#This Row],[Variable Name]])-ROW(Variables[[#Headers],[Variable Name]]))),"") -> 79.47654491 | V16: =IFERROR(IF(ISBLANK(Variables[[#This Row],[Variable Name]]), "", Variables[[#This Row],[Variable Name]]), "") -> Battery storage per Kwh stored (As of 2018) | W16: 183.011918 | X16: 231.3628499 | Y16: 183.3915382 | Z16: 179.9591425 | AA16: 219.7077336 | AB16: 185.6658779 | AC16: 165.8417812 | AD16: 166.5454757 | AE16: 198.9214481 | AF16: 204.6185417 | AG16: 183.011918 | AH16: 211.1730125 | AI16: 189.7232352 | AJ16: 169.2615753 | AK16: 202.5384068 | AL16: 226.8773045 | AM16: 173.5298815 | AN16: 194.0878207 | AO16: 178.723734 | AP16: 232.0410354 | AQ16: 212.7739046 | AR16: 187.4256921 | AS16: 206.2809843 | AT16: 164.6400851 | AU16: 217.0699173 | AV16: 212.8102591 | AW16: 220.9978108 | AX16: 208.246886 | AY16: 217.6658939 | AZ16: 172.7011616 | BA16: 228.2009252 | BB16: 164.8488003 | BC16: 220.2676665 | BD16: 225.3975397 | BE16: 229.2274723 | BF16: 231.6789538 | BG16: 244.1183098 | BH16: 180.7986988 | BI16: 170.4439215 | BJ16: 234.5015226 | BK16: 183.0481856 | BL16: 199.4677088 | BM16: 173.313433 | BN16: 229.4734654 | BO16: 183.8021487 | BP16: 175.2985266 | BQ16: 197.3157768 | BR16: 188.8539033 | BS16: 165.4326016 | BT16: 227.5018863 | BU16: 209.6488125 | BV16: 212.6365049 | BW16: 213.767883 | BX16: 211.4736723 | BY16: 170.9436434 | BZ16: 185.5431703 | CA16: 193.9026153 | CB16: 212.1196198 | CC16: 228.0778377 | CD16: 227.4829295 | CE16: 182.9360716 | CF16: 229.3289928 | CG16: 170.0828349 | CH16: 177.5443378 | CI16: 226.6897627 | CJ16: 214.5368746 | CK16: 193.1612746 | CL16: 214.9790409 | CM16: 196.6836482 | CN16: 229.3126915 | CO16: 210.7560809 | CP16: 223.1956248 | CQ16: 233.1830888 | CR16: 181.378229 | CS16: 219.4065398 | CT16: 169.1819967 | CU16: 205.1251247 | CV16: 182.6586262 | CW16: 190.3640839 | CX16: 187.2926571 | CY16: 201.6728505 | CZ16: 239.2433019 | DA16: 178.9287751 | DB16: 195.1976627 | DC16: 240.4329001 | DD16: 230.9648974 | DE16: 198.5361109 | DF16: 206.879126 | DG16: 228.800033 | DH16: 172.415638 | DI16: 213.0958907 | DJ16: 186.7180515 | DK16: 170.3235345 | DL16: 217.4088966 | DM16: 224.3090463 | DN16: 196.1528631 | DO16: 199.1830323 | DP16: 190.4896544 | DQ16: 221.1048394 | DR16: 164.2358337 | DS16: 191.738261 | DT16: 217.7642728 | DU16: 228.5828832 | DV16: 215.3339696 | DW16: 174.1539191 | DX16: 204.5397577 | DY16: 198.4156095 | DZ16: 188.3038295 | EA16: 188.7635274 | EB16: 199.6581098 | EC16: 218.5862026 | ED16: 243.9047748 | EE16: 199.5223229 | EF16: 244.9792252 | EG16: 175.5447265 | EH16: 184.219575 | EI16: 181.4057843 | EJ16: 184.2173042 | EK16: 217.8606405 | EL16: 185.0556904 | EM16: 243.0675265 | EN16: 209.0986675 | EO16: 204.205418 | EP16: 234.8974596 | EQ16: 222.6361816 | ER16: 241.7489651 | ES16: 222.3584596 | ET16: 194.0029904 | EU16: 211.64348 | EV16: 203.8932265 | EW16: 169.8491058 | EX16: 214.3804403 | EY16: 239.852894 | EZ16: 241.4065241 | FA16: 176.5388182 | FB16: 207.9074142 | FC16: 238.9473455 | FD16: 243.5807673 | FE16: 197.9519808 | FF16: 204.5648544 | FG16: 210.3594204 | FH16: 172.811805 | FI16: 201.688578 | FJ16: 195.4304503 | FK16: 167.5299847 | FL16: 223.3006131 | FM16: 192.7228776 | FN16: 205.8476552 | FO16: 166.2434061 | FP16: 236.7074898 | FQ16: 173.8728672 | FR16: 238.5728944 | FS16: 217.424903 | FT16: 180.326378 | FU16: 212.4168496 | FV16: 183.7124169 | FW16: 229.2294221 | FX16: 209.0963139 | FY16: 185.3161087 | FZ16: 217.9780524 | GA16: 242.8070191 | GB16: 186.0372876 | GC16: 197.4449997 | GD16: 183.4189441 | GE16: 186.7139336 | GF16: 230.8928462 | GG16: 172.028795 | GH16: 181.0551037 | GI16: 205.9700116 | GJ16: 217.6160872 | GK16: 179.2324657 | GL16: 206.0554452 | GM16: 196.5797619 | GN16: 195.2871361 | GO16: 222.8292921 | GP16: 197.6037268 | GQ16: 169.0289401 | GR16: 186.5284563 | GS16: 234.7105761 | GT16: 234.3738783 | GU16: 190.9267288 | GV16: 164.5624565 | GW16: 205.8385027 | GX16: 184.2209835 | GY16: 230.2254994 | GZ16: 200.0187978 | HA16: 229.17303 | HB16: 189.3255249 | HC16: 207.4191365 | HD16: 171.6774403 | HE16: 183.6889154 | HF16: 166.3963846 | HG16: 190.0743204 | HH16: 198.7832975 | HI16: 164.1933101 | HJ16: 173.032257 | HK16: 164.4365252 | HL16: 181.5937593 | HM16: 186.2872674 | HN16: 173.433297 | HO16: 170.3197905 | HP16: 209.7715444 | HQ16: 164.8942098 | HR16: 196.8188591 | HS16: 184.4548486 | HT16: 196.9681829 | HU16: 181.7340414 | HV16: 181.6173407 | HW16: 191.8290921 | HX16: 164.7014032 | HY16: 177.8166419 | HZ16: 184.7659915 | IA16: 238.3650259 | IB16: 223.4819285 | IC16: 210.5115528 | ID16: 199.9092906 | IE16: 168.8987617 | IF16: 217.5282814 | IG16: 219.6537381 | IH16: 238.4957726 | II16: 208.002144 | IJ16: 233.6788554 | IK16: 164.3296799 | IL16: 176.0823828 | IM16: 211.5324565 | IN16: 238.2212087 | IO16: 198.4222292 | IP16: 207.5191257 | IQ16: 177.9523454 | IR16: 186.8345708 | IS16: 193.593494 | IT16: 221.2931953 | IU16: 179.3419071 | IV16: 186.6990024 | IW16: 209.057715 | IX16: 172.5032914 | IY16: 192.5334432 | IZ16: 190.915456 | JA16: 206.6662601 | JB16: 201.1158375 | JC16: 240.0487298 | JD16: 179.6596284 | JE16: 241.8678025 | JF16: 181.5082203 | JG16: 182.895207 | JH16: 206.1178975 | JI16: 227.9290074 | JJ16: 194.8077308 | JK16: 210.1381256 | JL16: 212.9541457 | JM16: 236.3955624 | JN16: 244.0889956 | JO16: 230.7604441 | JP16: 195.6909745 | JQ16: 188.5501567 | JR16: 231.2867537 | JS16: 233.1254499 | JT16: 198.7524919 | JU16: 226.2934221 | JV16: 175.5946736 | JW16: 220.0914257 | JX16: 184.1008975 | JY16: 212.3920148 | JZ16: 211.3147183 | KA16: 189.4615254 | KB16: 208.9473337 | KC16: 166.1354499 | KD16: 171.8569463 | KE16: 203.938847 | KF16: 174.0854457 | KG16: 206.1336701 | KH16: 203.1655884 | KI16: 217.3321204 | KJ16: 225.6786644 | KK16: 176.2654818 | KL16: 189.0423282 | KM16: 177.1357745 | KN16: 171.6078308 | KO16: 171.0826995 | KP16: 168.476621 | KQ16: 199.1037724 | KR16: 242.5659643 | KS16: 222.6204889 | KT16: 208.5238824 | KU16: 203.1326866 | KV16: 233.5367917 | KW16: 182.6118601 | KX16: 173.1697754 | KY16: 201.726934 | KZ16: 203.2088 | LA16: 230.4573135 | LB16: 168.2525592 | LC16: 238.4862486 | LD16: 183.9305898 | LE16: 208.8989135 | LF16: 202.753774 | LG16: 190.0382465 | LH16: 205.902882 | LI16: 208.0899836 | LJ16: 167.4698246 | LK16: 238.7506698 | LL16: 211.154751 | LM16: 210.0927481 | LN16: 205.7322585 | LO16: 200.3584712 | LP16: 175.7746913 | LQ16: 209.6168142 | LR16: 223.4089579 | LS16: 189.3549806 | LT16: 199.7140727 | LU16: 168.5786153 | LV16: 205.3295205 | LW16: 165.7751218 | LX16: 176.6855748 | LY16: 179.7597892 | LZ16: 230.7575553 | MA16: 199.7971397 | MB16: 173.5914375 | MC16: 164.0222375 | MD16: 215.3965725 | ME16: 171.4951898 | MF16: 220.4610052 | MG16: 214.4439 | MH16: 207.7527803 | MI16: 180.1138023 | MJ16: 235.8467487 | MK16: 219.0653412 | ML16: 233.0406307 | MM16: 198.1302452 | MN16: 214.7828069 | MO16: 170.1489326 | MP16: 223.6822752 | MQ16: 205.1885952 | MR16: 191.676815 | MS16: 239.4821008 | MT16: 171.3690289 | MU16: 244.6262131 | MV16: 188.9832921 | MW16: 238.4068471 | MX16: 187.7432591 | MY16: 221.7422468 | MZ16: 169.4922954 | NA16: 166.4640488 | NB16: 208.1711911 | NC16: 199.4762648 | ND16: 239.7110555 | NE16: 213.763463 | NF16: 208.8244683 | NG16: 242.4549207 | NH16: 240.4320706 | NI16: 209.5900494 | NJ16: 186.5809545 | NK16: 210.3828746 | NL16: 197.8646594 | NM16: 190.1510266 | NN16: 211.4427197 | NO16: 210.7771469 | NP16: 233.6742454 | NQ16: 180.4598065 | NR16: 216.5952273 | NS16: 233.40494 | NT16: 207.3792952 | NU16: 225.5743346 | NV16: 187.686212 | NW16: 167.9475088 | NX16: 173.2071988 | NY16: 217.2112699 | NZ16: 234.1994378 | OA16: 173.4023462 | OB16: 237.988172 | OC16: 225.5864005 | OD16: 181.7575737 | OE16: 186.9027471 | OF16: 243.5689728 | OG16: 166.4924624 | OH16: 186.1446246 | OI16: 193.6547507 | OJ16: 195.5379918 | OK16: 173.3255268 | OL16: 207.6584737 | OM16: 165.3957529 | ON16: 222.4556357 | OO16: 222.5952185 | OP16: 176.9230487 | OQ16: 230.0495259 | OR16: 198.0908521 | OS16: 183.4790288 | OT16: 201.3624319 | OU16: 180.2872434 | OV16: 210.5244087 | OW16: 197.2175181 | OX16: 216.7434339 | OY16: 207.5357965 | OZ16: 164.6688595 | PA16: 173.8173364 | PB16: 192.6211681 | PC16: 232.213053 | PD16: 169.0640741 | PE16: 205.1039455 | PF16: 198.5672598 | PG16: 183.0170386 | PH16: 179.0639446 | PI16: 230.7876983 | PJ16: 194.3726553 | PK16: 240.4727205 | PL16: 177.1315441 | PM16: 179.0529154 | PN16: 197.5730576 | PO16: 237.7260689 | PP16: 231.8959968 | PQ16: 217.7052413 | PR16: 186.8357496 | PS16: 208.357566 | PT16: 239.4547243 | PU16: 234.9911521 | PV16: 238.755334 | PW16: 207.383137 | PX16: 242.6386691 | PY16: 218.812671 | PZ16: 214.9468202 | QA16: 225.5475703 | QB16: 222.3340236 | QC16: 229.2296792 | QD16: 164.3173217 | QE16: 177.3040252 | QF16: 209.9913824 | QG16: 178.0167028 | QH16: 203.7605423 | QI16: 184.3132417 | QJ16: 165.8858639 | QK16: 164.9554857 | QL16: 237.732508 | QM16: 175.4316494 | QN16: 233.2453869 | QO16: 201.3184881 | QP16: 238.2601742 | QQ16: 237.5376905 | QR16: 239.9304822 | QS16: 212.5055253 | QT16: 175.7579082 | QU16: 191.257691 | QV16: 244.3110351 | QW16: 243.6639247 | QX16: 180.2639225 | QY16: 222.7020922 | QZ16: 234.2759531 | RA16: 242.8671596 | RB16: 167.6797815 | RC16: 208.2300641 | RD16: 195.0838315 | RE16: 238.4972801 | RF16: 231.6502629 | RG16: 227.8768779 | RH16: 207.0314054 | RI16: 206.1620567 | RJ16: 189.227119 | RK16: 224.6874646 | RL16: 174.3113295 | RM16: 200.7900101 | RN16: 215.7132637 | RO16: 199.5738618 | RP16: 174.5766792 | RQ16: 194.9061984 | RR16: 172.0442711 | RS16: 164.377516 | RT16: 176.5895333 | RU16: 243.8730969 | RV16: 187.3218362 | RW16: 214.9766586 | RX16: 213.973711 | RY16: 200.4230095 | RZ16: 188.1275868 | SA16: 188.2149458 | SB16: 238.7924871 | SC16: 188.0659131 | SD16: 235.6977185 | SE16: 179.8140358 | SF16: 200.0902752 | SG16: 224.2841031 | SH16: 197.1008768 | SI16: 179.4998487 | SJ16: 165.8401378 | SK16: 237.212177 | SL16: 210.7059228 | SM16: 164.2165995 | SN16: 237.2037444 | SO16: 215.7980859 | SP16: 185.1036696 | SQ16: 167.6151775 | SR16: 210.3905039 | SS16: 177.4617262 | ST16: 172.3356479 | SU16: 205.0672048 | SV16: 172.1868157 | SW16: 168.2832911 | SX16: 218.368765 | SY16: 166.2393607 | SZ16: 204.0448609 | TA16: 239.8020872 | TB16: 180.6937819 | TC16: 204.5410991 | TD16: 231.9739008 | TE16: 202.9563854 | TF16: 194.2349978 | TG16: 175.46623 | TH16: 195.1018645 | TI16: 190.9565332 | TJ16: 173.4661343 | TK16: 178.1115564 | TL16: 189.8853849 | TM16: 214.8791599 | TN16: 211.5845605 | TO16: 181.3315228 | TP16: 203.8926385 | TQ16: 180.4271311 | TR16: 217.5571594 | TS16: 220.3099519 | TT16: 169.3286127 | TU16: 227.0592554 | TV16: 224.2920887 | TW16: 218.2880278 | TX16: 175.3609132 | TY16: 171.7989508 | TZ16: 232.358738 | UA16: 209.3213523 | UB16: 207.9269302 | UC16: 171.1951353 | UD16: 178.1401808 | UE16: 166.6868471 | UF16: 179.1656097 | UG16: 181.983786 | UH16: 198.8429911 | UI16: 199.199191 | UJ16: 214.1355764 | UK16: 225.6194392 | UL16: 243.8498682 | UM16: 216.3989434 | UN16: 192.1852059 | UO16: 188.108224 | UP16: 201.1292706 | UQ16: 221.8177591 | UR16: 207.8399253 | US16: 237.9846583 | UT16: 215.7816331 | UU16: 228.8714348 | UV16: 228.4860501 | UW16: 241.5886913 | UX16: 207.5883362 | UY16: 195.8228624 | UZ16: 222.2563883 | VA16: 235.9883997 | VB16: 235.4424876 | VC16: 198.9552643 | VD16: 200.0086421 | VE16: 166.9069269 | VF16: 222.0752755 | VG16: 220.6030955 | VH16: 220.7529592 | VI16: 211.3371177 | VJ16: 173.3438113 | VK16: 176.4754195 | VL16: 169.6000501 | VM16: 228.8191454 | VN16: 202.5023346 | VO16: 209.4268229 | VP16: 179.4526982 | VQ16: 217.9611212 | VR16: 175.2521168 | VS16: 233.6815605 | VT16: 175.9496339 | VU16: 194.3122341 | VV16: 233.01729 | VW16: 183.3582807 | VX16: 194.0115971 | VY16: 191.1140539 | VZ16: 242.7021902 | WA16: 241.7504375 | WB16: 183.192659 | WC16: 214.6680023 | WD16: 218.3171028 | WE16: 180.2719209 | WF16: 233.6857074 | WG16: 173.5151401 | WH16: 166.5504916 | WI16: 187.0980764 | WJ16: 209.035993 | WK16: 224.67755 | WL16: 184.4973822 | WM16: 168.6331984 | WN16: 197.69603 | WO16: 195.5863277 | WP16: 178.4288646 | WQ16: 184.8967501 | WR16: 173.7796724 | WS16: 198.4612232 | WT16: 221.537045 | WU16: 239.6669068 | WV16: 192.5827484 | WW16: 173.354283 | WX16: 183.4574865 | WY16: 229.8730122 | WZ16: 232.4393538 | XA16: 237.6557214 | XB16: 164.7853041 | XC16: 207.0295807 | XD16: 192.0154382 | XE16: 178.5303184 | XF16: 170.976694 | XG16: 191.2335719 | XH16: 190.4420565 | XI16: 212.6609601 | XJ16: 169.6981633 | XK16: 218.0120889 | XL16: 219.0085833 | XM16: 225.504332 | XN16: 218.2647964 | XO16: 237.0783068 | XP16: 206.4894536 | XQ16: 227.4115468 | XR16: 208.8561259 | XS16: 207.7137453 | XT16: 213.4139327 | XU16: 184.4447135 | XV16: 223.5053454 | XW16: 228.074738 | XX16: 186.2404975 | XY16: 229.2933887 | XZ16: 228.7483472 | YA16: 221.0041822 | YB16: 192.4711981 | YC16: 170.9558804 | YD16: 234.7538187 | YE16: 230.1719481 | YF16: 220.3356501 | YG16: 214.6773115 | YH16: 186.2385811 | YI16: 235.3619771 | YJ16: 205.6312855 | YK16: 177.7594884 | YL16: 201.5010303 | YM16: 201.4166392 | YN16: 224.3225988 | YO16: 219.764436 | YP16: 196.9328948 | YQ16: 187.4361308 | YR16: 216.4609702 | YS16: 208.6969549 | YT16: 190.67324 | YU16: 219.2106946 | YV16: 170.9557746 | YW16: 167.3440845 | YX16: 241.5021696 | YY16: 181.3993881 | YZ16: 198.7573574 | ZA16: 216.5870878 | ZB16: 219.6764152 | ZC16: 181.0327698 | ZD16: 235.2254064 | ZE16: 240.2261065 | ZF16: 221.2240784 | ZG16: 166.8109552 | ZH16: 185.4497162 | ZI16: 233.7572968 | ZJ16: 206.6267389 | ZK16: 178.2491738 | ZL16: 216.9220815 | ZM16: 174.2980702 | ZN16: 206.9895194 | ZO16: 190.0184184 | ZP16: 165.9378868 | ZQ16: 186.5968662 | ZR16: 181.4980385 | ZS16: 188.5761448 | ZT16: 165.1137073 | ZU16: 197.7711546 | ZV16: 235.5338178 | ZW16: 235.8371924 | ZX16: 199.2958093 | ZY16: 225.5867526 | ZZ16: 221.2858652 | AAA16: 226.227843 | AAB16: 219.2636253 | AAC16: 228.4208082 | AAD16: 244.5343903 | AAE16: 216.7115366 | AAF16: 229.3371854 | AAG16: 209.9048168 | AAH16: 188.0396948 | AAI16: 230.1360865 | AAJ16: 164.5047266 | AAK16: 191.3679898 | AAL16: 206.518168 | AAM16: 235.2102957 | AAN16: 239.7976407 | AAO16: 176.8013317 | AAP16: 242.0464801 | AAQ16: 172.4394317 | AAR16: 173.0276333 | AAS16: 186.197034 | AAT16: 178.904954 | AAU16: 170.1351986 | AAV16: 210.7561431 | AAW16: 170.1825741 | AAX16: 242.0556504 | AAY16: 170.2977049 | AAZ16: 199.0024412 | ABA16: 174.7324256 | ABB16: 200.660566 | ABC16: 192.2330016 | ABD16: 185.3950496 | ABE16: 232.7930838 | ABF16: 217.2987587 | ABG16: 217.6141663 | ABH16: 193.947093 | ABI16: 221.957484 | ABJ16: 194.4011771 | ABK16: 182.9762154 | ABL16: 174.8445846 | ABM16: 201.8172331 | ABN16: 228.8104733 | ABO16: 242.5808185 | ABP16: 206.1533836 | ABQ16: 173.4572853 | ABR16: 218.6362739 | ABS16: 205.360463 | ABT16: 188.3489021 | ABU16: 219.6016425 | ABV16: 184.6574212 | ABW16: 242.3180941 | ABX16: 238.1867879 | ABY16: 237.7446838 | ABZ16: 180.3935214 | ACA16: 232.4687125 | ACB16: 206.3717949 | ACC16: 212.4364003 | ACD16: 233.607248 | ACE16: 177.0993236 | ACF16: 164.86147 | ACG16: 164.4030827 | ACH16: 209.1406701 | ACI16: 236.6944492 | ACJ16: 238.9337163 | ACK16: 164.0669294 | ACL16: 244.84151 | ACM16: 181.5200648 | ACN16: 229.7729146 | ACO16: 213.619291 | ACP16: 192.4198476 | ACQ16: 228.6243433 | ACR16: 195.0816943 | ACS16: 179.5057849 | ACT16: 212.4972628 | ACU16: 240.075216 | ACV16: 228.6808928 | ACW16: 196.0948131 | ACX16: 169.9141729 | ACY16: 230.0052198 | ACZ16: 179.0440929 | ADA16: 233.9718869 | ADB16: 236.4973024 | ADC16: 214.1306734 | ADD16: 236.7391057 | ADE16: 210.6318788 | ADF16: 240.9815821 | ADG16: 166.0096052 | ADH16: 227.8141119 | ADI16: 215.5128306 | ADJ16: 164.3570037 | ADK16: 206.9312375 | ADL16: 179.7978776 | ADM16: 229.1642971 | ADN16: 229.6821149 | ADO16: 188.4860588 | ADP16: 180.8612663 | ADQ16: 235.5813432 | ADR16: 240.9458488 | ADS16: 184.4262691 | ADT16: 235.7382545 | ADU16: 233.738787 | ADV16: 237.4314127 | ADW16: 227.3669491 | ADX16: 221.6709384 | ADY16: 215.4406659 | ADZ16: 171.9469551 | AEA16: 170.9608688 | AEB16: 195.1577258 | AEC16: 179.5254191 | AED16: 231.0693539 | AEE16: 169.1855509 | AEF16: 212.5263727 | AEG16: 171.6426695 | AEH16: 222.5056408 | AEI16: 175.075694 | AEJ16: 214.8827181 | AEK16: 172.4847655 | AEL16: 180.1809705 | AEM16: 182.6409137 | AEN16: 210.9782835 | AEO16: 212.2805026 | AEP16: 169.0831332 | AEQ16: 187.9461954 | AER16: 189.8264791 | AES16: 222.5550747 | AET16: 206.9833038 | AEU16: 200.5482374 | AEV16: 202.2959774 | AEW16: 207.3619876 | AEX16: 171.0511233 | AEY16: 167.5346118 | AEZ16: 207.4035213 | AFA16: 190.6490716 | AFB16: 244.9988834 | AFC16: 181.0054888 | AFD16: 241.7018456 | AFE16: 241.2937719 | AFF16: 229.4041406 | AFG16: 170.0436573 | AFH16: 195.1366577 | AFI16: 233.373563 | AFJ16: 169.1508317 | AFK16: 226.9731035 | AFL16: 234.6252453 | AFM16: 231.8287427 | AFN16: 222.096804 | AFO16: 228.0262499 | AFP16: 175.370356 | AFQ16: 196.7745881 | AFR16: 214.4359348 | AFS16: 216.8067442 | AFT16: 172.2400511 | AFU16: 164.7720098 | AFV16: 170.243934 | AFW16: 187.592114 | AFX16: 209.0540769 | AFY16: 176.1377078 | AFZ16: 183.4203966 | AGA16: 208.7191621 | AGB16: 178.1576674 | AGC16: 224.5848408 | AGD16: 243.0972258 | AGE16: 234.462569 | AGF16: 230.2611617 | AGG16: 182.4826583 | AGH16: 232.3310645 | AGI16: 190.7161038 | AGJ16: 199.0860836 | AGK16: 197.1818731 | AGL16: 178.068823 | AGM16: 193.3814416 | AGN16: 190.7887084 | AGO16: 241.7946287 | AGP16: 214.4800994 | AGQ16: 187.7630873 | AGR16: 176.1129668 | AGS16: 208.0835221 | AGT16: 213.0196738 | AGU16: 230.0689199 | AGV16: 199.0021943 | AGW16: 231.07499 | AGX16: 206.5076586 | AGY16: 194.7338877 | AGZ16: 183.9490431 | AHA16: 204.0361343 | AHB16: 199.5468617 | AHC16: 190.9430858 | AHD16: 216.6674894 | AHE16: 233.5518529 | AHF16: 218.5388458 | AHG16: 178.1112992 | AHH16: 168.8513421 | AHI16: 187.6974066 | AHJ16: 222.3458814 | AHK16: 238.8949671 | AHL16: 211.0169444 | AHM16: 216.1574312 | AHN16: 216.6010182 | AHO16: 235.770516 | AHP16: 239.3707622 | AHQ16: 231.6413188 | AHR16: 234.6354758 | AHS16: 167.4214759 | AHT16: 211.2209216 | AHU16: 222.469396 | AHV16: 239.4086836 | AHW16: 195.9493787 | AHX16: 238.0353957 | AHY16: 228.4423555 | AHZ16: 192.3971415 | AIA16: 240.4721346 | AIB16: 213.626713 | AIC16: 200.7012663 | AID16: 216.9988885 | AIE16: 239.2588386 | AIF16: 189.8458163 | AIG16: 184.4943851 | AIH16: 222.5365386 | AII16: 171.0452106 | AIJ16: 218.7245798 | AIK16: 192.3159711 | AIL16: 228.7391411 | AIM16: 222.5170642 | AIN16: 188.344458 | AIO16: 225.2983982 | AIP16: 235.526138 | AIQ16: 193.1384496 | AIR16: 172.2976213 | AIS16: 225.5323832 | AIT16: 206.9555955 | AIU16: 243.3085339 | AIV16: 233.4747942 | AIW16: 222.8731034 | AIX16: 232.4431721 | AIY16: 205.66921 | AIZ16: 223.1216189 | AJA16: 173.43248 | AJB16: 201.4250597 | AJC16: 233.1570949 | AJD16: 204.3996764 | AJE16: 195.0442685 | AJF16: 182.8402959 | AJG16: 191.2657282 | AJH16: 168.4541283 | AJI16: 182.5590153 | AJJ16: 175.5343829 | AJK16: 206.9935579 | AJL16: 168.9674393 | AJM16: 233.7411092 | AJN16: 187.8928759 | AJO16: 216.7105771 | AJP16: 235.1172741 | AJQ16: 217.2738389 | AJR16: 174.7027339 | AJS16: 179.9633445 | AJT16: 195.7579861 | AJU16: 184.5283073 | AJV16: 190.8420617 | AJW16: 244.3878235 | AJX16: 170.6857652 | AJY16: 231.0148477 | AJZ16: 194.5783543 | AKA16: 194.1625031 | AKB16: 173.5687267 | AKC16: 189.226148 | AKD16: 211.0874741 | AKE16: 233.9585119 | AKF16: 189.31692 | AKG16: 240.66628 | AKH16: 231.4042235 | AKI16: 225.7776798 | AKJ16: 230.7915593 | AKK16: 169.9451878 | AKL16: 232.9647954 | AKM16: 241.2079065 | AKN16: 171.2758761 | AKO16: 205.9377803 | AKP16: 165.7354646 | AKQ16: 222.7967697 | AKR16: 198.6816215 | AKS16: 176.5337099 | AKT16: 173.7178937 | AKU16: 229.8126986 | AKV16: 169.3616297 | AKW16: 177.7981065 | AKX16: 184.4779365 | AKY16: 221.3099198 | AKZ16: 234.5951855 | ALA16: 179.7714403 | ALB16: 216.9019727 | ALC16: 215.1595137 | ALD16: 170.4261916 | ALE16: 193.0629815 | ALF16: 236.1669076 | ALG16: 192.4314164 | ALH16: 197.6133928 | ALI16: 240.2151851 | ALJ16: 206.1237249 | ALK16: 198.1948847 | ALL16: 234.1937669 | ALM16: 183.634934 | ALN16: 168.0273164 | ALO16: 200.7904517 | ALP16: 217.9632553 | ALQ16: 230.5615575 | ALR16: 179.9395367 | ALS16: 164.759439 | ALT16: 194.4899585 | ALU16: 213.8772454 | ALV16: 201.0967781 | ALW16: 188.0547757 | ALX16: 217.1547688 | ALY16: 175.7773918 | ALZ16: 177.8524333 | AMA16: 222.9616916 | AMB16: 185.0361067 | AMC16: 215.7545159 | AMD16: 200.4150363 | AME16: 183.2642763 | AMF16: 237.5822096 | AMG16: 236.2476393 | AMH16: 242.1714816 | AMI16: 229.1326639 | AML16: 167.6450589 | AMM16: 171.4242064 | AMN16: 175.1242677 | AMO16: 179.0031166 | AMP16: 182.7437788 | AMQ16: 186.5419736 | AMR16: 190.549464 | AMS16: 194.8134641 | AMT16: 198.9448641 | AMU16: 203.416724 | AMV16: 207.5595163 | AMW16: 211.1613859 | AMX16: 215.1691799 | AMY16: 219.2449076 | AMZ16: 223.7900304 | ANA16: 228.3288115 | ANB16: 232.2326516 | ANC16: 236.0786442 | AND16: 240.2163833 | ANF16: -4564.437597 | ANG16: -4812.282112 | ANH16: -4940.495871 | ANI16: -4918.849841 | ANJ16: -5053.913827 | ANK16: -5365.274131 | ANL16: -5305.13653 | ANM16: -5355.511468 | ANN16: -5566.155697 | ANO16: -5906.028202 | ANP16: -6391.820289 | ANQ16: -6219.663088 | ANR16: -6226.282588 | ANS16: -6608.986957 | ANT16: -6891.764755 | ANU16: -6955.201741 | ANV16: -7027.813072 | ANW16: -7194.562534 | ANX16: -7414.077866 | ANY16: =IFERROR(MATCH(MIN(ABS(ANF16:ANX16)),ABS(ANF16:ANX16),0),"") -> 1 | ANZ16: =IFERROR(INDEX(ANF16:ANX16,MIN(MAX(ANY16-1,1),17)),"") -> -4564.437597 | AOA16: =IFERROR(INDEX(ANF16:ANX16,MIN(MAX(ANY16,2),18)),"") -> -4812.282112 | AOB16: =IFERROR(INDEX(ANF16:ANX16,MIN(MAX(ANY16,3),19)),"") -> -4940.495871 | AOC16: =IFERROR(INDEX(AML16:AND16,MIN(MAX(ANY16-1,1),17)),"") -> 167.6450589 | AOD16: =IFERROR(INDEX(AML16:AND16,MIN(MAX(ANY16,2),18)),"") -> 171.4242064 | AOE16: =IFERROR(INDEX(AML16:AND16,MIN(MAX(ANY16,3),19)),"") -> 175.1242677 | AOF16: 79.47654491
